Workbook

Sheet 00. MENU
B6: CONCESSÃO DE TRANSPORTE COLETIVO DE PONTA GROSSA
B7: 01. PC
B8: Painel de controle das principais variáveis do modelo. Nesta aba é possível alterar variáveis como prazo do projeto, NIG, WACC, VPL e etc. Além de alterar as premissas, é possível ver os principais outputs do modelo.
B9: 02. FCL
B10: Apresenta o Fluxo de Caixa Livre do Projeto. O resultado obtido pode ser alterado a depender do que é selecionado no Painel de Controle.
B11: 03. WACC
B12: Cálculo do Custo Médio Ponderado de Capital (Weighted Average Capital Cost) de referência para o Projeto.
B13: 04. D&A
B14: Calcula a depreciação e amortização fiscais dos ativos.
B15: 05. NIG
B16: Calcula a necessidade de investimento no giro.
B17: 06. CAPEX
B18: Detalhamento dos valores de CAPEX na compra e venda dos veículos da frota.
B19: 07. OPEX
B20: Aba de entrada dos inputs relacionados à operação. Utilizada para inserir os valores na moeda de referência dos preços.
B21: 08. (a)TRIBUTOS LREAL
B22: Calcula os tributos do regime fiscal de Lucro Real para cada ano para o FCL do Projeto.
B23: 08. (b)TRIBUTOS LPRESUMID
B24: Calcula os tributos do regime fiscal de Lucro Presumido para cada ano para o FCL do Projeto.
B25: 09. RECEITA E DEMANDA
B26: Calcula a previsão de receita com base na tarifa e perspectiva de demanda de passageiros
B27: 10. SENSIBILIDADE
B28: Calcula o impacto nos principais indicadores do Projeto, quando da variação da Receita, OPEX, CAPEX e encargos.
B29: 11. ÍNDICES
B30: Relação de índices econômicos publicados.
B33: Padrão de formatação utilizado - Legenda
B34: Células com fundo amarelo e fonte azul | F34: Inputs (Podem ser alteradas)
B35: Células com fonte verde | F35: Células que têm origem em outra aba (Não alterar)
B36: Células com fonte preta | F36: Fórmulas (Não alterar)

Sheet 01. PC
Q3: sim | R3: não
Q4: sim | R4: não
Q5: sim | R5: não
Q6: sim | R6: não
B8: Premissas | C8: Valor
B10: WACC - % a.a. | C10: =((1+HLOOKUP(Prazo,'08. (a)TRIBUTOS LREAL'!$C$99:$V$172,74))^(1/Prazo))-1 -> 0.09102882504
B12: TIR de Projeto - Real | C12: ='02. FCL'!C45 -> 0.09102878787
B14: VPL - R$ Milhões | C14: ='02. FCL'!C46 -> 0
B16: NIG - Meses | C16: 0.5
B18: Prazo - Em Anos | C18: 20
B20: Tipo de Remuneração | C20: KM Tecnologia
B22: Fator de Remuneração | C22: 47.38141812 | E22: KM | F22: Tecnologia Veicular | G22: Composição da Tarifa (%) | H22: Participação Rotação das Tecnologias | I22: Parâmetro Licitatório
B23: Tarifa Máxima Básico - R$ | C23: =IF($C$20="KM Tecnologia",$C$22*$G23,"") -> 7.345526212 | E23: KM Tecnologia | F23: Básico | G23: 0.1550296826 | H23: =(SUM('09. RECEITA E DEMANDA'!C36:V36))/'09. RECEITA E DEMANDA'!$X$30 -> 0.8012321424 | I23: =H23*C23 -> 5.885471704
B24: Tarifa Máxima MIDI - R$ | C24: =IF($C$20="KM Tecnologia",$C$22*$G24,"") -> 6.960303191 | E24: Passageiro | F24: MIDI | G24: 0.1468994274 | H24: =(SUM('09. RECEITA E DEMANDA'!C37:V37))/'09. RECEITA E DEMANDA'!$X$30 -> 0.1342791299 | I24: =H24*C24 -> 0.934623456
B25: Tarifa Máxima Articulado Diesel - R$ | C25: 20.01274231 | E25: Híbrido | F25: Articulado Diesel | G25: 0.4223753342 | H25: =(SUM('09. RECEITA E DEMANDA'!C38:V38))/'09. RECEITA E DEMANDA'!$X$30 -> 0.009673309154 | I25: 0.1935894434
B26: Tarifa máxima Articulado Elétrico - R$ | C26: 13.0628464 | F26: Articulado Elétrico | G26: 0.2756955558 | H26: =(SUM('09. RECEITA E DEMANDA'!C39:V39))/'09. RECEITA E DEMANDA'!$X$30 -> 0.05481541854 | I26: 0.7160453929
B27: Tarifa Remuneração por Passageiro - R$ | C27: 0.8716570526 | F27: Total | G27: =SUM(G23:G26) -> 1 | H27: =SUM(H23:H26) -> 1 | I27: =SUM(I23:I26) -> 7.729729997
B29: Subsídio - R$ | C29: 0 | F29: Lote 1 | G29: Lote 2 | H29: Demanda 2022 | I29: Desconto máximo I.D
B31: Tarifa Remuneração por KM - R$ | C31: 7.668351559 | G31: =G33/(SUM($F$33:$G$33)) -> 1 | I31: 0.0536
B33: Passageiros Equivalentes por Ano | C33: =SUM(G33) -> 9381308.048 | G33: =H35*G35 -> 9381308.048 | I33: =I27 -> 7.729729997
B35: Outorga - R$ milhões | C35: 5.184640322 | F35: 0.4815359678 | G35: 0.5184640322 | H35: 18094424.04 | I35: 7.729729207
B37: Ônibus Básico - Idade | C37: 9 | I37: =I33/I35 -1 -> 1.021776037e-07
B39: Ônibus MIDI - Idade | C39: 10
B41: Articulado Diesel - Idade | C41: 11
B43: Articulado Elétrico - Idade | C43: 14
B45: Correção OPEX | F45: Regra para correção OPEX
B47: Combustível | C47: IPCA | F47: IGP-M
B48: Lubrificante Diesel | C48: IPCA | F48: IGP-M
B49: Arla 32 | C49: IPCA | F49: IGP-M
B50: Rodagem | C50: IPCA | F50: IGP-M
B51: Peças e Materiais de Manutenção | C51: IPCA | F51: IPCA
B52: Motoristas - Direção | C52: IPCA | F52: IPCA
B53: Motoristas - Cobrança | C53: IPCA | F53: IPCA
B54: Cobradores | C54: IPCA | F54: IPCA
B55: Benefícios Trabalhistas | C55: IPCA | F55: IPCA
B56: Operação da Frota Auxiliar (Serviços) | C56: IPCA | F56: IPCA
B57: Operação de Terminais | C57: IPCA | F57: IPCA
B58: Operação de ITS | C58: IPCA | F58: IPCA
B59: Operação de Bilhetagem | C59: IPCA | F59: IPCA
B60: Fiscalização | C60: IPCA | F60: IPCA
B61: Salários e Proventos de Manutenção, Administração e Diretoria | C61: IPCA | F61: IPCA
B62: Despesas Administrativas Gerais | C62: IPCA | F62: IPCA
B63: Locação de Infraestrutura | C63: IPCA | F63: INCC-M
B64: Manutenção de Infraestrutura | C64: IPCA | F64: INCC-M
B65: Despesas Ambientais | C65: IPCA | F65: IPCA
B66: Garantias Contratuais | C66: IPCA | F66: IPCA
B67: Manutenção Infra Elétrica | C67: IPCA | F67: IPCA
B68: Seguro e Licenciamento | C68: IPCA | F68: IPCA
B69: Reposição de Baterias | C69: IPCA
B70: Verificador Independente | C70: IPCA
B71: Terminais | C71: IPCA
B73: Correção CAPEX
B75: Frota | C75: IPCA
B77: Correção Contrato (Receita)
B79: Receita | C79: IPCA
B81: Premissas Marcoeconômicas | C81: 1 | D81: =C81+1 -> 2 | E81: =D81+1 -> 3 | F81: 4 | G81: 5 | H81: 6 | I81: 7 | J81: 8 | K81: 9 | L81: 10 | M81: 11 | N81: 12 | O81: 13 | P81: 14 | Q81: 15 | R81: 16 | S81: 17 | T81: 18 | U81: 19 | V81: 20 | W81: 21 | X81: 22 | Y81: 23 | Z81: 24 | AA81: 25
B83: Projeção de Inflação anual | C83: 0 | D83: 0.035 | E83: 0.03 | F83: 0.03 | G83: 0.03 | H83: 0.03 | I83: 0.03 | J83: 0.03 | K83: 0.03 | L83: 0.03 | M83: 0.03 | N83: 0.03 | O83: 0.03 | P83: 0.03 | Q83: 0.03 | R83: 0.03 | S83: 0.03 | T83: 0.03 | U83: 0.03 | V83: 0.03 | W83: 0.03 | X83: 0.03 | Y83: 0.03 | Z83: 0.03 | AA83: 0.03
B84: Fonte: BACEN
B85: ano | C85: 2022 | D85: =C85+1 -> 2023 | E85: =D85+1 -> 2024 | F85: 2025 | G85: 2026 | H85: 2027 | I85: 2028 | J85: 2029 | K85: 2030 | L85: 2031 | M85: 2032 | N85: 2033 | O85: 2034 | P85: 2035 | Q85: 2036 | R85: 2037 | S85: 2038 | T85: 2039 | U85: 2040 | V85: 2041 | W85: 2042 | X85: 2043 | Y85: 2044 | Z85: 2045 | AA85: 2046

Sheet 02. FCL
B6: Fluxo de Caixa Livre (R$ Milhões)
B8: PRAZO | C8: =IF(C10<=('01. PC'!$C$18),1,0) -> 1 | D8: =IF(D10<=('01. PC'!$C$18),1,0) -> 1 | E8: =IF(E10<=('01. PC'!$C$18),1,0) -> 1 | F8: =IF(F10<=('01. PC'!$C$18),1,0) -> 1 | G8: =IF(G10<=('01. PC'!$C$18),1,0) -> 1 | H8: =IF(H10<=('01. PC'!$C$18),1,0) -> 1 | I8: =IF(I10<=('01. PC'!$C$18),1,0) -> 1 | J8: =IF(J10<=('01. PC'!$C$18),1,0) -> 1 | K8: =IF(K10<=('01. PC'!$C$18),1,0) -> 1 | L8: =IF(L10<=('01. PC'!$C$18),1,0) -> 1 | M8: =IF(M10<=('01. PC'!$C$18),1,0) -> 1 | N8: =IF(N10<=('01. PC'!$C$18),1,0) -> 1 | O8: =IF(O10<=('01. PC'!$C$18),1,0) -> 1 | P8: =IF(P10<=('01. PC'!$C$18),1,0) -> 1 | Q8: =IF(Q10<=('01. PC'!$C$18),1,0) -> 1 | R8: =IF(R10<=('01. PC'!$C$18),1,0) -> 1 | S8: =IF(S10<=('01. PC'!$C$18),1,0) -> 1 | T8: =IF(T10<=('01. PC'!$C$18),1,0) -> 1 | U8: =IF(U10<=('01. PC'!$C$18),1,0) -> 1 | V8: =IF(V10<=('01. PC'!$C$18),1,0) -> 1
B10: ANO | C10: 1 | D10: =C10+1 -> 2 | E10: =D10+1 -> 3 | F10: 4 | G10: 5 | H10: 6 | I10: 7 | J10: 8 | K10: 9 | L10: 10 | M10: 11 | N10: 12 | O10: 13 | P10: 14 | Q10: 15 | R10: 16 | S10: =R10+1 -> 17 | T10: =S10+1 -> 18 | U10: =T10+1 -> 19 | V10: =U10+1 -> 20 | X10: TOTAL | Z10: VPL
B12: Receitas | C12: =(C14+C15+C16+C18+C17)*C$8 -> 43.9506528 | D12: =(D14+D15+D16+D18+D17)*D$8 -> 44.42382585 | E12: 43.8583869 | F12: 43.29106414 | G12: 42.72374137 | H12: 42.15641861 | I12: 42.1935191 | J12: 41.84540284 | K12: 41.84540284 | L12: 41.84540284 | M12: 41.88250333 | N12: 41.84540284 | O12: 41.84540284 | P12: 41.84540284 | Q12: 41.84540284 | R12: 41.84540284 | S12: 42.05671885 | T12: 42.01961836 | U12: 42.01961836 | V12: 58.75251576 | X12: =SUM(C12:V12) -> 864.0918062 | Z12: =NPV('01. PC'!$C$10,'02. FCL'!D12:V12)+'02. FCL'!C12 -> 425.3959879
B14: Receita Tarifária (passageiros) | C14: =('09. RECEITA E DEMANDA'!C14)*C8 -> 0 | D14: =('09. RECEITA E DEMANDA'!D14)*D8 -> 0 | E14: =('09. RECEITA E DEMANDA'!E14)*E8 -> 0 | F14: =('09. RECEITA E DEMANDA'!F14)*F8 -> 0 | G14: =('09. RECEITA E DEMANDA'!G14)*G8 -> 0 | H14: =('09. RECEITA E DEMANDA'!H14)*H8 -> 0 | I14: =('09. RECEITA E DEMANDA'!I14)*I8 -> 0 | J14: =('09. RECEITA E DEMANDA'!J14)*J8 -> 0 | K14: =('09. RECEITA E DEMANDA'!K14)*K8 -> 0 | L14: =('09. RECEITA E DEMANDA'!L14)*L8 -> 0 | M14: =('09. RECEITA E DEMANDA'!M14)*M8 -> 0 | N14: =('09. RECEITA E DEMANDA'!N14)*N8 -> 0 | O14: =('09. RECEITA E DEMANDA'!O14)*O8 -> 0 | P14: =('09. RECEITA E DEMANDA'!P14)*P8 -> 0 | Q14: =('09. RECEITA E DEMANDA'!Q14)*Q8 -> 0 | R14: =('09. RECEITA E DEMANDA'!R14)*R8 -> 0 | S14: =('09. RECEITA E DEMANDA'!S14)*S8 -> 0 | T14: =('09. RECEITA E DEMANDA'!T14)*T8 -> 0 | U14: =('09. RECEITA E DEMANDA'!U14)*U8 -> 0 | V14: =('09. RECEITA E DEMANDA'!V14)*V8 -> 0 | X14: =SUM(C14:V14) -> 0 | Z14: =NPV('01. PC'!$C$10,'02. FCL'!D14:V14)+'02. FCL'!C14 -> 0
B15: Receita Acessória | C15: =('09. RECEITA E DEMANDA'!C19)*C8 -> 0 | D15: =('09. RECEITA E DEMANDA'!D19)*D8 -> 0 | E15: =('09. RECEITA E DEMANDA'!E19)*E8 -> 0 | F15: =('09. RECEITA E DEMANDA'!F19)*F8 -> 0 | G15: =('09. RECEITA E DEMANDA'!G19)*G8 -> 0 | H15: =('09. RECEITA E DEMANDA'!H19)*H8 -> 0 | I15: =('09. RECEITA E DEMANDA'!I19)*I8 -> 0 | J15: =('09. RECEITA E DEMANDA'!J19)*J8 -> 0 | K15: =('09. RECEITA E DEMANDA'!K19)*K8 -> 0 | L15: =('09. RECEITA E DEMANDA'!L19)*L8 -> 0 | M15: =('09. RECEITA E DEMANDA'!M19)*M8 -> 0 | N15: =('09. RECEITA E DEMANDA'!N19)*N8 -> 0 | O15: =('09. RECEITA E DEMANDA'!O19)*O8 -> 0 | P15: =('09. RECEITA E DEMANDA'!P19)*P8 -> 0 | Q15: =('09. RECEITA E DEMANDA'!Q19)*Q8 -> 0 | R15: =('09. RECEITA E DEMANDA'!R19)*R8 -> 0 | S15: =('09. RECEITA E DEMANDA'!S19)*S8 -> 0 | T15: =('09. RECEITA E DEMANDA'!T19)*T8 -> 0 | U15: =('09. RECEITA E DEMANDA'!U19)*U8 -> 0 | V15: =('09. RECEITA E DEMANDA'!V19)*V8 -> 0 | X15: =SUM(C15:V15) -> 0 | Z15: =NPV('01. PC'!$C$10,'02. FCL'!D15:V15)+'02. FCL'!C15 -> 0
B16: Subsídio | C16: =('09. RECEITA E DEMANDA'!C24)*C8 -> 0 | D16: =('09. RECEITA E DEMANDA'!D24)*D8 -> 0 | E16: =('09. RECEITA E DEMANDA'!E24)*E8 -> 0 | F16: =('09. RECEITA E DEMANDA'!F24)*F8 -> 0 | G16: =('09. RECEITA E DEMANDA'!G24)*G8 -> 0 | H16: =('09. RECEITA E DEMANDA'!H24)*H8 -> 0 | I16: =('09. RECEITA E DEMANDA'!I24)*I8 -> 0 | J16: =('09. RECEITA E DEMANDA'!J24)*J8 -> 0 | K16: =('09. RECEITA E DEMANDA'!K24)*K8 -> 0 | L16: =('09. RECEITA E DEMANDA'!L24)*L8 -> 0 | M16: =('09. RECEITA E DEMANDA'!M24)*M8 -> 0 | N16: =('09. RECEITA E DEMANDA'!N24)*N8 -> 0 | O16: =('09. RECEITA E DEMANDA'!O24)*O8 -> 0 | P16: =('09. RECEITA E DEMANDA'!P24)*P8 -> 0 | Q16: =('09. RECEITA E DEMANDA'!Q24)*Q8 -> 0 | R16: =('09. RECEITA E DEMANDA'!R24)*R8 -> 0 | S16: =('09. RECEITA E DEMANDA'!S24)*S8 -> 0 | T16: =('09. RECEITA E DEMANDA'!T24)*T8 -> 0 | U16: =('09. RECEITA E DEMANDA'!U24)*U8 -> 0 | V16: =('09. RECEITA E DEMANDA'!V24)*V8 -> 0 | X16: =SUM(C16:V16) -> 0 | Z16: =NPV('01. PC'!$C$10,'02. FCL'!D16:V16)+'02. FCL'!C16 -> 0
B17: Receita Tarifária (quilometragem) | C17: ='09. RECEITA E DEMANDA'!C28*C8 -> 43.9506528 | D17: ='09. RECEITA E DEMANDA'!D28*D8 -> 43.46491763 | E17: ='09. RECEITA E DEMANDA'!E28*E8 -> 42.97918245 | F17: ='09. RECEITA E DEMANDA'!F28*F8 -> 42.49344728 | G17: ='09. RECEITA E DEMANDA'!G28*G8 -> 42.0077121 | H17: ='09. RECEITA E DEMANDA'!H28*H8 -> 41.52197693 | I17: ='09. RECEITA E DEMANDA'!I28*I8 -> 41.52197693 | J17: ='09. RECEITA E DEMANDA'!J28*J8 -> 41.52197693 | K17: ='09. RECEITA E DEMANDA'!K28*K8 -> 41.52197693 | L17: ='09. RECEITA E DEMANDA'!L28*L8 -> 41.52197693 | M17: ='09. RECEITA E DEMANDA'!M28*M8 -> 41.52197693 | N17: ='09. RECEITA E DEMANDA'!N28*N8 -> 41.52197693 | O17: ='09. RECEITA E DEMANDA'!O28*O8 -> 41.52197693 | P17: ='09. RECEITA E DEMANDA'!P28*P8 -> 41.52197693 | Q17: ='09. RECEITA E DEMANDA'!Q28*Q8 -> 41.52197693 | R17: ='09. RECEITA E DEMANDA'!R28*R8 -> 41.52197693 | S17: ='09. RECEITA E DEMANDA'!S28*S8 -> 41.52197693 | T17: ='09. RECEITA E DEMANDA'!T28*T8 -> 41.52197693 | U17: ='09. RECEITA E DEMANDA'!U28*U8 -> 41.52197693 | V17: ='09. RECEITA E DEMANDA'!V28*V8 -> 41.52197693 | X17: =SUM(C17:V17) -> 837.7255662 | Z17: 452.2693556
B18: Venda de Frota | C18: =('6. (a). CAPEX_LOTE2'!D1071)*C8 -> 0 | D18: =('6. (a). CAPEX_LOTE2'!E1071)*D8 -> 0.9589082218 | E18: =('6. (a). CAPEX_LOTE2'!F1071)*E8 -> 0.879204449 | F18: =('6. (a). CAPEX_LOTE2'!G1071)*F8 -> 0.7976168585 | G18: =('6. (a). CAPEX_LOTE2'!H1071)*G8 -> 0.7160292681 | H18: =('6. (a). CAPEX_LOTE2'!I1071)*H8 -> 0.6344416777 | I18: =('6. (a). CAPEX_LOTE2'!J1071)*I8 -> 0.6715421675 | J18: =('6. (a). CAPEX_LOTE2'!K1071)*J8 -> 0.3234259138 | K18: =('6. (a). CAPEX_LOTE2'!L1071)*K8 -> 0.3234259138 | L18: =('6. (a). CAPEX_LOTE2'!M1071)*L8 -> 0.3234259138 | M18: =('6. (a). CAPEX_LOTE2'!N1071)*M8 -> 0.3605264037 | N18: =('6. (a). CAPEX_LOTE2'!O1071)*N8 -> 0.3234259138 | O18: =('6. (a). CAPEX_LOTE2'!P1071)*O8 -> 0.3234259138 | P18: =('6. (a). CAPEX_LOTE2'!Q1071)*P8 -> 0.3234259138 | Q18: =('6. (a). CAPEX_LOTE2'!R1071)*Q8 -> 0.3234259138 | R18: =('6. (a). CAPEX_LOTE2'!S1071)*R8 -> 0.3234259138 | S18: =('6. (a). CAPEX_LOTE2'!T1071)*S8 -> 0.5347419177 | T18: =('6. (a). CAPEX_LOTE2'!U1071)*T8 -> 0.4976414278 | U18: =('6. (a). CAPEX_LOTE2'!V1071)*U8 -> 0.4976414278 | V18: =('6. (a). CAPEX_LOTE2'!W1071)*V8 -> 17.23053883 | X18: =SUM(C18:V18) -> 26.36623996 | Z18: =NPV('01. PC'!$C$10,'02. FCL'!D18:V18)+'02. FCL'!C18 -> 8.347141972
B20: Opex | C20: =-(C22+C23)*C$8 -> -34.81094784 | D20: =-(D22+D23)*D$8 -> -34.55915018 | E20: -34.30735252 | F20: -34.05555485 | G20: -33.80375719 | H20: -33.55195953 | I20: -33.54505392 | J20: -33.54505392 | K20: -33.54505392 | L20: -33.54505392 | M20: -33.54505392 | N20: -38.94505392 | O20: -33.54505392 | P20: -33.54505392 | Q20: -33.54505392 | R20: -33.54505392 | S20: -33.54505392 | T20: -33.54505392 | U20: -33.54505392 | V20: -33.54505392 | X20: =SUM(C20:V20) -> -680.119477 | Z20: =NPV('01. PC'!$C$10,'02. FCL'!D20:V20)+'02. FCL'!C20 -> -337.1441244
B22: Custos Variaveis | C22: =('07 (b). OPEX_LOTE2'!C10)*C$8 -> 26.42151845 | D22: =('07 (b). OPEX_LOTE2'!D10)*D$8 -> 26.17459632 | E22: =('07 (b). OPEX_LOTE2'!E10)*E$8 -> 25.9276742 | F22: =('07 (b). OPEX_LOTE2'!F10)*F$8 -> 25.68075207 | G22: =('07 (b). OPEX_LOTE2'!G10)*G$8 -> 25.43382994 | H22: =('07 (b). OPEX_LOTE2'!H10)*H$8 -> 25.18690781 | I22: =('07 (b). OPEX_LOTE2'!I10)*I$8 -> 25.18010425 | J22: =('07 (b). OPEX_LOTE2'!J10)*J$8 -> 25.18010425 | K22: =('07 (b). OPEX_LOTE2'!K10)*K$8 -> 25.18010425 | L22: =('07 (b). OPEX_LOTE2'!L10)*L$8 -> 25.18010425 | M22: =('07 (b). OPEX_LOTE2'!M10)*M$8 -> 25.18010425 | N22: =('07 (b). OPEX_LOTE2'!N10)*N$8 -> 25.18010425 | O22: =('07 (b). OPEX_LOTE2'!O10)*O$8 -> 25.18010425 | P22: =('07 (b). OPEX_LOTE2'!P10)*P$8 -> 25.18010425 | Q22: =('07 (b). OPEX_LOTE2'!Q10)*Q$8 -> 25.18010425 | R22: =('07 (b). OPEX_LOTE2'!R10)*R$8 -> 25.18010425 | S22: =('07 (b). OPEX_LOTE2'!S10)*S$8 -> 25.18010425 | T22: =('07 (b). OPEX_LOTE2'!T10)*T$8 -> 25.18010425 | U22: =('07 (b). OPEX_LOTE2'!U10)*U$8 -> 25.18010425 | V22: =('07 (b). OPEX_LOTE2'!V10)*V$8 -> 25.18010425 | X22: =SUM(C22:V22) -> 507.3467383 | Z22: =NPV('01. PC'!$C$10,'02. FCL'!D22:V22)+'02. FCL'!C22 -> 252.3035085
B23: Custos Fixos | C23: =('07 (b). OPEX_LOTE2'!C220)*C$8 -> 8.389429384 | D23: =('07 (b). OPEX_LOTE2'!D220)*D$8 -> 8.384553852 | E23: =('07 (b). OPEX_LOTE2'!E220)*E$8 -> 8.379678319 | F23: =('07 (b). OPEX_LOTE2'!F220)*F$8 -> 8.374802787 | G23: =('07 (b). OPEX_LOTE2'!G220)*G$8 -> 8.369927255 | H23: =('07 (b). OPEX_LOTE2'!H220)*H$8 -> 8.365051722 | I23: =('07 (b). OPEX_LOTE2'!I220)*I$8 -> 8.364949669 | J23: =('07 (b). OPEX_LOTE2'!J220)*J$8 -> 8.364949669 | K23: =('07 (b). OPEX_LOTE2'!K220)*K$8 -> 8.364949669 | L23: =('07 (b). OPEX_LOTE2'!L220)*L$8 -> 8.364949669 | M23: =('07 (b). OPEX_LOTE2'!M220)*M$8 -> 8.364949669 | N23: =('07 (b). OPEX_LOTE2'!N220)*N$8 -> 13.76494967 | O23: =('07 (b). OPEX_LOTE2'!O220)*O$8 -> 8.364949669 | P23: =('07 (b). OPEX_LOTE2'!P220)*P$8 -> 8.364949669 | Q23: =('07 (b). OPEX_LOTE2'!Q220)*Q$8 -> 8.364949669 | R23: =('07 (b). OPEX_LOTE2'!R220)*R$8 -> 8.364949669 | S23: =('07 (b). OPEX_LOTE2'!S220)*S$8 -> 8.364949669 | T23: =('07 (b). OPEX_LOTE2'!T220)*T$8 -> 8.364949669 | U23: =('07 (b). OPEX_LOTE2'!U220)*U$8 -> 8.364949669 | V23: =('07 (b). OPEX_LOTE2'!V220)*V$8 -> 8.364949669 | X23: =SUM(C23:V23) -> 172.7727387 | Z23: =NPV('01. PC'!$C$10,'02. FCL'!D23:V23)+'02. FCL'!C23 -> 84.84061587
B25: Capex | C25: =-C27-C28*C$8 -> -22.93935672 | D25: =-D27-D28*D$8 -> -8.613258 | E25: -5.913258 | F25: -5.913258 | G25: -5.913258 | H25: -5.913258 | I25: -6.330887 | J25: -3.273629 | K25: -3.273629 | L25: -3.273629 | M25: -3.691258 | N25: -3.273629 | O25: -3.273629 | P25: -3.273629 | Q25: -3.273629 | R25: -3.273629 | S25: -6.330887 | T25: -5.913258 | U25: -5.913258 | V25: 0 | X25: =SUM(C25:V25) -> -109.5742267 | Z25: =NPV('01. PC'!$C$10,'02. FCL'!D25:V25)+'02. FCL'!C25 -> -68.01736987
B27: Compra de Frota | C27: =('6. (a). CAPEX_LOTE2'!D698)*C8 -> 22.93935672 | D27: =('6. (a). CAPEX_LOTE2'!E698)*D8 -> 5.913258 | E27: =('6. (a). CAPEX_LOTE2'!F698)*E8 -> 5.913258 | F27: =('6. (a). CAPEX_LOTE2'!G698)*F8 -> 5.913258 | G27: =('6. (a). CAPEX_LOTE2'!H698)*G8 -> 5.913258 | H27: =('6. (a). CAPEX_LOTE2'!I698)*H8 -> 5.913258 | I27: =('6. (a). CAPEX_LOTE2'!J698)*I8 -> 6.330887 | J27: =('6. (a). CAPEX_LOTE2'!K698)*J8 -> 3.273629 | K27: =('6. (a). CAPEX_LOTE2'!L698)*K8 -> 3.273629 | L27: =('6. (a). CAPEX_LOTE2'!M698)*L8 -> 3.273629 | M27: =('6. (a). CAPEX_LOTE2'!N698)*M8 -> 3.691258 | N27: =('6. (a). CAPEX_LOTE2'!O698)*N8 -> 3.273629 | O27: =('6. (a). CAPEX_LOTE2'!P698)*O8 -> 3.273629 | P27: =('6. (a). CAPEX_LOTE2'!Q698)*P8 -> 3.273629 | Q27: =('6. (a). CAPEX_LOTE2'!R698)*Q8 -> 3.273629 | R27: =('6. (a). CAPEX_LOTE2'!S698)*R8 -> 3.273629 | S27: =('6. (a). CAPEX_LOTE2'!T698)*S8 -> 6.330887 | T27: =('6. (a). CAPEX_LOTE2'!U698)*T8 -> 5.913258 | U27: =('6. (a). CAPEX_LOTE2'!V698)*U8 -> 5.913258 | V27: =('6. (a). CAPEX_LOTE2'!W698)*V8 -> 0 | X27: =SUM(C27:V27) -> 106.8742267 | Z27: =NPV('01. PC'!$C$10,'02. FCL'!D27:V27)+'02. FCL'!C27 -> 65.54264149
B28: Carregadores e Placas | C28: =(('6. (a). CAPEX_LOTE2'!D16*('6. (a). CAPEX_LOTE2'!$AA$9+'6. (a). CAPEX_LOTE2'!$AA$8))/10^6) -> 0 | D28: =(('6. (a). CAPEX_LOTE2'!J15*('6. (a). CAPEX_LOTE2'!$AA$9+'6. (a). CAPEX_LOTE2'!$AA$8))/10^6) -> 2.7 | E28: =IF('6. (a). CAPEX_LOTE2'!K15<'6. (a). CAPEX_LOTE2'!J15,0,(('6. (a). CAPEX_LOTE2'!K15-'6. (a). CAPEX_LOTE2'!J15)*('6. (a). CAPEX_LOTE2'!$AA$9+'6. (a). CAPEX_LOTE2'!$AA$8))/10^6) -> 0 | F28: =IF('6. (a). CAPEX_LOTE2'!L15<'6. (a). CAPEX_LOTE2'!K15,0,(('6. (a). CAPEX_LOTE2'!L15-'6. (a). CAPEX_LOTE2'!K15)*('6. (a). CAPEX_LOTE2'!$AA$9+'6. (a). CAPEX_LOTE2'!$AA$8))/10^6) -> 0 | G28: =IF('6. (a). CAPEX_LOTE2'!M15<'6. (a). CAPEX_LOTE2'!L15,0,(('6. (a). CAPEX_LOTE2'!M15-'6. (a). CAPEX_LOTE2'!L15)*('6. (a). CAPEX_LOTE2'!$AA$9+'6. (a). CAPEX_LOTE2'!$AA$8))/10^6) -> 0 | H28: =IF('6. (a). CAPEX_LOTE2'!N15<'6. (a). CAPEX_LOTE2'!M15,0,(('6. (a). CAPEX_LOTE2'!N15-'6. (a). CAPEX_LOTE2'!M15)*('6. (a). CAPEX_LOTE2'!$AA$9+'6. (a). CAPEX_LOTE2'!$AA$8))/10^6) -> 0 | I28: =IF('6. (a). CAPEX_LOTE2'!O15<'6. (a). CAPEX_LOTE2'!N15,0,(('6. (a). CAPEX_LOTE2'!O15-'6. (a). CAPEX_LOTE2'!N15)*('6. (a). CAPEX_LOTE2'!$AA$9+'6. (a). CAPEX_LOTE2'!$AA$8))/10^6) -> 0 | J28: =IF('6. (a). CAPEX_LOTE2'!P15<'6. (a). CAPEX_LOTE2'!O15,0,(('6. (a). CAPEX_LOTE2'!P15-'6. (a). CAPEX_LOTE2'!O15)*('6. (a). CAPEX_LOTE2'!$AA$9+'6. (a). CAPEX_LOTE2'!$AA$8))/10^6) -> 0 | K28: =IF('6. (a). CAPEX_LOTE2'!Q15<'6. (a). CAPEX_LOTE2'!P15,0,(('6. (a). CAPEX_LOTE2'!Q15-'6. (a). CAPEX_LOTE2'!P15)*('6. (a). CAPEX_LOTE2'!$AA$9+'6. (a). CAPEX_LOTE2'!$AA$8))/10^6) -> 0 | L28: =IF('6. (a). CAPEX_LOTE2'!R15<'6. (a). CAPEX_LOTE2'!Q15,0,(('6. (a). CAPEX_LOTE2'!R15-'6. (a). CAPEX_LOTE2'!Q15)*('6. (a). CAPEX_LOTE2'!$AA$9+'6. (a). CAPEX_LOTE2'!$AA$8))/10^6) -> 0 | M28: =IF('6. (a). CAPEX_LOTE2'!S15<'6. (a). CAPEX_LOTE2'!R15,0,(('6. (a). CAPEX_LOTE2'!S15-'6. (a). CAPEX_LOTE2'!R15)*('6. (a). CAPEX_LOTE2'!$AA$9+'6. (a). CAPEX_LOTE2'!$AA$8))/10^6) -> 0 | N28: =IF('6. (a). CAPEX_LOTE2'!T15<'6. (a). CAPEX_LOTE2'!S15,0,(('6. (a). CAPEX_LOTE2'!T15-'6. (a). CAPEX_LOTE2'!S15)*('6. (a). CAPEX_LOTE2'!$AA$9+'6. (a). CAPEX_LOTE2'!$AA$8))/10^6) -> 0 | O28: =IF('6. (a). CAPEX_LOTE2'!U15<'6. (a). CAPEX_LOTE2'!T15,0,(('6. (a). CAPEX_LOTE2'!U15-'6. (a). CAPEX_LOTE2'!T15)*('6. (a). CAPEX_LOTE2'!$AA$9+'6. (a). CAPEX_LOTE2'!$AA$8))/10^6) -> 0 | P28: =IF('6. (a). CAPEX_LOTE2'!V15<'6. (a). CAPEX_LOTE2'!U15,0,(('6. (a). CAPEX_LOTE2'!V15-'6. (a). CAPEX_LOTE2'!U15)*('6. (a). CAPEX_LOTE2'!$AA$9+'6. (a). CAPEX_LOTE2'!$AA$8))/10^6) -> 0 | Q28: =IF('6. (a). CAPEX_LOTE2'!W15<'6. (a). CAPEX_LOTE2'!V15,0,(('6. (a). CAPEX_LOTE2'!W15-'6. (a). CAPEX_LOTE2'!V15)*('6. (a). CAPEX_LOTE2'!$AA$9+'6. (a). CAPEX_LOTE2'!$AA$8))/10^6) -> 0 | R28: =IF('6. (a). CAPEX_LOTE2'!X15<'6. (a). CAPEX_LOTE2'!W15,0,(('6. (a). CAPEX_LOTE2'!X15-'6. (a). CAPEX_LOTE2'!W15)*('6. (a). CAPEX_LOTE2'!$AA$9+'6. (a). CAPEX_LOTE2'!$AA$8))/10^6) -> 0 | S28: =IF('6. (a). CAPEX_LOTE2'!Y15<'6. (a). CAPEX_LOTE2'!X15,0,(('6. (a). CAPEX_LOTE2'!Y15-'6. (a). CAPEX_LOTE2'!X15)*('6. (a). CAPEX_LOTE2'!$AA$9+'6. (a). CAPEX_LOTE2'!$AA$8))/10^6) -> 0 | T28: =IF('6. (a). CAPEX_LOTE2'!Z15<'6. (a). CAPEX_LOTE2'!Y15,0,(('6. (a). CAPEX_LOTE2'!Z15-'6. (a). CAPEX_LOTE2'!Y15)*('6. (a). CAPEX_LOTE2'!$AA$9+'6. (a). CAPEX_LOTE2'!$AA$8))/10^6) -> 0 | U28: =IF('6. (a). CAPEX_LOTE2'!AA15<'6. (a). CAPEX_LOTE2'!Z15,0,(('6. (a). CAPEX_LOTE2'!AA15-'6. (a). CAPEX_LOTE2'!Z15)*('6. (a). CAPEX_LOTE2'!$AA$9+'6. (a). CAPEX_LOTE2'!$AA$8))/10^6) -> 0 | V28: =IF('6. (a). CAPEX_LOTE2'!AB15<'6. (a). CAPEX_LOTE2'!AA15,0,(('6. (a). CAPEX_LOTE2'!AB15-'6. (a). CAPEX_LOTE2'!AA15)*('6. (a). CAPEX_LOTE2'!$AA$9+'6. (a). CAPEX_LOTE2'!$AA$8))/10^6) -> 0 | X28: =SUM(C28:V28) -> 2.7 | Z28: =NPV('01. PC'!$C$10,'02. FCL'!D28:V28)+'02. FCL'!C28 -> 2.474728383
B30: Tributos | C30: =-(C32+C33+C34+C35)*C$8 -> -1.6496641 | D30: =-(D32+D33+D34+D35)*D$8 -> -1.081688261 | E30: -0.8595836491 | F30: -0.8498689456 | G30: -1.160181163 | H30: -1.099591822 | I30: -1.078804287 | J30: -1.2389334 | K30: -1.394398558 | L30: -1.673013816 | M30: -2.057105126 | N30: -0.8304395386 | O30: -1.694642458 | P30: -1.857810271 | Q30: -2.10401101 | R30: -2.106658274 | S30: -1.849361503 | T30: -1.635057277 | U30: -1.426994923 | V30: -1.727619567 | X30: =SUM(C30:V30) -> -29.37542795 | Z30: =NPV('01. PC'!$C$10,'02. FCL'!D30:V30)+'02. FCL'!C30 -> -13.34223303
B32: ISS | C32: ='08. (a)TRIBUTOS LREAL'!C19 -> 0.8790130561 | D32: ='08. (a)TRIBUTOS LREAL'!D19 -> 0.8692983526 | E32: ='08. (a)TRIBUTOS LREAL'!E19 -> 0.8595836491 | F32: ='08. (a)TRIBUTOS LREAL'!F19 -> 0.8498689456 | G32: ='08. (a)TRIBUTOS LREAL'!G19 -> 0.8401542421 | H32: ='08. (a)TRIBUTOS LREAL'!H19 -> 0.8304395386 | I32: ='08. (a)TRIBUTOS LREAL'!I19 -> 0.8304395386 | J32: ='08. (a)TRIBUTOS LREAL'!J19 -> 0.8304395386 | K32: ='08. (a)TRIBUTOS LREAL'!K19 -> 0.8304395386 | L32: ='08. (a)TRIBUTOS LREAL'!L19 -> 0.8304395386 | M32: ='08. (a)TRIBUTOS LREAL'!M19 -> 0.8304395386 | N32: ='08. (a)TRIBUTOS LREAL'!N19 -> 0.8304395386 | O32: ='08. (a)TRIBUTOS LREAL'!O19 -> 0.8304395386 | P32: ='08. (a)TRIBUTOS LREAL'!P19 -> 0.8304395386 | Q32: ='08. (a)TRIBUTOS LREAL'!Q19 -> 0.8304395386 | R32: ='08. (a)TRIBUTOS LREAL'!R19 -> 0.8304395386 | S32: ='08. (a)TRIBUTOS LREAL'!S19 -> 0.8304395386 | T32: ='08. (a)TRIBUTOS LREAL'!T19 -> 0.8304395386 | U32: ='08. (a)TRIBUTOS LREAL'!U19 -> 0.8304395386 | V32: ='08. (a)TRIBUTOS LREAL'!V19 -> 0.8304395386 | X32: =SUM(C32:V32) -> 16.75451132 | Z32: =NPV('01. PC'!$C$10,'02. FCL'!D32:V32)+'02. FCL'!C32 -> 8.340976919
B33: INSS | C33: ='08. (a)TRIBUTOS LREAL'!C27 -> 0 | D33: ='08. (a)TRIBUTOS LREAL'!D27 -> 0 | E33: ='08. (a)TRIBUTOS LREAL'!E27 -> 0 | F33: ='08. (a)TRIBUTOS LREAL'!F27 -> 0 | G33: ='08. (a)TRIBUTOS LREAL'!G27 -> 0 | H33: ='08. (a)TRIBUTOS LREAL'!H27 -> 0 | I33: ='08. (a)TRIBUTOS LREAL'!I27 -> 0 | J33: ='08. (a)TRIBUTOS LREAL'!J27 -> 0 | K33: ='08. (a)TRIBUTOS LREAL'!K27 -> 0 | L33: ='08. (a)TRIBUTOS LREAL'!L27 -> 0 | M33: ='08. (a)TRIBUTOS LREAL'!M27 -> 0 | N33: ='08. (a)TRIBUTOS LREAL'!N27 -> 0 | O33: ='08. (a)TRIBUTOS LREAL'!O27 -> 0 | P33: ='08. (a)TRIBUTOS LREAL'!P27 -> 0 | Q33: ='08. (a)TRIBUTOS LREAL'!Q27 -> 0 | R33: ='08. (a)TRIBUTOS LREAL'!R27 -> 0 | S33: ='08. (a)TRIBUTOS LREAL'!S27 -> 0 | T33: ='08. (a)TRIBUTOS LREAL'!T27 -> 0 | U33: ='08. (a)TRIBUTOS LREAL'!U27 -> 0 | V33: ='08. (a)TRIBUTOS LREAL'!V27 -> 0 | X33: =SUM(C33:V33) -> 0 | Z33: =NPV('01. PC'!$C$10,'02. FCL'!D33:V33)+'02. FCL'!C33 -> 0
B34: RESEGE | C34: ='08. (a)TRIBUTOS LREAL'!C35 -> 0 | D34: ='08. (a)TRIBUTOS LREAL'!D35 -> 0 | E34: ='08. (a)TRIBUTOS LREAL'!E35 -> 0 | F34: ='08. (a)TRIBUTOS LREAL'!F35 -> 0 | G34: ='08. (a)TRIBUTOS LREAL'!G35 -> 0 | H34: ='08. (a)TRIBUTOS LREAL'!H35 -> 0 | I34: ='08. (a)TRIBUTOS LREAL'!I35 -> 0 | J34: ='08. (a)TRIBUTOS LREAL'!J35 -> 0 | K34: ='08. (a)TRIBUTOS LREAL'!K35 -> 0 | L34: ='08. (a)TRIBUTOS LREAL'!L35 -> 0 | M34: ='08. (a)TRIBUTOS LREAL'!M35 -> 0 | N34: ='08. (a)TRIBUTOS LREAL'!N35 -> 0 | O34: ='08. (a)TRIBUTOS LREAL'!O35 -> 0 | P34: ='08. (a)TRIBUTOS LREAL'!P35 -> 0 | Q34: ='08. (a)TRIBUTOS LREAL'!Q35 -> 0 | R34: ='08. (a)TRIBUTOS LREAL'!R35 -> 0 | S34: ='08. (a)TRIBUTOS LREAL'!S35 -> 0 | T34: ='08. (a)TRIBUTOS LREAL'!T35 -> 0 | U34: ='08. (a)TRIBUTOS LREAL'!U35 -> 0 | V34: ='08. (a)TRIBUTOS LREAL'!V35 -> 0 | X34: =SUM(C34:V34) -> 0 | Z34: =NPV('01. PC'!$C$10,'02. FCL'!D34:V34)+'02. FCL'!C34 -> 0
B35: IRPJ/CSLL | C35: =IF('08. (a)TRIBUTOS LREAL'!C166="Real",'08. (a)TRIBUTOS LREAL'!C101,'08. (b)TRIBUTOS LPRESUMID'!C49) -> 0.7706510437 | D35: =IF('08. (a)TRIBUTOS LREAL'!D166="Real",'08. (a)TRIBUTOS LREAL'!D101,'08. (b)TRIBUTOS LPRESUMID'!D49) -> 0.2123899088 | E35: =IF('08. (a)TRIBUTOS LREAL'!E166="Real",'08. (a)TRIBUTOS LREAL'!E101,'08. (b)TRIBUTOS LPRESUMID'!E49) -> 0 | F35: =IF('08. (a)TRIBUTOS LREAL'!F166="Real",'08. (a)TRIBUTOS LREAL'!F101,'08. (b)TRIBUTOS LPRESUMID'!F49) -> 0 | G35: =IF('08. (a)TRIBUTOS LREAL'!G166="Real",'08. (a)TRIBUTOS LREAL'!G101,'08. (b)TRIBUTOS LPRESUMID'!G49) -> 0.3200269212 | H35: =IF('08. (a)TRIBUTOS LREAL'!H166="Real",'08. (a)TRIBUTOS LREAL'!H101,'08. (b)TRIBUTOS LPRESUMID'!H49) -> 0.269152283 | I35: =IF('08. (a)TRIBUTOS LREAL'!I166="Real",'08. (a)TRIBUTOS LREAL'!I101,'08. (b)TRIBUTOS LPRESUMID'!I49) -> 0.2483647486 | J35: =IF('08. (a)TRIBUTOS LREAL'!J166="Real",'08. (a)TRIBUTOS LREAL'!J101,'08. (b)TRIBUTOS LPRESUMID'!J49) -> 0.4084938614 | K35: =IF('08. (a)TRIBUTOS LREAL'!K166="Real",'08. (a)TRIBUTOS LREAL'!K101,'08. (b)TRIBUTOS LPRESUMID'!K49) -> 0.5639590195 | L35: =IF('08. (a)TRIBUTOS LREAL'!L166="Real",'08. (a)TRIBUTOS LREAL'!L101,'08. (b)TRIBUTOS LPRESUMID'!L49) -> 0.8425742774 | M35: =IF('08. (a)TRIBUTOS LREAL'!M166="Real",'08. (a)TRIBUTOS LREAL'!M101,'08. (b)TRIBUTOS LPRESUMID'!M49) -> 1.226665587 | N35: =IF('08. (a)TRIBUTOS LREAL'!N166="Real",'08. (a)TRIBUTOS LREAL'!N101,'08. (b)TRIBUTOS LPRESUMID'!N49) -> 0 | O35: =IF('08. (a)TRIBUTOS LREAL'!O166="Real",'08. (a)TRIBUTOS LREAL'!O101,'08. (b)TRIBUTOS LPRESUMID'!O49) -> 0.8642029198 | P35: =IF('08. (a)TRIBUTOS LREAL'!P166="Real",'08. (a)TRIBUTOS LREAL'!P101,'08. (b)TRIBUTOS LPRESUMID'!P49) -> 1.027370733 | Q35: =IF('08. (a)TRIBUTOS LREAL'!Q166="Real",'08. (a)TRIBUTOS LREAL'!Q101,'08. (b)TRIBUTOS LPRESUMID'!Q49) -> 1.273571471 | R35: =IF('08. (a)TRIBUTOS LREAL'!R166="Real",'08. (a)TRIBUTOS LREAL'!R101,'08. (b)TRIBUTOS LPRESUMID'!R49) -> 1.276218735 | S35: =IF('08. (a)TRIBUTOS LREAL'!S166="Real",'08. (a)TRIBUTOS LREAL'!S101,'08. (b)TRIBUTOS LPRESUMID'!S49) -> 1.018921964 | T35: =IF('08. (a)TRIBUTOS LREAL'!T166="Real",'08. (a)TRIBUTOS LREAL'!T101,'08. (b)TRIBUTOS LPRESUMID'!T49) -> 0.8046177389 | U35: =IF('08. (a)TRIBUTOS LREAL'!U166="Real",'08. (a)TRIBUTOS LREAL'!U101,'08. (b)TRIBUTOS LPRESUMID'!U49) -> 0.5965553842 | V35: =IF('08. (a)TRIBUTOS LREAL'!V166="Real",'08. (a)TRIBUTOS LREAL'!V101,'08. (b)TRIBUTOS LPRESUMID'!V49) -> 0.8971800282 | X35: =SUM(C35:V35) -> 12.62091663 | Z35: =NPV('01. PC'!$C$10,'02. FCL'!D35:V35)+'02. FCL'!C35 -> 5.001256114
B37: Outorga Inicial | C37: =-'01. PC'!$C$35 -> -5.184640322 | X37: =SUM(C37:V37) -> -5.184640322 | Z37: =NPV('01. PC'!$C$10,'02. FCL'!D37:V37)+'02. FCL'!C37 -> -5.184640322
B39: NIG | C39: ='05. NIG'!C20 -> -1.45045616 | D39: ='05. NIG'!D20 -> -0.03855767294 | E39: ='05. NIG'!E20 -> -0.3173437513 | F39: ='05. NIG'!F20 -> -0.02904525353 | G39: ='05. NIG'!G20 -> -0.02873967385 | H39: ='05. NIG'!H20 -> -0.02843409416 | I39: ='05. NIG'!I20 -> -0.04037311682 | J39: ='05. NIG'!J20 -> -0.04071001689 | K39: ='05. NIG'!K20 -> -0.04071001689 | L39: ='05. NIG'!L20 -> -0.04071001689 | M39: ='05. NIG'!M20 -> -0.04071001689 | N39: ='05. NIG'!N20 -> -0.3107100169 | O39: ='05. NIG'!O20 -> 0.222736585 | P39: ='05. NIG'!P20 -> -0.04071001689 | Q39: ='05. NIG'!Q20 -> -0.04071001689 | R39: ='05. NIG'!R20 -> -0.04071001689 | S39: ='05. NIG'!S20 -> -0.04071001689 | T39: ='05. NIG'!T20 -> -0.04071001689 | U39: ='05. NIG'!U20 -> -0.04071001689 | V39: ='05. NIG'!V20 -> 1.636542679 | X39: =SUM(C39:V39) -> -0.7914806441 | Z39: =NPV('01. PC'!$C$10,'02. FCL'!D39:V39)+'02. FCL'!C39 -> -1.707627867
B41: FCL | C41: =C12+C20+C25+C30+C37+C39 -> -22.08441233 | D41: 0.1311717413 | E41: 2.460848988 | F41: 2.443337084 | G41: 1.817805341 | H41: 1.563175157 | I41: 1.198400772 | J41: 3.747076505 | K41: 3.591611347 | L41: 3.312996089 | M41: 2.548376269 | N41: -1.514429633 | O41: 3.554814049 | P41: 3.128199634 | Q41: 2.881998895 | R41: 2.879351632 | S41: 0.2907064065 | T41: 0.8855391419 | U41: 1.093601497 | V41: 25.11638495 | X41: =SUM(C41:V41) -> 39.04655354 | Z41: =NPV('01. PC'!$C$10,'02. FCL'!D41:V41)+'02. FCL'!C41 -> -7.571189634e-06
B43: FCL Acumulado | C43: =C41 -> -22.08441233 | D43: =(C43+D41)*D8 -> -21.95324059 | E43: -19.4923916 | F43: -17.04905452 | G43: -15.23124918 | H43: -13.66807402 | I43: -12.46967325 | J43: -8.722596743 | K43: -5.130985396 | L43: -1.817989307 | M43: 0.7303869629 | N43: -0.7840426703 | O43: 2.770771379 | P43: 5.898971013 | Q43: 8.780969908 | R43: 11.66032154 | S43: 11.95102795 | T43: 12.83656709 | U43: 13.93016858 | V43: 39.04655354
B45: TIR de Projeto (% ao ano) | C45: =IRR(C41:V41) -> 0.09102878787
B46: VPL (em R$ Milhões) | C46: =ROUND(NPV('01. PC'!$C$10,'02. FCL'!D41:V41)+'02. FCL'!C41,4) -> 0

Sheet 03. WACC
B6: Lucro Real | F6: Lucro Presumido
B7: Variáveis | C7: Valor | D7: Premissas | F7: Variáveis | G7: Valor | H7: Premissas
B9: Custo de Capital Próprio (Ke) - BRL Real | D9: Custo de Capital Próprio (Ke) - BRL Real | F9: Custo de Capital Próprio (Ke) - BRL Presumido | H9: Custo de Capital Próprio (Ke) - BRL Presumido
B10: Taxa Livre de Risco (Rf) | C10: 0.05644285714 | D10: TESOURO NTNB 2045 (01/2022) | F10: Taxa Livre de Risco (Rf) | G10: =C10 -> 0.05644285714 | H10: TESOURO NTNB 2055 (06/2021)
B11: Prêmio de Risco de Mercado (Rm - Rf) | C11: 0.0531514471 | D11: Shiler | F11: Prêmio de Risco de Mercado (Rm - Rf) | G11: =C11 -> 0.0531514471 | H11: site Shiller*
B12: Beta Alavancado | C12: 1.300138369 | D12: Setor de transportes | F12: Beta Alavancado | G12: =C12 -> 1.300138369 | H12: Setor Transportes
B13: Ke (BRL Real) | C13: =C12*C11+C10 -> 0.1255470929 | D13: Ke (BRL Real) = Rf + B(Rm - Rf) + CRP | F13: Ke (BRL Presumido) | G13: =G12*G11+G10 -> 0.1255470929 | H13: Ke (BRL Presumido) = Rf + B(Rm - Rf) + CRP
B15: Custo da Dívida (Kd) - BRL Real | D15: Custo da Dívida (Kd) - BRL Real | F15: Custo da Dívida (Kd) - BRL Presumido | H15: Custo da Dívida (Kd) - BRL Presumido
B16: Alíquota do Imposto de Renda e Contribuição Social Efetivos (t) | C16: 0.34 | D16: Alíquota de IRPJ e CSLL sobre o Lucro Líquido vigente no Brasil | F16: Alíquota do Imposto de Renda e Contribuição Social Efetivos (t) | G16: 0 | H16: Alíquota de IRPJ e CSLL sobre o Lucro Líquido vigente no Brasil
B17: Inflação Brasil | C17: 0.03576 | D17: Média expectativa focus para próximos 5 anos | F17: Inflação Brasil | G17: =C17 -> 0.03576 | H17: Média expectativa focus para próximos 5 anos
B18: Taxa de Juros Nominal | C18: 0.138326988 | D18: Demonstrações Financeiras Empresas do setor 4T2021 | F18: Taxa de Juros Nominal | G18: =C18 -> 0.138326988 | H18: Demonstrações Financeiras Empresas do setor 4T2021
B19: Kd nominal com benefício fiscal | C19: 0.09129581207 | D19: Taxa de Juros - Inflação | F19: Taxa de Juros Presumido | G19: =C19 -> 0.09129581207 | H19: Taxa de Juros - Inflação
B21: Kd depois do imposto (BRL Real) | C21: =((1+(C18)*(1-C16))/(1+C17))-1 -> 0.05361841746 | D21: Kd depois do imposto (BRL Real) | F21: Kd depois do imposto (BRL Presumido) | G21: =((1+(G18)*(1-G16))/(1+G17))-1 -> 0.0990258245 | H21: Kd depois do imposto (BRL Presumido)
B23: Estrutura de Capital | D23: Estrutura de Capital | F23: Estrutura de Capital | H23: Estrutura de Capital
B24: Dívida Bruta / Capital Total (D) | C24: 0.4798957807 | D24: Média do setor: Transportes | F24: Dívida Bruta / Capital Total (D) | G24: =C24 -> 0.4798957807 | H24: Média setor (2017 - 2021)
B25: Equity / Capital Total (E) | C25: 0.5201042193 | D25: Média do setor: Transportes | F25: Equity / Capital Total (E) | G25: =C25 -> 0.5201042193 | H25: Média setor (2017 - 2021)
B27: WACC (BRL Real) | C27: =C24*C21+C25*C13 -> 0.09102882504 | D27: Kd x (1-t) x D/(D+E) + Ke x E/(D+E) | F27: WACC (BRL Real) | G27: =G24*G21+G25*G13 -> 0.1128196481 | H27: Kd x (1-t) x D/(D+E) + Ke x E/(D+E)

Sheet 04. D&A Fiscal
B6: VIDA ÚTIL | C6: ANOS
B7: Básico | C7: 4
B8: MIDI | C8: 4
B9: Articulado Diesel | C9: 4
B10: Articulado Elétrico | C10: 4
B11: Padron Diesel | C11: 4
B12: Padron Elétrico | C12: 4
B13: Carregadores e Placas | C13: 4
B15: D&A (R$ Milhões)
B17: PRAZO | C17: =IF(C19<=('01. PC'!$C$18),1,0) -> 1 | D17: =IF(D19<=('01. PC'!$C$18),1,0) -> 1 | E17: =IF(E19<=('01. PC'!$C$18),1,0) -> 1 | F17: =IF(F19<=('01. PC'!$C$18),1,0) -> 1 | G17: =IF(G19<=('01. PC'!$C$18),1,0) -> 1 | H17: =IF(H19<=('01. PC'!$C$18),1,0) -> 1 | I17: =IF(I19<=('01. PC'!$C$18),1,0) -> 1 | J17: =IF(J19<=('01. PC'!$C$18),1,0) -> 1 | K17: =IF(K19<=('01. PC'!$C$18),1,0) -> 1 | L17: =IF(L19<=('01. PC'!$C$18),1,0) -> 1 | M17: =IF(M19<=('01. PC'!$C$18),1,0) -> 1 | N17: =IF(N19<=('01. PC'!$C$18),1,0) -> 1 | O17: =IF(O19<=('01. PC'!$C$18),1,0) -> 1 | P17: =IF(P19<=('01. PC'!$C$18),1,0) -> 1 | Q17: =IF(Q19<=('01. PC'!$C$18),1,0) -> 1 | R17: =IF(R19<=('01. PC'!$C$18),1,0) -> 1 | S17: =IF(S19<=('01. PC'!$C$18),1,0) -> 1 | T17: =IF(T19<=('01. PC'!$C$18),1,0) -> 1 | U17: =IF(U19<=('01. PC'!$C$18),1,0) -> 1 | V17: =IF(V19<=('01. PC'!$C$18),1,0) -> 1
B19: ANO | C19: 1 | D19: =C19+1 -> 2 | E19: =D19+1 -> 3 | F19: 4 | G19: 5 | H19: 6 | I19: 7 | J19: 8 | K19: 9 | L19: 10 | M19: 11 | N19: 12 | O19: 13 | P19: 14 | Q19: 15 | R19: 16 | S19: 17 | T19: 18 | U19: 19 | V19: 20 | X19: TOTAL
B21: Capex | C21: =C23+C24+C25+C26+C27+C28+C29+C30 -> 28.12399704 | D21: =D23+D24+D25+D26+D27+D28+D29+D30 -> 8.613258 | E21: 5.913258 | F21: 5.913258 | G21: 5.913258 | H21: 5.913258 | I21: 6.330887 | J21: 3.273629 | K21: 3.273629 | L21: 3.273629 | M21: 3.691258 | N21: 3.273629 | O21: 3.273629 | P21: 3.273629 | Q21: 3.273629 | R21: 3.273629 | S21: 6.330887 | T21: 5.913258 | U21: 5.913258 | V21: 0 | X21: =SUM(C21:V21) -> 114.758867
B23: Básico | C23: =('6. (a). CAPEX_LOTE2'!D692)*C$17 -> 14.4776352 | D23: =('6. (a). CAPEX_LOTE2'!E692)*D$17 -> 2.856 | E23: =('6. (a). CAPEX_LOTE2'!F692)*E$17 -> 2.856 | F23: =('6. (a). CAPEX_LOTE2'!G692)*F$17 -> 2.856 | G23: =('6. (a). CAPEX_LOTE2'!H692)*G$17 -> 2.856 | H23: =('6. (a). CAPEX_LOTE2'!I692)*H$17 -> 2.856 | I23: =('6. (a). CAPEX_LOTE2'!J692)*I$17 -> 2.856 | J23: =('6. (a). CAPEX_LOTE2'!K692)*J$17 -> 2.856 | K23: =('6. (a). CAPEX_LOTE2'!L692)*K$17 -> 2.856 | L23: =('6. (a). CAPEX_LOTE2'!M692)*L$17 -> 2.856 | M23: =('6. (a). CAPEX_LOTE2'!N692)*M$17 -> 2.856 | N23: =('6. (a). CAPEX_LOTE2'!O692)*N$17 -> 2.856 | O23: =('6. (a). CAPEX_LOTE2'!P692)*O$17 -> 2.856 | P23: =('6. (a). CAPEX_LOTE2'!Q692)*P$17 -> 2.856 | Q23: =('6. (a). CAPEX_LOTE2'!R692)*Q$17 -> 2.856 | R23: =('6. (a). CAPEX_LOTE2'!S692)*R$17 -> 2.856 | S23: =('6. (a). CAPEX_LOTE2'!T692)*S$17 -> 2.856 | T23: =('6. (a). CAPEX_LOTE2'!U692)*T$17 -> 2.856 | U23: =('6. (a). CAPEX_LOTE2'!V692)*U$17 -> 2.856 | V23: =('6. (a). CAPEX_LOTE2'!W692)*V$17 -> 0 | X23: =SUM(C23:V23) -> 65.8856352
B24: MIDI | C24: =('6. (a). CAPEX_LOTE2'!D693)*C$17 -> 2.626218204 | D24: =('6. (a). CAPEX_LOTE2'!E693)*D$17 -> 0.417629 | E24: =('6. (a). CAPEX_LOTE2'!F693)*E$17 -> 0.417629 | F24: =('6. (a). CAPEX_LOTE2'!G693)*F$17 -> 0.417629 | G24: =('6. (a). CAPEX_LOTE2'!H693)*G$17 -> 0.417629 | H24: =('6. (a). CAPEX_LOTE2'!I693)*H$17 -> 0.417629 | I24: =('6. (a). CAPEX_LOTE2'!J693)*I$17 -> 0.835258 | J24: =('6. (a). CAPEX_LOTE2'!K693)*J$17 -> 0.417629 | K24: =('6. (a). CAPEX_LOTE2'!L693)*K$17 -> 0.417629 | L24: =('6. (a). CAPEX_LOTE2'!M693)*L$17 -> 0.417629 | M24: =('6. (a). CAPEX_LOTE2'!N693)*M$17 -> 0.835258 | N24: =('6. (a). CAPEX_LOTE2'!O693)*N$17 -> 0.417629 | O24: =('6. (a). CAPEX_LOTE2'!P693)*O$17 -> 0.417629 | P24: =('6. (a). CAPEX_LOTE2'!Q693)*P$17 -> 0.417629 | Q24: =('6. (a). CAPEX_LOTE2'!R693)*Q$17 -> 0.417629 | R24: =('6. (a). CAPEX_LOTE2'!S693)*R$17 -> 0.417629 | S24: =('6. (a). CAPEX_LOTE2'!T693)*S$17 -> 0.835258 | T24: =('6. (a). CAPEX_LOTE2'!U693)*T$17 -> 0.417629 | U24: =('6. (a). CAPEX_LOTE2'!V693)*U$17 -> 0.417629 | V24: =('6. (a). CAPEX_LOTE2'!W693)*V$17 -> 0 | X24: 11.3964272
B25: Articulado Diesel | C25: =('6. (a). CAPEX_LOTE2'!D694)*C$17 -> 5.835503314 | D25: =('6. (a). CAPEX_LOTE2'!E694)*D$17 -> 0 | E25: =('6. (a). CAPEX_LOTE2'!F694)*E$17 -> 0 | F25: =('6. (a). CAPEX_LOTE2'!G694)*F$17 -> 0 | G25: =('6. (a). CAPEX_LOTE2'!H694)*G$17 -> 0 | H25: =('6. (a). CAPEX_LOTE2'!I694)*H$17 -> 0 | I25: =('6. (a). CAPEX_LOTE2'!J694)*I$17 -> 0 | J25: =('6. (a). CAPEX_LOTE2'!K694)*J$17 -> 0 | K25: =('6. (a). CAPEX_LOTE2'!L694)*K$17 -> 0 | L25: =('6. (a). CAPEX_LOTE2'!M694)*L$17 -> 0 | M25: =('6. (a). CAPEX_LOTE2'!N694)*M$17 -> 0 | N25: =('6. (a). CAPEX_LOTE2'!O694)*N$17 -> 0 | O25: =('6. (a). CAPEX_LOTE2'!P694)*O$17 -> 0 | P25: =('6. (a). CAPEX_LOTE2'!Q694)*P$17 -> 0 | Q25: =('6. (a). CAPEX_LOTE2'!R694)*Q$17 -> 0 | R25: =('6. (a). CAPEX_LOTE2'!S694)*R$17 -> 0 | S25: =('6. (a). CAPEX_LOTE2'!T694)*S$17 -> 0 | T25: =('6. (a). CAPEX_LOTE2'!U694)*T$17 -> 0 | U25: =('6. (a). CAPEX_LOTE2'!V694)*U$17 -> 0 | V25: =('6. (a). CAPEX_LOTE2'!W694)*V$17 -> 0 | X25: 5.835503314
B26: Articulado Elétrico | C26: =('6. (a). CAPEX_LOTE2'!D695)*C$17 -> 0 | D26: =('6. (a). CAPEX_LOTE2'!E695)*D$17 -> 2.639629 | E26: =('6. (a). CAPEX_LOTE2'!F695)*E$17 -> 2.639629 | F26: =('6. (a). CAPEX_LOTE2'!G695)*F$17 -> 2.639629 | G26: =('6. (a). CAPEX_LOTE2'!H695)*G$17 -> 2.639629 | H26: =('6. (a). CAPEX_LOTE2'!I695)*H$17 -> 2.639629 | I26: =('6. (a). CAPEX_LOTE2'!J695)*I$17 -> 2.639629 | J26: =('6. (a). CAPEX_LOTE2'!K695)*J$17 -> 0 | K26: =('6. (a). CAPEX_LOTE2'!L695)*K$17 -> 0 | L26: =('6. (a). CAPEX_LOTE2'!M695)*L$17 -> 0 | M26: =('6. (a). CAPEX_LOTE2'!N695)*M$17 -> 0 | N26: =('6. (a). CAPEX_LOTE2'!O695)*N$17 -> 0 | O26: =('6. (a). CAPEX_LOTE2'!P695)*O$17 -> 0 | P26: =('6. (a). CAPEX_LOTE2'!Q695)*P$17 -> 0 | Q26: =('6. (a). CAPEX_LOTE2'!R695)*Q$17 -> 0 | R26: =('6. (a). CAPEX_LOTE2'!S695)*R$17 -> 0 | S26: =('6. (a). CAPEX_LOTE2'!T695)*S$17 -> 2.639629 | T26: =('6. (a). CAPEX_LOTE2'!U695)*T$17 -> 2.639629 | U26: =('6. (a). CAPEX_LOTE2'!V695)*U$17 -> 2.639629 | V26: =('6. (a). CAPEX_LOTE2'!W695)*V$17 -> 0 | X26: 23.756661
B27: Padron Diesel | C27: =('6. (a). CAPEX_LOTE2'!D696)*C$17 -> 0 | D27: =('6. (a). CAPEX_LOTE2'!E696)*D$17 -> 0 | E27: =('6. (a). CAPEX_LOTE2'!F696)*E$17 -> 0 | F27: =('6. (a). CAPEX_LOTE2'!G696)*F$17 -> 0 | G27: =('6. (a). CAPEX_LOTE2'!H696)*G$17 -> 0 | H27: =('6. (a). CAPEX_LOTE2'!I696)*H$17 -> 0 | I27: =('6. (a). CAPEX_LOTE2'!J696)*I$17 -> 0 | J27: =('6. (a). CAPEX_LOTE2'!K696)*J$17 -> 0 | K27: =('6. (a). CAPEX_LOTE2'!L696)*K$17 -> 0 | L27: =('6. (a). CAPEX_LOTE2'!M696)*L$17 -> 0 | M27: =('6. (a). CAPEX_LOTE2'!N696)*M$17 -> 0 | N27: =('6. (a). CAPEX_LOTE2'!O696)*N$17 -> 0 | O27: =('6. (a). CAPEX_LOTE2'!P696)*O$17 -> 0 | P27: =('6. (a). CAPEX_LOTE2'!Q696)*P$17 -> 0 | Q27: =('6. (a). CAPEX_LOTE2'!R696)*Q$17 -> 0 | R27: =('6. (a). CAPEX_LOTE2'!S696)*R$17 -> 0 | S27: =('6. (a). CAPEX_LOTE2'!T696)*S$17 -> 0 | T27: =('6. (a). CAPEX_LOTE2'!U696)*T$17 -> 0 | U27: =('6. (a). CAPEX_LOTE2'!V696)*U$17 -> 0 | V27: =('6. (a). CAPEX_LOTE2'!W696)*V$17 -> 0 | X27: 0
B28: Padron Elétrico | C28: =('6. (a). CAPEX_LOTE2'!D697)*C$17 -> 0 | D28: =('6. (a). CAPEX_LOTE2'!E697)*D$17 -> 0 | E28: =('6. (a). CAPEX_LOTE2'!F697)*E$17 -> 0 | F28: =('6. (a). CAPEX_LOTE2'!G697)*F$17 -> 0 | G28: =('6. (a). CAPEX_LOTE2'!H697)*G$17 -> 0 | H28: =('6. (a). CAPEX_LOTE2'!I697)*H$17 -> 0 | I28: =('6. (a). CAPEX_LOTE2'!J697)*I$17 -> 0 | J28: =('6. (a). CAPEX_LOTE2'!K697)*J$17 -> 0 | K28: =('6. (a). CAPEX_LOTE2'!L697)*K$17 -> 0 | L28: =('6. (a). CAPEX_LOTE2'!M697)*L$17 -> 0 | M28: =('6. (a). CAPEX_LOTE2'!N697)*M$17 -> 0 | N28: =('6. (a). CAPEX_LOTE2'!O697)*N$17 -> 0 | O28: =('6. (a). CAPEX_LOTE2'!P697)*O$17 -> 0 | P28: =('6. (a). CAPEX_LOTE2'!Q697)*P$17 -> 0 | Q28: =('6. (a). CAPEX_LOTE2'!R697)*Q$17 -> 0 | R28: =('6. (a). CAPEX_LOTE2'!S697)*R$17 -> 0 | S28: =('6. (a). CAPEX_LOTE2'!T697)*S$17 -> 0 | T28: =('6. (a). CAPEX_LOTE2'!U697)*T$17 -> 0 | U28: =('6. (a). CAPEX_LOTE2'!V697)*U$17 -> 0 | V28: =('6. (a). CAPEX_LOTE2'!W697)*V$17 -> 0 | X28: 0
B29: Outorga | C29: =-'02. FCL'!C37 -> 5.184640322 | D29: =-'02. FCL'!D37 -> 0 | E29: =-'02. FCL'!E37 -> 0 | F29: =-'02. FCL'!F37 -> 0 | G29: =-'02. FCL'!G37 -> 0 | H29: =-'02. FCL'!H37 -> 0 | I29: =-'02. FCL'!I37 -> 0 | J29: =-'02. FCL'!J37 -> 0 | K29: =-'02. FCL'!K37 -> 0 | L29: =-'02. FCL'!L37 -> 0 | M29: =-'02. FCL'!M37 -> 0 | N29: =-'02. FCL'!N37 -> 0 | O29: =-'02. FCL'!O37 -> 0 | P29: =-'02. FCL'!P37 -> 0 | Q29: =-'02. FCL'!Q37 -> 0 | R29: =-'02. FCL'!R37 -> 0 | S29: =-'02. FCL'!S37 -> 0 | T29: =-'02. FCL'!T37 -> 0 | U29: =-'02. FCL'!U37 -> 0 | V29: =-'02. FCL'!V37 -> 0 | X29: 5.184640322
B30: Carregadores e Placas | C30: ='02. FCL'!C28 -> 0 | D30: ='02. FCL'!D28 -> 2.7 | E30: ='02. FCL'!E28 -> 0 | F30: ='02. FCL'!F28 -> 0 | G30: ='02. FCL'!G28 -> 0 | H30: ='02. FCL'!H28 -> 0 | I30: ='02. FCL'!I28 -> 0 | J30: ='02. FCL'!J28 -> 0 | K30: ='02. FCL'!K28 -> 0 | L30: ='02. FCL'!L28 -> 0 | M30: ='02. FCL'!M28 -> 0 | N30: ='02. FCL'!N28 -> 0 | O30: ='02. FCL'!O28 -> 0 | P30: ='02. FCL'!P28 -> 0 | Q30: ='02. FCL'!Q28 -> 0 | R30: ='02. FCL'!R28 -> 0 | S30: ='02. FCL'!S28 -> 0 | T30: ='02. FCL'!T28 -> 0 | U30: ='02. FCL'!U28 -> 0 | V30: ='02. FCL'!V28 -> 0 | X30: 2.7
B32: Cronograma | C32: =C34+C56+C78+C100+C122+C144+C165 -> 28.12399704 | D32: 5.913258 | E32: 5.913258 | F32: 5.913258 | G32: 5.913258 | H32: 5.913258 | I32: 6.330887 | J32: 3.273629 | K32: 3.273629 | L32: 3.273629 | M32: 3.691258 | N32: 3.273629 | O32: 3.273629 | P32: 3.273629 | Q32: 3.273629 | R32: 3.273629 | S32: 6.330887 | T32: 5.913258 | U32: 5.913258 | V32: 0 | X32: =SUM(C32:V32) -> 112.058867
B34: Básico | C34: =SUM(C35:C54) -> 14.4776352 | D34: 2.856 | E34: 2.856 | F34: 2.856 | G34: 2.856 | H34: 2.856 | I34: 2.856 | J34: 2.856 | K34: 2.856 | L34: 2.856 | M34: 2.856 | N34: 2.856 | O34: 2.856 | P34: 2.856 | Q34: 2.856 | R34: 2.856 | S34: 2.856 | T34: 2.856 | U34: 2.856 | V34: 0 | X34: =SUM(C34:V34) -> 65.8856352
B35: 1 | C35: =C$23 -> 14.4776352 | X35: 14.4776352
B36: =B35+1 -> 2 | D36: =D$23 -> 2.856 | X36: 2.856
B37: =B36+1 -> 3 | E37: =E$23 -> 2.856 | X37: 2.856
B38: 4 | F38: =F$23 -> 2.856 | X38: 2.856
B39: 5 | G39: =G$23 -> 2.856 | X39: 2.856
B40: 6 | H40: =H$23 -> 2.856 | X40: 2.856
B41: 7 | I41: =I$23 -> 2.856 | X41: 2.856
B42: 8 | J42: =J$23 -> 2.856 | X42: 2.856
B43: =B42+1 -> 9 | K43: =K$23 -> 2.856 | X43: 2.856
B44: 10 | L44: =L$23 -> 2.856 | X44: 2.856
B45: 11 | M45: =M$23 -> 2.856 | X45: 2.856
B46: 12 | N46: =N$23 -> 2.856 | X46: 2.856
B47: 13 | O47: =O$23 -> 2.856 | X47: 2.856
B48: 14 | P48: =P$23 -> 2.856 | X48: 2.856
B49: 15 | Q49: =Q$23 -> 2.856 | X49: 2.856
B50: 16 | R50: =R$23 -> 2.856 | X50: 2.856
B51: 17 | S51: =S$23 -> 2.856 | X51: 2.856
B52: 18 | T52: =T$23 -> 2.856 | X52: 2.856
B53: 19 | U53: =U$23 -> 2.856 | X53: 2.856
B54: 20 | V54: =V$23 -> 0 | X54: 0
B56: MIDI | C56: =SUM(C57:C76) -> 2.626218204 | D56: 0.417629 | E56: 0.417629 | F56: 0.417629 | G56: 0.417629 | H56: 0.417629 | I56: 0.835258 | J56: 0.417629 | K56: 0.417629 | L56: 0.417629 | M56: 0.835258 | N56: 0.417629 | O56: 0.417629 | P56: 0.417629 | Q56: 0.417629 | R56: 0.417629 | S56: 0.835258 | T56: 0.417629 | U56: 0.417629 | V56: 0 | X56: =SUM(C56:V56) -> 11.3964272
B57: 1 | C57: =C$24 -> 2.626218204 | X57: 2.626218204
B58: =B57+1 -> 2 | D58: =D$24 -> 0.417629 | X58: 0.417629
B59: =B58+1 -> 3 | E59: =E$24 -> 0.417629 | X59: 0.417629
B60: 4 | F60: =F$24 -> 0.417629 | X60: 0.417629
B61: 5 | G61: =G$24 -> 0.417629 | X61: 0.417629
B62: 6 | H62: =H$24 -> 0.417629 | X62: 0.417629
B63: 7 | I63: =I$24 -> 0.835258 | X63: 0.835258
B64: 8 | J64: =J$24 -> 0.417629 | X64: 0.417629
B65: 9 | K65: =K$24 -> 0.417629 | X65: 0.417629
B66: 10 | L66: =L$24 -> 0.417629 | X66: 0.417629
B67: 11 | M67: =M$24 -> 0.835258 | X67: 0.835258
B68: 12 | N68: =N$24 -> 0.417629 | X68: 0.417629
B69: 13 | O69: =O$24 -> 0.417629 | X69: 0.417629
B70: 14 | P70: =P$24 -> 0.417629 | X70: 0.417629
B71: 15 | Q71: =Q$24 -> 0.417629 | X71: 0.417629
B72: 16 | R72: =R$24 -> 0.417629 | X72: 0.417629
B73: 17 | S73: =S$24 -> 0.835258 | X73: 0.835258
B74: 18 | T74: =T$24 -> 0.417629 | X74: 0.417629
B75: 19 | U75: =U$24 -> 0.417629 | X75: 0.417629
B76: 20 | V76: =V$24 -> 0 | X76: 0
B78: Articulado Diesel | C78: =SUM(C79:C98) -> 5.835503314 | D78: 0 | E78: 0 | F78: 0 | G78: 0 | H78: 0 | I78: 0 | J78: 0 | K78: 0 | L78: 0 | M78: 0 | N78: 0 | O78: 0 | P78: 0 | Q78: 0 | R78: 0 | S78: 0 | T78: 0 | U78: 0 | V78: 0 | X78: =SUM(C78:V78) -> 5.835503314
B79: 1 | C79: =C$25 -> 5.835503314 | X79: 5.835503314
B80: =B79+1 -> 2 | D80: =D$25 -> 0 | X80: 0
B81: =B80+1 -> 3 | E81: =E$25 -> 0 | X81: 0
B82: 4 | F82: =F$25 -> 0 | X82: 0
B83: 5 | G83: =G$25 -> 0 | X83: 0
B84: 6 | H84: =H$25 -> 0 | X84: 0
B85: 7 | I85: =I$25 -> 0 | X85: 0
B86: 8 | J86: =J$25 -> 0 | X86: 0
B87: 9 | K87: =K$25 -> 0 | X87: 0
B88: 10 | L88: =L$25 -> 0 | X88: 0
B89: 11 | M89: =M$25 -> 0 | X89: 0
B90: 12 | N90: =N$25 -> 0 | X90: 0
B91: 13 | O91: =O$25 -> 0 | X91: 0
B92: 14 | P92: =P$25 -> 0 | X92: 0
B93: 15 | Q93: =Q$25 -> 0 | X93: 0
B94: 16 | R94: =R$25 -> 0 | X94: 0
B95: 17 | S95: =S$25 -> 0 | X95: 0
B96: 18 | T96: =T$25 -> 0 | X96: 0
B97: 19 | U97: =U$25 -> 0 | X97: 0
B98: 20 | V98: =V$25 -> 0 | X98: 0
B100: Articulado Elétrico | C100: =SUM(C101:C120) -> 0 | D100: 2.639629 | E100: 2.639629 | F100: 2.639629 | G100: 2.639629 | H100: 2.639629 | I100: 2.639629 | J100: 0 | K100: 0 | L100: 0 | M100: 0 | N100: 0 | O100: 0 | P100: 0 | Q100: 0 | R100: 0 | S100: 2.639629 | T100: 2.639629 | U100: 2.639629 | V100: 0 | X100: =SUM(C100:V100) -> 23.756661
B101: 1 | C101: =C$26 -> 0 | X101: 0
B102: =B101+1 -> 2 | D102: =D$26 -> 2.639629 | X102: 2.639629
B103: =B102+1 -> 3 | E103: =E$26 -> 2.639629 | X103: 2.639629
B104: 4 | F104: =F$26 -> 2.639629 | X104: 2.639629
B105: 5 | G105: =G$26 -> 2.639629 | X105: 2.639629
B106: 6 | H106: =H$26 -> 2.639629 | X106: 2.639629
B107: 7 | I107: =I$26 -> 2.639629 | X107: 2.639629
B108: 8 | J108: =J$26 -> 0 | X108: 0
B109: 9 | K109: =K$26 -> 0 | X109: 0
B110: 10 | L110: =L$26 -> 0 | X110: 0
B111: 11 | M111: =M$26 -> 0 | X111: 0
B112: 12 | N112: =N$26 -> 0 | X112: 0
B113: 13 | O113: =O$26 -> 0 | X113: 0
B114: 14 | P114: =P$26 -> 0 | X114: 0
B115: 15 | Q115: =Q$26 -> 0 | X115: 0
B116: 16 | R116: =R$26 -> 0 | X116: 0
B117: 17 | S117: =S$26 -> 2.639629 | X117: 2.639629
B118: 18 | T118: =T$26 -> 2.639629 | X118: 2.639629
B119: 19 | U119: =U$26 -> 2.639629 | X119: 2.639629
B120: 20 | V120: =V$26 -> 0 | X120: 0
B122: Padron Diesel | C122: =SUM(C123:C142) -> 0 | D122: 0 | E122: 0 | F122: 0 | G122: 0 | H122: 0 | I122: 0 | J122: 0 | K122: 0 | L122: 0 | M122: 0 | N122: 0 | O122: 0 | P122: 0 | Q122: 0 | R122: 0 | S122: 0 | T122: 0 | U122: 0 | V122: 0 | X122: =SUM(C122:V122) -> 0
B123: 1 | C123: =C$27 -> 0 | X123: 0
B124: =B123+1 -> 2 | D124: =D$27 -> 0 | X124: 0
B125: =B124+1 -> 3 | E125: =E$27 -> 0 | X125: 0
B126: 4 | F126: =F$27 -> 0 | X126: 0
B127: 5 | G127: =G$27 -> 0 | X127: 0
B128: 6 | H128: =H$27 -> 0 | X128: 0
B129: 7 | I129: =I$27 -> 0 | X129: 0
B130: 8 | J130: =J$27 -> 0 | X130: 0
B131: 9 | K131: =K$27 -> 0 | X131: 0
B132: 10 | L132: =L$27 -> 0 | X132: 0
B133: 11 | M133: =M$27 -> 0 | X133: 0
B134: 12 | N134: =N$27 -> 0 | X134: 0
B135: 13 | O135: =O$27 -> 0 | X135: 0
B136: 14 | P136: =P$27 -> 0 | X136: 0
B137: 15 | Q137: =Q$27 -> 0 | X137: 0
B138: 16 | R138: =R$27 -> 0 | X138: 0
B139: 17 | S139: =S$27 -> 0 | X139: 0
B140: 18 | T140: =T$27 -> 0 | X140: 0
B141: 19 | U141: =U$27 -> 0 | X141: 0
B142: 20 | V142: =V$27 -> 0 | X142: 0
B144: Padron Elétrico | C144: =SUM(C145:C164) -> 0 | D144: 0 | E144: 0 | F144: 0 | G144: 0 | H144: 0 | I144: 0 | J144: 0 | K144: 0 | L144: 0 | M144: 0 | N144: 0 | O144: 0 | P144: 0 | Q144: 0 | R144: 0 | S144: 0 | T144: 0 | U144: 0 | V144: 0 | X144: =SUM(C144:V144) -> 0
B145: 1 | C145: =C$28 -> 0 | X145: 0
B146: =B145+1 -> 2 | D146: =D$28 -> 0 | X146: 0
B147: =B146+1 -> 3 | E147: =E$28 -> 0 | X147: 0
B148: 4 | F148: =F$28 -> 0 | X148: 0
B149: 5 | G149: =G$28 -> 0 | X149: 0
B150: 6 | H150: =H$28 -> 0 | X150: 0
B151: 7 | I151: =I$28 -> 0 | X151: 0
B152: 8 | J152: =J$28 -> 0 | X152: 0
B153: 9 | K153: =K$28 -> 0 | X153: 0
B154: 10 | L154: =L$28 -> 0 | X154: 0
B155: 11 | M155: =M$28 -> 0 | X155: 0
B156: 12 | N156: =N$28 -> 0 | X156: 0
B157: 13 | O157: =O$28 -> 0 | X157: 0
B158: 14 | P158: =P$28 -> 0 | X158: 0
B159: 15 | Q159: =Q$28 -> 0 | X159: 0
B160: 16 | R160: =R$28 -> 0 | X160: 0
B161: 17 | S161: =S$28 -> 0 | X161: 0
B162: 18 | T162: =T$28 -> 0 | X162: 0
B163: 19 | U163: =U$28 -> 0 | X163: 0
B164: 20 | V164: =V$28 -> 0 | X164: 0
B165: Outorga | C165: =SUM(C166:C185) -> 5.184640322 | D165: 0 | E165: 0 | F165: 0 | G165: 0 | H165: 0 | I165: 0 | J165: 0 | K165: 0 | L165: 0 | M165: 0 | N165: 0 | O165: 0 | P165: 0 | Q165: 0 | R165: 0 | S165: 0 | T165: 0 | U165: 0 | V165: 0 | X165: 5.184640322
B166: 1 | C166: =C$29 -> 5.184640322 | X166: 5.184640322
B167: =B166+1 -> 2 | D167: =D$29 -> 0 | X167: 0
B168: =B167+1 -> 3 | E168: =E$29 -> 0 | X168: 0
B169: 4 | F169: =F$29 -> 0 | X169: 0
B170: 5 | G170: =G$29 -> 0 | X170: 0
B171: 6 | H171: =H$29 -> 0 | X171: 0
B172: 7 | I172: =I$29 -> 0 | X172: 0
B173: 8 | J173: =J$29 -> 0 | X173: 0
B174: 9 | K174: =K$29 -> 0 | X174: 0
B175: 10 | L175: =L$29 -> 0 | X175: 0
B176: 11 | M176: =M$29 -> 0 | X176: =SUM(C176:V176) -> 0
B177: 12 | N177: =N$29 -> 0 | X177: 0
B178: 13 | O178: =O$29 -> 0 | X178: 0
B179: 14 | P179: =P$29 -> 0 | X179: 0
B180: 15 | Q180: =Q$29 -> 0 | X180: 0
B181: 16 | R181: =R$29 -> 0 | X181: 0
B182: 17 | S182: =S$29 -> 0 | X182: 0
B183: 18 | T183: =T$29 -> 0 | X183: 0
B184: 19 | U184: =U$29 -> 0 | X184: 0
B185: 20 | V185: =V$29 -> 0 | X185: 0
B186: Carregadores e Placas | C186: =SUM(C187:C206) -> 0 | D186: 2.7 | E186: 0 | F186: 0 | G186: 0 | H186: 0 | I186: 0 | J186: 0 | K186: 0 | L186: 0 | M186: 0 | N186: 0 | O186: 0 | P186: 0 | Q186: 0 | R186: 0 | S186: 0 | T186: 0 | U186: 0 | V186: 0 | X186: 2.7
B187: 1 | C187: =C$30 -> 0 | X187: 0
B188: =B187+1 -> 2 | D188: =D$30 -> 2.7 | X188: 2.7
B189: =B188+1 -> 3 | E189: =E$30 -> 0 | X189: 0
B190: 4 | F190: =F$30 -> 0 | X190: 0
B191: 5 | G191: =G$30 -> 0 | X191: 0
B192: 6 | H192: =H$30 -> 0 | X192: 0
B193: 7 | I193: =I$30 -> 0 | X193: 0
B194: 8 | J194: =J$30 -> 0 | X194: 0
B195: 9 | K195: =K$30 -> 0 | X195: 0
B196: 10 | L196: =L$30 -> 0 | X196: 0
B197: 11 | M197: =M$30 -> 0 | X197: 0
B198: 12 | N198: =N$30 -> 0 | X198: 0
B199: 13 | O199: =O$30 -> 0 | X199: 0
B200: 14 | P200: =P$30 -> 0 | X200: 0
B201: 15 | Q201: =Q$30 -> 0 | X201: 0
B202: 16 | R202: =R$30 -> 0 | X202: 0
B203: 17 | S203: =S$30 -> 0 | X203: 0
B204: 18 | T204: =T$30 -> 0 | X204: 0
B205: 19 | U205: =U$30 -> 0 | X205: 0
B206: 20 | V206: =V$30 -> 0 | X206: 0
B208: Dep. sem perdas reais | C208: =C210+C232+C254+C276+C298+C320+C341+C362 -> 5.994071196 | D208: =D210+D232+D254+D276+D298+D320+D341+D362 -> 7.614490959 | E208: 9.092805459 | F208: 10.57111996 | G208: 6.314595279 | H208: 6.314595279 | I208: 6.419002529 | J208: 5.759095279 | K208: 5.099188029 | L208: 4.439280779 | M208: 3.779373529 | N208: 3.779373529 | O208: 3.779373529 | P208: 3.779373529 | Q208: 3.674966279 | R208: 3.674966279 | S208: 4.439280779 | T208: 5.099188029 | U208: 5.759095279 | V208: 4.940688029 | X208: =SUM(C208:V208) -> 110.3239235
B210: Básico | C210: =SUM(C211:C230) -> 3.6194088 | D210: 4.3334088 | E210: 5.0474088 | F210: 5.7614088 | G210: 2.856 | H210: 2.856 | I210: 2.856 | J210: 2.856 | K210: 2.856 | L210: 2.856 | M210: 2.856 | N210: 2.856 | O210: 2.856 | P210: 2.856 | Q210: 2.856 | R210: 2.856 | S210: 2.856 | T210: 2.856 | U210: 2.856 | V210: 2.142 | X210: =SUM(C210:V210) -> 63.7436352
B211: 1 | C211: =$X211*(1/$Y211)*C$17 -> 3.6194088 | D211: =IFERROR(IF(SUM($C211:C211)<$X211,$X211*(1/$Y211),0),0)*D$17 -> 3.6194088 | E211: =IFERROR(IF(SUM($C211:D211)<$X211,$X211*(1/$Y211),0),0)*E$17 -> 3.6194088 | F211: =IFERROR(IF(SUM($C211:E211)<$X211,$X211*(1/$Y211),0),0)*F$17 -> 3.6194088 | G211: =IFERROR(IF(SUM($C211:F211)<$X211,$X211*(1/$Y211),0),0)*G$17 -> 0 | H211: =IFERROR(IF(SUM($C211:G211)<$X211,$X211*(1/$Y211),0),0)*H$17 -> 0 | I211: =IFERROR(IF(SUM($C211:H211)<$X211,$X211*(1/$Y211),0),0)*I$17 -> 0 | J211: =IFERROR(IF(SUM($C211:I211)<$X211,$X211*(1/$Y211),0),0)*J$17 -> 0 | K211: =IFERROR(IF(SUM($C211:J211)<$X211,$X211*(1/$Y211),0),0)*K$17 -> 0 | L211: =IFERROR(IF(SUM($C211:K211)<$X211,$X211*(1/$Y211),0),0)*L$17 -> 0 | M211: =IFERROR(IF(SUM($C211:L211)<$X211,$X211*(1/$Y211),0),0)*M$17 -> 0 | N211: =IFERROR(IF(SUM($C211:M211)<$X211,$X211*(1/$Y211),0),0)*N$17 -> 0 | O211: =IFERROR(IF(SUM($C211:N211)<$X211,$X211*(1/$Y211),0),0)*O$17 -> 0 | P211: =IFERROR(IF(SUM($C211:O211)<$X211,$X211*(1/$Y211),0),0)*P$17 -> 0 | Q211: =IFERROR(IF(SUM($C211:P211)<$X211,$X211*(1/$Y211),0),0)*Q$17 -> 0 | R211: =IFERROR(IF(SUM($C211:Q211)<$X211,$X211*(1/$Y211),0),0)*R$17 -> 0 | S211: =IFERROR(IF(SUM($C211:R211)<$X211,$X211*(1/$Y211),0),0)*S$17 -> 0 | T211: =IFERROR(IF(SUM($C211:S211)<$X211,$X211*(1/$Y211),0),0)*T$17 -> 0 | U211: =IFERROR(IF(SUM($C211:T211)<$X211,$X211*(1/$Y211),0),0)*U$17 -> 0 | V211: =IFERROR(IF(SUM($C211:U211)<$X211,$X211*(1/$Y211),0),0)*V$17 -> 0 | X211: =X35 -> 14.4776352 | Y211: =$C$7 -> 4
B212: =B211+1 -> 2 | D212: =IFERROR(IF(SUM($C212:C212)<$X212,$X212*(1/$Y212),0),0)*D$17 -> 0.714 | E212: =IFERROR(IF(SUM($C212:D212)<$X212,$X212*(1/$Y212),0),0)*E$17 -> 0.714 | F212: =IFERROR(IF(SUM($C212:E212)<$X212,$X212*(1/$Y212),0),0)*F$17 -> 0.714 | G212: =IFERROR(IF(SUM($C212:F212)<$X212,$X212*(1/$Y212),0),0)*G$17 -> 0.714 | H212: =IFERROR(IF(SUM($C212:G212)<$X212,$X212*(1/$Y212),0),0)*H$17 -> 0 | I212: =IFERROR(IF(SUM($C212:H212)<$X212,$X212*(1/$Y212),0),0)*I$17 -> 0 | J212: =IFERROR(IF(SUM($C212:I212)<$X212,$X212*(1/$Y212),0),0)*J$17 -> 0 | K212: =IFERROR(IF(SUM($C212:J212)<$X212,$X212*(1/$Y212),0),0)*K$17 -> 0 | L212: =IFERROR(IF(SUM($C212:K212)<$X212,$X212*(1/$Y212),0),0)*L$17 -> 0 | M212: =IFERROR(IF(SUM($C212:L212)<$X212,$X212*(1/$Y212),0),0)*M$17 -> 0 | N212: =IFERROR(IF(SUM($C212:M212)<$X212,$X212*(1/$Y212),0),0)*N$17 -> 0 | O212: =IFERROR(IF(SUM($C212:N212)<$X212,$X212*(1/$Y212),0),0)*O$17 -> 0 | P212: =IFERROR(IF(SUM($C212:O212)<$X212,$X212*(1/$Y212),0),0)*P$17 -> 0 | Q212: =IFERROR(IF(SUM($C212:P212)<$X212,$X212*(1/$Y212),0),0)*Q$17 -> 0 | R212: =IFERROR(IF(SUM($C212:Q212)<$X212,$X212*(1/$Y212),0),0)*R$17 -> 0 | S212: =IFERROR(IF(SUM($C212:R212)<$X212,$X212*(1/$Y212),0),0)*S$17 -> 0 | T212: =IFERROR(IF(SUM($C212:S212)<$X212,$X212*(1/$Y212),0),0)*T$17 -> 0 | U212: =IFERROR(IF(SUM($C212:T212)<$X212,$X212*(1/$Y212),0),0)*U$17 -> 0 | V212: =IFERROR(IF(SUM($C212:U212)<$X212,$X212*(1/$Y212),0),0)*V$17 -> 0 | X212: 2.856 | Y212: =Y211 -> 4
B213: =B212+1 -> 3 | E213: =IFERROR(IF(SUM($C213:D213)<$X213,$X213*(1/$Y213),0),0)*E$17 -> 0.714 | F213: =IFERROR(IF(SUM($C213:E213)<$X213,$X213*(1/$Y213),0),0)*F$17 -> 0.714 | G213: =IFERROR(IF(SUM($C213:F213)<$X213,$X213*(1/$Y213),0),0)*G$17 -> 0.714 | H213: =IFERROR(IF(SUM($C213:G213)<$X213,$X213*(1/$Y213),0),0)*H$17 -> 0.714 | I213: =IFERROR(IF(SUM($C213:H213)<$X213,$X213*(1/$Y213),0),0)*I$17 -> 0 | J213: =IFERROR(IF(SUM($C213:I213)<$X213,$X213*(1/$Y213),0),0)*J$17 -> 0 | K213: =IFERROR(IF(SUM($C213:J213)<$X213,$X213*(1/$Y213),0),0)*K$17 -> 0 | L213: =IFERROR(IF(SUM($C213:K213)<$X213,$X213*(1/$Y213),0),0)*L$17 -> 0 | M213: =IFERROR(IF(SUM($C213:L213)<$X213,$X213*(1/$Y213),0),0)*M$17 -> 0 | N213: =IFERROR(IF(SUM($C213:M213)<$X213,$X213*(1/$Y213),0),0)*N$17 -> 0 | O213: =IFERROR(IF(SUM($C213:N213)<$X213,$X213*(1/$Y213),0),0)*O$17 -> 0 | P213: =IFERROR(IF(SUM($C213:O213)<$X213,$X213*(1/$Y213),0),0)*P$17 -> 0 | Q213: =IFERROR(IF(SUM($C213:P213)<$X213,$X213*(1/$Y213),0),0)*Q$17 -> 0 | R213: =IFERROR(IF(SUM($C213:Q213)<$X213,$X213*(1/$Y213),0),0)*R$17 -> 0 | S213: =IFERROR(IF(SUM($C213:R213)<$X213,$X213*(1/$Y213),0),0)*S$17 -> 0 | T213: =IFERROR(IF(SUM($C213:S213)<$X213,$X213*(1/$Y213),0),0)*T$17 -> 0 | U213: =IFERROR(IF(SUM($C213:T213)<$X213,$X213*(1/$Y213),0),0)*U$17 -> 0 | V213: =IFERROR(IF(SUM($C213:U213)<$X213,$X213*(1/$Y213),0),0)*V$17 -> 0 | X213: 2.856 | Y213: =Y212 -> 4
B214: 4 | F214: =IFERROR(IF(SUM($C214:E214)<$X214,$X214*(1/$Y214),0),0)*F$17 -> 0.714 | G214: =IFERROR(IF(SUM($C214:F214)<$X214,$X214*(1/$Y214),0),0)*G$17 -> 0.714 | H214: =IFERROR(IF(SUM($C214:G214)<$X214,$X214*(1/$Y214),0),0)*H$17 -> 0.714 | I214: =IFERROR(IF(SUM($C214:H214)<$X214,$X214*(1/$Y214),0),0)*I$17 -> 0.714 | J214: =IFERROR(IF(SUM($C214:I214)<$X214,$X214*(1/$Y214),0),0)*J$17 -> 0 | K214: =IFERROR(IF(SUM($C214:J214)<$X214,$X214*(1/$Y214),0),0)*K$17 -> 0 | L214: =IFERROR(IF(SUM($C214:K214)<$X214,$X214*(1/$Y214),0),0)*L$17 -> 0 | M214: =IFERROR(IF(SUM($C214:L214)<$X214,$X214*(1/$Y214),0),0)*M$17 -> 0 | N214: =IFERROR(IF(SUM($C214:M214)<$X214,$X214*(1/$Y214),0),0)*N$17 -> 0 | O214: =IFERROR(IF(SUM($C214:N214)<$X214,$X214*(1/$Y214),0),0)*O$17 -> 0 | P214: =IFERROR(IF(SUM($C214:O214)<$X214,$X214*(1/$Y214),0),0)*P$17 -> 0 | Q214: =IFERROR(IF(SUM($C214:P214)<$X214,$X214*(1/$Y214),0),0)*Q$17 -> 0 | R214: =IFERROR(IF(SUM($C214:Q214)<$X214,$X214*(1/$Y214),0),0)*R$17 -> 0 | S214: =IFERROR(IF(SUM($C214:R214)<$X214,$X214*(1/$Y214),0),0)*S$17 -> 0 | T214: =IFERROR(IF(SUM($C214:S214)<$X214,$X214*(1/$Y214),0),0)*T$17 -> 0 | U214: =IFERROR(IF(SUM($C214:T214)<$X214,$X214*(1/$Y214),0),0)*U$17 -> 0 | V214: =IFERROR(IF(SUM($C214:U214)<$X214,$X214*(1/$Y214),0),0)*V$17 -> 0 | X214: 2.856 | Y214: 4
B215: 5 | G215: =IFERROR(IF(SUM($C215:F215)<$X215,$X215*(1/$Y215),0),0)*G$17 -> 0.714 | H215: =IFERROR(IF(SUM($C215:G215)<$X215,$X215*(1/$Y215),0),0)*H$17 -> 0.714 | I215: =IFERROR(IF(SUM($C215:H215)<$X215,$X215*(1/$Y215),0),0)*I$17 -> 0.714 | J215: =IFERROR(IF(SUM($C215:I215)<$X215,$X215*(1/$Y215),0),0)*J$17 -> 0.714 | K215: =IFERROR(IF(SUM($C215:J215)<$X215,$X215*(1/$Y215),0),0)*K$17 -> 0 | L215: =IFERROR(IF(SUM($C215:K215)<$X215,$X215*(1/$Y215),0),0)*L$17 -> 0 | M215: =IFERROR(IF(SUM($C215:L215)<$X215,$X215*(1/$Y215),0),0)*M$17 -> 0 | N215: =IFERROR(IF(SUM($C215:M215)<$X215,$X215*(1/$Y215),0),0)*N$17 -> 0 | O215: =IFERROR(IF(SUM($C215:N215)<$X215,$X215*(1/$Y215),0),0)*O$17 -> 0 | P215: =IFERROR(IF(SUM($C215:O215)<$X215,$X215*(1/$Y215),0),0)*P$17 -> 0 | Q215: =IFERROR(IF(SUM($C215:P215)<$X215,$X215*(1/$Y215),0),0)*Q$17 -> 0 | R215: =IFERROR(IF(SUM($C215:Q215)<$X215,$X215*(1/$Y215),0),0)*R$17 -> 0 | S215: =IFERROR(IF(SUM($C215:R215)<$X215,$X215*(1/$Y215),0),0)*S$17 -> 0 | T215: =IFERROR(IF(SUM($C215:S215)<$X215,$X215*(1/$Y215),0),0)*T$17 -> 0 | U215: =IFERROR(IF(SUM($C215:T215)<$X215,$X215*(1/$Y215),0),0)*U$17 -> 0 | V215: =IFERROR(IF(SUM($C215:U215)<$X215,$X215*(1/$Y215),0),0)*V$17 -> 0 | X215: 2.856 | Y215: 4
B216: 6 | H216: =IFERROR(IF(SUM($C216:G216)<$X216,$X216*(1/$Y216),0),0)*H$17 -> 0.714 | I216: =IFERROR(IF(SUM($C216:H216)<$X216,$X216*(1/$Y216),0),0)*I$17 -> 0.714 | J216: =IFERROR(IF(SUM($C216:I216)<$X216,$X216*(1/$Y216),0),0)*J$17 -> 0.714 | K216: =IFERROR(IF(SUM($C216:J216)<$X216,$X216*(1/$Y216),0),0)*K$17 -> 0.714 | L216: =IFERROR(IF(SUM($C216:K216)<$X216,$X216*(1/$Y216),0),0)*L$17 -> 0 | M216: =IFERROR(IF(SUM($C216:L216)<$X216,$X216*(1/$Y216),0),0)*M$17 -> 0 | N216: =IFERROR(IF(SUM($C216:M216)<$X216,$X216*(1/$Y216),0),0)*N$17 -> 0 | O216: =IFERROR(IF(SUM($C216:N216)<$X216,$X216*(1/$Y216),0),0)*O$17 -> 0 | P216: =IFERROR(IF(SUM($C216:O216)<$X216,$X216*(1/$Y216),0),0)*P$17 -> 0 | Q216: =IFERROR(IF(SUM($C216:P216)<$X216,$X216*(1/$Y216),0),0)*Q$17 -> 0 | R216: =IFERROR(IF(SUM($C216:Q216)<$X216,$X216*(1/$Y216),0),0)*R$17 -> 0 | S216: =IFERROR(IF(SUM($C216:R216)<$X216,$X216*(1/$Y216),0),0)*S$17 -> 0 | T216: =IFERROR(IF(SUM($C216:S216)<$X216,$X216*(1/$Y216),0),0)*T$17 -> 0 | U216: =IFERROR(IF(SUM($C216:T216)<$X216,$X216*(1/$Y216),0),0)*U$17 -> 0 | V216: =IFERROR(IF(SUM($C216:U216)<$X216,$X216*(1/$Y216),0),0)*V$17 -> 0 | X216: 2.856 | Y216: 4
B217: 7 | I217: =IFERROR(IF(SUM($C217:H217)<$X217,$X217*(1/$Y217),0),0)*I$17 -> 0.714 | J217: =IFERROR(IF(SUM($C217:I217)<$X217,$X217*(1/$Y217),0),0)*J$17 -> 0.714 | K217: =IFERROR(IF(SUM($C217:J217)<$X217,$X217*(1/$Y217),0),0)*K$17 -> 0.714 | L217: =IFERROR(IF(SUM($C217:K217)<$X217,$X217*(1/$Y217),0),0)*L$17 -> 0.714 | M217: =IFERROR(IF(SUM($C217:L217)<$X217,$X217*(1/$Y217),0),0)*M$17 -> 0 | N217: =IFERROR(IF(SUM($C217:M217)<$X217,$X217*(1/$Y217),0),0)*N$17 -> 0 | O217: =IFERROR(IF(SUM($C217:N217)<$X217,$X217*(1/$Y217),0),0)*O$17 -> 0 | P217: =IFERROR(IF(SUM($C217:O217)<$X217,$X217*(1/$Y217),0),0)*P$17 -> 0 | Q217: =IFERROR(IF(SUM($C217:P217)<$X217,$X217*(1/$Y217),0),0)*Q$17 -> 0 | R217: =IFERROR(IF(SUM($C217:Q217)<$X217,$X217*(1/$Y217),0),0)*R$17 -> 0 | S217: =IFERROR(IF(SUM($C217:R217)<$X217,$X217*(1/$Y217),0),0)*S$17 -> 0 | T217: =IFERROR(IF(SUM($C217:S217)<$X217,$X217*(1/$Y217),0),0)*T$17 -> 0 | U217: =IFERROR(IF(SUM($C217:T217)<$X217,$X217*(1/$Y217),0),0)*U$17 -> 0 | V217: =IFERROR(IF(SUM($C217:U217)<$X217,$X217*(1/$Y217),0),0)*V$17 -> 0 | X217: 2.856 | Y217: 4
B218: 8 | J218: =IFERROR(IF(SUM($C218:I218)<$X218,$X218*(1/$Y218),0),0)*J$17 -> 0.714 | K218: =IFERROR(IF(SUM($C218:J218)<$X218,$X218*(1/$Y218),0),0)*K$17 -> 0.714 | L218: =IFERROR(IF(SUM($C218:K218)<$X218,$X218*(1/$Y218),0),0)*L$17 -> 0.714 | M218: =IFERROR(IF(SUM($C218:L218)<$X218,$X218*(1/$Y218),0),0)*M$17 -> 0.714 | N218: =IFERROR(IF(SUM($C218:M218)<$X218,$X218*(1/$Y218),0),0)*N$17 -> 0 | O218: =IFERROR(IF(SUM($C218:N218)<$X218,$X218*(1/$Y218),0),0)*O$17 -> 0 | P218: =IFERROR(IF(SUM($C218:O218)<$X218,$X218*(1/$Y218),0),0)*P$17 -> 0 | Q218: =IFERROR(IF(SUM($C218:P218)<$X218,$X218*(1/$Y218),0),0)*Q$17 -> 0 | R218: =IFERROR(IF(SUM($C218:Q218)<$X218,$X218*(1/$Y218),0),0)*R$17 -> 0 | S218: =IFERROR(IF(SUM($C218:R218)<$X218,$X218*(1/$Y218),0),0)*S$17 -> 0 | T218: =IFERROR(IF(SUM($C218:S218)<$X218,$X218*(1/$Y218),0),0)*T$17 -> 0 | U218: =IFERROR(IF(SUM($C218:T218)<$X218,$X218*(1/$Y218),0),0)*U$17 -> 0 | V218: =IFERROR(IF(SUM($C218:U218)<$X218,$X218*(1/$Y218),0),0)*V$17 -> 0 | X218: 2.856 | Y218: 4
B219: 9 | K219: =IFERROR(IF(SUM($C219:J219)<$X219,$X219*(1/$Y219),0),0)*K$17 -> 0.714 | L219: =IFERROR(IF(SUM($C219:K219)<$X219,$X219*(1/$Y219),0),0)*L$17 -> 0.714 | M219: =IFERROR(IF(SUM($C219:L219)<$X219,$X219*(1/$Y219),0),0)*M$17 -> 0.714 | N219: =IFERROR(IF(SUM($C219:M219)<$X219,$X219*(1/$Y219),0),0)*N$17 -> 0.714 | O219: =IFERROR(IF(SUM($C219:N219)<$X219,$X219*(1/$Y219),0),0)*O$17 -> 0 | P219: =IFERROR(IF(SUM($C219:O219)<$X219,$X219*(1/$Y219),0),0)*P$17 -> 0 | Q219: =IFERROR(IF(SUM($C219:P219)<$X219,$X219*(1/$Y219),0),0)*Q$17 -> 0 | R219: =IFERROR(IF(SUM($C219:Q219)<$X219,$X219*(1/$Y219),0),0)*R$17 -> 0 | S219: =IFERROR(IF(SUM($C219:R219)<$X219,$X219*(1/$Y219),0),0)*S$17 -> 0 | T219: =IFERROR(IF(SUM($C219:S219)<$X219,$X219*(1/$Y219),0),0)*T$17 -> 0 | U219: =IFERROR(IF(SUM($C219:T219)<$X219,$X219*(1/$Y219),0),0)*U$17 -> 0 | V219: =IFERROR(IF(SUM($C219:U219)<$X219,$X219*(1/$Y219),0),0)*V$17 -> 0 | X219: 2.856 | Y219: 4
... 222 more rows

Sheet 05. NIG
B6: NIG (R$ Milhões)
B8: PRAZO | C8: =IF(C10<=('01. PC'!$C$18),1,0) -> 1 | D8: =IF(D10<=('01. PC'!$C$18),1,0) -> 1 | E8: =IF(E10<=('01. PC'!$C$18),1,0) -> 1 | F8: =IF(F10<=('01. PC'!$C$18),1,0) -> 1 | G8: =IF(G10<=('01. PC'!$C$18),1,0) -> 1 | H8: =IF(H10<=('01. PC'!$C$18),1,0) -> 1 | I8: =IF(I10<=('01. PC'!$C$18),1,0) -> 1 | J8: =IF(J10<=('01. PC'!$C$18),1,0) -> 1 | K8: =IF(K10<=('01. PC'!$C$18),1,0) -> 1 | L8: =IF(L10<=('01. PC'!$C$18),1,0) -> 1 | M8: =IF(M10<=('01. PC'!$C$18),1,0) -> 1 | N8: =IF(N10<=('01. PC'!$C$18),1,0) -> 1 | O8: =IF(O10<=('01. PC'!$C$18),1,0) -> 1 | P8: =IF(P10<=('01. PC'!$C$18),1,0) -> 1 | Q8: =IF(Q10<=('01. PC'!$C$18),1,0) -> 1 | R8: =IF(R10<=('01. PC'!$C$18),1,0) -> 1 | S8: =IF(S10<=('01. PC'!$C$18),1,0) -> 1 | T8: =IF(T10<=('01. PC'!$C$18),1,0) -> 1 | U8: =IF(U10<=('01. PC'!$C$18),1,0) -> 1 | V8: =IF(V10<=('01. PC'!$C$18),1,0) -> 1
B10: ANO | C10: 1 | D10: =C10+1 -> 2 | E10: =D10+1 -> 3 | F10: 4 | G10: 5 | H10: 6 | I10: 7 | J10: 8 | K10: 9 | L10: 10 | M10: 11 | N10: 12 | O10: 13 | P10: 14 | Q10: 15 | R10: 16 | S10: 17 | T10: 18 | U10: 19 | V10: 20 | X10: TOTAL
B12: OPEX TOTAL | C12: =-(C13+C14)*C$8 -> -34.81094784 | D12: =-(D13+D14)*D$8 -> -34.55915018 | E12: -34.30735252 | F12: -34.05555485 | G12: -33.80375719 | H12: -33.55195953 | I12: -33.54505392 | J12: -33.54505392 | K12: -33.54505392 | L12: -33.54505392 | M12: -33.54505392 | N12: -38.94505392 | O12: -33.54505392 | P12: -33.54505392 | Q12: -33.54505392 | R12: -33.54505392 | S12: -33.54505392 | T12: -33.54505392 | U12: -33.54505392 | V12: -33.54505392 | X12: =SUM(C12:V12) -> -680.119477
B13: Custos Variaveis | C13: ='07 (b). OPEX_LOTE2'!C10 -> 26.42151845 | D13: ='07 (b). OPEX_LOTE2'!D10 -> 26.17459632 | E13: ='07 (b). OPEX_LOTE2'!E10 -> 25.9276742 | F13: ='07 (b). OPEX_LOTE2'!F10 -> 25.68075207 | G13: ='07 (b). OPEX_LOTE2'!G10 -> 25.43382994 | H13: ='07 (b). OPEX_LOTE2'!H10 -> 25.18690781 | I13: ='07 (b). OPEX_LOTE2'!I10 -> 25.18010425 | J13: ='07 (b). OPEX_LOTE2'!J10 -> 25.18010425 | K13: ='07 (b). OPEX_LOTE2'!K10 -> 25.18010425 | L13: ='07 (b). OPEX_LOTE2'!L10 -> 25.18010425 | M13: ='07 (b). OPEX_LOTE2'!M10 -> 25.18010425 | N13: ='07 (b). OPEX_LOTE2'!N10 -> 25.18010425 | O13: ='07 (b). OPEX_LOTE2'!O10 -> 25.18010425 | P13: ='07 (b). OPEX_LOTE2'!P10 -> 25.18010425 | Q13: ='07 (b). OPEX_LOTE2'!Q10 -> 25.18010425 | R13: ='07 (b). OPEX_LOTE2'!R10 -> 25.18010425 | S13: ='07 (b). OPEX_LOTE2'!S10 -> 25.18010425 | T13: ='07 (b). OPEX_LOTE2'!T10 -> 25.18010425 | U13: ='07 (b). OPEX_LOTE2'!U10 -> 25.18010425 | V13: ='07 (b). OPEX_LOTE2'!V10 -> 25.18010425 | X13: =SUM(C13:V13) -> 507.3467383
B14: Custos Fixos | C14: ='07 (b). OPEX_LOTE2'!C220 -> 8.389429384 | D14: ='07 (b). OPEX_LOTE2'!D220 -> 8.384553852 | E14: ='07 (b). OPEX_LOTE2'!E220 -> 8.379678319 | F14: ='07 (b). OPEX_LOTE2'!F220 -> 8.374802787 | G14: ='07 (b). OPEX_LOTE2'!G220 -> 8.369927255 | H14: ='07 (b). OPEX_LOTE2'!H220 -> 8.365051722 | I14: ='07 (b). OPEX_LOTE2'!I220 -> 8.364949669 | J14: ='07 (b). OPEX_LOTE2'!J220 -> 8.364949669 | K14: ='07 (b). OPEX_LOTE2'!K220 -> 8.364949669 | L14: ='07 (b). OPEX_LOTE2'!L220 -> 8.364949669 | M14: ='07 (b). OPEX_LOTE2'!M220 -> 8.364949669 | N14: ='07 (b). OPEX_LOTE2'!N220 -> 13.76494967 | O14: ='07 (b). OPEX_LOTE2'!O220 -> 8.364949669 | P14: ='07 (b). OPEX_LOTE2'!P220 -> 8.364949669 | Q14: ='07 (b). OPEX_LOTE2'!Q220 -> 8.364949669 | R14: ='07 (b). OPEX_LOTE2'!R220 -> 8.364949669 | S14: ='07 (b). OPEX_LOTE2'!S220 -> 8.364949669 | T14: ='07 (b). OPEX_LOTE2'!T220 -> 8.364949669 | U14: ='07 (b). OPEX_LOTE2'!U220 -> 8.364949669 | V14: ='07 (b). OPEX_LOTE2'!V220 -> 8.364949669 | X14: =SUM(C14:V14) -> 172.7727387
B16: NIG - Real | C16: =IF(D$8=1,(C12/12)*'01. PC'!$C$16-SUM(B16:$B16),IF(C$8=1,-SUM(B16:$C16),0)) -> -1.45045616 | D16: =IF(E$8=1,(D12/12)*'01. PC'!$C$16-SUM($C16:C16),IF(D$8=1,-SUM($C16:C16),0)) -> 0.01049156918 | E16: =IF(F$8=1,(E12/10)*'01. PC'!$C$16-SUM($C16:D16),IF(E$8=1,-SUM($C16:D16),0)) -> -0.2754030351 | F16: =IF(G$8=1,(F12/10)*'01. PC'!$C$16-SUM($C16:E16),IF(F$8=1,-SUM($C16:E16),0)) -> 0.01258988302 | G16: =IF(H$8=1,(G12/10)*'01. PC'!$C$16-SUM($C16:F16),IF(G$8=1,-SUM($C16:F16),0)) -> 0.01258988302 | H16: =IF(I$8=1,(H12/10)*'01. PC'!$C$16-SUM($C16:G16),IF(H$8=1,-SUM($C16:G16),0)) -> 0.01258988302 | I16: =IF(J$8=1,(I12/10)*'01. PC'!$C$16-SUM($C16:H16),IF(I$8=1,-SUM($C16:H16),0)) -> 0.00034528067 | J16: =IF(K$8=1,(J12/10)*'01. PC'!$C$16-SUM($C16:I16),IF(J$8=1,-SUM($C16:I16),0)) -> 0 | K16: =IF(L$8=1,(K12/10)*'01. PC'!$C$16-SUM($C16:J16),IF(K$8=1,-SUM($C16:J16),0)) -> 0 | L16: =IF(M$8=1,(L12/10)*'01. PC'!$C$16-SUM($C16:K16),IF(L$8=1,-SUM($C16:K16),0)) -> 0 | M16: =IF(N$8=1,(M12/10)*'01. PC'!$C$16-SUM($C16:L16),IF(M$8=1,-SUM($C16:L16),0)) -> 0 | N16: =IF(O$8=1,(N12/10)*'01. PC'!$C$16-SUM($C16:M16),IF(N$8=1,-SUM($C16:M16),0)) -> -0.27 | O16: =IF(P$8=1,(O12/10)*'01. PC'!$C$16-SUM($C16:N16),IF(O$8=1,-SUM($C16:N16),0)) -> 0.27 | P16: =IF(Q$8=1,(P12/10)*'01. PC'!$C$16-SUM($C16:O16),IF(P$8=1,-SUM($C16:O16),0)) -> 0 | Q16: =IF(R$8=1,(Q12/10)*'01. PC'!$C$16-SUM($C16:P16),IF(Q$8=1,-SUM($C16:P16),0)) -> 0 | R16: =IF(S$8=1,(R12/10)*'01. PC'!$C$16-SUM($C16:Q16),IF(R$8=1,-SUM($C16:Q16),0)) -> 0 | S16: =IF(T$8=1,(S12/10)*'01. PC'!$C$16-SUM($C16:R16),IF(S$8=1,-SUM($C16:R16),0)) -> 0 | T16: =IF(U$8=1,(T12/10)*'01. PC'!$C$16-SUM($C16:S16),IF(T$8=1,-SUM($C16:S16),0)) -> 0 | U16: =IF(V$8=1,(U12/10)*'01. PC'!$C$16-SUM($C16:T16),IF(U$8=1,-SUM($C16:T16),0)) -> 0 | V16: =IF(W10=1,(V12/10)*'01. PC'!$C$16-SUM($C16:U16),IF(V$8=1,-SUM($C16:U16),0)) -> 1.677252696 | X16: =SUM(C16:V16) -> 0
B18: Perda inflacionária | D18: =(C12*('01. PC'!D83/(1+'01. PC'!D83)))*D8*('01. PC'!$C$16/12) -> -0.04904924212 | E18: =(D12*('01. PC'!E83/(1+'01. PC'!E83)))*E8*('01. PC'!$C$16/12) -> -0.04194071623 | F18: =(E12*('01. PC'!F83/(1+'01. PC'!F83)))*F8*('01. PC'!$C$16/12) -> -0.04163513655 | G18: =(F12*('01. PC'!G83/(1+'01. PC'!G83)))*G8*('01. PC'!$C$16/12) -> -0.04132955686 | H18: =(G12*('01. PC'!H83/(1+'01. PC'!H83)))*H8*('01. PC'!$C$16/12) -> -0.04102397718 | I18: =(H12*('01. PC'!I83/(1+'01. PC'!I83)))*I8*('01. PC'!$C$16/12) -> -0.04071839749 | J18: =(I12*('01. PC'!J83/(1+'01. PC'!J83)))*J8*('01. PC'!$C$16/12) -> -0.04071001689 | K18: =(J12*('01. PC'!K83/(1+'01. PC'!K83)))*K8*('01. PC'!$C$16/12) -> -0.04071001689 | L18: =(K12*('01. PC'!L83/(1+'01. PC'!L83)))*L8*('01. PC'!$C$16/12) -> -0.04071001689 | M18: =(L12*('01. PC'!M83/(1+'01. PC'!M83)))*M8*('01. PC'!$C$16/12) -> -0.04071001689 | N18: =(M12*('01. PC'!N83/(1+'01. PC'!N83)))*N8*('01. PC'!$C$16/12) -> -0.04071001689 | O18: =(N12*('01. PC'!O83/(1+'01. PC'!O83)))*O8*('01. PC'!$C$16/12) -> -0.04726341495 | P18: =(O12*('01. PC'!P83/(1+'01. PC'!P83)))*P8*('01. PC'!$C$16/12) -> -0.04071001689 | Q18: =(P12*('01. PC'!Q83/(1+'01. PC'!Q83)))*Q8*('01. PC'!$C$16/12) -> -0.04071001689 | R18: =(Q12*('01. PC'!R83/(1+'01. PC'!R83)))*R8*('01. PC'!$C$16/12) -> -0.04071001689 | S18: =(R12*('01. PC'!S83/(1+'01. PC'!S83)))*S8*('01. PC'!$C$16/12) -> -0.04071001689 | T18: =(S12*('01. PC'!T83/(1+'01. PC'!T83)))*T8*('01. PC'!$C$16/12) -> -0.04071001689 | U18: =(T12*('01. PC'!U83/(1+'01. PC'!U83)))*U8*('01. PC'!$C$16/12) -> -0.04071001689 | V18: =(U12*('01. PC'!V83/(1+'01. PC'!V83)))*V8*('01. PC'!$C$16/12) -> -0.04071001689 | X18: =SUM(C18:V18) -> -0.7914806441
B20: NIG Real com Perda inflacionária | C20: =C16+C18 -> -1.45045616 | D20: =D16+D18 -> -0.03855767294 | E20: -0.3173437513 | F20: -0.02904525353 | G20: -0.02873967385 | H20: -0.02843409416 | I20: -0.04037311682 | J20: -0.04071001689 | K20: -0.04071001689 | L20: -0.04071001689 | M20: -0.04071001689 | N20: -0.3107100169 | O20: 0.222736585 | P20: -0.04071001689 | Q20: -0.04071001689 | R20: -0.04071001689 | S20: -0.04071001689 | T20: -0.04071001689 | U20: -0.04071001689 | V20: 1.636542679 | X20: =SUM(C20:V20) -> -0.7914806441

Sheet 6. (a). CAPEX_LOTE1
B7: FROTA - TOTAL | Z7: PREÇO
B8: TIPO | D8: 1 | E8: =D8+1 -> 2 | F8: =E8+1 -> 3 | G8: 4 | H8: 5 | I8: 6 | J8: 7 | K8: 8 | L8: 9 | M8: 10 | N8: 11 | O8: 12 | P8: 13 | Q8: 14 | R8: 15 | S8: 16 | T8: 17 | U8: 18 | V8: 19 | W8: 20 | Z8: Carregadores Elétricos | AA8: 150000
B9: BÁSICO | D9: =COUNT(D23:D79) -> 57 | E9: =COUNT(E23:E79) -> 57 | F9: 57 | G9: 57 | H9: 57 | I9: 57 | J9: 57 | K9: 57 | L9: 57 | M9: 57 | N9: 57 | O9: 57 | P9: 57 | Q9: 57 | R9: 57 | S9: 57 | T9: 57 | U9: 57 | V9: 57 | W9: 57 | Z9: Placas Solares | AA9: 300000
B10: I.M Básico | D10: =AVERAGE(D23:D79) -> 4.263157895 | E10: =AVERAGE(E23:E79) -> 4.263157895 | F10: 4.263157895 | G10: 4.263157895 | H10: 4.263157895 | I10: 4.263157895 | J10: 4.263157895 | K10: 4.263157895 | L10: 4.263157895 | M10: 4.263157895 | N10: 4.263157895 | O10: 4.263157895 | P10: 4.263157895 | Q10: 4.263157895 | R10: 4.263157895 | S10: 4.263157895 | T10: 4.263157895 | U10: 4.263157895 | V10: 4.263157895 | W10: 5.263157895
B11: MIDI | D11: =COUNT(D84:D94) -> 11 | E11: =COUNT(E84:E94) -> 11 | F11: 11 | G11: 11 | H11: 11 | I11: 11 | J11: 11 | K11: 11 | L11: 11 | M11: 11 | N11: 11 | O11: 11 | P11: 11 | Q11: 11 | R11: 11 | S11: 11 | T11: 11 | U11: 11 | V11: 11 | W11: 11
B12: I.M MIDI | D12: =AVERAGE(D84:D94) -> 5 | E12: =AVERAGE(E84:E94) -> 5 | F12: 5 | G12: 5 | H12: 5 | I12: 5 | J12: 5 | K12: 5 | L12: 5 | M12: 5 | N12: 5 | O12: 5 | P12: 5 | Q12: 5 | R12: 5 | S12: 5 | T12: 5 | U12: 5 | V12: 5 | W12: 5
B13: ARTICUL. DIESEL | D13: =D109 -> 10 | E13: =E109 -> 9 | F13: 8 | G13: 7 | H13: 6 | I13: 6 | J13: 6 | K13: 6 | L13: 6 | M13: 6 | N13: 6 | O13: 6 | P13: 6 | Q13: 6 | R13: 6 | S13: 6 | T13: 6 | U13: 6 | V13: 6 | W13: 6
B14: I.M Art.Die | D14: =AVERAGE(D99:D108) -> 4.5 | E14: =AVERAGE(E99:E108) -> 5 | F14: 4.375 | G14: 4.857142857 | H14: 4 | I14: 5 | J14: 4.5 | K14: 5.5 | L14: 4.833333333 | M14: 5.833333333 | N14: 5 | O14: 6 | P14: 5 | Q14: 6 | R14: 5 | S14: 6 | T14: 5 | U14: 6 | V14: 5 | W14: 6
B15: ARTICUL. ELÉTRICO | D15: =D119 -> 0 | E15: =E119 -> 1 | F15: 2 | G15: 3 | H15: 4 | I15: 5 | J15: 6 | K15: 6 | L15: 6 | M15: 6 | N15: 6 | O15: 6 | P15: 6 | Q15: 6 | R15: 6 | S15: 6 | T15: 6 | U15: 6 | V15: 6 | W15: 6
B16: I.M Art.Ele | D16: =IFERROR(AVERAGE(D113:D118),0) -> 0 | E16: =IFERROR(AVERAGE(E113:E118),0) -> 0 | F16: 0.5 | G16: 1 | H16: 1.5 | I16: 2 | J16: 2.5 | K16: 3.5 | L16: 4.5 | M16: 5.5 | N16: 6.5 | O16: 7.5 | P16: 8.5 | Q16: 9.5 | R16: 10.5 | S16: 11.5 | T16: 10 | U16: 8.5 | V16: 7 | W16: 5.5
B17: PADRON DIESEL | D17: =D127 -> 0 | E17: =E127 -> 0 | F17: 0 | G17: 0 | H17: 0 | I17: 0 | J17: 0 | K17: 0 | L17: 0 | M17: 0 | N17: 0 | O17: 0 | P17: 0 | Q17: 0 | R17: 0 | S17: 0 | T17: 0 | U17: 0 | V17: 0 | W17: 0
B18: PADRON ELÉTRICO | D18: =D135 -> 0 | E18: =E135 -> 0 | F18: 0 | G18: 0 | H18: 0 | I18: 0 | J18: 0 | K18: 0 | L18: 0 | M18: 0 | N18: 0 | O18: 0 | P18: 0 | Q18: 0 | R18: 0 | S18: 0 | T18: 0 | U18: 0 | V18: 0 | W18: 0
B19: TOTAL | D19: =SUM(D9,D11,D13,D15,D17,D18) -> 78 | E19: =SUM(E9,E11,E13,E15,E17,E18) -> 78 | F19: 78 | G19: 78 | H19: 78 | I19: 79 | J19: 80 | K19: 80 | L19: 80 | M19: 80 | N19: 80 | O19: 80 | P19: 80 | Q19: 80 | R19: 80 | S19: 80 | T19: 80 | U19: 80 | V19: 80 | W19: 80
B21: IDADE - BÁSICO
B22: TIPO | C22: QUANT. | D22: 1 | E22: =D22+1 -> 2 | F22: =E22+1 -> 3 | G22: 4 | H22: 5 | I22: 6 | J22: 7 | K22: 8 | L22: 9 | M22: 10 | N22: 11 | O22: 12 | P22: 13 | Q22: 14 | R22: 15 | S22: 16 | T22: 17 | U22: 18 | V22: 19 | W22: 20
B23: BÁSICO | C23: 1 | D23: 0 | E23: =IF(D23+1>'01. PC'!$C$37,0,D23+1) -> 1 | F23: =IF(E23+1>'01. PC'!$C$37,0,E23+1) -> 2 | G23: =IF(F23+1>'01. PC'!$C$37,0,F23+1) -> 3 | H23: =IF(G23+1>'01. PC'!$C$37,0,G23+1) -> 4 | I23: =IF(H23+1>'01. PC'!$C$37,0,H23+1) -> 5 | J23: =IF(I23+1>'01. PC'!$C$37,0,I23+1) -> 6 | K23: =IF(J23+1>'01. PC'!$C$37,0,J23+1) -> 7 | L23: =IF(K23+1>'01. PC'!$C$37,0,K23+1) -> 8 | M23: =IF(L23+1>'01. PC'!$C$37,0,L23+1) -> 9 | N23: =IF(M23+1>'01. PC'!$C$37,0,M23+1) -> 0 | O23: =IF(N23+1>'01. PC'!$C$37,0,N23+1) -> 1 | P23: =IF(O23+1>'01. PC'!$C$37,0,O23+1) -> 2 | Q23: =IF(P23+1>'01. PC'!$C$37,0,P23+1) -> 3 | R23: =IF(Q23+1>'01. PC'!$C$37,0,Q23+1) -> 4 | S23: =IF(R23+1>'01. PC'!$C$37,0,R23+1) -> 5 | T23: =IF(S23+1>'01. PC'!$C$37,0,S23+1) -> 6 | U23: =IF(T23+1>'01. PC'!$C$37,0,T23+1) -> 7 | V23: =IF(U23+1>'01. PC'!$C$37,0,U23+1) -> 8 | W23: =IF(V23+1>'01. PC'!$C$37,0,V23+1) -> 9
B24: BÁSICO | C24: =C23+1 -> 2 | D24: 0 | E24: =IF(D24+1>'01. PC'!$C$37,0,D24+1) -> 1 | F24: =IF(E24+1>'01. PC'!$C$37,0,E24+1) -> 2 | G24: =IF(F24+1>'01. PC'!$C$37,0,F24+1) -> 3 | H24: =IF(G24+1>'01. PC'!$C$37,0,G24+1) -> 4 | I24: =IF(H24+1>'01. PC'!$C$37,0,H24+1) -> 5 | J24: =IF(I24+1>'01. PC'!$C$37,0,I24+1) -> 6 | K24: =IF(J24+1>'01. PC'!$C$37,0,J24+1) -> 7 | L24: =IF(K24+1>'01. PC'!$C$37,0,K24+1) -> 8 | M24: =IF(L24+1>'01. PC'!$C$37,0,L24+1) -> 9 | N24: =IF(M24+1>'01. PC'!$C$37,0,M24+1) -> 0 | O24: =IF(N24+1>'01. PC'!$C$37,0,N24+1) -> 1 | P24: =IF(O24+1>'01. PC'!$C$37,0,O24+1) -> 2 | Q24: =IF(P24+1>'01. PC'!$C$37,0,P24+1) -> 3 | R24: =IF(Q24+1>'01. PC'!$C$37,0,Q24+1) -> 4 | S24: =IF(R24+1>'01. PC'!$C$37,0,R24+1) -> 5 | T24: =IF(S24+1>'01. PC'!$C$37,0,S24+1) -> 6 | U24: =IF(T24+1>'01. PC'!$C$37,0,T24+1) -> 7 | V24: =IF(U24+1>'01. PC'!$C$37,0,U24+1) -> 8 | W24: =IF(V24+1>'01. PC'!$C$37,0,V24+1) -> 9
B25: BÁSICO | C25: =C24+1 -> 3 | D25: 0 | E25: =IF(D25+1>'01. PC'!$C$37,0,D25+1) -> 1 | F25: =IF(E25+1>'01. PC'!$C$37,0,E25+1) -> 2 | G25: =IF(F25+1>'01. PC'!$C$37,0,F25+1) -> 3 | H25: =IF(G25+1>'01. PC'!$C$37,0,G25+1) -> 4 | I25: =IF(H25+1>'01. PC'!$C$37,0,H25+1) -> 5 | J25: =IF(I25+1>'01. PC'!$C$37,0,I25+1) -> 6 | K25: =IF(J25+1>'01. PC'!$C$37,0,J25+1) -> 7 | L25: =IF(K25+1>'01. PC'!$C$37,0,K25+1) -> 8 | M25: =IF(L25+1>'01. PC'!$C$37,0,L25+1) -> 9 | N25: =IF(M25+1>'01. PC'!$C$37,0,M25+1) -> 0 | O25: =IF(N25+1>'01. PC'!$C$37,0,N25+1) -> 1 | P25: =IF(O25+1>'01. PC'!$C$37,0,O25+1) -> 2 | Q25: =IF(P25+1>'01. PC'!$C$37,0,P25+1) -> 3 | R25: =IF(Q25+1>'01. PC'!$C$37,0,Q25+1) -> 4 | S25: =IF(R25+1>'01. PC'!$C$37,0,R25+1) -> 5 | T25: =IF(S25+1>'01. PC'!$C$37,0,S25+1) -> 6 | U25: =IF(T25+1>'01. PC'!$C$37,0,T25+1) -> 7 | V25: =IF(U25+1>'01. PC'!$C$37,0,U25+1) -> 8 | W25: =IF(V25+1>'01. PC'!$C$37,0,V25+1) -> 9
B26: BÁSICO | C26: 4 | D26: 0 | E26: =IF(D26+1>'01. PC'!$C$37,0,D26+1) -> 1 | F26: =IF(E26+1>'01. PC'!$C$37,0,E26+1) -> 2 | G26: =IF(F26+1>'01. PC'!$C$37,0,F26+1) -> 3 | H26: =IF(G26+1>'01. PC'!$C$37,0,G26+1) -> 4 | I26: =IF(H26+1>'01. PC'!$C$37,0,H26+1) -> 5 | J26: =IF(I26+1>'01. PC'!$C$37,0,I26+1) -> 6 | K26: =IF(J26+1>'01. PC'!$C$37,0,J26+1) -> 7 | L26: =IF(K26+1>'01. PC'!$C$37,0,K26+1) -> 8 | M26: 0 | N26: =IF(M26+1>'01. PC'!$C$37,0,M26+1) -> 1 | O26: =IF(N26+1>'01. PC'!$C$37,0,N26+1) -> 2 | P26: =IF(O26+1>'01. PC'!$C$37,0,O26+1) -> 3 | Q26: =IF(P26+1>'01. PC'!$C$37,0,P26+1) -> 4 | R26: =IF(Q26+1>'01. PC'!$C$37,0,Q26+1) -> 5 | S26: =IF(R26+1>'01. PC'!$C$37,0,R26+1) -> 6 | T26: =IF(S26+1>'01. PC'!$C$37,0,S26+1) -> 7 | U26: =IF(T26+1>'01. PC'!$C$37,0,T26+1) -> 8 | V26: =IF(U26+1>'01. PC'!$C$37,0,U26+1) -> 9 | W26: 10
B27: BÁSICO | C27: 5 | D27: 0 | E27: =IF(D27+1>'01. PC'!$C$37,0,D27+1) -> 1 | F27: =IF(E27+1>'01. PC'!$C$37,0,E27+1) -> 2 | G27: =IF(F27+1>'01. PC'!$C$37,0,F27+1) -> 3 | H27: =IF(G27+1>'01. PC'!$C$37,0,G27+1) -> 4 | I27: =IF(H27+1>'01. PC'!$C$37,0,H27+1) -> 5 | J27: =IF(I27+1>'01. PC'!$C$37,0,I27+1) -> 6 | K27: =IF(J27+1>'01. PC'!$C$37,0,J27+1) -> 7 | L27: =IF(K27+1>'01. PC'!$C$37,0,K27+1) -> 8 | M27: 0 | N27: =IF(M27+1>'01. PC'!$C$37,0,M27+1) -> 1 | O27: =IF(N27+1>'01. PC'!$C$37,0,N27+1) -> 2 | P27: =IF(O27+1>'01. PC'!$C$37,0,O27+1) -> 3 | Q27: =IF(P27+1>'01. PC'!$C$37,0,P27+1) -> 4 | R27: =IF(Q27+1>'01. PC'!$C$37,0,Q27+1) -> 5 | S27: =IF(R27+1>'01. PC'!$C$37,0,R27+1) -> 6 | T27: =IF(S27+1>'01. PC'!$C$37,0,S27+1) -> 7 | U27: =IF(T27+1>'01. PC'!$C$37,0,T27+1) -> 8 | V27: =IF(U27+1>'01. PC'!$C$37,0,U27+1) -> 9 | W27: 10
B28: BÁSICO | C28: 6 | D28: 0 | E28: =IF(D28+1>'01. PC'!$C$37,0,D28+1) -> 1 | F28: =IF(E28+1>'01. PC'!$C$37,0,E28+1) -> 2 | G28: =IF(F28+1>'01. PC'!$C$37,0,F28+1) -> 3 | H28: =IF(G28+1>'01. PC'!$C$37,0,G28+1) -> 4 | I28: =IF(H28+1>'01. PC'!$C$37,0,H28+1) -> 5 | J28: =IF(I28+1>'01. PC'!$C$37,0,I28+1) -> 6 | K28: =IF(J28+1>'01. PC'!$C$37,0,J28+1) -> 7 | L28: =IF(K28+1>'01. PC'!$C$37,0,K28+1) -> 8 | M28: 0 | N28: =IF(M28+1>'01. PC'!$C$37,0,M28+1) -> 1 | O28: =IF(N28+1>'01. PC'!$C$37,0,N28+1) -> 2 | P28: =IF(O28+1>'01. PC'!$C$37,0,O28+1) -> 3 | Q28: =IF(P28+1>'01. PC'!$C$37,0,P28+1) -> 4 | R28: =IF(Q28+1>'01. PC'!$C$37,0,Q28+1) -> 5 | S28: =IF(R28+1>'01. PC'!$C$37,0,R28+1) -> 6 | T28: =IF(S28+1>'01. PC'!$C$37,0,S28+1) -> 7 | U28: =IF(T28+1>'01. PC'!$C$37,0,T28+1) -> 8 | V28: =IF(U28+1>'01. PC'!$C$37,0,U28+1) -> 9 | W28: 10
B29: BÁSICO | C29: 7 | D29: 1 | E29: =IF(D29+1>'01. PC'!$C$37,0,D29+1) -> 2 | F29: =IF(E29+1>'01. PC'!$C$37,0,E29+1) -> 3 | G29: =IF(F29+1>'01. PC'!$C$37,0,F29+1) -> 4 | H29: =IF(G29+1>'01. PC'!$C$37,0,G29+1) -> 5 | I29: =IF(H29+1>'01. PC'!$C$37,0,H29+1) -> 6 | J29: =IF(I29+1>'01. PC'!$C$37,0,I29+1) -> 7 | K29: =IF(J29+1>'01. PC'!$C$37,0,J29+1) -> 8 | L29: =IF(K29+1>'01. PC'!$C$37,0,K29+1) -> 9 | M29: =IF(L29+1>'01. PC'!$C$37,0,L29+1) -> 0 | N29: =IF(M29+1>'01. PC'!$C$37,0,M29+1) -> 1 | O29: =IF(N29+1>'01. PC'!$C$37,0,N29+1) -> 2 | P29: =IF(O29+1>'01. PC'!$C$37,0,O29+1) -> 3 | Q29: =IF(P29+1>'01. PC'!$C$37,0,P29+1) -> 4 | R29: =IF(Q29+1>'01. PC'!$C$37,0,Q29+1) -> 5 | S29: =IF(R29+1>'01. PC'!$C$37,0,R29+1) -> 6 | T29: =IF(S29+1>'01. PC'!$C$37,0,S29+1) -> 7 | U29: =IF(T29+1>'01. PC'!$C$37,0,T29+1) -> 8 | V29: 0 | W29: =IF(V29+1>'01. PC'!$C$37,0,V29+1) -> 1
B30: BÁSICO | C30: 8 | D30: 1 | E30: =IF(D30+1>'01. PC'!$C$37,0,D30+1) -> 2 | F30: =IF(E30+1>'01. PC'!$C$37,0,E30+1) -> 3 | G30: =IF(F30+1>'01. PC'!$C$37,0,F30+1) -> 4 | H30: =IF(G30+1>'01. PC'!$C$37,0,G30+1) -> 5 | I30: =IF(H30+1>'01. PC'!$C$37,0,H30+1) -> 6 | J30: =IF(I30+1>'01. PC'!$C$37,0,I30+1) -> 7 | K30: =IF(J30+1>'01. PC'!$C$37,0,J30+1) -> 8 | L30: =IF(K30+1>'01. PC'!$C$37,0,K30+1) -> 9 | M30: =IF(L30+1>'01. PC'!$C$37,0,L30+1) -> 0 | N30: =IF(M30+1>'01. PC'!$C$37,0,M30+1) -> 1 | O30: =IF(N30+1>'01. PC'!$C$37,0,N30+1) -> 2 | P30: =IF(O30+1>'01. PC'!$C$37,0,O30+1) -> 3 | Q30: =IF(P30+1>'01. PC'!$C$37,0,P30+1) -> 4 | R30: =IF(Q30+1>'01. PC'!$C$37,0,Q30+1) -> 5 | S30: =IF(R30+1>'01. PC'!$C$37,0,R30+1) -> 6 | T30: =IF(S30+1>'01. PC'!$C$37,0,S30+1) -> 7 | U30: =IF(T30+1>'01. PC'!$C$37,0,T30+1) -> 8 | V30: 0 | W30: =IF(V30+1>'01. PC'!$C$37,0,V30+1) -> 1
B31: BÁSICO | C31: 9 | D31: 1 | E31: =IF(D31+1>'01. PC'!$C$37,0,D31+1) -> 2 | F31: =IF(E31+1>'01. PC'!$C$37,0,E31+1) -> 3 | G31: =IF(F31+1>'01. PC'!$C$37,0,F31+1) -> 4 | H31: =IF(G31+1>'01. PC'!$C$37,0,G31+1) -> 5 | I31: =IF(H31+1>'01. PC'!$C$37,0,H31+1) -> 6 | J31: =IF(I31+1>'01. PC'!$C$37,0,I31+1) -> 7 | K31: =IF(J31+1>'01. PC'!$C$37,0,J31+1) -> 8 | L31: =IF(K31+1>'01. PC'!$C$37,0,K31+1) -> 9 | M31: =IF(L31+1>'01. PC'!$C$37,0,L31+1) -> 0 | N31: =IF(M31+1>'01. PC'!$C$37,0,M31+1) -> 1 | O31: =IF(N31+1>'01. PC'!$C$37,0,N31+1) -> 2 | P31: =IF(O31+1>'01. PC'!$C$37,0,O31+1) -> 3 | Q31: =IF(P31+1>'01. PC'!$C$37,0,P31+1) -> 4 | R31: =IF(Q31+1>'01. PC'!$C$37,0,Q31+1) -> 5 | S31: =IF(R31+1>'01. PC'!$C$37,0,R31+1) -> 6 | T31: =IF(S31+1>'01. PC'!$C$37,0,S31+1) -> 7 | U31: =IF(T31+1>'01. PC'!$C$37,0,T31+1) -> 8 | V31: 0 | W31: =IF(V31+1>'01. PC'!$C$37,0,V31+1) -> 1
B32: BÁSICO | C32: 10 | D32: 1 | E32: =IF(D32+1>'01. PC'!$C$37,0,D32+1) -> 2 | F32: =IF(E32+1>'01. PC'!$C$37,0,E32+1) -> 3 | G32: =IF(F32+1>'01. PC'!$C$37,0,F32+1) -> 4 | H32: =IF(G32+1>'01. PC'!$C$37,0,G32+1) -> 5 | I32: =IF(H32+1>'01. PC'!$C$37,0,H32+1) -> 6 | J32: =IF(I32+1>'01. PC'!$C$37,0,I32+1) -> 7 | K32: =IF(J32+1>'01. PC'!$C$37,0,J32+1) -> 8 | L32: 0 | M32: =IF(L32+1>'01. PC'!$C$37,0,L32+1) -> 1 | N32: =IF(M32+1>'01. PC'!$C$37,0,M32+1) -> 2 | O32: =IF(N32+1>'01. PC'!$C$37,0,N32+1) -> 3 | P32: =IF(O32+1>'01. PC'!$C$37,0,O32+1) -> 4 | Q32: =IF(P32+1>'01. PC'!$C$37,0,P32+1) -> 5 | R32: =IF(Q32+1>'01. PC'!$C$37,0,Q32+1) -> 6 | S32: =IF(R32+1>'01. PC'!$C$37,0,R32+1) -> 7 | T32: =IF(S32+1>'01. PC'!$C$37,0,S32+1) -> 8 | U32: =IF(T32+1>'01. PC'!$C$37,0,T32+1) -> 9 | V32: =IF(U32+1>'01. PC'!$C$37,0,U32+1) -> 0 | W32: =IF(V32+1>'01. PC'!$C$37,0,V32+1) -> 1
B33: BÁSICO | C33: 11 | D33: 1 | E33: =IF(D33+1>'01. PC'!$C$37,0,D33+1) -> 2 | F33: =IF(E33+1>'01. PC'!$C$37,0,E33+1) -> 3 | G33: =IF(F33+1>'01. PC'!$C$37,0,F33+1) -> 4 | H33: =IF(G33+1>'01. PC'!$C$37,0,G33+1) -> 5 | I33: =IF(H33+1>'01. PC'!$C$37,0,H33+1) -> 6 | J33: =IF(I33+1>'01. PC'!$C$37,0,I33+1) -> 7 | K33: =IF(J33+1>'01. PC'!$C$37,0,J33+1) -> 8 | L33: 0 | M33: =IF(L33+1>'01. PC'!$C$37,0,L33+1) -> 1 | N33: =IF(M33+1>'01. PC'!$C$37,0,M33+1) -> 2 | O33: =IF(N33+1>'01. PC'!$C$37,0,N33+1) -> 3 | P33: =IF(O33+1>'01. PC'!$C$37,0,O33+1) -> 4 | Q33: =IF(P33+1>'01. PC'!$C$37,0,P33+1) -> 5 | R33: =IF(Q33+1>'01. PC'!$C$37,0,Q33+1) -> 6 | S33: =IF(R33+1>'01. PC'!$C$37,0,R33+1) -> 7 | T33: =IF(S33+1>'01. PC'!$C$37,0,S33+1) -> 8 | U33: =IF(T33+1>'01. PC'!$C$37,0,T33+1) -> 9 | V33: =IF(U33+1>'01. PC'!$C$37,0,U33+1) -> 0 | W33: =IF(V33+1>'01. PC'!$C$37,0,V33+1) -> 1
B34: BÁSICO | C34: 12 | D34: 1 | E34: =IF(D34+1>'01. PC'!$C$37,0,D34+1) -> 2 | F34: =IF(E34+1>'01. PC'!$C$37,0,E34+1) -> 3 | G34: =IF(F34+1>'01. PC'!$C$37,0,F34+1) -> 4 | H34: =IF(G34+1>'01. PC'!$C$37,0,G34+1) -> 5 | I34: =IF(H34+1>'01. PC'!$C$37,0,H34+1) -> 6 | J34: =IF(I34+1>'01. PC'!$C$37,0,I34+1) -> 7 | K34: =IF(J34+1>'01. PC'!$C$37,0,J34+1) -> 8 | L34: 0 | M34: =IF(L34+1>'01. PC'!$C$37,0,L34+1) -> 1 | N34: =IF(M34+1>'01. PC'!$C$37,0,M34+1) -> 2 | O34: =IF(N34+1>'01. PC'!$C$37,0,N34+1) -> 3 | P34: =IF(O34+1>'01. PC'!$C$37,0,O34+1) -> 4 | Q34: =IF(P34+1>'01. PC'!$C$37,0,P34+1) -> 5 | R34: =IF(Q34+1>'01. PC'!$C$37,0,Q34+1) -> 6 | S34: =IF(R34+1>'01. PC'!$C$37,0,R34+1) -> 7 | T34: =IF(S34+1>'01. PC'!$C$37,0,S34+1) -> 8 | U34: =IF(T34+1>'01. PC'!$C$37,0,T34+1) -> 9 | V34: =IF(U34+1>'01. PC'!$C$37,0,U34+1) -> 0 | W34: =IF(V34+1>'01. PC'!$C$37,0,V34+1) -> 1
B35: BÁSICO | C35: 13 | D35: 2 | E35: =IF(D35+1>'01. PC'!$C$37,0,D35+1) -> 3 | F35: =IF(E35+1>'01. PC'!$C$37,0,E35+1) -> 4 | G35: =IF(F35+1>'01. PC'!$C$37,0,F35+1) -> 5 | H35: =IF(G35+1>'01. PC'!$C$37,0,G35+1) -> 6 | I35: =IF(H35+1>'01. PC'!$C$37,0,H35+1) -> 7 | J35: =IF(I35+1>'01. PC'!$C$37,0,I35+1) -> 8 | K35: =IF(J35+1>'01. PC'!$C$37,0,J35+1) -> 9 | L35: =IF(K35+1>'01. PC'!$C$37,0,K35+1) -> 0 | M35: =IF(L35+1>'01. PC'!$C$37,0,L35+1) -> 1 | N35: =IF(M35+1>'01. PC'!$C$37,0,M35+1) -> 2 | O35: =IF(N35+1>'01. PC'!$C$37,0,N35+1) -> 3 | P35: =IF(O35+1>'01. PC'!$C$37,0,O35+1) -> 4 | Q35: =IF(P35+1>'01. PC'!$C$37,0,P35+1) -> 5 | R35: =IF(Q35+1>'01. PC'!$C$37,0,Q35+1) -> 6 | S35: =IF(R35+1>'01. PC'!$C$37,0,R35+1) -> 7 | T35: =IF(S35+1>'01. PC'!$C$37,0,S35+1) -> 8 | U35: 0 | V35: =IF(U35+1>'01. PC'!$C$37,0,U35+1) -> 1 | W35: =IF(V35+1>'01. PC'!$C$37,0,V35+1) -> 2
B36: BÁSICO | C36: 14 | D36: 2 | E36: =IF(D36+1>'01. PC'!$C$37,0,D36+1) -> 3 | F36: =IF(E36+1>'01. PC'!$C$37,0,E36+1) -> 4 | G36: =IF(F36+1>'01. PC'!$C$37,0,F36+1) -> 5 | H36: =IF(G36+1>'01. PC'!$C$37,0,G36+1) -> 6 | I36: =IF(H36+1>'01. PC'!$C$37,0,H36+1) -> 7 | J36: =IF(I36+1>'01. PC'!$C$37,0,I36+1) -> 8 | K36: =IF(J36+1>'01. PC'!$C$37,0,J36+1) -> 9 | L36: =IF(K36+1>'01. PC'!$C$37,0,K36+1) -> 0 | M36: =IF(L36+1>'01. PC'!$C$37,0,L36+1) -> 1 | N36: =IF(M36+1>'01. PC'!$C$37,0,M36+1) -> 2 | O36: =IF(N36+1>'01. PC'!$C$37,0,N36+1) -> 3 | P36: =IF(O36+1>'01. PC'!$C$37,0,O36+1) -> 4 | Q36: =IF(P36+1>'01. PC'!$C$37,0,P36+1) -> 5 | R36: =IF(Q36+1>'01. PC'!$C$37,0,Q36+1) -> 6 | S36: =IF(R36+1>'01. PC'!$C$37,0,R36+1) -> 7 | T36: =IF(S36+1>'01. PC'!$C$37,0,S36+1) -> 8 | U36: 0 | V36: =IF(U36+1>'01. PC'!$C$37,0,U36+1) -> 1 | W36: =IF(V36+1>'01. PC'!$C$37,0,V36+1) -> 2
B37: BÁSICO | C37: 15 | D37: 2 | E37: =IF(D37+1>'01. PC'!$C$37,0,D37+1) -> 3 | F37: =IF(E37+1>'01. PC'!$C$37,0,E37+1) -> 4 | G37: =IF(F37+1>'01. PC'!$C$37,0,F37+1) -> 5 | H37: =IF(G37+1>'01. PC'!$C$37,0,G37+1) -> 6 | I37: =IF(H37+1>'01. PC'!$C$37,0,H37+1) -> 7 | J37: =IF(I37+1>'01. PC'!$C$37,0,I37+1) -> 8 | K37: =IF(J37+1>'01. PC'!$C$37,0,J37+1) -> 9 | L37: =IF(K37+1>'01. PC'!$C$37,0,K37+1) -> 0 | M37: =IF(L37+1>'01. PC'!$C$37,0,L37+1) -> 1 | N37: =IF(M37+1>'01. PC'!$C$37,0,M37+1) -> 2 | O37: =IF(N37+1>'01. PC'!$C$37,0,N37+1) -> 3 | P37: =IF(O37+1>'01. PC'!$C$37,0,O37+1) -> 4 | Q37: =IF(P37+1>'01. PC'!$C$37,0,P37+1) -> 5 | R37: =IF(Q37+1>'01. PC'!$C$37,0,Q37+1) -> 6 | S37: =IF(R37+1>'01. PC'!$C$37,0,R37+1) -> 7 | T37: =IF(S37+1>'01. PC'!$C$37,0,S37+1) -> 8 | U37: 0 | V37: =IF(U37+1>'01. PC'!$C$37,0,U37+1) -> 1 | W37: =IF(V37+1>'01. PC'!$C$37,0,V37+1) -> 2
B38: BÁSICO | C38: 16 | D38: 2 | E38: =IF(D38+1>'01. PC'!$C$37,0,D38+1) -> 3 | F38: =IF(E38+1>'01. PC'!$C$37,0,E38+1) -> 4 | G38: =IF(F38+1>'01. PC'!$C$37,0,F38+1) -> 5 | H38: =IF(G38+1>'01. PC'!$C$37,0,G38+1) -> 6 | I38: =IF(H38+1>'01. PC'!$C$37,0,H38+1) -> 7 | J38: =IF(I38+1>'01. PC'!$C$37,0,I38+1) -> 8 | K38: 0 | L38: =IF(K38+1>'01. PC'!$C$37,0,K38+1) -> 1 | M38: =IF(L38+1>'01. PC'!$C$37,0,L38+1) -> 2 | N38: =IF(M38+1>'01. PC'!$C$37,0,M38+1) -> 3 | O38: =IF(N38+1>'01. PC'!$C$37,0,N38+1) -> 4 | P38: =IF(O38+1>'01. PC'!$C$37,0,O38+1) -> 5 | Q38: =IF(P38+1>'01. PC'!$C$37,0,P38+1) -> 6 | R38: =IF(Q38+1>'01. PC'!$C$37,0,Q38+1) -> 7 | S38: =IF(R38+1>'01. PC'!$C$37,0,R38+1) -> 8 | T38: =IF(S38+1>'01. PC'!$C$37,0,S38+1) -> 9 | U38: =IF(T38+1>'01. PC'!$C$37,0,T38+1) -> 0 | V38: =IF(U38+1>'01. PC'!$C$37,0,U38+1) -> 1 | W38: =IF(V38+1>'01. PC'!$C$37,0,V38+1) -> 2
B39: BÁSICO | C39: 17 | D39: 2 | E39: =IF(D39+1>'01. PC'!$C$37,0,D39+1) -> 3 | F39: =IF(E39+1>'01. PC'!$C$37,0,E39+1) -> 4 | G39: =IF(F39+1>'01. PC'!$C$37,0,F39+1) -> 5 | H39: =IF(G39+1>'01. PC'!$C$37,0,G39+1) -> 6 | I39: =IF(H39+1>'01. PC'!$C$37,0,H39+1) -> 7 | J39: =IF(I39+1>'01. PC'!$C$37,0,I39+1) -> 8 | K39: 0 | L39: =IF(K39+1>'01. PC'!$C$37,0,K39+1) -> 1 | M39: =IF(L39+1>'01. PC'!$C$37,0,L39+1) -> 2 | N39: =IF(M39+1>'01. PC'!$C$37,0,M39+1) -> 3 | O39: =IF(N39+1>'01. PC'!$C$37,0,N39+1) -> 4 | P39: =IF(O39+1>'01. PC'!$C$37,0,O39+1) -> 5 | Q39: =IF(P39+1>'01. PC'!$C$37,0,P39+1) -> 6 | R39: =IF(Q39+1>'01. PC'!$C$37,0,Q39+1) -> 7 | S39: =IF(R39+1>'01. PC'!$C$37,0,R39+1) -> 8 | T39: =IF(S39+1>'01. PC'!$C$37,0,S39+1) -> 9 | U39: =IF(T39+1>'01. PC'!$C$37,0,T39+1) -> 0 | V39: =IF(U39+1>'01. PC'!$C$37,0,U39+1) -> 1 | W39: =IF(V39+1>'01. PC'!$C$37,0,V39+1) -> 2
B40: BÁSICO | C40: 18 | D40: 2 | E40: =IF(D40+1>'01. PC'!$C$37,0,D40+1) -> 3 | F40: =IF(E40+1>'01. PC'!$C$37,0,E40+1) -> 4 | G40: =IF(F40+1>'01. PC'!$C$37,0,F40+1) -> 5 | H40: =IF(G40+1>'01. PC'!$C$37,0,G40+1) -> 6 | I40: =IF(H40+1>'01. PC'!$C$37,0,H40+1) -> 7 | J40: =IF(I40+1>'01. PC'!$C$37,0,I40+1) -> 8 | K40: 0 | L40: =IF(K40+1>'01. PC'!$C$37,0,K40+1) -> 1 | M40: =IF(L40+1>'01. PC'!$C$37,0,L40+1) -> 2 | N40: =IF(M40+1>'01. PC'!$C$37,0,M40+1) -> 3 | O40: =IF(N40+1>'01. PC'!$C$37,0,N40+1) -> 4 | P40: =IF(O40+1>'01. PC'!$C$37,0,O40+1) -> 5 | Q40: =IF(P40+1>'01. PC'!$C$37,0,P40+1) -> 6 | R40: =IF(Q40+1>'01. PC'!$C$37,0,Q40+1) -> 7 | S40: =IF(R40+1>'01. PC'!$C$37,0,R40+1) -> 8 | T40: =IF(S40+1>'01. PC'!$C$37,0,S40+1) -> 9 | U40: =IF(T40+1>'01. PC'!$C$37,0,T40+1) -> 0 | V40: =IF(U40+1>'01. PC'!$C$37,0,U40+1) -> 1 | W40: =IF(V40+1>'01. PC'!$C$37,0,V40+1) -> 2
B41: BÁSICO | C41: 19 | D41: 3 | E41: =IF(D41+1>'01. PC'!$C$37,0,D41+1) -> 4 | F41: =IF(E41+1>'01. PC'!$C$37,0,E41+1) -> 5 | G41: =IF(F41+1>'01. PC'!$C$37,0,F41+1) -> 6 | H41: =IF(G41+1>'01. PC'!$C$37,0,G41+1) -> 7 | I41: =IF(H41+1>'01. PC'!$C$37,0,H41+1) -> 8 | J41: =IF(I41+1>'01. PC'!$C$37,0,I41+1) -> 9 | K41: =IF(J41+1>'01. PC'!$C$37,0,J41+1) -> 0 | L41: =IF(K41+1>'01. PC'!$C$37,0,K41+1) -> 1 | M41: =IF(L41+1>'01. PC'!$C$37,0,L41+1) -> 2 | N41: =IF(M41+1>'01. PC'!$C$37,0,M41+1) -> 3 | O41: =IF(N41+1>'01. PC'!$C$37,0,N41+1) -> 4 | P41: =IF(O41+1>'01. PC'!$C$37,0,O41+1) -> 5 | Q41: =IF(P41+1>'01. PC'!$C$37,0,P41+1) -> 6 | R41: =IF(Q41+1>'01. PC'!$C$37,0,Q41+1) -> 7 | S41: =IF(R41+1>'01. PC'!$C$37,0,R41+1) -> 8 | T41: 0 | U41: =IF(T41+1>'01. PC'!$C$37,0,T41+1) -> 1 | V41: =IF(U41+1>'01. PC'!$C$37,0,U41+1) -> 2 | W41: =IF(V41+1>'01. PC'!$C$37,0,V41+1) -> 3
B42: BÁSICO | C42: 20 | D42: 3 | E42: =IF(D42+1>'01. PC'!$C$37,0,D42+1) -> 4 | F42: =IF(E42+1>'01. PC'!$C$37,0,E42+1) -> 5 | G42: =IF(F42+1>'01. PC'!$C$37,0,F42+1) -> 6 | H42: =IF(G42+1>'01. PC'!$C$37,0,G42+1) -> 7 | I42: =IF(H42+1>'01. PC'!$C$37,0,H42+1) -> 8 | J42: =IF(I42+1>'01. PC'!$C$37,0,I42+1) -> 9 | K42: =IF(J42+1>'01. PC'!$C$37,0,J42+1) -> 0 | L42: =IF(K42+1>'01. PC'!$C$37,0,K42+1) -> 1 | M42: =IF(L42+1>'01. PC'!$C$37,0,L42+1) -> 2 | N42: =IF(M42+1>'01. PC'!$C$37,0,M42+1) -> 3 | O42: =IF(N42+1>'01. PC'!$C$37,0,N42+1) -> 4 | P42: =IF(O42+1>'01. PC'!$C$37,0,O42+1) -> 5 | Q42: =IF(P42+1>'01. PC'!$C$37,0,P42+1) -> 6 | R42: =IF(Q42+1>'01. PC'!$C$37,0,Q42+1) -> 7 | S42: =IF(R42+1>'01. PC'!$C$37,0,R42+1) -> 8 | T42: 0 | U42: =IF(T42+1>'01. PC'!$C$37,0,T42+1) -> 1 | V42: =IF(U42+1>'01. PC'!$C$37,0,U42+1) -> 2 | W42: =IF(V42+1>'01. PC'!$C$37,0,V42+1) -> 3
B43: BÁSICO | C43: 21 | D43: 3 | E43: =IF(D43+1>'01. PC'!$C$37,0,D43+1) -> 4 | F43: =IF(E43+1>'01. PC'!$C$37,0,E43+1) -> 5 | G43: =IF(F43+1>'01. PC'!$C$37,0,F43+1) -> 6 | H43: =IF(G43+1>'01. PC'!$C$37,0,G43+1) -> 7 | I43: =IF(H43+1>'01. PC'!$C$37,0,H43+1) -> 8 | J43: =IF(I43+1>'01. PC'!$C$37,0,I43+1) -> 9 | K43: =IF(J43+1>'01. PC'!$C$37,0,J43+1) -> 0 | L43: =IF(K43+1>'01. PC'!$C$37,0,K43+1) -> 1 | M43: =IF(L43+1>'01. PC'!$C$37,0,L43+1) -> 2 | N43: =IF(M43+1>'01. PC'!$C$37,0,M43+1) -> 3 | O43: =IF(N43+1>'01. PC'!$C$37,0,N43+1) -> 4 | P43: =IF(O43+1>'01. PC'!$C$37,0,O43+1) -> 5 | Q43: =IF(P43+1>'01. PC'!$C$37,0,P43+1) -> 6 | R43: =IF(Q43+1>'01. PC'!$C$37,0,Q43+1) -> 7 | S43: =IF(R43+1>'01. PC'!$C$37,0,R43+1) -> 8 | T43: 0 | U43: =IF(T43+1>'01. PC'!$C$37,0,T43+1) -> 1 | V43: =IF(U43+1>'01. PC'!$C$37,0,U43+1) -> 2 | W43: =IF(V43+1>'01. PC'!$C$37,0,V43+1) -> 3
B44: BÁSICO | C44: 22 | D44: 3 | E44: =IF(D44+1>'01. PC'!$C$37,0,D44+1) -> 4 | F44: =IF(E44+1>'01. PC'!$C$37,0,E44+1) -> 5 | G44: =IF(F44+1>'01. PC'!$C$37,0,F44+1) -> 6 | H44: =IF(G44+1>'01. PC'!$C$37,0,G44+1) -> 7 | I44: =IF(H44+1>'01. PC'!$C$37,0,H44+1) -> 8 | J44: 0 | K44: =IF(J44+1>'01. PC'!$C$37,0,J44+1) -> 1 | L44: =IF(K44+1>'01. PC'!$C$37,0,K44+1) -> 2 | M44: =IF(L44+1>'01. PC'!$C$37,0,L44+1) -> 3 | N44: =IF(M44+1>'01. PC'!$C$37,0,M44+1) -> 4 | O44: =IF(N44+1>'01. PC'!$C$37,0,N44+1) -> 5 | P44: =IF(O44+1>'01. PC'!$C$37,0,O44+1) -> 6 | Q44: =IF(P44+1>'01. PC'!$C$37,0,P44+1) -> 7 | R44: =IF(Q44+1>'01. PC'!$C$37,0,Q44+1) -> 8 | S44: =IF(R44+1>'01. PC'!$C$37,0,R44+1) -> 9 | T44: =IF(S44+1>'01. PC'!$C$37,0,S44+1) -> 0 | U44: =IF(T44+1>'01. PC'!$C$37,0,T44+1) -> 1 | V44: =IF(U44+1>'01. PC'!$C$37,0,U44+1) -> 2 | W44: =IF(V44+1>'01. PC'!$C$37,0,V44+1) -> 3
B45: BÁSICO | C45: 23 | D45: 3 | E45: =IF(D45+1>'01. PC'!$C$37,0,D45+1) -> 4 | F45: =IF(E45+1>'01. PC'!$C$37,0,E45+1) -> 5 | G45: =IF(F45+1>'01. PC'!$C$37,0,F45+1) -> 6 | H45: =IF(G45+1>'01. PC'!$C$37,0,G45+1) -> 7 | I45: =IF(H45+1>'01. PC'!$C$37,0,H45+1) -> 8 | J45: 0 | K45: =IF(J45+1>'01. PC'!$C$37,0,J45+1) -> 1 | L45: =IF(K45+1>'01. PC'!$C$37,0,K45+1) -> 2 | M45: =IF(L45+1>'01. PC'!$C$37,0,L45+1) -> 3 | N45: =IF(M45+1>'01. PC'!$C$37,0,M45+1) -> 4 | O45: =IF(N45+1>'01. PC'!$C$37,0,N45+1) -> 5 | P45: =IF(O45+1>'01. PC'!$C$37,0,O45+1) -> 6 | Q45: =IF(P45+1>'01. PC'!$C$37,0,P45+1) -> 7 | R45: =IF(Q45+1>'01. PC'!$C$37,0,Q45+1) -> 8 | S45: =IF(R45+1>'01. PC'!$C$37,0,R45+1) -> 9 | T45: =IF(S45+1>'01. PC'!$C$37,0,S45+1) -> 0 | U45: =IF(T45+1>'01. PC'!$C$37,0,T45+1) -> 1 | V45: =IF(U45+1>'01. PC'!$C$37,0,U45+1) -> 2 | W45: =IF(V45+1>'01. PC'!$C$37,0,V45+1) -> 3
B46: BÁSICO | C46: 24 | D46: 3 | E46: =IF(D46+1>'01. PC'!$C$37,0,D46+1) -> 4 | F46: =IF(E46+1>'01. PC'!$C$37,0,E46+1) -> 5 | G46: =IF(F46+1>'01. PC'!$C$37,0,F46+1) -> 6 | H46: =IF(G46+1>'01. PC'!$C$37,0,G46+1) -> 7 | I46: =IF(H46+1>'01. PC'!$C$37,0,H46+1) -> 8 | J46: 0 | K46: =IF(J46+1>'01. PC'!$C$37,0,J46+1) -> 1 | L46: =IF(K46+1>'01. PC'!$C$37,0,K46+1) -> 2 | M46: =IF(L46+1>'01. PC'!$C$37,0,L46+1) -> 3 | N46: =IF(M46+1>'01. PC'!$C$37,0,M46+1) -> 4 | O46: =IF(N46+1>'01. PC'!$C$37,0,N46+1) -> 5 | P46: =IF(O46+1>'01. PC'!$C$37,0,O46+1) -> 6 | Q46: =IF(P46+1>'01. PC'!$C$37,0,P46+1) -> 7 | R46: =IF(Q46+1>'01. PC'!$C$37,0,Q46+1) -> 8 | S46: =IF(R46+1>'01. PC'!$C$37,0,R46+1) -> 9 | T46: =IF(S46+1>'01. PC'!$C$37,0,S46+1) -> 0 | U46: =IF(T46+1>'01. PC'!$C$37,0,T46+1) -> 1 | V46: =IF(U46+1>'01. PC'!$C$37,0,U46+1) -> 2 | W46: =IF(V46+1>'01. PC'!$C$37,0,V46+1) -> 3
B47: BÁSICO | C47: 25 | D47: 4 | E47: =IF(D47+1>'01. PC'!$C$37,0,D47+1) -> 5 | F47: =IF(E47+1>'01. PC'!$C$37,0,E47+1) -> 6 | G47: =IF(F47+1>'01. PC'!$C$37,0,F47+1) -> 7 | H47: =IF(G47+1>'01. PC'!$C$37,0,G47+1) -> 8 | I47: =IF(H47+1>'01. PC'!$C$37,0,H47+1) -> 9 | J47: =IF(I47+1>'01. PC'!$C$37,0,I47+1) -> 0 | K47: =IF(J47+1>'01. PC'!$C$37,0,J47+1) -> 1 | L47: =IF(K47+1>'01. PC'!$C$37,0,K47+1) -> 2 | M47: =IF(L47+1>'01. PC'!$C$37,0,L47+1) -> 3 | N47: =IF(M47+1>'01. PC'!$C$37,0,M47+1) -> 4 | O47: =IF(N47+1>'01. PC'!$C$37,0,N47+1) -> 5 | P47: =IF(O47+1>'01. PC'!$C$37,0,O47+1) -> 6 | Q47: =IF(P47+1>'01. PC'!$C$37,0,P47+1) -> 7 | R47: =IF(Q47+1>'01. PC'!$C$37,0,Q47+1) -> 8 | S47: 0 | T47: =IF(S47+1>'01. PC'!$C$37,0,S47+1) -> 1 | U47: =IF(T47+1>'01. PC'!$C$37,0,T47+1) -> 2 | V47: =IF(U47+1>'01. PC'!$C$37,0,U47+1) -> 3 | W47: =IF(V47+1>'01. PC'!$C$37,0,V47+1) -> 4
B48: BÁSICO | C48: 26 | D48: 4 | E48: =IF(D48+1>'01. PC'!$C$37,0,D48+1) -> 5 | F48: =IF(E48+1>'01. PC'!$C$37,0,E48+1) -> 6 | G48: =IF(F48+1>'01. PC'!$C$37,0,F48+1) -> 7 | H48: =IF(G48+1>'01. PC'!$C$37,0,G48+1) -> 8 | I48: =IF(H48+1>'01. PC'!$C$37,0,H48+1) -> 9 | J48: =IF(I48+1>'01. PC'!$C$37,0,I48+1) -> 0 | K48: =IF(J48+1>'01. PC'!$C$37,0,J48+1) -> 1 | L48: =IF(K48+1>'01. PC'!$C$37,0,K48+1) -> 2 | M48: =IF(L48+1>'01. PC'!$C$37,0,L48+1) -> 3 | N48: =IF(M48+1>'01. PC'!$C$37,0,M48+1) -> 4 | O48: =IF(N48+1>'01. PC'!$C$37,0,N48+1) -> 5 | P48: =IF(O48+1>'01. PC'!$C$37,0,O48+1) -> 6 | Q48: =IF(P48+1>'01. PC'!$C$37,0,P48+1) -> 7 | R48: =IF(Q48+1>'01. PC'!$C$37,0,Q48+1) -> 8 | S48: 0 | T48: =IF(S48+1>'01. PC'!$C$37,0,S48+1) -> 1 | U48: =IF(T48+1>'01. PC'!$C$37,0,T48+1) -> 2 | V48: =IF(U48+1>'01. PC'!$C$37,0,U48+1) -> 3 | W48: =IF(V48+1>'01. PC'!$C$37,0,V48+1) -> 4
B49: BÁSICO | C49: 27 | D49: 4 | E49: =IF(D49+1>'01. PC'!$C$37,0,D49+1) -> 5 | F49: =IF(E49+1>'01. PC'!$C$37,0,E49+1) -> 6 | G49: =IF(F49+1>'01. PC'!$C$37,0,F49+1) -> 7 | H49: =IF(G49+1>'01. PC'!$C$37,0,G49+1) -> 8 | I49: =IF(H49+1>'01. PC'!$C$37,0,H49+1) -> 9 | J49: =IF(I49+1>'01. PC'!$C$37,0,I49+1) -> 0 | K49: =IF(J49+1>'01. PC'!$C$37,0,J49+1) -> 1 | L49: =IF(K49+1>'01. PC'!$C$37,0,K49+1) -> 2 | M49: =IF(L49+1>'01. PC'!$C$37,0,L49+1) -> 3 | N49: =IF(M49+1>'01. PC'!$C$37,0,M49+1) -> 4 | O49: =IF(N49+1>'01. PC'!$C$37,0,N49+1) -> 5 | P49: =IF(O49+1>'01. PC'!$C$37,0,O49+1) -> 6 | Q49: =IF(P49+1>'01. PC'!$C$37,0,P49+1) -> 7 | R49: =IF(Q49+1>'01. PC'!$C$37,0,Q49+1) -> 8 | S49: 0 | T49: =IF(S49+1>'01. PC'!$C$37,0,S49+1) -> 1 | U49: =IF(T49+1>'01. PC'!$C$37,0,T49+1) -> 2 | V49: =IF(U49+1>'01. PC'!$C$37,0,U49+1) -> 3 | W49: =IF(V49+1>'01. PC'!$C$37,0,V49+1) -> 4
B50: BÁSICO | C50: 28 | D50: 4 | E50: =IF(D50+1>'01. PC'!$C$37,0,D50+1) -> 5 | F50: =IF(E50+1>'01. PC'!$C$37,0,E50+1) -> 6 | G50: =IF(F50+1>'01. PC'!$C$37,0,F50+1) -> 7 | H50: =IF(G50+1>'01. PC'!$C$37,0,G50+1) -> 8 | I50: 0 | J50: =IF(I50+1>'01. PC'!$C$37,0,I50+1) -> 1 | K50: =IF(J50+1>'01. PC'!$C$37,0,J50+1) -> 2 | L50: =IF(K50+1>'01. PC'!$C$37,0,K50+1) -> 3 | M50: =IF(L50+1>'01. PC'!$C$37,0,L50+1) -> 4 | N50: =IF(M50+1>'01. PC'!$C$37,0,M50+1) -> 5 | O50: =IF(N50+1>'01. PC'!$C$37,0,N50+1) -> 6 | P50: =IF(O50+1>'01. PC'!$C$37,0,O50+1) -> 7 | Q50: =IF(P50+1>'01. PC'!$C$37,0,P50+1) -> 8 | R50: =IF(Q50+1>'01. PC'!$C$37,0,Q50+1) -> 9 | S50: =IF(R50+1>'01. PC'!$C$37,0,R50+1) -> 0 | T50: =IF(S50+1>'01. PC'!$C$37,0,S50+1) -> 1 | U50: =IF(T50+1>'01. PC'!$C$37,0,T50+1) -> 2 | V50: =IF(U50+1>'01. PC'!$C$37,0,U50+1) -> 3 | W50: =IF(V50+1>'01. PC'!$C$37,0,V50+1) -> 4
B51: BÁSICO | C51: 29 | D51: 4 | E51: =IF(D51+1>'01. PC'!$C$37,0,D51+1) -> 5 | F51: =IF(E51+1>'01. PC'!$C$37,0,E51+1) -> 6 | G51: =IF(F51+1>'01. PC'!$C$37,0,F51+1) -> 7 | H51: =IF(G51+1>'01. PC'!$C$37,0,G51+1) -> 8 | I51: 0 | J51: =IF(I51+1>'01. PC'!$C$37,0,I51+1) -> 1 | K51: =IF(J51+1>'01. PC'!$C$37,0,J51+1) -> 2 | L51: =IF(K51+1>'01. PC'!$C$37,0,K51+1) -> 3 | M51: =IF(L51+1>'01. PC'!$C$37,0,L51+1) -> 4 | N51: =IF(M51+1>'01. PC'!$C$37,0,M51+1) -> 5 | O51: =IF(N51+1>'01. PC'!$C$37,0,N51+1) -> 6 | P51: =IF(O51+1>'01. PC'!$C$37,0,O51+1) -> 7 | Q51: =IF(P51+1>'01. PC'!$C$37,0,P51+1) -> 8 | R51: =IF(Q51+1>'01. PC'!$C$37,0,Q51+1) -> 9 | S51: =IF(R51+1>'01. PC'!$C$37,0,R51+1) -> 0 | T51: =IF(S51+1>'01. PC'!$C$37,0,S51+1) -> 1 | U51: =IF(T51+1>'01. PC'!$C$37,0,T51+1) -> 2 | V51: =IF(U51+1>'01. PC'!$C$37,0,U51+1) -> 3 | W51: =IF(V51+1>'01. PC'!$C$37,0,V51+1) -> 4
B52: BÁSICO | C52: 30 | D52: 4 | E52: =IF(D52+1>'01. PC'!$C$37,0,D52+1) -> 5 | F52: =IF(E52+1>'01. PC'!$C$37,0,E52+1) -> 6 | G52: =IF(F52+1>'01. PC'!$C$37,0,F52+1) -> 7 | H52: =IF(G52+1>'01. PC'!$C$37,0,G52+1) -> 8 | I52: 0 | J52: =IF(I52+1>'01. PC'!$C$37,0,I52+1) -> 1 | K52: =IF(J52+1>'01. PC'!$C$37,0,J52+1) -> 2 | L52: =IF(K52+1>'01. PC'!$C$37,0,K52+1) -> 3 | M52: =IF(L52+1>'01. PC'!$C$37,0,L52+1) -> 4 | N52: =IF(M52+1>'01. PC'!$C$37,0,M52+1) -> 5 | O52: =IF(N52+1>'01. PC'!$C$37,0,N52+1) -> 6 | P52: =IF(O52+1>'01. PC'!$C$37,0,O52+1) -> 7 | Q52: =IF(P52+1>'01. PC'!$C$37,0,P52+1) -> 8 | R52: =IF(Q52+1>'01. PC'!$C$37,0,Q52+1) -> 9 | S52: =IF(R52+1>'01. PC'!$C$37,0,R52+1) -> 0 | T52: =IF(S52+1>'01. PC'!$C$37,0,S52+1) -> 1 | U52: =IF(T52+1>'01. PC'!$C$37,0,T52+1) -> 2 | V52: =IF(U52+1>'01. PC'!$C$37,0,U52+1) -> 3 | W52: =IF(V52+1>'01. PC'!$C$37,0,V52+1) -> 4
B53: BÁSICO | C53: 31 | D53: 5 | E53: =IF(D53+1>'01. PC'!$C$37,0,D53+1) -> 6 | F53: =IF(E53+1>'01. PC'!$C$37,0,E53+1) -> 7 | G53: =IF(F53+1>'01. PC'!$C$37,0,F53+1) -> 8 | H53: =IF(G53+1>'01. PC'!$C$37,0,G53+1) -> 9 | I53: =IF(H53+1>'01. PC'!$C$37,0,H53+1) -> 0 | J53: =IF(I53+1>'01. PC'!$C$37,0,I53+1) -> 1 | K53: =IF(J53+1>'01. PC'!$C$37,0,J53+1) -> 2 | L53: =IF(K53+1>'01. PC'!$C$37,0,K53+1) -> 3 | M53: =IF(L53+1>'01. PC'!$C$37,0,L53+1) -> 4 | N53: =IF(M53+1>'01. PC'!$C$37,0,M53+1) -> 5 | O53: =IF(N53+1>'01. PC'!$C$37,0,N53+1) -> 6 | P53: =IF(O53+1>'01. PC'!$C$37,0,O53+1) -> 7 | Q53: =IF(P53+1>'01. PC'!$C$37,0,P53+1) -> 8 | R53: 0 | S53: =IF(R53+1>'01. PC'!$C$37,0,R53+1) -> 1 | T53: =IF(S53+1>'01. PC'!$C$37,0,S53+1) -> 2 | U53: =IF(T53+1>'01. PC'!$C$37,0,T53+1) -> 3 | V53: =IF(U53+1>'01. PC'!$C$37,0,U53+1) -> 4 | W53: =IF(V53+1>'01. PC'!$C$37,0,V53+1) -> 5
B54: BÁSICO | C54: 32 | D54: 5 | E54: =IF(D54+1>'01. PC'!$C$37,0,D54+1) -> 6 | F54: =IF(E54+1>'01. PC'!$C$37,0,E54+1) -> 7 | G54: =IF(F54+1>'01. PC'!$C$37,0,F54+1) -> 8 | H54: =IF(G54+1>'01. PC'!$C$37,0,G54+1) -> 9 | I54: =IF(H54+1>'01. PC'!$C$37,0,H54+1) -> 0 | J54: =IF(I54+1>'01. PC'!$C$37,0,I54+1) -> 1 | K54: =IF(J54+1>'01. PC'!$C$37,0,J54+1) -> 2 | L54: =IF(K54+1>'01. PC'!$C$37,0,K54+1) -> 3 | M54: =IF(L54+1>'01. PC'!$C$37,0,L54+1) -> 4 | N54: =IF(M54+1>'01. PC'!$C$37,0,M54+1) -> 5 | O54: =IF(N54+1>'01. PC'!$C$37,0,N54+1) -> 6 | P54: =IF(O54+1>'01. PC'!$C$37,0,O54+1) -> 7 | Q54: =IF(P54+1>'01. PC'!$C$37,0,P54+1) -> 8 | R54: 0 | S54: =IF(R54+1>'01. PC'!$C$37,0,R54+1) -> 1 | T54: =IF(S54+1>'01. PC'!$C$37,0,S54+1) -> 2 | U54: =IF(T54+1>'01. PC'!$C$37,0,T54+1) -> 3 | V54: =IF(U54+1>'01. PC'!$C$37,0,U54+1) -> 4 | W54: =IF(V54+1>'01. PC'!$C$37,0,V54+1) -> 5
B55: BÁSICO | C55: 33 | D55: 5 | E55: =IF(D55+1>'01. PC'!$C$37,0,D55+1) -> 6 | F55: =IF(E55+1>'01. PC'!$C$37,0,E55+1) -> 7 | G55: =IF(F55+1>'01. PC'!$C$37,0,F55+1) -> 8 | H55: =IF(G55+1>'01. PC'!$C$37,0,G55+1) -> 9 | I55: =IF(H55+1>'01. PC'!$C$37,0,H55+1) -> 0 | J55: =IF(I55+1>'01. PC'!$C$37,0,I55+1) -> 1 | K55: =IF(J55+1>'01. PC'!$C$37,0,J55+1) -> 2 | L55: =IF(K55+1>'01. PC'!$C$37,0,K55+1) -> 3 | M55: =IF(L55+1>'01. PC'!$C$37,0,L55+1) -> 4 | N55: =IF(M55+1>'01. PC'!$C$37,0,M55+1) -> 5 | O55: =IF(N55+1>'01. PC'!$C$37,0,N55+1) -> 6 | P55: =IF(O55+1>'01. PC'!$C$37,0,O55+1) -> 7 | Q55: =IF(P55+1>'01. PC'!$C$37,0,P55+1) -> 8 | R55: 0 | S55: =IF(R55+1>'01. PC'!$C$37,0,R55+1) -> 1 | T55: =IF(S55+1>'01. PC'!$C$37,0,S55+1) -> 2 | U55: =IF(T55+1>'01. PC'!$C$37,0,T55+1) -> 3 | V55: =IF(U55+1>'01. PC'!$C$37,0,U55+1) -> 4 | W55: =IF(V55+1>'01. PC'!$C$37,0,V55+1) -> 5
B56: BÁSICO | C56: 34 | D56: 5 | E56: =IF(D56+1>'01. PC'!$C$37,0,D56+1) -> 6 | F56: =IF(E56+1>'01. PC'!$C$37,0,E56+1) -> 7 | G56: =IF(F56+1>'01. PC'!$C$37,0,F56+1) -> 8 | H56: 0 | I56: =IF(H56+1>'01. PC'!$C$37,0,H56+1) -> 1 | J56: =IF(I56+1>'01. PC'!$C$37,0,I56+1) -> 2 | K56: =IF(J56+1>'01. PC'!$C$37,0,J56+1) -> 3 | L56: =IF(K56+1>'01. PC'!$C$37,0,K56+1) -> 4 | M56: =IF(L56+1>'01. PC'!$C$37,0,L56+1) -> 5 | N56: =IF(M56+1>'01. PC'!$C$37,0,M56+1) -> 6 | O56: =IF(N56+1>'01. PC'!$C$37,0,N56+1) -> 7 | P56: =IF(O56+1>'01. PC'!$C$37,0,O56+1) -> 8 | Q56: =IF(P56+1>'01. PC'!$C$37,0,P56+1) -> 9 | R56: =IF(Q56+1>'01. PC'!$C$37,0,Q56+1) -> 0 | S56: =IF(R56+1>'01. PC'!$C$37,0,R56+1) -> 1 | T56: =IF(S56+1>'01. PC'!$C$37,0,S56+1) -> 2 | U56: =IF(T56+1>'01. PC'!$C$37,0,T56+1) -> 3 | V56: =IF(U56+1>'01. PC'!$C$37,0,U56+1) -> 4 | W56: =IF(V56+1>'01. PC'!$C$37,0,V56+1) -> 5
B57: BÁSICO | C57: 35 | D57: 5 | E57: =IF(D57+1>'01. PC'!$C$37,0,D57+1) -> 6 | F57: =IF(E57+1>'01. PC'!$C$37,0,E57+1) -> 7 | G57: =IF(F57+1>'01. PC'!$C$37,0,F57+1) -> 8 | H57: 0 | I57: =IF(H57+1>'01. PC'!$C$37,0,H57+1) -> 1 | J57: =IF(I57+1>'01. PC'!$C$37,0,I57+1) -> 2 | K57: =IF(J57+1>'01. PC'!$C$37,0,J57+1) -> 3 | L57: =IF(K57+1>'01. PC'!$C$37,0,K57+1) -> 4 | M57: =IF(L57+1>'01. PC'!$C$37,0,L57+1) -> 5 | N57: =IF(M57+1>'01. PC'!$C$37,0,M57+1) -> 6 | O57: =IF(N57+1>'01. PC'!$C$37,0,N57+1) -> 7 | P57: =IF(O57+1>'01. PC'!$C$37,0,O57+1) -> 8 | Q57: =IF(P57+1>'01. PC'!$C$37,0,P57+1) -> 9 | R57: =IF(Q57+1>'01. PC'!$C$37,0,Q57+1) -> 0 | S57: =IF(R57+1>'01. PC'!$C$37,0,R57+1) -> 1 | T57: =IF(S57+1>'01. PC'!$C$37,0,S57+1) -> 2 | U57: =IF(T57+1>'01. PC'!$C$37,0,T57+1) -> 3 | V57: =IF(U57+1>'01. PC'!$C$37,0,U57+1) -> 4 | W57: =IF(V57+1>'01. PC'!$C$37,0,V57+1) -> 5
B58: BÁSICO | C58: 36 | D58: 5 | E58: =IF(D58+1>'01. PC'!$C$37,0,D58+1) -> 6 | F58: =IF(E58+1>'01. PC'!$C$37,0,E58+1) -> 7 | G58: =IF(F58+1>'01. PC'!$C$37,0,F58+1) -> 8 | H58: 0 | I58: =IF(H58+1>'01. PC'!$C$37,0,H58+1) -> 1 | J58: =IF(I58+1>'01. PC'!$C$37,0,I58+1) -> 2 | K58: =IF(J58+1>'01. PC'!$C$37,0,J58+1) -> 3 | L58: =IF(K58+1>'01. PC'!$C$37,0,K58+1) -> 4 | M58: =IF(L58+1>'01. PC'!$C$37,0,L58+1) -> 5 | N58: =IF(M58+1>'01. PC'!$C$37,0,M58+1) -> 6 | O58: =IF(N58+1>'01. PC'!$C$37,0,N58+1) -> 7 | P58: =IF(O58+1>'01. PC'!$C$37,0,O58+1) -> 8 | Q58: =IF(P58+1>'01. PC'!$C$37,0,P58+1) -> 9 | R58: =IF(Q58+1>'01. PC'!$C$37,0,Q58+1) -> 0 | S58: =IF(R58+1>'01. PC'!$C$37,0,R58+1) -> 1 | T58: =IF(S58+1>'01. PC'!$C$37,0,S58+1) -> 2 | U58: =IF(T58+1>'01. PC'!$C$37,0,T58+1) -> 3 | V58: =IF(U58+1>'01. PC'!$C$37,0,U58+1) -> 4 | W58: =IF(V58+1>'01. PC'!$C$37,0,V58+1) -> 5
B59: BÁSICO | C59: 37 | D59: 6 | E59: =IF(D59+1>'01. PC'!$C$37,0,D59+1) -> 7 | F59: =IF(E59+1>'01. PC'!$C$37,0,E59+1) -> 8 | G59: =IF(F59+1>'01. PC'!$C$37,0,F59+1) -> 9 | H59: =IF(G59+1>'01. PC'!$C$37,0,G59+1) -> 0 | I59: =IF(H59+1>'01. PC'!$C$37,0,H59+1) -> 1 | J59: =IF(I59+1>'01. PC'!$C$37,0,I59+1) -> 2 | K59: =IF(J59+1>'01. PC'!$C$37,0,J59+1) -> 3 | L59: =IF(K59+1>'01. PC'!$C$37,0,K59+1) -> 4 | M59: =IF(L59+1>'01. PC'!$C$37,0,L59+1) -> 5 | N59: =IF(M59+1>'01. PC'!$C$37,0,M59+1) -> 6 | O59: =IF(N59+1>'01. PC'!$C$37,0,N59+1) -> 7 | P59: =IF(O59+1>'01. PC'!$C$37,0,O59+1) -> 8 | Q59: 0 | R59: =IF(Q59+1>'01. PC'!$C$37,0,Q59+1) -> 1 | S59: =IF(R59+1>'01. PC'!$C$37,0,R59+1) -> 2 | T59: =IF(S59+1>'01. PC'!$C$37,0,S59+1) -> 3 | U59: =IF(T59+1>'01. PC'!$C$37,0,T59+1) -> 4 | V59: =IF(U59+1>'01. PC'!$C$37,0,U59+1) -> 5 | W59: =IF(V59+1>'01. PC'!$C$37,0,V59+1) -> 6
B60: BÁSICO | C60: 38 | D60: 6 | E60: =IF(D60+1>'01. PC'!$C$37,0,D60+1) -> 7 | F60: =IF(E60+1>'01. PC'!$C$37,0,E60+1) -> 8 | G60: =IF(F60+1>'01. PC'!$C$37,0,F60+1) -> 9 | H60: =IF(G60+1>'01. PC'!$C$37,0,G60+1) -> 0 | I60: =IF(H60+1>'01. PC'!$C$37,0,H60+1) -> 1 | J60: =IF(I60+1>'01. PC'!$C$37,0,I60+1) -> 2 | K60: =IF(J60+1>'01. PC'!$C$37,0,J60+1) -> 3 | L60: =IF(K60+1>'01. PC'!$C$37,0,K60+1) -> 4 | M60: =IF(L60+1>'01. PC'!$C$37,0,L60+1) -> 5 | N60: =IF(M60+1>'01. PC'!$C$37,0,M60+1) -> 6 | O60: =IF(N60+1>'01. PC'!$C$37,0,N60+1) -> 7 | P60: =IF(O60+1>'01. PC'!$C$37,0,O60+1) -> 8 | Q60: 0 | R60: =IF(Q60+1>'01. PC'!$C$37,0,Q60+1) -> 1 | S60: =IF(R60+1>'01. PC'!$C$37,0,R60+1) -> 2 | T60: =IF(S60+1>'01. PC'!$C$37,0,S60+1) -> 3 | U60: =IF(T60+1>'01. PC'!$C$37,0,T60+1) -> 4 | V60: =IF(U60+1>'01. PC'!$C$37,0,U60+1) -> 5 | W60: =IF(V60+1>'01. PC'!$C$37,0,V60+1) -> 6
B61: BÁSICO | C61: 39 | D61: 6 | E61: =IF(D61+1>'01. PC'!$C$37,0,D61+1) -> 7 | F61: =IF(E61+1>'01. PC'!$C$37,0,E61+1) -> 8 | G61: =IF(F61+1>'01. PC'!$C$37,0,F61+1) -> 9 | H61: =IF(G61+1>'01. PC'!$C$37,0,G61+1) -> 0 | I61: =IF(H61+1>'01. PC'!$C$37,0,H61+1) -> 1 | J61: =IF(I61+1>'01. PC'!$C$37,0,I61+1) -> 2 | K61: =IF(J61+1>'01. PC'!$C$37,0,J61+1) -> 3 | L61: =IF(K61+1>'01. PC'!$C$37,0,K61+1) -> 4 | M61: =IF(L61+1>'01. PC'!$C$37,0,L61+1) -> 5 | N61: =IF(M61+1>'01. PC'!$C$37,0,M61+1) -> 6 | O61: =IF(N61+1>'01. PC'!$C$37,0,N61+1) -> 7 | P61: =IF(O61+1>'01. PC'!$C$37,0,O61+1) -> 8 | Q61: 0 | R61: =IF(Q61+1>'01. PC'!$C$37,0,Q61+1) -> 1 | S61: =IF(R61+1>'01. PC'!$C$37,0,R61+1) -> 2 | T61: =IF(S61+1>'01. PC'!$C$37,0,S61+1) -> 3 | U61: =IF(T61+1>'01. PC'!$C$37,0,T61+1) -> 4 | V61: =IF(U61+1>'01. PC'!$C$37,0,U61+1) -> 5 | W61: =IF(V61+1>'01. PC'!$C$37,0,V61+1) -> 6
B62: BÁSICO | C62: 40 | D62: 6 | E62: =IF(D62+1>'01. PC'!$C$37,0,D62+1) -> 7 | F62: =IF(E62+1>'01. PC'!$C$37,0,E62+1) -> 8 | G62: 0 | H62: =IF(G62+1>'01. PC'!$C$37,0,G62+1) -> 1 | I62: =IF(H62+1>'01. PC'!$C$37,0,H62+1) -> 2 | J62: =IF(I62+1>'01. PC'!$C$37,0,I62+1) -> 3 | K62: =IF(J62+1>'01. PC'!$C$37,0,J62+1) -> 4 | L62: =IF(K62+1>'01. PC'!$C$37,0,K62+1) -> 5 | M62: =IF(L62+1>'01. PC'!$C$37,0,L62+1) -> 6 | N62: =IF(M62+1>'01. PC'!$C$37,0,M62+1) -> 7 | O62: =IF(N62+1>'01. PC'!$C$37,0,N62+1) -> 8 | P62: =IF(O62+1>'01. PC'!$C$37,0,O62+1) -> 9 | Q62: =IF(P62+1>'01. PC'!$C$37,0,P62+1) -> 0 | R62: =IF(Q62+1>'01. PC'!$C$37,0,Q62+1) -> 1 | S62: =IF(R62+1>'01. PC'!$C$37,0,R62+1) -> 2 | T62: =IF(S62+1>'01. PC'!$C$37,0,S62+1) -> 3 | U62: =IF(T62+1>'01. PC'!$C$37,0,T62+1) -> 4 | V62: =IF(U62+1>'01. PC'!$C$37,0,U62+1) -> 5 | W62: =IF(V62+1>'01. PC'!$C$37,0,V62+1) -> 6
B63: BÁSICO | C63: 41 | D63: 6 | E63: =IF(D63+1>'01. PC'!$C$37,0,D63+1) -> 7 | F63: =IF(E63+1>'01. PC'!$C$37,0,E63+1) -> 8 | G63: 0 | H63: =IF(G63+1>'01. PC'!$C$37,0,G63+1) -> 1 | I63: =IF(H63+1>'01. PC'!$C$37,0,H63+1) -> 2 | J63: =IF(I63+1>'01. PC'!$C$37,0,I63+1) -> 3 | K63: =IF(J63+1>'01. PC'!$C$37,0,J63+1) -> 4 | L63: =IF(K63+1>'01. PC'!$C$37,0,K63+1) -> 5 | M63: =IF(L63+1>'01. PC'!$C$37,0,L63+1) -> 6 | N63: =IF(M63+1>'01. PC'!$C$37,0,M63+1) -> 7 | O63: =IF(N63+1>'01. PC'!$C$37,0,N63+1) -> 8 | P63: =IF(O63+1>'01. PC'!$C$37,0,O63+1) -> 9 | Q63: =IF(P63+1>'01. PC'!$C$37,0,P63+1) -> 0 | R63: =IF(Q63+1>'01. PC'!$C$37,0,Q63+1) -> 1 | S63: =IF(R63+1>'01. PC'!$C$37,0,R63+1) -> 2 | T63: =IF(S63+1>'01. PC'!$C$37,0,S63+1) -> 3 | U63: =IF(T63+1>'01. PC'!$C$37,0,T63+1) -> 4 | V63: =IF(U63+1>'01. PC'!$C$37,0,U63+1) -> 5 | W63: =IF(V63+1>'01. PC'!$C$37,0,V63+1) -> 6
B64: BÁSICO | C64: 42 | D64: 6 | E64: =IF(D64+1>'01. PC'!$C$37,0,D64+1) -> 7 | F64: =IF(E64+1>'01. PC'!$C$37,0,E64+1) -> 8 | G64: 0 | H64: =IF(G64+1>'01. PC'!$C$37,0,G64+1) -> 1 | I64: =IF(H64+1>'01. PC'!$C$37,0,H64+1) -> 2 | J64: =IF(I64+1>'01. PC'!$C$37,0,I64+1) -> 3 | K64: =IF(J64+1>'01. PC'!$C$37,0,J64+1) -> 4 | L64: =IF(K64+1>'01. PC'!$C$37,0,K64+1) -> 5 | M64: =IF(L64+1>'01. PC'!$C$37,0,L64+1) -> 6 | N64: =IF(M64+1>'01. PC'!$C$37,0,M64+1) -> 7 | O64: =IF(N64+1>'01. PC'!$C$37,0,N64+1) -> 8 | P64: =IF(O64+1>'01. PC'!$C$37,0,O64+1) -> 9 | Q64: =IF(P64+1>'01. PC'!$C$37,0,P64+1) -> 0 | R64: =IF(Q64+1>'01. PC'!$C$37,0,Q64+1) -> 1 | S64: =IF(R64+1>'01. PC'!$C$37,0,R64+1) -> 2 | T64: =IF(S64+1>'01. PC'!$C$37,0,S64+1) -> 3 | U64: =IF(T64+1>'01. PC'!$C$37,0,T64+1) -> 4 | V64: =IF(U64+1>'01. PC'!$C$37,0,U64+1) -> 5 | W64: =IF(V64+1>'01. PC'!$C$37,0,V64+1) -> 6
B65: BÁSICO | C65: 43 | D65: 7 | E65: =IF(D65+1>'01. PC'!$C$37,0,D65+1) -> 8 | F65: =IF(E65+1>'01. PC'!$C$37,0,E65+1) -> 9 | G65: =IF(F65+1>'01. PC'!$C$37,0,F65+1) -> 0 | H65: =IF(G65+1>'01. PC'!$C$37,0,G65+1) -> 1 | I65: =IF(H65+1>'01. PC'!$C$37,0,H65+1) -> 2 | J65: =IF(I65+1>'01. PC'!$C$37,0,I65+1) -> 3 | K65: =IF(J65+1>'01. PC'!$C$37,0,J65+1) -> 4 | L65: =IF(K65+1>'01. PC'!$C$37,0,K65+1) -> 5 | M65: =IF(L65+1>'01. PC'!$C$37,0,L65+1) -> 6 | N65: =IF(M65+1>'01. PC'!$C$37,0,M65+1) -> 7 | O65: =IF(N65+1>'01. PC'!$C$37,0,N65+1) -> 8 | P65: 0 | Q65: =IF(P65+1>'01. PC'!$C$37,0,P65+1) -> 1 | R65: =IF(Q65+1>'01. PC'!$C$37,0,Q65+1) -> 2 | S65: =IF(R65+1>'01. PC'!$C$37,0,R65+1) -> 3 | T65: =IF(S65+1>'01. PC'!$C$37,0,S65+1) -> 4 | U65: =IF(T65+1>'01. PC'!$C$37,0,T65+1) -> 5 | V65: =IF(U65+1>'01. PC'!$C$37,0,U65+1) -> 6 | W65: =IF(V65+1>'01. PC'!$C$37,0,V65+1) -> 7
B66: BÁSICO | C66: 44 | D66: 7 | E66: =IF(D66+1>'01. PC'!$C$37,0,D66+1) -> 8 | F66: =IF(E66+1>'01. PC'!$C$37,0,E66+1) -> 9 | G66: =IF(F66+1>'01. PC'!$C$37,0,F66+1) -> 0 | H66: =IF(G66+1>'01. PC'!$C$37,0,G66+1) -> 1 | I66: =IF(H66+1>'01. PC'!$C$37,0,H66+1) -> 2 | J66: =IF(I66+1>'01. PC'!$C$37,0,I66+1) -> 3 | K66: =IF(J66+1>'01. PC'!$C$37,0,J66+1) -> 4 | L66: =IF(K66+1>'01. PC'!$C$37,0,K66+1) -> 5 | M66: =IF(L66+1>'01. PC'!$C$37,0,L66+1) -> 6 | N66: =IF(M66+1>'01. PC'!$C$37,0,M66+1) -> 7 | O66: =IF(N66+1>'01. PC'!$C$37,0,N66+1) -> 8 | P66: 0 | Q66: =IF(P66+1>'01. PC'!$C$37,0,P66+1) -> 1 | R66: =IF(Q66+1>'01. PC'!$C$37,0,Q66+1) -> 2 | S66: =IF(R66+1>'01. PC'!$C$37,0,R66+1) -> 3 | T66: =IF(S66+1>'01. PC'!$C$37,0,S66+1) -> 4 | U66: =IF(T66+1>'01. PC'!$C$37,0,T66+1) -> 5 | V66: =IF(U66+1>'01. PC'!$C$37,0,U66+1) -> 6 | W66: =IF(V66+1>'01. PC'!$C$37,0,V66+1) -> 7
B67: BÁSICO | C67: 45 | D67: 7 | E67: =IF(D67+1>'01. PC'!$C$37,0,D67+1) -> 8 | F67: =IF(E67+1>'01. PC'!$C$37,0,E67+1) -> 9 | G67: =IF(F67+1>'01. PC'!$C$37,0,F67+1) -> 0 | H67: =IF(G67+1>'01. PC'!$C$37,0,G67+1) -> 1 | I67: =IF(H67+1>'01. PC'!$C$37,0,H67+1) -> 2 | J67: =IF(I67+1>'01. PC'!$C$37,0,I67+1) -> 3 | K67: =IF(J67+1>'01. PC'!$C$37,0,J67+1) -> 4 | L67: =IF(K67+1>'01. PC'!$C$37,0,K67+1) -> 5 | M67: =IF(L67+1>'01. PC'!$C$37,0,L67+1) -> 6 | N67: =IF(M67+1>'01. PC'!$C$37,0,M67+1) -> 7 | O67: =IF(N67+1>'01. PC'!$C$37,0,N67+1) -> 8 | P67: 0 | Q67: =IF(P67+1>'01. PC'!$C$37,0,P67+1) -> 1 | R67: =IF(Q67+1>'01. PC'!$C$37,0,Q67+1) -> 2 | S67: =IF(R67+1>'01. PC'!$C$37,0,R67+1) -> 3 | T67: =IF(S67+1>'01. PC'!$C$37,0,S67+1) -> 4 | U67: =IF(T67+1>'01. PC'!$C$37,0,T67+1) -> 5 | V67: =IF(U67+1>'01. PC'!$C$37,0,U67+1) -> 6 | W67: =IF(V67+1>'01. PC'!$C$37,0,V67+1) -> 7
B68: BÁSICO | C68: 46 | D68: 7 | E68: =IF(D68+1>'01. PC'!$C$37,0,D68+1) -> 8 | F68: 0 | G68: =IF(F68+1>'01. PC'!$C$37,0,F68+1) -> 1 | H68: =IF(G68+1>'01. PC'!$C$37,0,G68+1) -> 2 | I68: =IF(H68+1>'01. PC'!$C$37,0,H68+1) -> 3 | J68: =IF(I68+1>'01. PC'!$C$37,0,I68+1) -> 4 | K68: =IF(J68+1>'01. PC'!$C$37,0,J68+1) -> 5 | L68: =IF(K68+1>'01. PC'!$C$37,0,K68+1) -> 6 | M68: =IF(L68+1>'01. PC'!$C$37,0,L68+1) -> 7 | N68: =IF(M68+1>'01. PC'!$C$37,0,M68+1) -> 8 | O68: =IF(N68+1>'01. PC'!$C$37,0,N68+1) -> 9 | P68: =IF(O68+1>'01. PC'!$C$37,0,O68+1) -> 0 | Q68: =IF(P68+1>'01. PC'!$C$37,0,P68+1) -> 1 | R68: =IF(Q68+1>'01. PC'!$C$37,0,Q68+1) -> 2 | S68: =IF(R68+1>'01. PC'!$C$37,0,R68+1) -> 3 | T68: =IF(S68+1>'01. PC'!$C$37,0,S68+1) -> 4 | U68: =IF(T68+1>'01. PC'!$C$37,0,T68+1) -> 5 | V68: =IF(U68+1>'01. PC'!$C$37,0,U68+1) -> 6 | W68: =IF(V68+1>'01. PC'!$C$37,0,V68+1) -> 7
B69: BÁSICO | C69: 47 | D69: 7 | E69: =IF(D69+1>'01. PC'!$C$37,0,D69+1) -> 8 | F69: 0 | G69: =IF(F69+1>'01. PC'!$C$37,0,F69+1) -> 1 | H69: =IF(G69+1>'01. PC'!$C$37,0,G69+1) -> 2 | I69: =IF(H69+1>'01. PC'!$C$37,0,H69+1) -> 3 | J69: =IF(I69+1>'01. PC'!$C$37,0,I69+1) -> 4 | K69: =IF(J69+1>'01. PC'!$C$37,0,J69+1) -> 5 | L69: =IF(K69+1>'01. PC'!$C$37,0,K69+1) -> 6 | M69: =IF(L69+1>'01. PC'!$C$37,0,L69+1) -> 7 | N69: =IF(M69+1>'01. PC'!$C$37,0,M69+1) -> 8 | O69: =IF(N69+1>'01. PC'!$C$37,0,N69+1) -> 9 | P69: =IF(O69+1>'01. PC'!$C$37,0,O69+1) -> 0 | Q69: =IF(P69+1>'01. PC'!$C$37,0,P69+1) -> 1 | R69: =IF(Q69+1>'01. PC'!$C$37,0,Q69+1) -> 2 | S69: =IF(R69+1>'01. PC'!$C$37,0,R69+1) -> 3 | T69: =IF(S69+1>'01. PC'!$C$37,0,S69+1) -> 4 | U69: =IF(T69+1>'01. PC'!$C$37,0,T69+1) -> 5 | V69: =IF(U69+1>'01. PC'!$C$37,0,U69+1) -> 6 | W69: =IF(V69+1>'01. PC'!$C$37,0,V69+1) -> 7
B70: BÁSICO | C70: 48 | D70: 7 | E70: =IF(D70+1>'01. PC'!$C$37,0,D70+1) -> 8 | F70: 0 | G70: =IF(F70+1>'01. PC'!$C$37,0,F70+1) -> 1 | H70: =IF(G70+1>'01. PC'!$C$37,0,G70+1) -> 2 | I70: =IF(H70+1>'01. PC'!$C$37,0,H70+1) -> 3 | J70: =IF(I70+1>'01. PC'!$C$37,0,I70+1) -> 4 | K70: =IF(J70+1>'01. PC'!$C$37,0,J70+1) -> 5 | L70: =IF(K70+1>'01. PC'!$C$37,0,K70+1) -> 6 | M70: =IF(L70+1>'01. PC'!$C$37,0,L70+1) -> 7 | N70: =IF(M70+1>'01. PC'!$C$37,0,M70+1) -> 8 | O70: =IF(N70+1>'01. PC'!$C$37,0,N70+1) -> 9 | P70: =IF(O70+1>'01. PC'!$C$37,0,O70+1) -> 0 | Q70: =IF(P70+1>'01. PC'!$C$37,0,P70+1) -> 1 | R70: =IF(Q70+1>'01. PC'!$C$37,0,Q70+1) -> 2 | S70: =IF(R70+1>'01. PC'!$C$37,0,R70+1) -> 3 | T70: =IF(S70+1>'01. PC'!$C$37,0,S70+1) -> 4 | U70: =IF(T70+1>'01. PC'!$C$37,0,T70+1) -> 5 | V70: =IF(U70+1>'01. PC'!$C$37,0,U70+1) -> 6 | W70: =IF(V70+1>'01. PC'!$C$37,0,V70+1) -> 7
B71: BÁSICO | C71: 49 | D71: 8 | E71: =IF(D71+1>'01. PC'!$C$37,0,D71+1) -> 9 | F71: =IF(E71+1>'01. PC'!$C$37,0,E71+1) -> 0 | G71: =IF(F71+1>'01. PC'!$C$37,0,F71+1) -> 1 | H71: =IF(G71+1>'01. PC'!$C$37,0,G71+1) -> 2 | I71: =IF(H71+1>'01. PC'!$C$37,0,H71+1) -> 3 | J71: =IF(I71+1>'01. PC'!$C$37,0,I71+1) -> 4 | K71: =IF(J71+1>'01. PC'!$C$37,0,J71+1) -> 5 | L71: =IF(K71+1>'01. PC'!$C$37,0,K71+1) -> 6 | M71: =IF(L71+1>'01. PC'!$C$37,0,L71+1) -> 7 | N71: =IF(M71+1>'01. PC'!$C$37,0,M71+1) -> 8 | O71: 0 | P71: =IF(O71+1>'01. PC'!$C$37,0,O71+1) -> 1 | Q71: =IF(P71+1>'01. PC'!$C$37,0,P71+1) -> 2 | R71: =IF(Q71+1>'01. PC'!$C$37,0,Q71+1) -> 3 | S71: =IF(R71+1>'01. PC'!$C$37,0,R71+1) -> 4 | T71: =IF(S71+1>'01. PC'!$C$37,0,S71+1) -> 5 | U71: =IF(T71+1>'01. PC'!$C$37,0,T71+1) -> 6 | V71: =IF(U71+1>'01. PC'!$C$37,0,U71+1) -> 7 | W71: =IF(V71+1>'01. PC'!$C$37,0,V71+1) -> 8
B72: BÁSICO | C72: 50 | D72: 8 | E72: =IF(D72+1>'01. PC'!$C$37,0,D72+1) -> 9 | F72: =IF(E72+1>'01. PC'!$C$37,0,E72+1) -> 0 | G72: =IF(F72+1>'01. PC'!$C$37,0,F72+1) -> 1 | H72: =IF(G72+1>'01. PC'!$C$37,0,G72+1) -> 2 | I72: =IF(H72+1>'01. PC'!$C$37,0,H72+1) -> 3 | J72: =IF(I72+1>'01. PC'!$C$37,0,I72+1) -> 4 | K72: =IF(J72+1>'01. PC'!$C$37,0,J72+1) -> 5 | L72: =IF(K72+1>'01. PC'!$C$37,0,K72+1) -> 6 | M72: =IF(L72+1>'01. PC'!$C$37,0,L72+1) -> 7 | N72: =IF(M72+1>'01. PC'!$C$37,0,M72+1) -> 8 | O72: 0 | P72: =IF(O72+1>'01. PC'!$C$37,0,O72+1) -> 1 | Q72: =IF(P72+1>'01. PC'!$C$37,0,P72+1) -> 2 | R72: =IF(Q72+1>'01. PC'!$C$37,0,Q72+1) -> 3 | S72: =IF(R72+1>'01. PC'!$C$37,0,R72+1) -> 4 | T72: =IF(S72+1>'01. PC'!$C$37,0,S72+1) -> 5 | U72: =IF(T72+1>'01. PC'!$C$37,0,T72+1) -> 6 | V72: =IF(U72+1>'01. PC'!$C$37,0,U72+1) -> 7 | W72: =IF(V72+1>'01. PC'!$C$37,0,V72+1) -> 8
B73: BÁSICO | C73: 51 | D73: 8 | E73: =IF(D73+1>'01. PC'!$C$37,0,D73+1) -> 9 | F73: =IF(E73+1>'01. PC'!$C$37,0,E73+1) -> 0 | G73: =IF(F73+1>'01. PC'!$C$37,0,F73+1) -> 1 | H73: =IF(G73+1>'01. PC'!$C$37,0,G73+1) -> 2 | I73: =IF(H73+1>'01. PC'!$C$37,0,H73+1) -> 3 | J73: =IF(I73+1>'01. PC'!$C$37,0,I73+1) -> 4 | K73: =IF(J73+1>'01. PC'!$C$37,0,J73+1) -> 5 | L73: =IF(K73+1>'01. PC'!$C$37,0,K73+1) -> 6 | M73: =IF(L73+1>'01. PC'!$C$37,0,L73+1) -> 7 | N73: =IF(M73+1>'01. PC'!$C$37,0,M73+1) -> 8 | O73: 0 | P73: =IF(O73+1>'01. PC'!$C$37,0,O73+1) -> 1 | Q73: =IF(P73+1>'01. PC'!$C$37,0,P73+1) -> 2 | R73: =IF(Q73+1>'01. PC'!$C$37,0,Q73+1) -> 3 | S73: =IF(R73+1>'01. PC'!$C$37,0,R73+1) -> 4 | T73: =IF(S73+1>'01. PC'!$C$37,0,S73+1) -> 5 | U73: =IF(T73+1>'01. PC'!$C$37,0,T73+1) -> 6 | V73: =IF(U73+1>'01. PC'!$C$37,0,U73+1) -> 7 | W73: =IF(V73+1>'01. PC'!$C$37,0,V73+1) -> 8
B74: BÁSICO | C74: 52 | D74: 8 | E74: 0 | F74: =IF(E74+1>'01. PC'!$C$37,0,E74+1) -> 1 | G74: =IF(F74+1>'01. PC'!$C$37,0,F74+1) -> 2 | H74: =IF(G74+1>'01. PC'!$C$37,0,G74+1) -> 3 | I74: =IF(H74+1>'01. PC'!$C$37,0,H74+1) -> 4 | J74: =IF(I74+1>'01. PC'!$C$37,0,I74+1) -> 5 | K74: =IF(J74+1>'01. PC'!$C$37,0,J74+1) -> 6 | L74: =IF(K74+1>'01. PC'!$C$37,0,K74+1) -> 7 | M74: =IF(L74+1>'01. PC'!$C$37,0,L74+1) -> 8 | N74: =IF(M74+1>'01. PC'!$C$37,0,M74+1) -> 9 | O74: =IF(N74+1>'01. PC'!$C$37,0,N74+1) -> 0 | P74: =IF(O74+1>'01. PC'!$C$37,0,O74+1) -> 1 | Q74: =IF(P74+1>'01. PC'!$C$37,0,P74+1) -> 2 | R74: =IF(Q74+1>'01. PC'!$C$37,0,Q74+1) -> 3 | S74: =IF(R74+1>'01. PC'!$C$37,0,R74+1) -> 4 | T74: =IF(S74+1>'01. PC'!$C$37,0,S74+1) -> 5 | U74: =IF(T74+1>'01. PC'!$C$37,0,T74+1) -> 6 | V74: =IF(U74+1>'01. PC'!$C$37,0,U74+1) -> 7 | W74: =IF(V74+1>'01. PC'!$C$37,0,V74+1) -> 8
B75: BÁSICO | C75: 53 | D75: 8 | E75: 0 | F75: =IF(E75+1>'01. PC'!$C$37,0,E75+1) -> 1 | G75: =IF(F75+1>'01. PC'!$C$37,0,F75+1) -> 2 | H75: =IF(G75+1>'01. PC'!$C$37,0,G75+1) -> 3 | I75: =IF(H75+1>'01. PC'!$C$37,0,H75+1) -> 4 | J75: =IF(I75+1>'01. PC'!$C$37,0,I75+1) -> 5 | K75: =IF(J75+1>'01. PC'!$C$37,0,J75+1) -> 6 | L75: =IF(K75+1>'01. PC'!$C$37,0,K75+1) -> 7 | M75: =IF(L75+1>'01. PC'!$C$37,0,L75+1) -> 8 | N75: =IF(M75+1>'01. PC'!$C$37,0,M75+1) -> 9 | O75: =IF(N75+1>'01. PC'!$C$37,0,N75+1) -> 0 | P75: =IF(O75+1>'01. PC'!$C$37,0,O75+1) -> 1 | Q75: =IF(P75+1>'01. PC'!$C$37,0,P75+1) -> 2 | R75: =IF(Q75+1>'01. PC'!$C$37,0,Q75+1) -> 3 | S75: =IF(R75+1>'01. PC'!$C$37,0,R75+1) -> 4 | T75: =IF(S75+1>'01. PC'!$C$37,0,S75+1) -> 5 | U75: =IF(T75+1>'01. PC'!$C$37,0,T75+1) -> 6 | V75: =IF(U75+1>'01. PC'!$C$37,0,U75+1) -> 7 | W75: =IF(V75+1>'01. PC'!$C$37,0,V75+1) -> 8
B76: BÁSICO | C76: 54 | D76: 8 | E76: 0 | F76: =IF(E76+1>'01. PC'!$C$37,0,E76+1) -> 1 | G76: =IF(F76+1>'01. PC'!$C$37,0,F76+1) -> 2 | H76: =IF(G76+1>'01. PC'!$C$37,0,G76+1) -> 3 | I76: =IF(H76+1>'01. PC'!$C$37,0,H76+1) -> 4 | J76: =IF(I76+1>'01. PC'!$C$37,0,I76+1) -> 5 | K76: =IF(J76+1>'01. PC'!$C$37,0,J76+1) -> 6 | L76: =IF(K76+1>'01. PC'!$C$37,0,K76+1) -> 7 | M76: =IF(L76+1>'01. PC'!$C$37,0,L76+1) -> 8 | N76: =IF(M76+1>'01. PC'!$C$37,0,M76+1) -> 9 | O76: =IF(N76+1>'01. PC'!$C$37,0,N76+1) -> 0 | P76: =IF(O76+1>'01. PC'!$C$37,0,O76+1) -> 1 | Q76: =IF(P76+1>'01. PC'!$C$37,0,P76+1) -> 2 | R76: =IF(Q76+1>'01. PC'!$C$37,0,Q76+1) -> 3 | S76: =IF(R76+1>'01. PC'!$C$37,0,R76+1) -> 4 | T76: =IF(S76+1>'01. PC'!$C$37,0,S76+1) -> 5 | U76: =IF(T76+1>'01. PC'!$C$37,0,T76+1) -> 6 | V76: =IF(U76+1>'01. PC'!$C$37,0,U76+1) -> 7 | W76: =IF(V76+1>'01. PC'!$C$37,0,V76+1) -> 8
B77: BÁSICO | C77: 55 | D77: 9 | E77: =IF(D77+1>'01. PC'!$C$37,0,D77+1) -> 0 | F77: =IF(E77+1>'01. PC'!$C$37,0,E77+1) -> 1 | G77: =IF(F77+1>'01. PC'!$C$37,0,F77+1) -> 2 | H77: =IF(G77+1>'01. PC'!$C$37,0,G77+1) -> 3 | I77: =IF(H77+1>'01. PC'!$C$37,0,H77+1) -> 4 | J77: =IF(I77+1>'01. PC'!$C$37,0,I77+1) -> 5 | K77: =IF(J77+1>'01. PC'!$C$37,0,J77+1) -> 6 | L77: =IF(K77+1>'01. PC'!$C$37,0,K77+1) -> 7 | M77: =IF(L77+1>'01. PC'!$C$37,0,L77+1) -> 8 | N77: 0 | O77: =IF(N77+1>'01. PC'!$C$37,0,N77+1) -> 1 | P77: =IF(O77+1>'01. PC'!$C$37,0,O77+1) -> 2 | Q77: =IF(P77+1>'01. PC'!$C$37,0,P77+1) -> 3 | R77: =IF(Q77+1>'01. PC'!$C$37,0,Q77+1) -> 4 | S77: =IF(R77+1>'01. PC'!$C$37,0,R77+1) -> 5 | T77: =IF(S77+1>'01. PC'!$C$37,0,S77+1) -> 6 | U77: =IF(T77+1>'01. PC'!$C$37,0,T77+1) -> 7 | V77: =IF(U77+1>'01. PC'!$C$37,0,U77+1) -> 8 | W77: =IF(V77+1>'01. PC'!$C$37,0,V77+1) -> 9
B78: BÁSICO | C78: 56 | D78: 9 | E78: =IF(D78+1>'01. PC'!$C$37,0,D78+1) -> 0 | F78: =IF(E78+1>'01. PC'!$C$37,0,E78+1) -> 1 | G78: =IF(F78+1>'01. PC'!$C$37,0,F78+1) -> 2 | H78: =IF(G78+1>'01. PC'!$C$37,0,G78+1) -> 3 | I78: =IF(H78+1>'01. PC'!$C$37,0,H78+1) -> 4 | J78: =IF(I78+1>'01. PC'!$C$37,0,I78+1) -> 5 | K78: =IF(J78+1>'01. PC'!$C$37,0,J78+1) -> 6 | L78: =IF(K78+1>'01. PC'!$C$37,0,K78+1) -> 7 | M78: =IF(L78+1>'01. PC'!$C$37,0,L78+1) -> 8 | N78: 0 | O78: =IF(N78+1>'01. PC'!$C$37,0,N78+1) -> 1 | P78: =IF(O78+1>'01. PC'!$C$37,0,O78+1) -> 2 | Q78: =IF(P78+1>'01. PC'!$C$37,0,P78+1) -> 3 | R78: =IF(Q78+1>'01. PC'!$C$37,0,Q78+1) -> 4 | S78: =IF(R78+1>'01. PC'!$C$37,0,R78+1) -> 5 | T78: =IF(S78+1>'01. PC'!$C$37,0,S78+1) -> 6 | U78: =IF(T78+1>'01. PC'!$C$37,0,T78+1) -> 7 | V78: =IF(U78+1>'01. PC'!$C$37,0,U78+1) -> 8 | W78: =IF(V78+1>'01. PC'!$C$37,0,V78+1) -> 9
B79: BÁSICO | C79: 57 | D79: 9 | E79: =IF(D79+1>'01. PC'!$C$37,0,D79+1) -> 0 | F79: =IF(E79+1>'01. PC'!$C$37,0,E79+1) -> 1 | G79: =IF(F79+1>'01. PC'!$C$37,0,F79+1) -> 2 | H79: =IF(G79+1>'01. PC'!$C$37,0,G79+1) -> 3 | I79: =IF(H79+1>'01. PC'!$C$37,0,H79+1) -> 4 | J79: =IF(I79+1>'01. PC'!$C$37,0,I79+1) -> 5 | K79: =IF(J79+1>'01. PC'!$C$37,0,J79+1) -> 6 | L79: =IF(K79+1>'01. PC'!$C$37,0,K79+1) -> 7 | M79: =IF(L79+1>'01. PC'!$C$37,0,L79+1) -> 8 | N79: 0 | O79: =IF(N79+1>'01. PC'!$C$37,0,N79+1) -> 1 | P79: =IF(O79+1>'01. PC'!$C$37,0,O79+1) -> 2 | Q79: =IF(P79+1>'01. PC'!$C$37,0,P79+1) -> 3 | R79: =IF(Q79+1>'01. PC'!$C$37,0,Q79+1) -> 4 | S79: =IF(R79+1>'01. PC'!$C$37,0,R79+1) -> 5 | T79: =IF(S79+1>'01. PC'!$C$37,0,S79+1) -> 6 | U79: =IF(T79+1>'01. PC'!$C$37,0,T79+1) -> 7 | V79: =IF(U79+1>'01. PC'!$C$37,0,U79+1) -> 8 | W79: =IF(V79+1>'01. PC'!$C$37,0,V79+1) -> 9
B80: QUANTIDADE | D80: =COUNT(D23:D79) -> 57 | E80: 57 | F80: 57 | G80: 57 | H80: 57 | I80: 57 | J80: 57 | K80: 57 | L80: 57 | M80: 57 | N80: 57 | O80: 57 | P80: 57 | Q80: 57 | R80: 57 | S80: 57 | T80: 57 | U80: 57 | V80: 57 | W80: 57
B82: IDADE - MIDI
B83: TIPO | C83: QUANT. | D83: 1 | E83: =D83+1 -> 2 | F83: =E83+1 -> 3 | G83: 4 | H83: 5 | I83: 6 | J83: 7 | K83: 8 | L83: 9 | M83: 10 | N83: 11 | O83: 12 | P83: 13 | Q83: 14 | R83: 15 | S83: 16 | T83: 17 | U83: 18 | V83: 19 | W83: 20
B84: MIDI | C84: 1 | D84: 0 | E84: =IF(D84+1>'01. PC'!$C$39,0,D84+1) -> 1 | F84: =IF(E84+1>'01. PC'!$C$39,0,E84+1) -> 2 | G84: =IF(F84+1>'01. PC'!$C$39,0,F84+1) -> 3 | H84: =IF(G84+1>'01. PC'!$C$39,0,G84+1) -> 4 | I84: =IF(H84+1>'01. PC'!$C$39,0,H84+1) -> 5 | J84: =IF(I84+1>'01. PC'!$C$39,0,I84+1) -> 6 | K84: =IF(J84+1>'01. PC'!$C$39,0,J84+1) -> 7 | L84: =IF(K84+1>'01. PC'!$C$39,0,K84+1) -> 8 | M84: =IF(L84+1>'01. PC'!$C$39,0,L84+1) -> 9 | N84: =IF(M84+1>'01. PC'!$C$39,0,M84+1) -> 10 | O84: =IF(N84+1>'01. PC'!$C$39,0,N84+1) -> 0 | P84: =IF(O84+1>'01. PC'!$C$39,0,O84+1) -> 1 | Q84: =IF(P84+1>'01. PC'!$C$39,0,P84+1) -> 2 | R84: =IF(Q84+1>'01. PC'!$C$39,0,Q84+1) -> 3 | S84: =IF(R84+1>'01. PC'!$C$39,0,R84+1) -> 4 | T84: =IF(S84+1>'01. PC'!$C$39,0,S84+1) -> 5 | U84: =IF(T84+1>'01. PC'!$C$39,0,T84+1) -> 6 | V84: =IF(U84+1>'01. PC'!$C$39,0,U84+1) -> 7 | W84: =IF(V84+1>'01. PC'!$C$39,0,V84+1) -> 8
B85: MIDI | C85: =C84+1 -> 2 | D85: 1 | E85: =IF(D85+1>'01. PC'!$C$39,0,D85+1) -> 2 | F85: =IF(E85+1>'01. PC'!$C$39,0,E85+1) -> 3 | G85: =IF(F85+1>'01. PC'!$C$39,0,F85+1) -> 4 | H85: =IF(G85+1>'01. PC'!$C$39,0,G85+1) -> 5 | I85: =IF(H85+1>'01. PC'!$C$39,0,H85+1) -> 6 | J85: =IF(I85+1>'01. PC'!$C$39,0,I85+1) -> 7 | K85: =IF(J85+1>'01. PC'!$C$39,0,J85+1) -> 8 | L85: =IF(K85+1>'01. PC'!$C$39,0,K85+1) -> 9 | M85: =IF(L85+1>'01. PC'!$C$39,0,L85+1) -> 10 | N85: =IF(M85+1>'01. PC'!$C$39,0,M85+1) -> 0 | O85: =IF(N85+1>'01. PC'!$C$39,0,N85+1) -> 1 | P85: =IF(O85+1>'01. PC'!$C$39,0,O85+1) -> 2 | Q85: =IF(P85+1>'01. PC'!$C$39,0,P85+1) -> 3 | R85: =IF(Q85+1>'01. PC'!$C$39,0,Q85+1) -> 4 | S85: =IF(R85+1>'01. PC'!$C$39,0,R85+1) -> 5 | T85: =IF(S85+1>'01. PC'!$C$39,0,S85+1) -> 6 | U85: =IF(T85+1>'01. PC'!$C$39,0,T85+1) -> 7 | V85: =IF(U85+1>'01. PC'!$C$39,0,U85+1) -> 8 | W85: =IF(V85+1>'01. PC'!$C$39,0,V85+1) -> 9
B86: MIDI | C86: 3 | D86: 2 | E86: =IF(D86+1>'01. PC'!$C$39,0,D86+1) -> 3 | F86: =IF(E86+1>'01. PC'!$C$39,0,E86+1) -> 4 | G86: =IF(F86+1>'01. PC'!$C$39,0,F86+1) -> 5 | H86: =IF(G86+1>'01. PC'!$C$39,0,G86+1) -> 6 | I86: =IF(H86+1>'01. PC'!$C$39,0,H86+1) -> 7 | J86: =IF(I86+1>'01. PC'!$C$39,0,I86+1) -> 8 | K86: =IF(J86+1>'01. PC'!$C$39,0,J86+1) -> 9 | L86: =IF(K86+1>'01. PC'!$C$39,0,K86+1) -> 10 | M86: =IF(L86+1>'01. PC'!$C$39,0,L86+1) -> 0 | N86: =IF(M86+1>'01. PC'!$C$39,0,M86+1) -> 1 | O86: =IF(N86+1>'01. PC'!$C$39,0,N86+1) -> 2 | P86: =IF(O86+1>'01. PC'!$C$39,0,O86+1) -> 3 | Q86: =IF(P86+1>'01. PC'!$C$39,0,P86+1) -> 4 | R86: =IF(Q86+1>'01. PC'!$C$39,0,Q86+1) -> 5 | S86: =IF(R86+1>'01. PC'!$C$39,0,R86+1) -> 6 | T86: =IF(S86+1>'01. PC'!$C$39,0,S86+1) -> 7 | U86: =IF(T86+1>'01. PC'!$C$39,0,T86+1) -> 8 | V86: =IF(U86+1>'01. PC'!$C$39,0,U86+1) -> 9 | W86: =IF(V86+1>'01. PC'!$C$39,0,V86+1) -> 10
B87: MIDI | C87: 4 | D87: 3 | E87: =IF(D87+1>'01. PC'!$C$39,0,D87+1) -> 4 | F87: =IF(E87+1>'01. PC'!$C$39,0,E87+1) -> 5 | G87: =IF(F87+1>'01. PC'!$C$39,0,F87+1) -> 6 | H87: =IF(G87+1>'01. PC'!$C$39,0,G87+1) -> 7 | I87: =IF(H87+1>'01. PC'!$C$39,0,H87+1) -> 8 | J87: =IF(I87+1>'01. PC'!$C$39,0,I87+1) -> 9 | K87: =IF(J87+1>'01. PC'!$C$39,0,J87+1) -> 10 | L87: =IF(K87+1>'01. PC'!$C$39,0,K87+1) -> 0 | M87: =IF(L87+1>'01. PC'!$C$39,0,L87+1) -> 1 | N87: =IF(M87+1>'01. PC'!$C$39,0,M87+1) -> 2 | O87: =IF(N87+1>'01. PC'!$C$39,0,N87+1) -> 3 | P87: =IF(O87+1>'01. PC'!$C$39,0,O87+1) -> 4 | Q87: =IF(P87+1>'01. PC'!$C$39,0,P87+1) -> 5 | R87: =IF(Q87+1>'01. PC'!$C$39,0,Q87+1) -> 6 | S87: =IF(R87+1>'01. PC'!$C$39,0,R87+1) -> 7 | T87: =IF(S87+1>'01. PC'!$C$39,0,S87+1) -> 8 | U87: =IF(T87+1>'01. PC'!$C$39,0,T87+1) -> 9 | V87: =IF(U87+1>'01. PC'!$C$39,0,U87+1) -> 10 | W87: =IF(V87+1>'01. PC'!$C$39,0,V87+1) -> 0
B88: MIDI | C88: 5 | D88: 4 | E88: =IF(D88+1>'01. PC'!$C$39,0,D88+1) -> 5 | F88: =IF(E88+1>'01. PC'!$C$39,0,E88+1) -> 6 | G88: =IF(F88+1>'01. PC'!$C$39,0,F88+1) -> 7 | H88: =IF(G88+1>'01. PC'!$C$39,0,G88+1) -> 8 | I88: =IF(H88+1>'01. PC'!$C$39,0,H88+1) -> 9 | J88: =IF(I88+1>'01. PC'!$C$39,0,I88+1) -> 10 | K88: =IF(J88+1>'01. PC'!$C$39,0,J88+1) -> 0 | L88: =IF(K88+1>'01. PC'!$C$39,0,K88+1) -> 1 | M88: =IF(L88+1>'01. PC'!$C$39,0,L88+1) -> 2 | N88: =IF(M88+1>'01. PC'!$C$39,0,M88+1) -> 3 | O88: =IF(N88+1>'01. PC'!$C$39,0,N88+1) -> 4 | P88: =IF(O88+1>'01. PC'!$C$39,0,O88+1) -> 5 | Q88: =IF(P88+1>'01. PC'!$C$39,0,P88+1) -> 6 | R88: =IF(Q88+1>'01. PC'!$C$39,0,Q88+1) -> 7 | S88: =IF(R88+1>'01. PC'!$C$39,0,R88+1) -> 8 | T88: =IF(S88+1>'01. PC'!$C$39,0,S88+1) -> 9 | U88: =IF(T88+1>'01. PC'!$C$39,0,T88+1) -> 10 | V88: =IF(U88+1>'01. PC'!$C$39,0,U88+1) -> 0 | W88: =IF(V88+1>'01. PC'!$C$39,0,V88+1) -> 1
B89: MIDI | C89: 6 | D89: 5 | E89: =IF(D89+1>'01. PC'!$C$39,0,D89+1) -> 6 | F89: =IF(E89+1>'01. PC'!$C$39,0,E89+1) -> 7 | G89: =IF(F89+1>'01. PC'!$C$39,0,F89+1) -> 8 | H89: =IF(G89+1>'01. PC'!$C$39,0,G89+1) -> 9 | I89: =IF(H89+1>'01. PC'!$C$39,0,H89+1) -> 10 | J89: =IF(I89+1>'01. PC'!$C$39,0,I89+1) -> 0 | K89: =IF(J89+1>'01. PC'!$C$39,0,J89+1) -> 1 | L89: =IF(K89+1>'01. PC'!$C$39,0,K89+1) -> 2 | M89: =IF(L89+1>'01. PC'!$C$39,0,L89+1) -> 3 | N89: =IF(M89+1>'01. PC'!$C$39,0,M89+1) -> 4 | O89: =IF(N89+1>'01. PC'!$C$39,0,N89+1) -> 5 | P89: =IF(O89+1>'01. PC'!$C$39,0,O89+1) -> 6 | Q89: =IF(P89+1>'01. PC'!$C$39,0,P89+1) -> 7 | R89: =IF(Q89+1>'01. PC'!$C$39,0,Q89+1) -> 8 | S89: =IF(R89+1>'01. PC'!$C$39,0,R89+1) -> 9 | T89: =IF(S89+1>'01. PC'!$C$39,0,S89+1) -> 10 | U89: =IF(T89+1>'01. PC'!$C$39,0,T89+1) -> 0 | V89: =IF(U89+1>'01. PC'!$C$39,0,U89+1) -> 1 | W89: =IF(V89+1>'01. PC'!$C$39,0,V89+1) -> 2
B90: MIDI | C90: 7 | D90: 6 | E90: =IF(D90+1>'01. PC'!$C$39,0,D90+1) -> 7 | F90: =IF(E90+1>'01. PC'!$C$39,0,E90+1) -> 8 | G90: =IF(F90+1>'01. PC'!$C$39,0,F90+1) -> 9 | H90: =IF(G90+1>'01. PC'!$C$39,0,G90+1) -> 10 | I90: =IF(H90+1>'01. PC'!$C$39,0,H90+1) -> 0 | J90: =IF(I90+1>'01. PC'!$C$39,0,I90+1) -> 1 | K90: =IF(J90+1>'01. PC'!$C$39,0,J90+1) -> 2 | L90: =IF(K90+1>'01. PC'!$C$39,0,K90+1) -> 3 | M90: =IF(L90+1>'01. PC'!$C$39,0,L90+1) -> 4 | N90: =IF(M90+1>'01. PC'!$C$39,0,M90+1) -> 5 | O90: =IF(N90+1>'01. PC'!$C$39,0,N90+1) -> 6 | P90: =IF(O90+1>'01. PC'!$C$39,0,O90+1) -> 7 | Q90: =IF(P90+1>'01. PC'!$C$39,0,P90+1) -> 8 | R90: =IF(Q90+1>'01. PC'!$C$39,0,Q90+1) -> 9 | S90: =IF(R90+1>'01. PC'!$C$39,0,R90+1) -> 10 | T90: =IF(S90+1>'01. PC'!$C$39,0,S90+1) -> 0 | U90: =IF(T90+1>'01. PC'!$C$39,0,T90+1) -> 1 | V90: =IF(U90+1>'01. PC'!$C$39,0,U90+1) -> 2 | W90: =IF(V90+1>'01. PC'!$C$39,0,V90+1) -> 3
B91: MIDI | C91: 8 | D91: 7 | E91: =IF(D91+1>'01. PC'!$C$39,0,D91+1) -> 8 | F91: =IF(E91+1>'01. PC'!$C$39,0,E91+1) -> 9 | G91: =IF(F91+1>'01. PC'!$C$39,0,F91+1) -> 10 | H91: =IF(G91+1>'01. PC'!$C$39,0,G91+1) -> 0 | I91: =IF(H91+1>'01. PC'!$C$39,0,H91+1) -> 1 | J91: =IF(I91+1>'01. PC'!$C$39,0,I91+1) -> 2 | K91: =IF(J91+1>'01. PC'!$C$39,0,J91+1) -> 3 | L91: =IF(K91+1>'01. PC'!$C$39,0,K91+1) -> 4 | M91: =IF(L91+1>'01. PC'!$C$39,0,L91+1) -> 5 | N91: =IF(M91+1>'01. PC'!$C$39,0,M91+1) -> 6 | O91: =IF(N91+1>'01. PC'!$C$39,0,N91+1) -> 7 | P91: =IF(O91+1>'01. PC'!$C$39,0,O91+1) -> 8 | Q91: =IF(P91+1>'01. PC'!$C$39,0,P91+1) -> 9 | R91: =IF(Q91+1>'01. PC'!$C$39,0,Q91+1) -> 10 | S91: =IF(R91+1>'01. PC'!$C$39,0,R91+1) -> 0 | T91: =IF(S91+1>'01. PC'!$C$39,0,S91+1) -> 1 | U91: =IF(T91+1>'01. PC'!$C$39,0,T91+1) -> 2 | V91: =IF(U91+1>'01. PC'!$C$39,0,U91+1) -> 3 | W91: =IF(V91+1>'01. PC'!$C$39,0,V91+1) -> 4
B92: MIDI | C92: 9 | D92: 8 | E92: =IF(D92+1>'01. PC'!$C$39,0,D92+1) -> 9 | F92: =IF(E92+1>'01. PC'!$C$39,0,E92+1) -> 10 | G92: =IF(F92+1>'01. PC'!$C$39,0,F92+1) -> 0 | H92: =IF(G92+1>'01. PC'!$C$39,0,G92+1) -> 1 | I92: =IF(H92+1>'01. PC'!$C$39,0,H92+1) -> 2 | J92: =IF(I92+1>'01. PC'!$C$39,0,I92+1) -> 3 | K92: =IF(J92+1>'01. PC'!$C$39,0,J92+1) -> 4 | L92: =IF(K92+1>'01. PC'!$C$39,0,K92+1) -> 5 | M92: =IF(L92+1>'01. PC'!$C$39,0,L92+1) -> 6 | N92: =IF(M92+1>'01. PC'!$C$39,0,M92+1) -> 7 | O92: =IF(N92+1>'01. PC'!$C$39,0,N92+1) -> 8 | P92: =IF(O92+1>'01. PC'!$C$39,0,O92+1) -> 9 | Q92: =IF(P92+1>'01. PC'!$C$39,0,P92+1) -> 10 | R92: =IF(Q92+1>'01. PC'!$C$39,0,Q92+1) -> 0 | S92: =IF(R92+1>'01. PC'!$C$39,0,R92+1) -> 1 | T92: =IF(S92+1>'01. PC'!$C$39,0,S92+1) -> 2 | U92: =IF(T92+1>'01. PC'!$C$39,0,T92+1) -> 3 | V92: =IF(U92+1>'01. PC'!$C$39,0,U92+1) -> 4 | W92: =IF(V92+1>'01. PC'!$C$39,0,V92+1) -> 5
B93: MIDI | C93: 10 | D93: 9 | E93: =IF(D93+1>'01. PC'!$C$39,0,D93+1) -> 10 | F93: =IF(E93+1>'01. PC'!$C$39,0,E93+1) -> 0 | G93: =IF(F93+1>'01. PC'!$C$39,0,F93+1) -> 1 | H93: =IF(G93+1>'01. PC'!$C$39,0,G93+1) -> 2 | I93: =IF(H93+1>'01. PC'!$C$39,0,H93+1) -> 3 | J93: =IF(I93+1>'01. PC'!$C$39,0,I93+1) -> 4 | K93: =IF(J93+1>'01. PC'!$C$39,0,J93+1) -> 5 | L93: =IF(K93+1>'01. PC'!$C$39,0,K93+1) -> 6 | M93: =IF(L93+1>'01. PC'!$C$39,0,L93+1) -> 7 | N93: =IF(M93+1>'01. PC'!$C$39,0,M93+1) -> 8 | O93: =IF(N93+1>'01. PC'!$C$39,0,N93+1) -> 9 | P93: =IF(O93+1>'01. PC'!$C$39,0,O93+1) -> 10 | Q93: =IF(P93+1>'01. PC'!$C$39,0,P93+1) -> 0 | R93: =IF(Q93+1>'01. PC'!$C$39,0,Q93+1) -> 1 | S93: =IF(R93+1>'01. PC'!$C$39,0,R93+1) -> 2 | T93: =IF(S93+1>'01. PC'!$C$39,0,S93+1) -> 3 | U93: =IF(T93+1>'01. PC'!$C$39,0,T93+1) -> 4 | V93: =IF(U93+1>'01. PC'!$C$39,0,U93+1) -> 5 | W93: =IF(V93+1>'01. PC'!$C$39,0,V93+1) -> 6
B94: MIDI | C94: 11 | D94: 10 | E94: =IF(D94+1>'01. PC'!$C$39,0,D94+1) -> 0 | F94: =IF(E94+1>'01. PC'!$C$39,0,E94+1) -> 1 | G94: =IF(F94+1>'01. PC'!$C$39,0,F94+1) -> 2 | H94: =IF(G94+1>'01. PC'!$C$39,0,G94+1) -> 3 | I94: =IF(H94+1>'01. PC'!$C$39,0,H94+1) -> 4 | J94: =IF(I94+1>'01. PC'!$C$39,0,I94+1) -> 5 | K94: =IF(J94+1>'01. PC'!$C$39,0,J94+1) -> 6 | L94: =IF(K94+1>'01. PC'!$C$39,0,K94+1) -> 7 | M94: =IF(L94+1>'01. PC'!$C$39,0,L94+1) -> 8 | N94: =IF(M94+1>'01. PC'!$C$39,0,M94+1) -> 9 | O94: =IF(N94+1>'01. PC'!$C$39,0,N94+1) -> 10 | P94: =IF(O94+1>'01. PC'!$C$39,0,O94+1) -> 0 | Q94: =IF(P94+1>'01. PC'!$C$39,0,P94+1) -> 1 | R94: =IF(Q94+1>'01. PC'!$C$39,0,Q94+1) -> 2 | S94: =IF(R94+1>'01. PC'!$C$39,0,R94+1) -> 3 | T94: =IF(S94+1>'01. PC'!$C$39,0,S94+1) -> 4 | U94: =IF(T94+1>'01. PC'!$C$39,0,T94+1) -> 5 | V94: =IF(U94+1>'01. PC'!$C$39,0,U94+1) -> 6 | W94: =IF(V94+1>'01. PC'!$C$39,0,V94+1) -> 7
B95: QUANTIDADE | D95: =COUNT(D84:D94) -> 11 | E95: =COUNT(E84:E94) -> 11 | F95: 11 | G95: 11 | H95: 11 | I95: 11 | J95: 11 | K95: 11 | L95: 11 | M95: 11 | N95: 11 | O95: 11 | P95: 11 | Q95: 11 | R95: 11 | S95: 11 | T95: 11 | U95: 11 | V95: 11 | W95: 11
B97: IDADE - ARTICUL. DIESEL
B98: TIPO | C98: QUANT. | D98: 1 | E98: =D98+1 -> 2 | F98: =E98+1 -> 3 | G98: 4 | H98: 5 | I98: 6 | J98: 7 | K98: 8 | L98: 9 | M98: 10 | N98: 11 | O98: 12 | P98: 13 | Q98: 14 | R98: 15 | S98: 16 | T98: 17 | U98: 18 | V98: 19 | W98: 20
B99: ARTICUL. DIESEL | C99: 1 | D99: 0 | E99: =IF(D99+1>'01. PC'!$C$41,0,D99+1) -> 1 | F99: =IF(E99+1>'01. PC'!$C$41,0,E99+1) -> 2 | G99: =IF(F99+1>'01. PC'!$C$41,0,F99+1) -> 3 | H99: =IF(G99+1>'01. PC'!$C$41,0,G99+1) -> 4 | I99: =IF(H99+1>'01. PC'!$C$41,0,H99+1) -> 5 | J99: =IF(I99+1>'01. PC'!$C$41,0,I99+1) -> 6 | K99: =IF(J99+1>'01. PC'!$C$41,0,J99+1) -> 7 | L99: =IF(K99+1>'01. PC'!$C$41,0,K99+1) -> 8 | M99: =IF(L99+1>'01. PC'!$C$41,0,L99+1) -> 9 | N99: =IF(M99+1>'01. PC'!$C$41,0,M99+1) -> 10 | O99: =IF(N99+1>'01. PC'!$C$41,0,N99+1) -> 11
B100: ARTICUL. DIESEL | C100: =C99+1 -> 2 | D100: 1 | E100: =IF(D100+1>'01. PC'!$C$41,0,D100+1) -> 2 | F100: =IF(E100+1>'01. PC'!$C$41,0,E100+1) -> 3 | G100: =IF(F100+1>'01. PC'!$C$41,0,F100+1) -> 4 | H100: =IF(G100+1>'01. PC'!$C$41,0,G100+1) -> 5 | I100: =IF(H100+1>'01. PC'!$C$41,0,H100+1) -> 6 | J100: =IF(I100+1>'01. PC'!$C$41,0,I100+1) -> 7 | K100: =IF(J100+1>'01. PC'!$C$41,0,J100+1) -> 8 | L100: =IF(K100+1>'01. PC'!$C$41,0,K100+1) -> 9 | M100: =IF(L100+1>'01. PC'!$C$41,0,L100+1) -> 10 | V100: 0 | W100: =IF(V100+1>'01. PC'!$C$41,0,V100+1) -> 1
B101: ARTICUL. DIESEL | C101: =C100+1 -> 3 | D101: 2 | E101: =IF(D101+1>'01. PC'!$C$41,0,D101+1) -> 3 | F101: =IF(E101+1>'01. PC'!$C$41,0,E101+1) -> 4 | G101: =IF(F101+1>'01. PC'!$C$41,0,F101+1) -> 5 | H101: =IF(G101+1>'01. PC'!$C$41,0,G101+1) -> 6 | I101: =IF(H101+1>'01. PC'!$C$41,0,H101+1) -> 7 | J101: =IF(I101+1>'01. PC'!$C$41,0,I101+1) -> 8 | K101: =IF(J101+1>'01. PC'!$C$41,0,J101+1) -> 9 | T101: 0 | U101: =IF(T101+1>'01. PC'!$C$41,0,T101+1) -> 1 | V101: =IF(U101+1>'01. PC'!$C$41,0,U101+1) -> 2 | W101: =IF(V101+1>'01. PC'!$C$41,0,V101+1) -> 3
B102: ARTICUL. DIESEL | C102: 4 | D102: 3 | E102: =IF(D102+1>'01. PC'!$C$41,0,D102+1) -> 4 | F102: =IF(E102+1>'01. PC'!$C$41,0,E102+1) -> 5 | G102: =IF(F102+1>'01. PC'!$C$41,0,F102+1) -> 6 | H102: =IF(G102+1>'01. PC'!$C$41,0,G102+1) -> 7 | I102: =IF(H102+1>'01. PC'!$C$41,0,H102+1) -> 8 | R102: 0 | S102: =IF(R102+1>'01. PC'!$C$41,0,R102+1) -> 1 | T102: =IF(S102+1>'01. PC'!$C$41,0,S102+1) -> 2 | U102: =IF(T102+1>'01. PC'!$C$41,0,T102+1) -> 3 | V102: =IF(U102+1>'01. PC'!$C$41,0,U102+1) -> 4 | W102: =IF(V102+1>'01. PC'!$C$41,0,V102+1) -> 5
B103: ARTICUL. DIESEL | C103: 5 | D103: 4 | E103: =IF(D103+1>'01. PC'!$C$41,0,D103+1) -> 5 | F103: =IF(E103+1>'01. PC'!$C$41,0,E103+1) -> 6 | G103: =IF(F103+1>'01. PC'!$C$41,0,F103+1) -> 7 | P103: 0 | Q103: =IF(P103+1>'01. PC'!$C$41,0,P103+1) -> 1 | R103: =IF(Q103+1>'01. PC'!$C$41,0,Q103+1) -> 2 | S103: =IF(R103+1>'01. PC'!$C$41,0,R103+1) -> 3 | T103: =IF(S103+1>'01. PC'!$C$41,0,S103+1) -> 4 | U103: =IF(T103+1>'01. PC'!$C$41,0,T103+1) -> 5 | V103: =IF(U103+1>'01. PC'!$C$41,0,U103+1) -> 6 | W103: =IF(V103+1>'01. PC'!$C$41,0,V103+1) -> 7
B104: ARTICUL. DIESEL | C104: 6 | D104: 5 | E104: =IF(D104+1>'01. PC'!$C$41,0,D104+1) -> 6 | F104: =IF(E104+1>'01. PC'!$C$41,0,E104+1) -> 7 | G104: =IF(F104+1>'01. PC'!$C$41,0,F104+1) -> 8 | N104: 0 | O104: =IF(N104+1>'01. PC'!$C$41,0,N104+1) -> 1 | P104: =IF(O104+1>'01. PC'!$C$41,0,O104+1) -> 2 | Q104: =IF(P104+1>'01. PC'!$C$41,0,P104+1) -> 3 | R104: =IF(Q104+1>'01. PC'!$C$41,0,Q104+1) -> 4 | S104: =IF(R104+1>'01. PC'!$C$41,0,R104+1) -> 5 | T104: =IF(S104+1>'01. PC'!$C$41,0,S104+1) -> 6 | U104: =IF(T104+1>'01. PC'!$C$41,0,T104+1) -> 7 | V104: =IF(U104+1>'01. PC'!$C$41,0,U104+1) -> 8 | W104: =IF(V104+1>'01. PC'!$C$41,0,V104+1) -> 9
B105: ARTICUL. DIESEL | C105: 7 | D105: 6 | E105: =IF(D105+1>'01. PC'!$C$41,0,D105+1) -> 7 | F105: =IF(E105+1>'01. PC'!$C$41,0,E105+1) -> 8 | L105: 0 | M105: =IF(L105+1>'01. PC'!$C$41,0,L105+1) -> 1 | N105: =IF(M105+1>'01. PC'!$C$41,0,M105+1) -> 2 | O105: =IF(N105+1>'01. PC'!$C$41,0,N105+1) -> 3 | P105: =IF(O105+1>'01. PC'!$C$41,0,O105+1) -> 4 | Q105: =IF(P105+1>'01. PC'!$C$41,0,P105+1) -> 5 | R105: =IF(Q105+1>'01. PC'!$C$41,0,Q105+1) -> 6 | S105: =IF(R105+1>'01. PC'!$C$41,0,R105+1) -> 7 | T105: =IF(S105+1>'01. PC'!$C$41,0,S105+1) -> 8 | U105: =IF(T105+1>'01. PC'!$C$41,0,T105+1) -> 9 | V105: =IF(U105+1>'01. PC'!$C$41,0,U105+1) -> 10 | W105: =IF(V105+1>'01. PC'!$C$41,0,V105+1) -> 11
B106: ARTICUL. DIESEL | C106: 8 | D106: 7 | E106: =IF(D106+1>'01. PC'!$C$41,0,D106+1) -> 8 | J106: 0 | K106: =IF(J106+1>'01. PC'!$C$41,0,J106+1) -> 1 | L106: =IF(K106+1>'01. PC'!$C$41,0,K106+1) -> 2 | M106: =IF(L106+1>'01. PC'!$C$41,0,L106+1) -> 3 | N106: =IF(M106+1>'01. PC'!$C$41,0,M106+1) -> 4 | O106: =IF(N106+1>'01. PC'!$C$41,0,N106+1) -> 5 | P106: =IF(O106+1>'01. PC'!$C$41,0,O106+1) -> 6 | Q106: =IF(P106+1>'01. PC'!$C$41,0,P106+1) -> 7 | R106: =IF(Q106+1>'01. PC'!$C$41,0,Q106+1) -> 8 | S106: =IF(R106+1>'01. PC'!$C$41,0,R106+1) -> 9 | T106: =IF(S106+1>'01. PC'!$C$41,0,S106+1) -> 10 | U106: =IF(T106+1>'01. PC'!$C$41,0,T106+1) -> 11
B107: ARTICUL. DIESEL | C107: 9 | D107: 8 | E107: =IF(D107+1>'01. PC'!$C$41,0,D107+1) -> 9 | H107: 0 | I107: =IF(H107+1>'01. PC'!$C$41,0,H107+1) -> 1 | J107: =IF(I107+1>'01. PC'!$C$41,0,I107+1) -> 2 | K107: =IF(J107+1>'01. PC'!$C$41,0,J107+1) -> 3 | L107: =IF(K107+1>'01. PC'!$C$41,0,K107+1) -> 4 | M107: =IF(L107+1>'01. PC'!$C$41,0,L107+1) -> 5 | N107: =IF(M107+1>'01. PC'!$C$41,0,M107+1) -> 6 | O107: =IF(N107+1>'01. PC'!$C$41,0,N107+1) -> 7 | P107: =IF(O107+1>'01. PC'!$C$41,0,O107+1) -> 8 | Q107: =IF(P107+1>'01. PC'!$C$41,0,P107+1) -> 9 | R107: =IF(Q107+1>'01. PC'!$C$41,0,Q107+1) -> 10 | S107: =IF(R107+1>'01. PC'!$C$41,0,R107+1) -> 11
B108: ARTICUL. DIESEL | C108: 10 | D108: 9 | F108: 0 | G108: =IF(F108+1>'01. PC'!$C$41,0,F108+1) -> 1 | H108: =IF(G108+1>'01. PC'!$C$41,0,G108+1) -> 2 | I108: =IF(H108+1>'01. PC'!$C$41,0,H108+1) -> 3 | J108: =IF(I108+1>'01. PC'!$C$41,0,I108+1) -> 4 | K108: =IF(J108+1>'01. PC'!$C$41,0,J108+1) -> 5 | L108: =IF(K108+1>'01. PC'!$C$41,0,K108+1) -> 6 | M108: =IF(L108+1>'01. PC'!$C$41,0,L108+1) -> 7 | N108: =IF(M108+1>'01. PC'!$C$41,0,M108+1) -> 8 | O108: =IF(N108+1>'01. PC'!$C$41,0,N108+1) -> 9 | P108: =IF(O108+1>'01. PC'!$C$41,0,O108+1) -> 10 | Q108: =IF(P108+1>'01. PC'!$C$41,0,P108+1) -> 11
B109: QUANTIDADE | D109: =COUNT(D99:D108) -> 10 | E109: =COUNT(E99:E108) -> 9 | F109: 8 | G109: 7 | H109: 6 | I109: 6 | J109: 6 | K109: 6 | L109: 6 | M109: 6 | N109: 6 | O109: 6 | P109: 6 | Q109: 6 | R109: 6 | S109: 6 | T109: 6 | U109: 6 | V109: 6 | W109: 6
B111: IDADE - ARTICUL. ELÉTRICO
B112: TIPO | C112: QUANT. | D112: 1 | E112: =D112+1 -> 2 | F112: =E112+1 -> 3 | G112: 4 | H112: 5 | I112: 6 | J112: 7 | K112: 8 | L112: 9 | M112: 10 | N112: 11 | O112: 12 | P112: 13 | Q112: 14 | R112: 15 | S112: 16 | T112: 17 | U112: 18 | V112: 19 | W112: 20
B113: ARTICUL. ELÉTRICO | C113: 1 | E113: 0 | F113: =IF(E113+1>'01. PC'!$C$43,0,E113+1) -> 1 | G113: =IF(F113+1>'01. PC'!$C$43,0,F113+1) -> 2 | H113: =IF(G113+1>'01. PC'!$C$43,0,G113+1) -> 3 | I113: =IF(H113+1>'01. PC'!$C$43,0,H113+1) -> 4 | J113: =IF(I113+1>'01. PC'!$C$43,0,I113+1) -> 5 | K113: =IF(J113+1>'01. PC'!$C$43,0,J113+1) -> 6 | L113: =IF(K113+1>'01. PC'!$C$43,0,K113+1) -> 7 | M113: =IF(L113+1>'01. PC'!$C$43,0,L113+1) -> 8 | N113: =IF(M113+1>'01. PC'!$C$43,0,M113+1) -> 9 | O113: =IF(N113+1>'01. PC'!$C$43,0,N113+1) -> 10 | P113: =IF(O113+1>'01. PC'!$C$43,0,O113+1) -> 11 | Q113: =IF(P113+1>'01. PC'!$C$43,0,P113+1) -> 12 | R113: =IF(Q113+1>'01. PC'!$C$43,0,Q113+1) -> 13 | S113: =IF(R113+1>'01. PC'!$C$43,0,R113+1) -> 14 | T113: =IF(S113+1>'01. PC'!$C$43,0,S113+1) -> 0 | U113: =IF(T113+1>'01. PC'!$C$43,0,T113+1) -> 1 | V113: =IF(U113+1>'01. PC'!$C$43,0,U113+1) -> 2 | W113: =IF(V113+1>'01. PC'!$C$43,0,V113+1) -> 3
B114: ARTICUL. ELÉTRICO | C114: =C113+1 -> 2 | F114: 0 | G114: =IF(F114+1>'01. PC'!$C$43,0,F114+1) -> 1 | H114: =IF(G114+1>'01. PC'!$C$43,0,G114+1) -> 2 | I114: =IF(H114+1>'01. PC'!$C$43,0,H114+1) -> 3 | J114: =IF(I114+1>'01. PC'!$C$43,0,I114+1) -> 4 | K114: =IF(J114+1>'01. PC'!$C$43,0,J114+1) -> 5 | L114: =IF(K114+1>'01. PC'!$C$43,0,K114+1) -> 6 | M114: =IF(L114+1>'01. PC'!$C$43,0,L114+1) -> 7 | N114: =IF(M114+1>'01. PC'!$C$43,0,M114+1) -> 8 | O114: =IF(N114+1>'01. PC'!$C$43,0,N114+1) -> 9 | P114: =IF(O114+1>'01. PC'!$C$43,0,O114+1) -> 10 | Q114: =IF(P114+1>'01. PC'!$C$43,0,P114+1) -> 11 | R114: =IF(Q114+1>'01. PC'!$C$43,0,Q114+1) -> 12 | S114: =IF(R114+1>'01. PC'!$C$43,0,R114+1) -> 13 | T114: =IF(S114+1>'01. PC'!$C$43,0,S114+1) -> 14 | U114: =IF(T114+1>'01. PC'!$C$43,0,T114+1) -> 0 | V114: =IF(U114+1>'01. PC'!$C$43,0,U114+1) -> 1 | W114: =IF(V114+1>'01. PC'!$C$43,0,V114+1) -> 2
B115: ARTICUL. ELÉTRICO | C115: =C114+1 -> 3 | G115: 0 | H115: =IF(G115+1>'01. PC'!$C$43,0,G115+1) -> 1 | I115: =IF(H115+1>'01. PC'!$C$43,0,H115+1) -> 2 | J115: =IF(I115+1>'01. PC'!$C$43,0,I115+1) -> 3 | K115: =IF(J115+1>'01. PC'!$C$43,0,J115+1) -> 4 | L115: =IF(K115+1>'01. PC'!$C$43,0,K115+1) -> 5 | M115: =IF(L115+1>'01. PC'!$C$43,0,L115+1) -> 6 | N115: =IF(M115+1>'01. PC'!$C$43,0,M115+1) -> 7 | O115: =IF(N115+1>'01. PC'!$C$43,0,N115+1) -> 8 | P115: =IF(O115+1>'01. PC'!$C$43,0,O115+1) -> 9 | Q115: =IF(P115+1>'01. PC'!$C$43,0,P115+1) -> 10 | R115: =IF(Q115+1>'01. PC'!$C$43,0,Q115+1) -> 11 | S115: =IF(R115+1>'01. PC'!$C$43,0,R115+1) -> 12 | T115: =IF(S115+1>'01. PC'!$C$43,0,S115+1) -> 13 | U115: =IF(T115+1>'01. PC'!$C$43,0,T115+1) -> 14 | V115: =IF(U115+1>'01. PC'!$C$43,0,U115+1) -> 0 | W115: =IF(V115+1>'01. PC'!$C$43,0,V115+1) -> 1
B116: ARTICUL. ELÉTRICO | C116: 4 | H116: 0 | I116: =IF(H116+1>'01. PC'!$C$43,0,H116+1) -> 1 | J116: =IF(I116+1>'01. PC'!$C$43,0,I116+1) -> 2 | K116: =IF(J116+1>'01. PC'!$C$43,0,J116+1) -> 3 | L116: =IF(K116+1>'01. PC'!$C$43,0,K116+1) -> 4 | M116: =IF(L116+1>'01. PC'!$C$43,0,L116+1) -> 5 | N116: =IF(M116+1>'01. PC'!$C$43,0,M116+1) -> 6 | O116: =IF(N116+1>'01. PC'!$C$43,0,N116+1) -> 7 | P116: =IF(O116+1>'01. PC'!$C$43,0,O116+1) -> 8 | Q116: =IF(P116+1>'01. PC'!$C$43,0,P116+1) -> 9 | R116: =IF(Q116+1>'01. PC'!$C$43,0,Q116+1) -> 10 | S116: =IF(R116+1>'01. PC'!$C$43,0,R116+1) -> 11 | T116: =IF(S116+1>'01. PC'!$C$43,0,S116+1) -> 12 | U116: =IF(T116+1>'01. PC'!$C$43,0,T116+1) -> 13 | V116: =IF(U116+1>'01. PC'!$C$43,0,U116+1) -> 14 | W116: =IF(V116+1>'01. PC'!$C$43,0,V116+1) -> 0
B117: ARTICUL. ELÉTRICO | C117: 5 | I117: 0 | J117: =IF(I117+1>'01. PC'!$C$43,0,I117+1) -> 1 | K117: =IF(J117+1>'01. PC'!$C$43,0,J117+1) -> 2 | L117: =IF(K117+1>'01. PC'!$C$43,0,K117+1) -> 3 | M117: =IF(L117+1>'01. PC'!$C$43,0,L117+1) -> 4 | N117: =IF(M117+1>'01. PC'!$C$43,0,M117+1) -> 5 | O117: =IF(N117+1>'01. PC'!$C$43,0,N117+1) -> 6 | P117: =IF(O117+1>'01. PC'!$C$43,0,O117+1) -> 7 | Q117: =IF(P117+1>'01. PC'!$C$43,0,P117+1) -> 8 | R117: =IF(Q117+1>'01. PC'!$C$43,0,Q117+1) -> 9 | S117: =IF(R117+1>'01. PC'!$C$43,0,R117+1) -> 10 | T117: =IF(S117+1>'01. PC'!$C$43,0,S117+1) -> 11 | U117: =IF(T117+1>'01. PC'!$C$43,0,T117+1) -> 12 | V117: =IF(U117+1>'01. PC'!$C$43,0,U117+1) -> 13 | W117: =IF(V117+1>'01. PC'!$C$43,0,V117+1) -> 14
B118: ARTICUL. ELÉTRICO | C118: 6 | J118: 0 | K118: =IF(J118+1>'01. PC'!$C$43,0,J118+1) -> 1 | L118: =IF(K118+1>'01. PC'!$C$43,0,K118+1) -> 2 | M118: =IF(L118+1>'01. PC'!$C$43,0,L118+1) -> 3 | N118: =IF(M118+1>'01. PC'!$C$43,0,M118+1) -> 4 | O118: =IF(N118+1>'01. PC'!$C$43,0,N118+1) -> 5 | P118: =IF(O118+1>'01. PC'!$C$43,0,O118+1) -> 6 | Q118: =IF(P118+1>'01. PC'!$C$43,0,P118+1) -> 7 | R118: =IF(Q118+1>'01. PC'!$C$43,0,Q118+1) -> 8 | S118: =IF(R118+1>'01. PC'!$C$43,0,R118+1) -> 9 | T118: =IF(S118+1>'01. PC'!$C$43,0,S118+1) -> 10 | U118: =IF(T118+1>'01. PC'!$C$43,0,T118+1) -> 11 | V118: =IF(U118+1>'01. PC'!$C$43,0,U118+1) -> 12 | W118: =IF(V118+1>'01. PC'!$C$43,0,V118+1) -> 13
B119: QUANTIDADE | D119: =COUNT(D113:D118) -> 0 | E119: =COUNT(E113:E118) -> 1 | F119: 2 | G119: 3 | H119: 4 | I119: 5 | J119: 6 | K119: 6 | L119: 6 | M119: 6 | N119: 6 | O119: 6 | P119: 6 | Q119: 6 | R119: 6 | S119: 6 | T119: 6 | U119: 6 | V119: 6 | W119: 6
B121: IDADE - PADRON DIESEL
B122: TIPO | C122: QUANT. | D122: 1 | E122: =D122+1 -> 2 | F122: =E122+1 -> 3 | G122: =F122+1 -> 4 | H122: =G122+1 -> 5 | I122: =H122+1 -> 6 | J122: =I122+1 -> 7 | K122: =J122+1 -> 8 | L122: =K122+1 -> 9 | M122: =L122+1 -> 10 | N122: =M122+1 -> 11 | O122: =N122+1 -> 12 | P122: =O122+1 -> 13 | Q122: =P122+1 -> 14 | R122: =Q122+1 -> 15 | S122: =R122+1 -> 16 | T122: =S122+1 -> 17 | U122: =T122+1 -> 18 | V122: =U122+1 -> 19 | W122: =V122+1 -> 20
B123: PADRON DIESEL | C123: 1
B124: PADRON DIESEL | C124: =C123+1 -> 2
B125: PADRON DIESEL | C125: =C124+1 -> 3
B126: PADRON DIESEL | C126: 4
B127: QUANTIDADE | D127: =COUNT(D123:D126) -> 0 | E127: =COUNT(E123:E126) -> 0 | F127: 0 | G127: 0 | H127: 0 | I127: 0 | J127: 0 | K127: 0 | L127: 0 | M127: 0 | N127: 0 | O127: 0 | P127: 0 | Q127: 0 | R127: 0 | S127: 0 | T127: 0 | U127: 0 | V127: 0 | W127: 0
B129: IDADE - PADRON ELÉTRICO
B130: TIPO | C130: QUANT. | D130: 1 | E130: =D130+1 -> 2 | F130: =E130+1 -> 3 | G130: =F130+1 -> 4 | H130: =G130+1 -> 5 | I130: =H130+1 -> 6 | J130: =I130+1 -> 7 | K130: =J130+1 -> 8 | L130: =K130+1 -> 9 | M130: =L130+1 -> 10 | N130: =M130+1 -> 11 | O130: =N130+1 -> 12 | P130: =O130+1 -> 13 | Q130: =P130+1 -> 14 | R130: =Q130+1 -> 15 | S130: =R130+1 -> 16 | T130: =S130+1 -> 17 | U130: =T130+1 -> 18 | V130: =U130+1 -> 19 | W130: =V130+1 -> 20
B131: PADRON ELÉTRICO | C131: 1
B132: PADRON ELÉTRICO | C132: =C131+1 -> 2
B133: PADRON ELÉTRICO | C133: =C132+1 -> 3
B134: PADRON ELÉTRICO | C134: 4
B135: QUANTIDADE | D135: =COUNT(D131:D134) -> 0 | E135: =COUNT(E131:E134) -> 0 | F135: =COUNT(F131:F134) -> 0 | G135: =COUNT(G131:G134) -> 0 | H135: =COUNT(H131:H134) -> 0 | I135: =COUNT(I131:I134) -> 0 | J135: =COUNT(J131:J134) -> 0 | K135: =COUNT(K131:K134) -> 0 | L135: =COUNT(L131:L134) -> 0 | M135: =COUNT(M131:M134) -> 0 | N135: =COUNT(N131:N134) -> 0 | O135: =COUNT(O131:O134) -> 0 | P135: =COUNT(P131:P134) -> 0 | Q135: =COUNT(Q131:Q134) -> 0 | R135: =COUNT(R131:R134) -> 0 | S135: =COUNT(S131:S134) -> 0 | T135: =COUNT(T131:T134) -> 0 | U135: =COUNT(U131:U134) -> 0 | V135: =COUNT(V131:V134) -> 0 | W135: =COUNT(W131:W134) -> 0
B137: FROTA - PREÇO
B138: TIPO | C138: QUANT. | D138: 1 | E138: =D138+1 -> 2 | F138: =E138+1 -> 3 | G138: 4 | H138: 5 | I138: 6 | J138: 7 | K138: 8 | L138: 9 | M138: 10 | N138: 11 | O138: 12 | P138: 13 | Q138: 14 | R138: 15 | S138: 16 | T138: 17 | U138: 18 | V138: 19 | W138: 20 | Z138: BÁSICO | AA138: 508371
B139: BÁSICO | C139: 1 | D139: =IF(Prazo<D$138,0,IF(D23="",0,$AA$138)) -> 508371 | E139: 508371 | F139: 508371 | G139: 508371 | H139: 508371 | I139: 508371 | J139: 508371 | K139: 508371 | L139: 508371 | M139: 508371 | N139: 508371 | O139: 508371 | P139: 508371 | Q139: 508371 | R139: 508371 | S139: 508371 | T139: 508371 | U139: 508371 | V139: 508371 | W139: 508371 | Z139: MIDI | AA139: 450000
B140: BÁSICO | C140: =C139+1 -> 2 | D140: =IF(Prazo<D$138,0,IF(D24="",0,$AA$138)) -> 508371 | E140: 508371 | F140: 508371 | G140: 508371 | H140: 508371 | I140: 508371 | J140: 508371 | K140: 508371 | L140: 508371 | M140: 508371 | N140: 508371 | O140: 508371 | P140: 508371 | Q140: 508371 | R140: 508371 | S140: 508371 | T140: 508371 | U140: 508371 | V140: 508371 | W140: 508371 | Z140: ARTICUL. DIESEL | AA140: 1437230
B141: BÁSICO | C141: =C140+1 -> 3 | D141: =IF(Prazo<D$138,0,IF(D25="",0,$AA$138)) -> 508371 | E141: 508371 | F141: 508371 | G141: 508371 | H141: 508371 | I141: 508371 | J141: 508371 | K141: 508371 | L141: 508371 | M141: 508371 | N141: 508371 | O141: 508371 | P141: 508371 | Q141: 508371 | R141: 508371 | S141: 508371 | T141: 508371 | U141: 508371 | V141: 508371 | W141: 508371 | Z141: ARTICUL. ELÉTRICO | AA141: 2672000
B142: BÁSICO | C142: 4 | D142: =IF(Prazo<D$138,0,IF(D26="",0,$AA$138)) -> 508371 | E142: 508371 | F142: 508371 | G142: 508371 | H142: 508371 | I142: 508371 | J142: 508371 | K142: 508371 | L142: 508371 | M142: 508371 | N142: 508371 | O142: 508371 | P142: 508371 | Q142: 508371 | R142: 508371 | S142: 508371 | T142: 508371 | U142: 508371 | V142: 508371 | W142: 508371 | Z142: PADRON DIESEL
B143: BÁSICO | C143: 5 | D143: =IF(Prazo<D$138,0,IF(D27="",0,$AA$138)) -> 508371 | E143: 508371 | F143: 508371 | G143: 508371 | H143: 508371 | I143: 508371 | J143: 508371 | K143: 508371 | L143: 508371 | M143: 508371 | N143: 508371 | O143: 508371 | P143: 508371 | Q143: 508371 | R143: 508371 | S143: 508371 | T143: 508371 | U143: 508371 | V143: 508371 | W143: 508371 | Z143: PADRON ELÉTRICO
B144: BÁSICO | C144: 6 | D144: =IF(Prazo<D$138,0,IF(D28="",0,$AA$138)) -> 508371 | E144: 508371 | F144: 508371 | G144: 508371 | H144: 508371 | I144: 508371 | J144: 508371 | K144: 508371 | L144: 508371 | M144: 508371 | N144: 508371 | O144: 508371 | P144: 508371 | Q144: 508371 | R144: 508371 | S144: 508371 | T144: 508371 | U144: 508371 | V144: 508371 | W144: 508371
B145: BÁSICO | C145: 7 | D145: =IF(Prazo<D$138,0,IF(D29="",0,$AA$138)) -> 508371 | E145: 508371 | F145: 508371 | G145: 508371 | H145: 508371 | I145: 508371 | J145: 508371 | K145: 508371 | L145: 508371 | M145: 508371 | N145: 508371 | O145: 508371 | P145: 508371 | Q145: 508371 | R145: 508371 | S145: 508371 | T145: 508371 | U145: 508371 | V145: 508371 | W145: 508371
B146: BÁSICO | C146: 8 | D146: =IF(Prazo<D$138,0,IF(D30="",0,$AA$138)) -> 508371 | E146: 508371 | F146: 508371 | G146: 508371 | H146: 508371 | I146: 508371 | J146: 508371 | K146: 508371 | L146: 508371 | M146: 508371 | N146: 508371 | O146: 508371 | P146: 508371 | Q146: 508371 | R146: 508371 | S146: 508371 | T146: 508371 | U146: 508371 | V146: 508371 | W146: 508371
B147: BÁSICO | C147: 9 | D147: =IF(Prazo<D$138,0,IF(D31="",0,$AA$138)) -> 508371 | E147: 508371 | F147: 508371 | G147: 508371 | H147: 508371 | I147: 508371 | J147: 508371 | K147: 508371 | L147: 508371 | M147: 508371 | N147: 508371 | O147: 508371 | P147: 508371 | Q147: 508371 | R147: 508371 | S147: 508371 | T147: 508371 | U147: 508371 | V147: 508371 | W147: 508371
B148: BÁSICO | C148: 10 | D148: =IF(Prazo<D$138,0,IF(D32="",0,$AA$138)) -> 508371 | E148: 508371 | F148: 508371 | G148: 508371 | H148: 508371 | I148: 508371 | J148: 508371 | K148: 508371 | L148: 508371 | M148: 508371 | N148: 508371 | O148: 508371 | P148: 508371 | Q148: 508371 | R148: 508371 | S148: 508371 | T148: 508371 | U148: 508371 | V148: 508371 | W148: 508371
B149: BÁSICO | C149: 11 | D149: =IF(Prazo<D$138,0,IF(D33="",0,$AA$138)) -> 508371 | E149: 508371 | F149: 508371 | G149: 508371 | H149: 508371 | I149: 508371 | J149: 508371 | K149: 508371 | L149: 508371 | M149: 508371 | N149: 508371 | O149: 508371 | P149: 508371 | Q149: 508371 | R149: 508371 | S149: 508371 | T149: 508371 | U149: 508371 | V149: 508371 | W149: 508371
B150: BÁSICO | C150: 12 | D150: =IF(Prazo<D$138,0,IF(D34="",0,$AA$138)) -> 508371 | E150: 508371 | F150: 508371 | G150: 508371 | H150: 508371 | I150: 508371 | J150: 508371 | K150: 508371 | L150: 508371 | M150: 508371 | N150: 508371 | O150: 508371 | P150: 508371 | Q150: 508371 | R150: 508371 | S150: 508371 | T150: 508371 | U150: 508371 | V150: 508371 | W150: 508371
B151: BÁSICO | C151: 13 | D151: =IF(Prazo<D$138,0,IF(D35="",0,$AA$138)) -> 508371 | E151: 508371 | F151: 508371 | G151: 508371 | H151: 508371 | I151: 508371 | J151: 508371 | K151: 508371 | L151: 508371 | M151: 508371 | N151: 508371 | O151: 508371 | P151: 508371 | Q151: 508371 | R151: 508371 | S151: 508371 | T151: 508371 | U151: 508371 | V151: 508371 | W151: 508371
B152: BÁSICO | C152: 14 | D152: =IF(Prazo<D$138,0,IF(D36="",0,$AA$138)) -> 508371 | E152: 508371 | F152: 508371 | G152: 508371 | H152: 508371 | I152: 508371 | J152: 508371 | K152: 508371 | L152: 508371 | M152: 508371 | N152: 508371 | O152: 508371 | P152: 508371 | Q152: 508371 | R152: 508371 | S152: 508371 | T152: 508371 | U152: 508371 | V152: 508371 | W152: 508371
B153: BÁSICO | C153: 15 | D153: =IF(Prazo<D$138,0,IF(D37="",0,$AA$138)) -> 508371 | E153: 508371 | F153: 508371 | G153: 508371 | H153: 508371 | I153: 508371 | J153: 508371 | K153: 508371 | L153: 508371 | M153: 508371 | N153: 508371 | O153: 508371 | P153: 508371 | Q153: 508371 | R153: 508371 | S153: 508371 | T153: 508371 | U153: 508371 | V153: 508371 | W153: 508371
B154: BÁSICO | C154: 16 | D154: =IF(Prazo<D$138,0,IF(D38="",0,$AA$138)) -> 508371 | E154: 508371 | F154: 508371 | G154: 508371 | H154: 508371 | I154: 508371 | J154: 508371 | K154: 508371 | L154: 508371 | M154: 508371 | N154: 508371 | O154: 508371 | P154: 508371 | Q154: 508371 | R154: 508371 | S154: 508371 | T154: 508371 | U154: 508371 | V154: 508371 | W154: 508371
B155: BÁSICO | C155: 17 | D155: =IF(Prazo<D$138,0,IF(D39="",0,$AA$138)) -> 508371 | E155: 508371 | F155: 508371 | G155: 508371 | H155: 508371 | I155: 508371 | J155: 508371 | K155: 508371 | L155: 508371 | M155: 508371 | N155: 508371 | O155: 508371 | P155: 508371 | Q155: 508371 | R155: 508371 | S155: 508371 | T155: 508371 | U155: 508371 | V155: 508371 | W155: 508371
B156: BÁSICO | C156: 18 | D156: =IF(Prazo<D$138,0,IF(D40="",0,$AA$138)) -> 508371 | E156: 508371 | F156: 508371 | G156: 508371 | H156: 508371 | I156: 508371 | J156: 508371 | K156: 508371 | L156: 508371 | M156: 508371 | N156: 508371 | O156: 508371 | P156: 508371 | Q156: 508371 | R156: 508371 | S156: 508371 | T156: 508371 | U156: 508371 | V156: 508371 | W156: 508371
B157: BÁSICO | C157: 19 | D157: =IF(Prazo<D$138,0,IF(D41="",0,$AA$138)) -> 508371 | E157: 508371 | F157: 508371 | G157: 508371 | H157: 508371 | I157: 508371 | J157: 508371 | K157: 508371 | L157: 508371 | M157: 508371 | N157: 508371 | O157: 508371 | P157: 508371 | Q157: 508371 | R157: 508371 | S157: 508371 | T157: 508371 | U157: 508371 | V157: 508371 | W157: 508371
B158: BÁSICO | C158: 20 | D158: =IF(Prazo<D$138,0,IF(D42="",0,$AA$138)) -> 508371 | E158: 508371 | F158: 508371 | G158: 508371 | H158: 508371 | I158: 508371 | J158: 508371 | K158: 508371 | L158: 508371 | M158: 508371 | N158: 508371 | O158: 508371 | P158: 508371 | Q158: 508371 | R158: 508371 | S158: 508371 | T158: 508371 | U158: 508371 | V158: 508371 | W158: 508371
B159: BÁSICO | C159: 21 | D159: =IF(Prazo<D$138,0,IF(D43="",0,$AA$138)) -> 508371 | E159: 508371 | F159: 508371 | G159: 508371 | H159: 508371 | I159: 508371 | J159: 508371 | K159: 508371 | L159: 508371 | M159: 508371 | N159: 508371 | O159: 508371 | P159: 508371 | Q159: 508371 | R159: 508371 | S159: 508371 | T159: 508371 | U159: 508371 | V159: 508371 | W159: 508371
B160: BÁSICO | C160: 22 | D160: =IF(Prazo<D$138,0,IF(D44="",0,$AA$138)) -> 508371 | E160: 508371 | F160: 508371 | G160: 508371 | H160: 508371 | I160: 508371 | J160: 508371 | K160: 508371 | L160: 508371 | M160: 508371 | N160: 508371 | O160: 508371 | P160: 508371 | Q160: 508371 | R160: 508371 | S160: 508371 | T160: 508371 | U160: 508371 | V160: 508371 | W160: 508371
B161: BÁSICO | C161: 23 | D161: =IF(Prazo<D$138,0,IF(D45="",0,$AA$138)) -> 508371 | E161: 508371 | F161: 508371 | G161: 508371 | H161: 508371 | I161: 508371 | J161: 508371 | K161: 508371 | L161: 508371 | M161: 508371 | N161: 508371 | O161: 508371 | P161: 508371 | Q161: 508371 | R161: 508371 | S161: 508371 | T161: 508371 | U161: 508371 | V161: 508371 | W161: 508371
B162: BÁSICO | C162: 24 | D162: =IF(Prazo<D$138,0,IF(D46="",0,$AA$138)) -> 508371 | E162: 508371 | F162: 508371 | G162: 508371 | H162: 508371 | I162: 508371 | J162: 508371 | K162: 508371 | L162: 508371 | M162: 508371 | N162: 508371 | O162: 508371 | P162: 508371 | Q162: 508371 | R162: 508371 | S162: 508371 | T162: 508371 | U162: 508371 | V162: 508371 | W162: 508371
B163: BÁSICO | C163: 25 | D163: =IF(Prazo<D$138,0,IF(D47="",0,$AA$138)) -> 508371 | E163: 508371 | F163: 508371 | G163: 508371 | H163: 508371 | I163: 508371 | J163: 508371 | K163: 508371 | L163: 508371 | M163: 508371 | N163: 508371 | O163: 508371 | P163: 508371 | Q163: 508371 | R163: 508371 | S163: 508371 | T163: 508371 | U163: 508371 | V163: 508371 | W163: 508371
B164: BÁSICO | C164: 26 | D164: =IF(Prazo<D$138,0,IF(D48="",0,$AA$138)) -> 508371 | E164: 508371 | F164: 508371 | G164: 508371 | H164: 508371 | I164: 508371 | J164: 508371 | K164: 508371 | L164: 508371 | M164: 508371 | N164: 508371 | O164: 508371 | P164: 508371 | Q164: 508371 | R164: 508371 | S164: 508371 | T164: 508371 | U164: 508371 | V164: 508371 | W164: 508371
B165: BÁSICO | C165: 27 | D165: =IF(Prazo<D$138,0,IF(D49="",0,$AA$138)) -> 508371 | E165: 508371 | F165: 508371 | G165: 508371 | H165: 508371 | I165: 508371 | J165: 508371 | K165: 508371 | L165: 508371 | M165: 508371 | N165: 508371 | O165: 508371 | P165: 508371 | Q165: 508371 | R165: 508371 | S165: 508371 | T165: 508371 | U165: 508371 | V165: 508371 | W165: 508371
B166: BÁSICO | C166: 28 | D166: =IF(Prazo<D$138,0,IF(D50="",0,$AA$138)) -> 508371 | E166: 508371 | F166: 508371 | G166: 508371 | H166: 508371 | I166: 508371 | J166: 508371 | K166: 508371 | L166: 508371 | M166: 508371 | N166: 508371 | O166: 508371 | P166: 508371 | Q166: 508371 | R166: 508371 | S166: 508371 | T166: 508371 | U166: 508371 | V166: 508371 | W166: 508371
B167: BÁSICO | C167: 29 | D167: =IF(Prazo<D$138,0,IF(D51="",0,$AA$138)) -> 508371 | E167: 508371 | F167: 508371 | G167: 508371 | H167: 508371 | I167: 508371 | J167: 508371 | K167: 508371 | L167: 508371 | M167: 508371 | N167: 508371 | O167: 508371 | P167: 508371 | Q167: 508371 | R167: 508371 | S167: 508371 | T167: 508371 | U167: 508371 | V167: 508371 | W167: 508371
B168: BÁSICO | C168: 30 | D168: =IF(Prazo<D$138,0,IF(D52="",0,$AA$138)) -> 508371 | E168: 508371 | F168: 508371 | G168: 508371 | H168: 508371 | I168: 508371 | J168: 508371 | K168: 508371 | L168: 508371 | M168: 508371 | N168: 508371 | O168: 508371 | P168: 508371 | Q168: 508371 | R168: 508371 | S168: 508371 | T168: 508371 | U168: 508371 | V168: 508371 | W168: 508371
B169: BÁSICO | C169: 31 | D169: =IF(Prazo<D$138,0,IF(D53="",0,$AA$138)) -> 508371 | E169: 508371 | F169: 508371 | G169: 508371 | H169: 508371 | I169: 508371 | J169: 508371 | K169: 508371 | L169: 508371 | M169: 508371 | N169: 508371 | O169: 508371 | P169: 508371 | Q169: 508371 | R169: 508371 | S169: 508371 | T169: 508371 | U169: 508371 | V169: 508371 | W169: 508371
B170: BÁSICO | C170: 32 | D170: =IF(Prazo<D$138,0,IF(D54="",0,$AA$138)) -> 508371 | E170: 508371 | F170: 508371 | G170: 508371 | H170: 508371 | I170: 508371 | J170: 508371 | K170: 508371 | L170: 508371 | M170: 508371 | N170: 508371 | O170: 508371 | P170: 508371 | Q170: 508371 | R170: 508371 | S170: 508371 | T170: 508371 | U170: 508371 | V170: 508371 | W170: 508371
B171: BÁSICO | C171: 33 | D171: =IF(Prazo<D$138,0,IF(D55="",0,$AA$138)) -> 508371 | E171: 508371 | F171: 508371 | G171: 508371 | H171: 508371 | I171: 508371 | J171: 508371 | K171: 508371 | L171: 508371 | M171: 508371 | N171: 508371 | O171: 508371 | P171: 508371 | Q171: 508371 | R171: 508371 | S171: 508371 | T171: 508371 | U171: 508371 | V171: 508371 | W171: 508371
B172: BÁSICO | C172: 34 | D172: =IF(Prazo<D$138,0,IF(D56="",0,$AA$138)) -> 508371 | E172: 508371 | F172: 508371 | G172: 508371 | H172: 508371 | I172: 508371 | J172: 508371 | K172: 508371 | L172: 508371 | M172: 508371 | N172: 508371 | O172: 508371 | P172: 508371 | Q172: 508371 | R172: 508371 | S172: 508371 | T172: 508371 | U172: 508371 | V172: 508371 | W172: 508371
B173: BÁSICO | C173: 35 | D173: =IF(Prazo<D$138,0,IF(D57="",0,$AA$138)) -> 508371 | E173: 508371 | F173: 508371 | G173: 508371 | H173: 508371 | I173: 508371 | J173: 508371 | K173: 508371 | L173: 508371 | M173: 508371 | N173: 508371 | O173: 508371 | P173: 508371 | Q173: 508371 | R173: 508371 | S173: 508371 | T173: 508371 | U173: 508371 | V173: 508371 | W173: 508371
B174: BÁSICO | C174: 36 | D174: =IF(Prazo<D$138,0,IF(D58="",0,$AA$138)) -> 508371 | E174: 508371 | F174: 508371 | G174: 508371 | H174: 508371 | I174: 508371 | J174: 508371 | K174: 508371 | L174: 508371 | M174: 508371 | N174: 508371 | O174: 508371 | P174: 508371 | Q174: 508371 | R174: 508371 | S174: 508371 | T174: 508371 | U174: 508371 | V174: 508371 | W174: 508371
B175: BÁSICO | C175: 37 | D175: =IF(Prazo<D$138,0,IF(D59="",0,$AA$138)) -> 508371 | E175: 508371 | F175: 508371 | G175: 508371 | H175: 508371 | I175: 508371 | J175: 508371 | K175: 508371 | L175: 508371 | M175: 508371 | N175: 508371 | O175: 508371 | P175: 508371 | Q175: 508371 | R175: 508371 | S175: 508371 | T175: 508371 | U175: 508371 | V175: 508371 | W175: 508371
B176: BÁSICO | C176: 38 | D176: =IF(Prazo<D$138,0,IF(D60="",0,$AA$138)) -> 508371 | E176: 508371 | F176: 508371 | G176: 508371 | H176: 508371 | I176: 508371 | J176: 508371 | K176: 508371 | L176: 508371 | M176: 508371 | N176: 508371 | O176: 508371 | P176: 508371 | Q176: 508371 | R176: 508371 | S176: 508371 | T176: 508371 | U176: 508371 | V176: 508371 | W176: 508371
B177: BÁSICO | C177: 39 | D177: =IF(Prazo<D$138,0,IF(D61="",0,$AA$138)) -> 508371 | E177: 508371 | F177: 508371 | G177: 508371 | H177: 508371 | I177: 508371 | J177: 508371 | K177: 508371 | L177: 508371 | M177: 508371 | N177: 508371 | O177: 508371 | P177: 508371 | Q177: 508371 | R177: 508371 | S177: 508371 | T177: 508371 | U177: 508371 | V177: 508371 | W177: 508371
B178: BÁSICO | C178: 40 | D178: =IF(Prazo<D$138,0,IF(D62="",0,$AA$138)) -> 508371 | E178: 508371 | F178: 508371 | G178: 508371 | H178: 508371 | I178: 508371 | J178: 508371 | K178: 508371 | L178: 508371 | M178: 508371 | N178: 508371 | O178: 508371 | P178: 508371 | Q178: 508371 | R178: 508371 | S178: 508371 | T178: 508371 | U178: 508371 | V178: 508371 | W178: 508371
B179: BÁSICO | C179: 41 | D179: =IF(Prazo<D$138,0,IF(D63="",0,$AA$138)) -> 508371 | E179: 508371 | F179: 508371 | G179: 508371 | H179: 508371 | I179: 508371 | J179: 508371 | K179: 508371 | L179: 508371 | M179: 508371 | N179: 508371 | O179: 508371 | P179: 508371 | Q179: 508371 | R179: 508371 | S179: 508371 | T179: 508371 | U179: 508371 | V179: 508371 | W179: 508371
B180: BÁSICO | C180: 42 | D180: =IF(Prazo<D$138,0,IF(D64="",0,$AA$138)) -> 508371 | E180: 508371 | F180: 508371 | G180: 508371 | H180: 508371 | I180: 508371 | J180: 508371 | K180: 508371 | L180: 508371 | M180: 508371 | N180: 508371 | O180: 508371 | P180: 508371 | Q180: 508371 | R180: 508371 | S180: 508371 | T180: 508371 | U180: 508371 | V180: 508371 | W180: 508371
B181: BÁSICO | C181: 43 | D181: =IF(Prazo<D$138,0,IF(D65="",0,$AA$138)) -> 508371 | E181: 508371 | F181: 508371 | G181: 508371 | H181: 508371 | I181: 508371 | J181: 508371 | K181: 508371 | L181: 508371 | M181: 508371 | N181: 508371 | O181: 508371 | P181: 508371 | Q181: 508371 | R181: 508371 | S181: 508371 | T181: 508371 | U181: 508371 | V181: 508371 | W181: 508371
B182: BÁSICO | C182: 44 | D182: =IF(Prazo<D$138,0,IF(D66="",0,$AA$138)) -> 508371 | E182: 508371 | F182: 508371 | G182: 508371 | H182: 508371 | I182: 508371 | J182: 508371 | K182: 508371 | L182: 508371 | M182: 508371 | N182: 508371 | O182: 508371 | P182: 508371 | Q182: 508371 | R182: 508371 | S182: 508371 | T182: 508371 | U182: 508371 | V182: 508371 | W182: 508371
B183: BÁSICO | C183: 45 | D183: =IF(Prazo<D$138,0,IF(D67="",0,$AA$138)) -> 508371 | E183: 508371 | F183: 508371 | G183: 508371 | H183: 508371 | I183: 508371 | J183: 508371 | K183: 508371 | L183: 508371 | M183: 508371 | N183: 508371 | O183: 508371 | P183: 508371 | Q183: 508371 | R183: 508371 | S183: 508371 | T183: 508371 | U183: 508371 | V183: 508371 | W183: 508371
B184: BÁSICO | C184: 46 | D184: =IF(Prazo<D$138,0,IF(D68="",0,$AA$138)) -> 508371 | E184: 508371 | F184: 508371 | G184: 508371 | H184: 508371 | I184: 508371 | J184: 508371 | K184: 508371 | L184: 508371 | M184: 508371 | N184: 508371 | O184: 508371 | P184: 508371 | Q184: 508371 | R184: 508371 | S184: 508371 | T184: 508371 | U184: 508371 | V184: 508371 | W184: 508371
B185: BÁSICO | C185: 47 | D185: =IF(Prazo<D$138,0,IF(D69="",0,$AA$138)) -> 508371 | E185: 508371 | F185: 508371 | G185: 508371 | H185: 508371 | I185: 508371 | J185: 508371 | K185: 508371 | L185: 508371 | M185: 508371 | N185: 508371 | O185: 508371 | P185: 508371 | Q185: 508371 | R185: 508371 | S185: 508371 | T185: 508371 | U185: 508371 | V185: 508371 | W185: 508371
B186: BÁSICO | C186: 48 | D186: =IF(Prazo<D$138,0,IF(D70="",0,$AA$138)) -> 508371 | E186: 508371 | F186: 508371 | G186: 508371 | H186: 508371 | I186: 508371 | J186: 508371 | K186: 508371 | L186: 508371 | M186: 508371 | N186: 508371 | O186: 508371 | P186: 508371 | Q186: 508371 | R186: 508371 | S186: 508371 | T186: 508371 | U186: 508371 | V186: 508371 | W186: 508371
B187: BÁSICO | C187: 49 | D187: =IF(Prazo<D$138,0,IF(D71="",0,$AA$138)) -> 508371 | E187: 508371 | F187: 508371 | G187: 508371 | H187: 508371 | I187: 508371 | J187: 508371 | K187: 508371 | L187: 508371 | M187: 508371 | N187: 508371 | O187: 508371 | P187: 508371 | Q187: 508371 | R187: 508371 | S187: 508371 | T187: 508371 | U187: 508371 | V187: 508371 | W187: 508371
B188: BÁSICO | C188: 50 | D188: =IF(Prazo<D$138,0,IF(D72="",0,$AA$138)) -> 508371 | E188: 508371 | F188: 508371 | G188: 508371 | H188: 508371 | I188: 508371 | J188: 508371 | K188: 508371 | L188: 508371 | M188: 508371 | N188: 508371 | O188: 508371 | P188: 508371 | Q188: 508371 | R188: 508371 | S188: 508371 | T188: 508371 | U188: 508371 | V188: 508371 | W188: 508371
B189: BÁSICO | C189: 51 | D189: =IF(Prazo<D$138,0,IF(D73="",0,$AA$138)) -> 508371 | E189: 508371 | F189: 508371 | G189: 508371 | H189: 508371 | I189: 508371 | J189: 508371 | K189: 508371 | L189: 508371 | M189: 508371 | N189: 508371 | O189: 508371 | P189: 508371 | Q189: 508371 | R189: 508371 | S189: 508371 | T189: 508371 | U189: 508371 | V189: 508371 | W189: 508371
B190: BÁSICO | C190: 52 | D190: =IF(Prazo<D$138,0,IF(D74="",0,$AA$138)) -> 508371 | E190: 508371 | F190: 508371 | G190: 508371 | H190: 508371 | I190: 508371 | J190: 508371 | K190: 508371 | L190: 508371 | M190: 508371 | N190: 508371 | O190: 508371 | P190: 508371 | Q190: 508371 | R190: 508371 | S190: 508371 | T190: 508371 | U190: 508371 | V190: 508371 | W190: 508371
B191: BÁSICO | C191: 53 | D191: =IF(Prazo<D$138,0,IF(D75="",0,$AA$138)) -> 508371 | E191: 508371 | F191: 508371 | G191: 508371 | H191: 508371 | I191: 508371 | J191: 508371 | K191: 508371 | L191: 508371 | M191: 508371 | N191: 508371 | O191: 508371 | P191: 508371 | Q191: 508371 | R191: 508371 | S191: 508371 | T191: 508371 | U191: 508371 | V191: 508371 | W191: 508371
B192: BÁSICO | C192: 54 | D192: =IF(Prazo<D$138,0,IF(D76="",0,$AA$138)) -> 508371 | E192: 508371 | F192: 508371 | G192: 508371 | H192: 508371 | I192: 508371 | J192: 508371 | K192: 508371 | L192: 508371 | M192: 508371 | N192: 508371 | O192: 508371 | P192: 508371 | Q192: 508371 | R192: 508371 | S192: 508371 | T192: 508371 | U192: 508371 | V192: 508371 | W192: 508371
B193: BÁSICO | C193: 55 | D193: =IF(Prazo<D$138,0,IF(D77="",0,$AA$138)) -> 508371 | E193: 508371 | F193: 508371 | G193: 508371 | H193: 508371 | I193: 508371 | J193: 508371 | K193: 508371 | L193: 508371 | M193: 508371 | N193: 508371 | O193: 508371 | P193: 508371 | Q193: 508371 | R193: 508371 | S193: 508371 | T193: 508371 | U193: 508371 | V193: 508371 | W193: 508371
B194: BÁSICO | C194: 56 | D194: =IF(Prazo<D$138,0,IF(D78="",0,$AA$138)) -> 508371 | E194: 508371 | F194: 508371 | G194: 508371 | H194: 508371 | I194: 508371 | J194: 508371 | K194: 508371 | L194: 508371 | M194: 508371 | N194: 508371 | O194: 508371 | P194: 508371 | Q194: 508371 | R194: 508371 | S194: 508371 | T194: 508371 | U194: 508371 | V194: 508371 | W194: 508371
B195: BÁSICO | C195: 57 | D195: =IF(Prazo<D$138,0,IF(D79="",0,$AA$138)) -> 508371 | E195: 508371 | F195: 508371 | G195: 508371 | H195: 508371 | I195: 508371 | J195: 508371 | K195: 508371 | L195: 508371 | M195: 508371 | N195: 508371 | O195: 508371 | P195: 508371 | Q195: 508371 | R195: 508371 | S195: 508371 | T195: 508371 | U195: 508371 | V195: 508371 | W195: 508371
B196: MIDI | C196: 58 | D196: =IF(Prazo<D$138,0,IF(D84="",0,$AA$139)) -> 450000 | E196: 450000 | F196: 450000 | G196: 450000 | H196: 450000 | I196: 450000 | J196: 450000 | K196: 450000 | L196: 450000 | M196: 450000 | N196: 450000 | O196: 450000 | P196: 450000 | Q196: 450000 | R196: 450000 | S196: 450000 | T196: 450000 | U196: 450000 | V196: 450000 | W196: 450000
B197: MIDI | C197: 59 | D197: =IF(Prazo<D$138,0,IF(D85="",0,$AA$139)) -> 450000 | E197: 450000 | F197: 450000 | G197: 450000 | H197: 450000 | I197: 450000 | J197: 450000 | K197: 450000 | L197: 450000 | M197: 450000 | N197: 450000 | O197: 450000 | P197: 450000 | Q197: 450000 | R197: 450000 | S197: 450000 | T197: 450000 | U197: 450000 | V197: 450000 | W197: 450000
B198: MIDI | C198: 60 | D198: =IF(Prazo<D$138,0,IF(D86="",0,$AA$139)) -> 450000 | E198: 450000 | F198: 450000 | G198: 450000 | H198: 450000 | I198: 450000 | J198: 450000 | K198: 450000 | L198: 450000 | M198: 450000 | N198: 450000 | O198: 450000 | P198: 450000 | Q198: 450000 | R198: 450000 | S198: 450000 | T198: 450000 | U198: 450000 | V198: 450000 | W198: 450000
B199: MIDI | C199: 61 | D199: =IF(Prazo<D$138,0,IF(D87="",0,$AA$139)) -> 450000 | E199: 450000 | F199: 450000 | G199: 450000 | H199: 450000 | I199: 450000 | J199: 450000 | K199: 450000 | L199: 450000 | M199: 450000 | N199: 450000 | O199: 450000 | P199: 450000 | Q199: 450000 | R199: 450000 | S199: 450000 | T199: 450000 | U199: 450000 | V199: 450000 | W199: 450000
B200: MIDI | C200: 62 | D200: =IF(Prazo<D$138,0,IF(D88="",0,$AA$139)) -> 450000 | E200: 450000 | F200: 450000 | G200: 450000 | H200: 450000 | I200: 450000 | J200: 450000 | K200: 450000 | L200: 450000 | M200: 450000 | N200: 450000 | O200: 450000 | P200: 450000 | Q200: 450000 | R200: 450000 | S200: 450000 | T200: 450000 | U200: 450000 | V200: 450000 | W200: 450000
B201: MIDI | C201: 63 | D201: =IF(Prazo<D$138,0,IF(D89="",0,$AA$139)) -> 450000 | E201: 450000 | F201: 450000 | G201: 450000 | H201: 450000 | I201: 450000 | J201: 450000 | K201: 450000 | L201: 450000 | M201: 450000 | N201: 450000 | O201: 450000 | P201: 450000 | Q201: 450000 | R201: 450000 | S201: 450000 | T201: 450000 | U201: 450000 | V201: 450000 | W201: 450000
B202: MIDI | C202: 64 | D202: =IF(Prazo<D$138,0,IF(D90="",0,$AA$139)) -> 450000 | E202: 450000 | F202: 450000 | G202: 450000 | H202: 450000 | I202: 450000 | J202: 450000 | K202: 450000 | L202: 450000 | M202: 450000 | N202: 450000 | O202: 450000 | P202: 450000 | Q202: 450000 | R202: 450000 | S202: 450000 | T202: 450000 | U202: 450000 | V202: 450000 | W202: 450000
B203: MIDI | C203: 65 | D203: =IF(Prazo<D$138,0,IF(D91="",0,$AA$139)) -> 450000 | E203: 450000 | F203: 450000 | G203: 450000 | H203: 450000 | I203: 450000 | J203: 450000 | K203: 450000 | L203: 450000 | M203: 450000 | N203: 450000 | O203: 450000 | P203: 450000 | Q203: 450000 | R203: 450000 | S203: 450000 | T203: 450000 | U203: 450000 | V203: 450000 | W203: 450000
B204: MIDI | C204: =C203+1 -> 66 | D204: =IF(Prazo<D$138,0,IF(D92="",0,$AA$139)) -> 450000 | E204: 450000 | F204: 450000 | G204: 450000 | H204: 450000 | I204: 450000 | J204: 450000 | K204: 450000 | L204: 450000 | M204: 450000 | N204: 450000 | O204: 450000 | P204: 450000 | Q204: 450000 | R204: 450000 | S204: 450000 | T204: 450000 | U204: 450000 | V204: 450000 | W204: 450000
B205: MIDI | C205: =C204+1 -> 67 | D205: =IF(Prazo<D$138,0,IF(D93="",0,$AA$139)) -> 450000 | E205: 450000 | F205: 450000 | G205: 450000 | H205: 450000 | I205: 450000 | J205: 450000 | K205: 450000 | L205: 450000 | M205: 450000 | N205: 450000 | O205: 450000 | P205: 450000 | Q205: 450000 | R205: 450000 | S205: 450000 | T205: 450000 | U205: 450000 | V205: 450000 | W205: 450000
B206: MIDI | C206: 68 | D206: =IF(Prazo<D$138,0,IF(D94="",0,$AA$139)) -> 450000 | E206: 450000 | F206: 450000 | G206: 450000 | H206: 450000 | I206: 450000 | J206: 450000 | K206: 450000 | L206: 450000 | M206: 450000 | N206: 450000 | O206: 450000 | P206: 450000 | Q206: 450000 | R206: 450000 | S206: 450000 | T206: 450000 | U206: 450000 | V206: 450000 | W206: 450000
B207: ARTICUL. DIESEL | C207: 69 | D207: =IF(Prazo<D$138,0,IF(D99="",0,$AA$140)) -> 1437230 | E207: =IF(Prazo<E$138,0,IF(E99="",0,$AA$140)) -> 1437230 | F207: 1437230 | G207: 1437230 | H207: 1437230 | I207: 1437230 | J207: 1437230 | K207: 1437230 | L207: 1437230 | M207: 1437230 | N207: 1437230 | O207: 1437230 | P207: 0 | Q207: 0 | R207: 0 | S207: 0 | T207: 0 | U207: 0 | V207: 0 | W207: 0
B208: ARTICUL. DIESEL | C208: 70 | D208: =IF(Prazo<D$138,0,IF(D100="",0,$AA$140)) -> 1437230 | E208: 1437230 | F208: 1437230 | G208: 1437230 | H208: 1437230 | I208: 1437230 | J208: 1437230 | K208: 1437230 | L208: 1437230 | M208: 1437230 | N208: 0 | O208: 0 | P208: 0 | Q208: 0 | R208: 0 | S208: 0 | T208: 0 | U208: 0 | V208: 1437230 | W208: 1437230
B209: ARTICUL. DIESEL | C209: 71 | D209: =IF(Prazo<D$138,0,IF(D101="",0,$AA$140)) -> 1437230 | E209: 1437230 | F209: 1437230 | G209: 1437230 | H209: 1437230 | I209: 1437230 | J209: 1437230 | K209: 1437230 | L209: 0 | M209: 0 | N209: 0 | O209: 0 | P209: 0 | Q209: 0 | R209: 0 | S209: 0 | T209: 1437230 | U209: 1437230 | V209: 1437230 | W209: 1437230
B210: ARTICUL. DIESEL | C210: 72 | D210: =IF(Prazo<D$138,0,IF(D102="",0,$AA$140)) -> 1437230 | E210: 1437230 | F210: 1437230 | G210: 1437230 | H210: 1437230 | I210: 1437230 | J210: 0 | K210: 0 | L210: 0 | M210: 0 | N210: 0 | O210: 0 | P210: 0 | Q210: 0 | R210: 1437230 | S210: 1437230 | T210: 1437230 | U210: 1437230 | V210: 1437230 | W210: 1437230
B211: ARTICUL. DIESEL | C211: 73 | D211: =IF(Prazo<D$138,0,IF(D103="",0,$AA$140)) -> 1437230 | E211: 1437230 | F211: 1437230 | G211: 1437230 | H211: 0 | I211: 0 | J211: 0 | K211: 0 | L211: 0 | M211: 0 | N211: 0 | O211: 0 | P211: 1437230 | Q211: 1437230 | R211: 1437230 | S211: 1437230 | T211: 1437230 | U211: 1437230 | V211: 1437230 | W211: 1437230
B212: ARTICUL. DIESEL | C212: 74 | D212: =IF(Prazo<D$138,0,IF(D104="",0,$AA$140)) -> 1437230 | E212: 1437230 | F212: 1437230 | G212: 1437230 | H212: 0 | I212: 0 | J212: 0 | K212: 0 | L212: 0 | M212: 0 | N212: 1437230 | O212: 1437230 | P212: 1437230 | Q212: 1437230 | R212: 1437230 | S212: 1437230 | T212: 1437230 | U212: 1437230 | V212: 1437230 | W212: 1437230
B213: ARTICUL. DIESEL | C213: 75 | D213: =IF(Prazo<D$138,0,IF(D105="",0,$AA$140)) -> 1437230 | E213: 1437230 | F213: 1437230 | G213: 0 | H213: 0 | I213: 0 | J213: 0 | K213: 0 | L213: 1437230 | M213: 1437230 | N213: 1437230 | O213: 1437230 | P213: 1437230 | Q213: 1437230 | R213: 1437230 | S213: 1437230 | T213: 1437230 | U213: 1437230 | V213: 1437230 | W213: 1437230
... 881 more rows

Sheet 6. (a). CAPEX_LOTE2
B7: FROTA - TOTAL | Z7: PREÇO
B8: TIPO | D8: 1 | E8: =D8+1 -> 2 | F8: =E8+1 -> 3 | G8: 4 | H8: 5 | I8: 6 | J8: 7 | K8: 8 | L8: 9 | M8: 10 | N8: 11 | O8: 12 | P8: 13 | Q8: 14 | R8: 15 | S8: 16 | T8: 17 | U8: 18 | V8: 19 | W8: 20 | Z8: Carregadores Elétricos | AA8: 150000
B9: BÁSICO | D9: =COUNT(D23:D79) -> 57 | E9: 57 | F9: 57 | G9: 57 | H9: 57 | I9: 57 | J9: 57 | K9: 57 | L9: 57 | M9: 57 | N9: 57 | O9: 57 | P9: 57 | Q9: 57 | R9: 57 | S9: 57 | T9: 57 | U9: 57 | V9: 57 | W9: 57 | Z9: Placas Solares | AA9: 300000
B10: I.M Básico | D10: =AVERAGE(D23:D79) -> 4.263157895 | E10: =AVERAGE(E23:E79) -> 4.263157895 | F10: 4.263157895 | G10: 4.263157895 | H10: 4.263157895 | I10: 4.263157895 | J10: 4.263157895 | K10: 4.263157895 | L10: 4.263157895 | M10: 4.263157895 | N10: 4.263157895 | O10: 4.263157895 | P10: 4.263157895 | Q10: 4.263157895 | R10: 4.263157895 | S10: 4.263157895 | T10: 4.263157895 | U10: 4.263157895 | V10: 4.263157895 | W10: 5.263157895
B11: MIDI | D11: =COUNT(D84:D95) -> 12 | E11: =COUNT(E84:E95) -> 12 | F11: 12 | G11: 12 | H11: 12 | I11: 12 | J11: 12 | K11: 12 | L11: 12 | M11: 12 | N11: 12 | O11: 12 | P11: 12 | Q11: 12 | R11: 12 | S11: 12 | T11: 12 | U11: 12 | V11: 12 | W11: 12
B12: I.M MIDI | D12: =AVERAGE(D84:D95) -> 4.583333333 | E12: =AVERAGE(E84:E95) -> 4.666666667 | F12: 4.75 | G12: 4.833333333 | H12: 4.916666667 | I12: 5 | J12: 4.25 | K12: 4.416666667 | L12: 4.583333333 | M12: 4.75 | N12: 4.083333333 | O12: 4.25 | P12: 4.416666667 | Q12: 4.583333333 | R12: 4.75 | S12: 4.916666667 | T12: 4.25 | U12: 4.416666667 | V12: 4.583333333 | W12: 5.583333333
B13: ARTICUL. DIESEL | D13: =D106 -> 6 | E13: =E106 -> 5 | F13: 4 | G13: 3 | H13: 2 | I13: 1 | J13: 0 | K13: 0 | L13: 0 | M13: 0 | N13: 0 | O13: 0 | P13: 0 | Q13: 0 | R13: 0 | S13: 0 | T13: 0 | U13: 0 | V13: 0 | W13: 0
B14: I.M Art. Diesel | D14: =IFERROR(AVERAGE(D100:D105),0) -> 2.5 | E14: =IFERROR(AVERAGE(E100:E105),0) -> 3 | F14: 3.5 | G14: 4 | H14: 4.5 | I14: 5 | J14: 0 | K14: 0 | L14: 0 | M14: 0 | N14: 0 | O14: 0 | P14: 0 | Q14: 0 | R14: 0 | S14: 0 | T14: 0 | U14: 0 | V14: 0 | W14: 0
B15: ARTICUL. ELÉTRICO | D15: =D116 -> 0 | E15: =E116 -> 1 | F15: 2 | G15: 3 | H15: 4 | I15: 5 | J15: 6 | K15: 6 | L15: 6 | M15: 6 | N15: 6 | O15: 6 | P15: 6 | Q15: 6 | R15: 6 | S15: 6 | T15: 6 | U15: 6 | V15: 6 | W15: 6
B16: I.M Art. Ele | D16: =IFERROR(AVERAGE(D110:D115),0) -> 0 | E16: =IFERROR(AVERAGE(E110:E115),0) -> 0 | F16: 0.5 | G16: 1 | H16: 1.5 | I16: 2 | J16: 2.5 | K16: 3.5 | L16: 4.5 | M16: 5.5 | N16: 6.5 | O16: 7.5 | P16: 8.5 | Q16: 9.5 | R16: 10.5 | S16: 11.5 | T16: 10 | U16: 8.5 | V16: 7 | W16: 8
B17: PADRON DIESEL | D17: =D124 -> 0 | E17: =E124 -> 0 | F17: 0 | G17: 0 | H17: 0 | I17: 0 | J17: 0 | K17: 0 | L17: 0 | M17: 0 | N17: 0 | O17: 0 | P17: 0 | Q17: 0 | R17: 0 | S17: 0 | T17: 0 | U17: 0 | V17: 0 | W17: 0
B18: PADRON ELÉTRICO | D18: =D132 -> 0 | E18: =E132 -> 0 | F18: 0 | G18: 0 | H18: 0 | I18: 0 | J18: 0 | K18: 0 | L18: 0 | M18: 0 | N18: 0 | O18: 0 | P18: 0 | Q18: 0 | R18: 0 | S18: 0 | T18: 0 | U18: 0 | V18: 0 | W18: 0
B19: TOTAL | D19: =SUM(D9,D11,D13,D15,D17,D18) -> 75 | E19: =SUM(E9,E11,E13,E15,E17,E18) -> 75 | F19: 75 | G19: 75 | H19: 75 | I19: 75 | J19: 75 | K19: 75 | L19: 75 | M19: 75 | N19: 75 | O19: 75 | P19: 75 | Q19: 75 | R19: 75 | S19: 75 | T19: 75 | U19: 75 | V19: 75 | W19: 75
B21: IDADE - BÁSICO
B22: TIPO | C22: QUANT. | D22: 1 | E22: =D22+1 -> 2 | F22: =E22+1 -> 3 | G22: 4 | H22: 5 | I22: 6 | J22: 7 | K22: 8 | L22: 9 | M22: 10 | N22: 11 | O22: 12 | P22: 13 | Q22: 14 | R22: 15 | S22: 16 | T22: 17 | U22: 18 | V22: 19 | W22: 20
B23: BÁSICO | C23: 1 | D23: 0 | E23: =IF(D23+1>'01. PC'!$C$37,0,D23+1) -> 1 | F23: =IF(E23+1>'01. PC'!$C$37,0,E23+1) -> 2 | G23: =IF(F23+1>'01. PC'!$C$37,0,F23+1) -> 3 | H23: =IF(G23+1>'01. PC'!$C$37,0,G23+1) -> 4 | I23: =IF(H23+1>'01. PC'!$C$37,0,H23+1) -> 5 | J23: =IF(I23+1>'01. PC'!$C$37,0,I23+1) -> 6 | K23: =IF(J23+1>'01. PC'!$C$37,0,J23+1) -> 7 | L23: =IF(K23+1>'01. PC'!$C$37,0,K23+1) -> 8 | M23: =IF(L23+1>'01. PC'!$C$37,0,L23+1) -> 9 | N23: =IF(M23+1>'01. PC'!$C$37,0,M23+1) -> 0 | O23: =IF(N23+1>'01. PC'!$C$37,0,N23+1) -> 1 | P23: =IF(O23+1>'01. PC'!$C$37,0,O23+1) -> 2 | Q23: =IF(P23+1>'01. PC'!$C$37,0,P23+1) -> 3 | R23: =IF(Q23+1>'01. PC'!$C$37,0,Q23+1) -> 4 | S23: =IF(R23+1>'01. PC'!$C$37,0,R23+1) -> 5 | T23: =IF(S23+1>'01. PC'!$C$37,0,S23+1) -> 6 | U23: =IF(T23+1>'01. PC'!$C$37,0,T23+1) -> 7 | V23: =IF(U23+1>'01. PC'!$C$37,0,U23+1) -> 8 | W23: =IF(V23+1>'01. PC'!$C$37,0,V23+1) -> 9
B24: BÁSICO | C24: =C23+1 -> 2 | D24: 0 | E24: =IF(D24+1>'01. PC'!$C$37,0,D24+1) -> 1 | F24: =IF(E24+1>'01. PC'!$C$37,0,E24+1) -> 2 | G24: =IF(F24+1>'01. PC'!$C$37,0,F24+1) -> 3 | H24: =IF(G24+1>'01. PC'!$C$37,0,G24+1) -> 4 | I24: =IF(H24+1>'01. PC'!$C$37,0,H24+1) -> 5 | J24: =IF(I24+1>'01. PC'!$C$37,0,I24+1) -> 6 | K24: =IF(J24+1>'01. PC'!$C$37,0,J24+1) -> 7 | L24: =IF(K24+1>'01. PC'!$C$37,0,K24+1) -> 8 | M24: =IF(L24+1>'01. PC'!$C$37,0,L24+1) -> 9 | N24: =IF(M24+1>'01. PC'!$C$37,0,M24+1) -> 0 | O24: =IF(N24+1>'01. PC'!$C$37,0,N24+1) -> 1 | P24: =IF(O24+1>'01. PC'!$C$37,0,O24+1) -> 2 | Q24: =IF(P24+1>'01. PC'!$C$37,0,P24+1) -> 3 | R24: =IF(Q24+1>'01. PC'!$C$37,0,Q24+1) -> 4 | S24: =IF(R24+1>'01. PC'!$C$37,0,R24+1) -> 5 | T24: =IF(S24+1>'01. PC'!$C$37,0,S24+1) -> 6 | U24: =IF(T24+1>'01. PC'!$C$37,0,T24+1) -> 7 | V24: =IF(U24+1>'01. PC'!$C$37,0,U24+1) -> 8 | W24: =IF(V24+1>'01. PC'!$C$37,0,V24+1) -> 9
B25: BÁSICO | C25: =C24+1 -> 3 | D25: 0 | E25: =IF(D25+1>'01. PC'!$C$37,0,D25+1) -> 1 | F25: =IF(E25+1>'01. PC'!$C$37,0,E25+1) -> 2 | G25: =IF(F25+1>'01. PC'!$C$37,0,F25+1) -> 3 | H25: =IF(G25+1>'01. PC'!$C$37,0,G25+1) -> 4 | I25: =IF(H25+1>'01. PC'!$C$37,0,H25+1) -> 5 | J25: =IF(I25+1>'01. PC'!$C$37,0,I25+1) -> 6 | K25: =IF(J25+1>'01. PC'!$C$37,0,J25+1) -> 7 | L25: =IF(K25+1>'01. PC'!$C$37,0,K25+1) -> 8 | M25: =IF(L25+1>'01. PC'!$C$37,0,L25+1) -> 9 | N25: =IF(M25+1>'01. PC'!$C$37,0,M25+1) -> 0 | O25: =IF(N25+1>'01. PC'!$C$37,0,N25+1) -> 1 | P25: =IF(O25+1>'01. PC'!$C$37,0,O25+1) -> 2 | Q25: =IF(P25+1>'01. PC'!$C$37,0,P25+1) -> 3 | R25: =IF(Q25+1>'01. PC'!$C$37,0,Q25+1) -> 4 | S25: =IF(R25+1>'01. PC'!$C$37,0,R25+1) -> 5 | T25: =IF(S25+1>'01. PC'!$C$37,0,S25+1) -> 6 | U25: =IF(T25+1>'01. PC'!$C$37,0,T25+1) -> 7 | V25: =IF(U25+1>'01. PC'!$C$37,0,U25+1) -> 8 | W25: =IF(V25+1>'01. PC'!$C$37,0,V25+1) -> 9
B26: BÁSICO | C26: 4 | D26: 0 | E26: =IF(D26+1>'01. PC'!$C$37,0,D26+1) -> 1 | F26: =IF(E26+1>'01. PC'!$C$37,0,E26+1) -> 2 | G26: =IF(F26+1>'01. PC'!$C$37,0,F26+1) -> 3 | H26: =IF(G26+1>'01. PC'!$C$37,0,G26+1) -> 4 | I26: =IF(H26+1>'01. PC'!$C$37,0,H26+1) -> 5 | J26: =IF(I26+1>'01. PC'!$C$37,0,I26+1) -> 6 | K26: =IF(J26+1>'01. PC'!$C$37,0,J26+1) -> 7 | L26: =IF(K26+1>'01. PC'!$C$37,0,K26+1) -> 8 | M26: 0 | N26: =IF(M26+1>'01. PC'!$C$37,0,M26+1) -> 1 | O26: =IF(N26+1>'01. PC'!$C$37,0,N26+1) -> 2 | P26: =IF(O26+1>'01. PC'!$C$37,0,O26+1) -> 3 | Q26: =IF(P26+1>'01. PC'!$C$37,0,P26+1) -> 4 | R26: =IF(Q26+1>'01. PC'!$C$37,0,Q26+1) -> 5 | S26: =IF(R26+1>'01. PC'!$C$37,0,R26+1) -> 6 | T26: =IF(S26+1>'01. PC'!$C$37,0,S26+1) -> 7 | U26: =IF(T26+1>'01. PC'!$C$37,0,T26+1) -> 8 | V26: =IF(U26+1>'01. PC'!$C$37,0,U26+1) -> 9 | W26: 10
B27: BÁSICO | C27: 5 | D27: 0 | E27: =IF(D27+1>'01. PC'!$C$37,0,D27+1) -> 1 | F27: =IF(E27+1>'01. PC'!$C$37,0,E27+1) -> 2 | G27: =IF(F27+1>'01. PC'!$C$37,0,F27+1) -> 3 | H27: =IF(G27+1>'01. PC'!$C$37,0,G27+1) -> 4 | I27: =IF(H27+1>'01. PC'!$C$37,0,H27+1) -> 5 | J27: =IF(I27+1>'01. PC'!$C$37,0,I27+1) -> 6 | K27: =IF(J27+1>'01. PC'!$C$37,0,J27+1) -> 7 | L27: =IF(K27+1>'01. PC'!$C$37,0,K27+1) -> 8 | M27: 0 | N27: =IF(M27+1>'01. PC'!$C$37,0,M27+1) -> 1 | O27: =IF(N27+1>'01. PC'!$C$37,0,N27+1) -> 2 | P27: =IF(O27+1>'01. PC'!$C$37,0,O27+1) -> 3 | Q27: =IF(P27+1>'01. PC'!$C$37,0,P27+1) -> 4 | R27: =IF(Q27+1>'01. PC'!$C$37,0,Q27+1) -> 5 | S27: =IF(R27+1>'01. PC'!$C$37,0,R27+1) -> 6 | T27: =IF(S27+1>'01. PC'!$C$37,0,S27+1) -> 7 | U27: =IF(T27+1>'01. PC'!$C$37,0,T27+1) -> 8 | V27: =IF(U27+1>'01. PC'!$C$37,0,U27+1) -> 9 | W27: 10
B28: BÁSICO | C28: 6 | D28: 0 | E28: =IF(D28+1>'01. PC'!$C$37,0,D28+1) -> 1 | F28: =IF(E28+1>'01. PC'!$C$37,0,E28+1) -> 2 | G28: =IF(F28+1>'01. PC'!$C$37,0,F28+1) -> 3 | H28: =IF(G28+1>'01. PC'!$C$37,0,G28+1) -> 4 | I28: =IF(H28+1>'01. PC'!$C$37,0,H28+1) -> 5 | J28: =IF(I28+1>'01. PC'!$C$37,0,I28+1) -> 6 | K28: =IF(J28+1>'01. PC'!$C$37,0,J28+1) -> 7 | L28: =IF(K28+1>'01. PC'!$C$37,0,K28+1) -> 8 | M28: 0 | N28: =IF(M28+1>'01. PC'!$C$37,0,M28+1) -> 1 | O28: =IF(N28+1>'01. PC'!$C$37,0,N28+1) -> 2 | P28: =IF(O28+1>'01. PC'!$C$37,0,O28+1) -> 3 | Q28: =IF(P28+1>'01. PC'!$C$37,0,P28+1) -> 4 | R28: =IF(Q28+1>'01. PC'!$C$37,0,Q28+1) -> 5 | S28: =IF(R28+1>'01. PC'!$C$37,0,R28+1) -> 6 | T28: =IF(S28+1>'01. PC'!$C$37,0,S28+1) -> 7 | U28: =IF(T28+1>'01. PC'!$C$37,0,T28+1) -> 8 | V28: =IF(U28+1>'01. PC'!$C$37,0,U28+1) -> 9 | W28: 10
B29: BÁSICO | C29: 7 | D29: 1 | E29: =IF(D29+1>'01. PC'!$C$37,0,D29+1) -> 2 | F29: =IF(E29+1>'01. PC'!$C$37,0,E29+1) -> 3 | G29: =IF(F29+1>'01. PC'!$C$37,0,F29+1) -> 4 | H29: =IF(G29+1>'01. PC'!$C$37,0,G29+1) -> 5 | I29: =IF(H29+1>'01. PC'!$C$37,0,H29+1) -> 6 | J29: =IF(I29+1>'01. PC'!$C$37,0,I29+1) -> 7 | K29: =IF(J29+1>'01. PC'!$C$37,0,J29+1) -> 8 | L29: =IF(K29+1>'01. PC'!$C$37,0,K29+1) -> 9 | M29: =IF(L29+1>'01. PC'!$C$37,0,L29+1) -> 0 | N29: =IF(M29+1>'01. PC'!$C$37,0,M29+1) -> 1 | O29: =IF(N29+1>'01. PC'!$C$37,0,N29+1) -> 2 | P29: =IF(O29+1>'01. PC'!$C$37,0,O29+1) -> 3 | Q29: =IF(P29+1>'01. PC'!$C$37,0,P29+1) -> 4 | R29: =IF(Q29+1>'01. PC'!$C$37,0,Q29+1) -> 5 | S29: =IF(R29+1>'01. PC'!$C$37,0,R29+1) -> 6 | T29: =IF(S29+1>'01. PC'!$C$37,0,S29+1) -> 7 | U29: =IF(T29+1>'01. PC'!$C$37,0,T29+1) -> 8 | V29: 0 | W29: =IF(V29+1>'01. PC'!$C$37,0,V29+1) -> 1
B30: BÁSICO | C30: 8 | D30: 1 | E30: =IF(D30+1>'01. PC'!$C$37,0,D30+1) -> 2 | F30: =IF(E30+1>'01. PC'!$C$37,0,E30+1) -> 3 | G30: =IF(F30+1>'01. PC'!$C$37,0,F30+1) -> 4 | H30: =IF(G30+1>'01. PC'!$C$37,0,G30+1) -> 5 | I30: =IF(H30+1>'01. PC'!$C$37,0,H30+1) -> 6 | J30: =IF(I30+1>'01. PC'!$C$37,0,I30+1) -> 7 | K30: =IF(J30+1>'01. PC'!$C$37,0,J30+1) -> 8 | L30: =IF(K30+1>'01. PC'!$C$37,0,K30+1) -> 9 | M30: =IF(L30+1>'01. PC'!$C$37,0,L30+1) -> 0 | N30: =IF(M30+1>'01. PC'!$C$37,0,M30+1) -> 1 | O30: =IF(N30+1>'01. PC'!$C$37,0,N30+1) -> 2 | P30: =IF(O30+1>'01. PC'!$C$37,0,O30+1) -> 3 | Q30: =IF(P30+1>'01. PC'!$C$37,0,P30+1) -> 4 | R30: =IF(Q30+1>'01. PC'!$C$37,0,Q30+1) -> 5 | S30: =IF(R30+1>'01. PC'!$C$37,0,R30+1) -> 6 | T30: =IF(S30+1>'01. PC'!$C$37,0,S30+1) -> 7 | U30: =IF(T30+1>'01. PC'!$C$37,0,T30+1) -> 8 | V30: 0 | W30: =IF(V30+1>'01. PC'!$C$37,0,V30+1) -> 1
B31: BÁSICO | C31: 9 | D31: 1 | E31: =IF(D31+1>'01. PC'!$C$37,0,D31+1) -> 2 | F31: =IF(E31+1>'01. PC'!$C$37,0,E31+1) -> 3 | G31: =IF(F31+1>'01. PC'!$C$37,0,F31+1) -> 4 | H31: =IF(G31+1>'01. PC'!$C$37,0,G31+1) -> 5 | I31: =IF(H31+1>'01. PC'!$C$37,0,H31+1) -> 6 | J31: =IF(I31+1>'01. PC'!$C$37,0,I31+1) -> 7 | K31: =IF(J31+1>'01. PC'!$C$37,0,J31+1) -> 8 | L31: =IF(K31+1>'01. PC'!$C$37,0,K31+1) -> 9 | M31: =IF(L31+1>'01. PC'!$C$37,0,L31+1) -> 0 | N31: =IF(M31+1>'01. PC'!$C$37,0,M31+1) -> 1 | O31: =IF(N31+1>'01. PC'!$C$37,0,N31+1) -> 2 | P31: =IF(O31+1>'01. PC'!$C$37,0,O31+1) -> 3 | Q31: =IF(P31+1>'01. PC'!$C$37,0,P31+1) -> 4 | R31: =IF(Q31+1>'01. PC'!$C$37,0,Q31+1) -> 5 | S31: =IF(R31+1>'01. PC'!$C$37,0,R31+1) -> 6 | T31: =IF(S31+1>'01. PC'!$C$37,0,S31+1) -> 7 | U31: =IF(T31+1>'01. PC'!$C$37,0,T31+1) -> 8 | V31: 0 | W31: =IF(V31+1>'01. PC'!$C$37,0,V31+1) -> 1
B32: BÁSICO | C32: 10 | D32: 1 | E32: =IF(D32+1>'01. PC'!$C$37,0,D32+1) -> 2 | F32: =IF(E32+1>'01. PC'!$C$37,0,E32+1) -> 3 | G32: =IF(F32+1>'01. PC'!$C$37,0,F32+1) -> 4 | H32: =IF(G32+1>'01. PC'!$C$37,0,G32+1) -> 5 | I32: =IF(H32+1>'01. PC'!$C$37,0,H32+1) -> 6 | J32: =IF(I32+1>'01. PC'!$C$37,0,I32+1) -> 7 | K32: =IF(J32+1>'01. PC'!$C$37,0,J32+1) -> 8 | L32: 0 | M32: =IF(L32+1>'01. PC'!$C$37,0,L32+1) -> 1 | N32: =IF(M32+1>'01. PC'!$C$37,0,M32+1) -> 2 | O32: =IF(N32+1>'01. PC'!$C$37,0,N32+1) -> 3 | P32: =IF(O32+1>'01. PC'!$C$37,0,O32+1) -> 4 | Q32: =IF(P32+1>'01. PC'!$C$37,0,P32+1) -> 5 | R32: =IF(Q32+1>'01. PC'!$C$37,0,Q32+1) -> 6 | S32: =IF(R32+1>'01. PC'!$C$37,0,R32+1) -> 7 | T32: =IF(S32+1>'01. PC'!$C$37,0,S32+1) -> 8 | U32: =IF(T32+1>'01. PC'!$C$37,0,T32+1) -> 9 | V32: =IF(U32+1>'01. PC'!$C$37,0,U32+1) -> 0 | W32: =IF(V32+1>'01. PC'!$C$37,0,V32+1) -> 1
B33: BÁSICO | C33: 11 | D33: 1 | E33: =IF(D33+1>'01. PC'!$C$37,0,D33+1) -> 2 | F33: =IF(E33+1>'01. PC'!$C$37,0,E33+1) -> 3 | G33: =IF(F33+1>'01. PC'!$C$37,0,F33+1) -> 4 | H33: =IF(G33+1>'01. PC'!$C$37,0,G33+1) -> 5 | I33: =IF(H33+1>'01. PC'!$C$37,0,H33+1) -> 6 | J33: =IF(I33+1>'01. PC'!$C$37,0,I33+1) -> 7 | K33: =IF(J33+1>'01. PC'!$C$37,0,J33+1) -> 8 | L33: 0 | M33: =IF(L33+1>'01. PC'!$C$37,0,L33+1) -> 1 | N33: =IF(M33+1>'01. PC'!$C$37,0,M33+1) -> 2 | O33: =IF(N33+1>'01. PC'!$C$37,0,N33+1) -> 3 | P33: =IF(O33+1>'01. PC'!$C$37,0,O33+1) -> 4 | Q33: =IF(P33+1>'01. PC'!$C$37,0,P33+1) -> 5 | R33: =IF(Q33+1>'01. PC'!$C$37,0,Q33+1) -> 6 | S33: =IF(R33+1>'01. PC'!$C$37,0,R33+1) -> 7 | T33: =IF(S33+1>'01. PC'!$C$37,0,S33+1) -> 8 | U33: =IF(T33+1>'01. PC'!$C$37,0,T33+1) -> 9 | V33: =IF(U33+1>'01. PC'!$C$37,0,U33+1) -> 0 | W33: =IF(V33+1>'01. PC'!$C$37,0,V33+1) -> 1
B34: BÁSICO | C34: 12 | D34: 1 | E34: =IF(D34+1>'01. PC'!$C$37,0,D34+1) -> 2 | F34: =IF(E34+1>'01. PC'!$C$37,0,E34+1) -> 3 | G34: =IF(F34+1>'01. PC'!$C$37,0,F34+1) -> 4 | H34: =IF(G34+1>'01. PC'!$C$37,0,G34+1) -> 5 | I34: =IF(H34+1>'01. PC'!$C$37,0,H34+1) -> 6 | J34: =IF(I34+1>'01. PC'!$C$37,0,I34+1) -> 7 | K34: =IF(J34+1>'01. PC'!$C$37,0,J34+1) -> 8 | L34: 0 | M34: =IF(L34+1>'01. PC'!$C$37,0,L34+1) -> 1 | N34: =IF(M34+1>'01. PC'!$C$37,0,M34+1) -> 2 | O34: =IF(N34+1>'01. PC'!$C$37,0,N34+1) -> 3 | P34: =IF(O34+1>'01. PC'!$C$37,0,O34+1) -> 4 | Q34: =IF(P34+1>'01. PC'!$C$37,0,P34+1) -> 5 | R34: =IF(Q34+1>'01. PC'!$C$37,0,Q34+1) -> 6 | S34: =IF(R34+1>'01. PC'!$C$37,0,R34+1) -> 7 | T34: =IF(S34+1>'01. PC'!$C$37,0,S34+1) -> 8 | U34: =IF(T34+1>'01. PC'!$C$37,0,T34+1) -> 9 | V34: =IF(U34+1>'01. PC'!$C$37,0,U34+1) -> 0 | W34: =IF(V34+1>'01. PC'!$C$37,0,V34+1) -> 1
B35: BÁSICO | C35: 13 | D35: 2 | E35: =IF(D35+1>'01. PC'!$C$37,0,D35+1) -> 3 | F35: =IF(E35+1>'01. PC'!$C$37,0,E35+1) -> 4 | G35: =IF(F35+1>'01. PC'!$C$37,0,F35+1) -> 5 | H35: =IF(G35+1>'01. PC'!$C$37,0,G35+1) -> 6 | I35: =IF(H35+1>'01. PC'!$C$37,0,H35+1) -> 7 | J35: =IF(I35+1>'01. PC'!$C$37,0,I35+1) -> 8 | K35: =IF(J35+1>'01. PC'!$C$37,0,J35+1) -> 9 | L35: =IF(K35+1>'01. PC'!$C$37,0,K35+1) -> 0 | M35: =IF(L35+1>'01. PC'!$C$37,0,L35+1) -> 1 | N35: =IF(M35+1>'01. PC'!$C$37,0,M35+1) -> 2 | O35: =IF(N35+1>'01. PC'!$C$37,0,N35+1) -> 3 | P35: =IF(O35+1>'01. PC'!$C$37,0,O35+1) -> 4 | Q35: =IF(P35+1>'01. PC'!$C$37,0,P35+1) -> 5 | R35: =IF(Q35+1>'01. PC'!$C$37,0,Q35+1) -> 6 | S35: =IF(R35+1>'01. PC'!$C$37,0,R35+1) -> 7 | T35: =IF(S35+1>'01. PC'!$C$37,0,S35+1) -> 8 | U35: 0 | V35: =IF(U35+1>'01. PC'!$C$37,0,U35+1) -> 1 | W35: =IF(V35+1>'01. PC'!$C$37,0,V35+1) -> 2
B36: BÁSICO | C36: 14 | D36: 2 | E36: =IF(D36+1>'01. PC'!$C$37,0,D36+1) -> 3 | F36: =IF(E36+1>'01. PC'!$C$37,0,E36+1) -> 4 | G36: =IF(F36+1>'01. PC'!$C$37,0,F36+1) -> 5 | H36: =IF(G36+1>'01. PC'!$C$37,0,G36+1) -> 6 | I36: =IF(H36+1>'01. PC'!$C$37,0,H36+1) -> 7 | J36: =IF(I36+1>'01. PC'!$C$37,0,I36+1) -> 8 | K36: =IF(J36+1>'01. PC'!$C$37,0,J36+1) -> 9 | L36: =IF(K36+1>'01. PC'!$C$37,0,K36+1) -> 0 | M36: =IF(L36+1>'01. PC'!$C$37,0,L36+1) -> 1 | N36: =IF(M36+1>'01. PC'!$C$37,0,M36+1) -> 2 | O36: =IF(N36+1>'01. PC'!$C$37,0,N36+1) -> 3 | P36: =IF(O36+1>'01. PC'!$C$37,0,O36+1) -> 4 | Q36: =IF(P36+1>'01. PC'!$C$37,0,P36+1) -> 5 | R36: =IF(Q36+1>'01. PC'!$C$37,0,Q36+1) -> 6 | S36: =IF(R36+1>'01. PC'!$C$37,0,R36+1) -> 7 | T36: =IF(S36+1>'01. PC'!$C$37,0,S36+1) -> 8 | U36: 0 | V36: =IF(U36+1>'01. PC'!$C$37,0,U36+1) -> 1 | W36: =IF(V36+1>'01. PC'!$C$37,0,V36+1) -> 2
B37: BÁSICO | C37: 15 | D37: 2 | E37: =IF(D37+1>'01. PC'!$C$37,0,D37+1) -> 3 | F37: =IF(E37+1>'01. PC'!$C$37,0,E37+1) -> 4 | G37: =IF(F37+1>'01. PC'!$C$37,0,F37+1) -> 5 | H37: =IF(G37+1>'01. PC'!$C$37,0,G37+1) -> 6 | I37: =IF(H37+1>'01. PC'!$C$37,0,H37+1) -> 7 | J37: =IF(I37+1>'01. PC'!$C$37,0,I37+1) -> 8 | K37: =IF(J37+1>'01. PC'!$C$37,0,J37+1) -> 9 | L37: =IF(K37+1>'01. PC'!$C$37,0,K37+1) -> 0 | M37: =IF(L37+1>'01. PC'!$C$37,0,L37+1) -> 1 | N37: =IF(M37+1>'01. PC'!$C$37,0,M37+1) -> 2 | O37: =IF(N37+1>'01. PC'!$C$37,0,N37+1) -> 3 | P37: =IF(O37+1>'01. PC'!$C$37,0,O37+1) -> 4 | Q37: =IF(P37+1>'01. PC'!$C$37,0,P37+1) -> 5 | R37: =IF(Q37+1>'01. PC'!$C$37,0,Q37+1) -> 6 | S37: =IF(R37+1>'01. PC'!$C$37,0,R37+1) -> 7 | T37: =IF(S37+1>'01. PC'!$C$37,0,S37+1) -> 8 | U37: 0 | V37: =IF(U37+1>'01. PC'!$C$37,0,U37+1) -> 1 | W37: =IF(V37+1>'01. PC'!$C$37,0,V37+1) -> 2
B38: BÁSICO | C38: 16 | D38: 2 | E38: =IF(D38+1>'01. PC'!$C$37,0,D38+1) -> 3 | F38: =IF(E38+1>'01. PC'!$C$37,0,E38+1) -> 4 | G38: =IF(F38+1>'01. PC'!$C$37,0,F38+1) -> 5 | H38: =IF(G38+1>'01. PC'!$C$37,0,G38+1) -> 6 | I38: =IF(H38+1>'01. PC'!$C$37,0,H38+1) -> 7 | J38: =IF(I38+1>'01. PC'!$C$37,0,I38+1) -> 8 | K38: 0 | L38: =IF(K38+1>'01. PC'!$C$37,0,K38+1) -> 1 | M38: =IF(L38+1>'01. PC'!$C$37,0,L38+1) -> 2 | N38: =IF(M38+1>'01. PC'!$C$37,0,M38+1) -> 3 | O38: =IF(N38+1>'01. PC'!$C$37,0,N38+1) -> 4 | P38: =IF(O38+1>'01. PC'!$C$37,0,O38+1) -> 5 | Q38: =IF(P38+1>'01. PC'!$C$37,0,P38+1) -> 6 | R38: =IF(Q38+1>'01. PC'!$C$37,0,Q38+1) -> 7 | S38: =IF(R38+1>'01. PC'!$C$37,0,R38+1) -> 8 | T38: =IF(S38+1>'01. PC'!$C$37,0,S38+1) -> 9 | U38: =IF(T38+1>'01. PC'!$C$37,0,T38+1) -> 0 | V38: =IF(U38+1>'01. PC'!$C$37,0,U38+1) -> 1 | W38: =IF(V38+1>'01. PC'!$C$37,0,V38+1) -> 2
B39: BÁSICO | C39: 17 | D39: 2 | E39: =IF(D39+1>'01. PC'!$C$37,0,D39+1) -> 3 | F39: =IF(E39+1>'01. PC'!$C$37,0,E39+1) -> 4 | G39: =IF(F39+1>'01. PC'!$C$37,0,F39+1) -> 5 | H39: =IF(G39+1>'01. PC'!$C$37,0,G39+1) -> 6 | I39: =IF(H39+1>'01. PC'!$C$37,0,H39+1) -> 7 | J39: =IF(I39+1>'01. PC'!$C$37,0,I39+1) -> 8 | K39: 0 | L39: =IF(K39+1>'01. PC'!$C$37,0,K39+1) -> 1 | M39: =IF(L39+1>'01. PC'!$C$37,0,L39+1) -> 2 | N39: =IF(M39+1>'01. PC'!$C$37,0,M39+1) -> 3 | O39: =IF(N39+1>'01. PC'!$C$37,0,N39+1) -> 4 | P39: =IF(O39+1>'01. PC'!$C$37,0,O39+1) -> 5 | Q39: =IF(P39+1>'01. PC'!$C$37,0,P39+1) -> 6 | R39: =IF(Q39+1>'01. PC'!$C$37,0,Q39+1) -> 7 | S39: =IF(R39+1>'01. PC'!$C$37,0,R39+1) -> 8 | T39: =IF(S39+1>'01. PC'!$C$37,0,S39+1) -> 9 | U39: =IF(T39+1>'01. PC'!$C$37,0,T39+1) -> 0 | V39: =IF(U39+1>'01. PC'!$C$37,0,U39+1) -> 1 | W39: =IF(V39+1>'01. PC'!$C$37,0,V39+1) -> 2
B40: BÁSICO | C40: 18 | D40: 2 | E40: =IF(D40+1>'01. PC'!$C$37,0,D40+1) -> 3 | F40: =IF(E40+1>'01. PC'!$C$37,0,E40+1) -> 4 | G40: =IF(F40+1>'01. PC'!$C$37,0,F40+1) -> 5 | H40: =IF(G40+1>'01. PC'!$C$37,0,G40+1) -> 6 | I40: =IF(H40+1>'01. PC'!$C$37,0,H40+1) -> 7 | J40: =IF(I40+1>'01. PC'!$C$37,0,I40+1) -> 8 | K40: 0 | L40: =IF(K40+1>'01. PC'!$C$37,0,K40+1) -> 1 | M40: =IF(L40+1>'01. PC'!$C$37,0,L40+1) -> 2 | N40: =IF(M40+1>'01. PC'!$C$37,0,M40+1) -> 3 | O40: =IF(N40+1>'01. PC'!$C$37,0,N40+1) -> 4 | P40: =IF(O40+1>'01. PC'!$C$37,0,O40+1) -> 5 | Q40: =IF(P40+1>'01. PC'!$C$37,0,P40+1) -> 6 | R40: =IF(Q40+1>'01. PC'!$C$37,0,Q40+1) -> 7 | S40: =IF(R40+1>'01. PC'!$C$37,0,R40+1) -> 8 | T40: =IF(S40+1>'01. PC'!$C$37,0,S40+1) -> 9 | U40: =IF(T40+1>'01. PC'!$C$37,0,T40+1) -> 0 | V40: =IF(U40+1>'01. PC'!$C$37,0,U40+1) -> 1 | W40: =IF(V40+1>'01. PC'!$C$37,0,V40+1) -> 2
B41: BÁSICO | C41: 19 | D41: 3 | E41: =IF(D41+1>'01. PC'!$C$37,0,D41+1) -> 4 | F41: =IF(E41+1>'01. PC'!$C$37,0,E41+1) -> 5 | G41: =IF(F41+1>'01. PC'!$C$37,0,F41+1) -> 6 | H41: =IF(G41+1>'01. PC'!$C$37,0,G41+1) -> 7 | I41: =IF(H41+1>'01. PC'!$C$37,0,H41+1) -> 8 | J41: =IF(I41+1>'01. PC'!$C$37,0,I41+1) -> 9 | K41: =IF(J41+1>'01. PC'!$C$37,0,J41+1) -> 0 | L41: =IF(K41+1>'01. PC'!$C$37,0,K41+1) -> 1 | M41: =IF(L41+1>'01. PC'!$C$37,0,L41+1) -> 2 | N41: =IF(M41+1>'01. PC'!$C$37,0,M41+1) -> 3 | O41: =IF(N41+1>'01. PC'!$C$37,0,N41+1) -> 4 | P41: =IF(O41+1>'01. PC'!$C$37,0,O41+1) -> 5 | Q41: =IF(P41+1>'01. PC'!$C$37,0,P41+1) -> 6 | R41: =IF(Q41+1>'01. PC'!$C$37,0,Q41+1) -> 7 | S41: =IF(R41+1>'01. PC'!$C$37,0,R41+1) -> 8 | T41: 0 | U41: =IF(T41+1>'01. PC'!$C$37,0,T41+1) -> 1 | V41: =IF(U41+1>'01. PC'!$C$37,0,U41+1) -> 2 | W41: =IF(V41+1>'01. PC'!$C$37,0,V41+1) -> 3
B42: BÁSICO | C42: 20 | D42: 3 | E42: =IF(D42+1>'01. PC'!$C$37,0,D42+1) -> 4 | F42: =IF(E42+1>'01. PC'!$C$37,0,E42+1) -> 5 | G42: =IF(F42+1>'01. PC'!$C$37,0,F42+1) -> 6 | H42: =IF(G42+1>'01. PC'!$C$37,0,G42+1) -> 7 | I42: =IF(H42+1>'01. PC'!$C$37,0,H42+1) -> 8 | J42: =IF(I42+1>'01. PC'!$C$37,0,I42+1) -> 9 | K42: =IF(J42+1>'01. PC'!$C$37,0,J42+1) -> 0 | L42: =IF(K42+1>'01. PC'!$C$37,0,K42+1) -> 1 | M42: =IF(L42+1>'01. PC'!$C$37,0,L42+1) -> 2 | N42: =IF(M42+1>'01. PC'!$C$37,0,M42+1) -> 3 | O42: =IF(N42+1>'01. PC'!$C$37,0,N42+1) -> 4 | P42: =IF(O42+1>'01. PC'!$C$37,0,O42+1) -> 5 | Q42: =IF(P42+1>'01. PC'!$C$37,0,P42+1) -> 6 | R42: =IF(Q42+1>'01. PC'!$C$37,0,Q42+1) -> 7 | S42: =IF(R42+1>'01. PC'!$C$37,0,R42+1) -> 8 | T42: 0 | U42: =IF(T42+1>'01. PC'!$C$37,0,T42+1) -> 1 | V42: =IF(U42+1>'01. PC'!$C$37,0,U42+1) -> 2 | W42: =IF(V42+1>'01. PC'!$C$37,0,V42+1) -> 3
B43: BÁSICO | C43: 21 | D43: 3 | E43: =IF(D43+1>'01. PC'!$C$37,0,D43+1) -> 4 | F43: =IF(E43+1>'01. PC'!$C$37,0,E43+1) -> 5 | G43: =IF(F43+1>'01. PC'!$C$37,0,F43+1) -> 6 | H43: =IF(G43+1>'01. PC'!$C$37,0,G43+1) -> 7 | I43: =IF(H43+1>'01. PC'!$C$37,0,H43+1) -> 8 | J43: =IF(I43+1>'01. PC'!$C$37,0,I43+1) -> 9 | K43: =IF(J43+1>'01. PC'!$C$37,0,J43+1) -> 0 | L43: =IF(K43+1>'01. PC'!$C$37,0,K43+1) -> 1 | M43: =IF(L43+1>'01. PC'!$C$37,0,L43+1) -> 2 | N43: =IF(M43+1>'01. PC'!$C$37,0,M43+1) -> 3 | O43: =IF(N43+1>'01. PC'!$C$37,0,N43+1) -> 4 | P43: =IF(O43+1>'01. PC'!$C$37,0,O43+1) -> 5 | Q43: =IF(P43+1>'01. PC'!$C$37,0,P43+1) -> 6 | R43: =IF(Q43+1>'01. PC'!$C$37,0,Q43+1) -> 7 | S43: =IF(R43+1>'01. PC'!$C$37,0,R43+1) -> 8 | T43: 0 | U43: =IF(T43+1>'01. PC'!$C$37,0,T43+1) -> 1 | V43: =IF(U43+1>'01. PC'!$C$37,0,U43+1) -> 2 | W43: =IF(V43+1>'01. PC'!$C$37,0,V43+1) -> 3
B44: BÁSICO | C44: 22 | D44: 3 | E44: =IF(D44+1>'01. PC'!$C$37,0,D44+1) -> 4 | F44: =IF(E44+1>'01. PC'!$C$37,0,E44+1) -> 5 | G44: =IF(F44+1>'01. PC'!$C$37,0,F44+1) -> 6 | H44: =IF(G44+1>'01. PC'!$C$37,0,G44+1) -> 7 | I44: =IF(H44+1>'01. PC'!$C$37,0,H44+1) -> 8 | J44: 0 | K44: =IF(J44+1>'01. PC'!$C$37,0,J44+1) -> 1 | L44: =IF(K44+1>'01. PC'!$C$37,0,K44+1) -> 2 | M44: =IF(L44+1>'01. PC'!$C$37,0,L44+1) -> 3 | N44: =IF(M44+1>'01. PC'!$C$37,0,M44+1) -> 4 | O44: =IF(N44+1>'01. PC'!$C$37,0,N44+1) -> 5 | P44: =IF(O44+1>'01. PC'!$C$37,0,O44+1) -> 6 | Q44: =IF(P44+1>'01. PC'!$C$37,0,P44+1) -> 7 | R44: =IF(Q44+1>'01. PC'!$C$37,0,Q44+1) -> 8 | S44: =IF(R44+1>'01. PC'!$C$37,0,R44+1) -> 9 | T44: =IF(S44+1>'01. PC'!$C$37,0,S44+1) -> 0 | U44: =IF(T44+1>'01. PC'!$C$37,0,T44+1) -> 1 | V44: =IF(U44+1>'01. PC'!$C$37,0,U44+1) -> 2 | W44: =IF(V44+1>'01. PC'!$C$37,0,V44+1) -> 3
B45: BÁSICO | C45: 23 | D45: 3 | E45: =IF(D45+1>'01. PC'!$C$37,0,D45+1) -> 4 | F45: =IF(E45+1>'01. PC'!$C$37,0,E45+1) -> 5 | G45: =IF(F45+1>'01. PC'!$C$37,0,F45+1) -> 6 | H45: =IF(G45+1>'01. PC'!$C$37,0,G45+1) -> 7 | I45: =IF(H45+1>'01. PC'!$C$37,0,H45+1) -> 8 | J45: 0 | K45: =IF(J45+1>'01. PC'!$C$37,0,J45+1) -> 1 | L45: =IF(K45+1>'01. PC'!$C$37,0,K45+1) -> 2 | M45: =IF(L45+1>'01. PC'!$C$37,0,L45+1) -> 3 | N45: =IF(M45+1>'01. PC'!$C$37,0,M45+1) -> 4 | O45: =IF(N45+1>'01. PC'!$C$37,0,N45+1) -> 5 | P45: =IF(O45+1>'01. PC'!$C$37,0,O45+1) -> 6 | Q45: =IF(P45+1>'01. PC'!$C$37,0,P45+1) -> 7 | R45: =IF(Q45+1>'01. PC'!$C$37,0,Q45+1) -> 8 | S45: =IF(R45+1>'01. PC'!$C$37,0,R45+1) -> 9 | T45: =IF(S45+1>'01. PC'!$C$37,0,S45+1) -> 0 | U45: =IF(T45+1>'01. PC'!$C$37,0,T45+1) -> 1 | V45: =IF(U45+1>'01. PC'!$C$37,0,U45+1) -> 2 | W45: =IF(V45+1>'01. PC'!$C$37,0,V45+1) -> 3
B46: BÁSICO | C46: 24 | D46: 3 | E46: =IF(D46+1>'01. PC'!$C$37,0,D46+1) -> 4 | F46: =IF(E46+1>'01. PC'!$C$37,0,E46+1) -> 5 | G46: =IF(F46+1>'01. PC'!$C$37,0,F46+1) -> 6 | H46: =IF(G46+1>'01. PC'!$C$37,0,G46+1) -> 7 | I46: =IF(H46+1>'01. PC'!$C$37,0,H46+1) -> 8 | J46: 0 | K46: =IF(J46+1>'01. PC'!$C$37,0,J46+1) -> 1 | L46: =IF(K46+1>'01. PC'!$C$37,0,K46+1) -> 2 | M46: =IF(L46+1>'01. PC'!$C$37,0,L46+1) -> 3 | N46: =IF(M46+1>'01. PC'!$C$37,0,M46+1) -> 4 | O46: =IF(N46+1>'01. PC'!$C$37,0,N46+1) -> 5 | P46: =IF(O46+1>'01. PC'!$C$37,0,O46+1) -> 6 | Q46: =IF(P46+1>'01. PC'!$C$37,0,P46+1) -> 7 | R46: =IF(Q46+1>'01. PC'!$C$37,0,Q46+1) -> 8 | S46: =IF(R46+1>'01. PC'!$C$37,0,R46+1) -> 9 | T46: =IF(S46+1>'01. PC'!$C$37,0,S46+1) -> 0 | U46: =IF(T46+1>'01. PC'!$C$37,0,T46+1) -> 1 | V46: =IF(U46+1>'01. PC'!$C$37,0,U46+1) -> 2 | W46: =IF(V46+1>'01. PC'!$C$37,0,V46+1) -> 3
B47: BÁSICO | C47: 25 | D47: 4 | E47: =IF(D47+1>'01. PC'!$C$37,0,D47+1) -> 5 | F47: =IF(E47+1>'01. PC'!$C$37,0,E47+1) -> 6 | G47: =IF(F47+1>'01. PC'!$C$37,0,F47+1) -> 7 | H47: =IF(G47+1>'01. PC'!$C$37,0,G47+1) -> 8 | I47: =IF(H47+1>'01. PC'!$C$37,0,H47+1) -> 9 | J47: =IF(I47+1>'01. PC'!$C$37,0,I47+1) -> 0 | K47: =IF(J47+1>'01. PC'!$C$37,0,J47+1) -> 1 | L47: =IF(K47+1>'01. PC'!$C$37,0,K47+1) -> 2 | M47: =IF(L47+1>'01. PC'!$C$37,0,L47+1) -> 3 | N47: =IF(M47+1>'01. PC'!$C$37,0,M47+1) -> 4 | O47: =IF(N47+1>'01. PC'!$C$37,0,N47+1) -> 5 | P47: =IF(O47+1>'01. PC'!$C$37,0,O47+1) -> 6 | Q47: =IF(P47+1>'01. PC'!$C$37,0,P47+1) -> 7 | R47: =IF(Q47+1>'01. PC'!$C$37,0,Q47+1) -> 8 | S47: 0 | T47: =IF(S47+1>'01. PC'!$C$37,0,S47+1) -> 1 | U47: =IF(T47+1>'01. PC'!$C$37,0,T47+1) -> 2 | V47: =IF(U47+1>'01. PC'!$C$37,0,U47+1) -> 3 | W47: =IF(V47+1>'01. PC'!$C$37,0,V47+1) -> 4
B48: BÁSICO | C48: 26 | D48: 4 | E48: =IF(D48+1>'01. PC'!$C$37,0,D48+1) -> 5 | F48: =IF(E48+1>'01. PC'!$C$37,0,E48+1) -> 6 | G48: =IF(F48+1>'01. PC'!$C$37,0,F48+1) -> 7 | H48: =IF(G48+1>'01. PC'!$C$37,0,G48+1) -> 8 | I48: =IF(H48+1>'01. PC'!$C$37,0,H48+1) -> 9 | J48: =IF(I48+1>'01. PC'!$C$37,0,I48+1) -> 0 | K48: =IF(J48+1>'01. PC'!$C$37,0,J48+1) -> 1 | L48: =IF(K48+1>'01. PC'!$C$37,0,K48+1) -> 2 | M48: =IF(L48+1>'01. PC'!$C$37,0,L48+1) -> 3 | N48: =IF(M48+1>'01. PC'!$C$37,0,M48+1) -> 4 | O48: =IF(N48+1>'01. PC'!$C$37,0,N48+1) -> 5 | P48: =IF(O48+1>'01. PC'!$C$37,0,O48+1) -> 6 | Q48: =IF(P48+1>'01. PC'!$C$37,0,P48+1) -> 7 | R48: =IF(Q48+1>'01. PC'!$C$37,0,Q48+1) -> 8 | S48: 0 | T48: =IF(S48+1>'01. PC'!$C$37,0,S48+1) -> 1 | U48: =IF(T48+1>'01. PC'!$C$37,0,T48+1) -> 2 | V48: =IF(U48+1>'01. PC'!$C$37,0,U48+1) -> 3 | W48: =IF(V48+1>'01. PC'!$C$37,0,V48+1) -> 4
B49: BÁSICO | C49: 27 | D49: 4 | E49: =IF(D49+1>'01. PC'!$C$37,0,D49+1) -> 5 | F49: =IF(E49+1>'01. PC'!$C$37,0,E49+1) -> 6 | G49: =IF(F49+1>'01. PC'!$C$37,0,F49+1) -> 7 | H49: =IF(G49+1>'01. PC'!$C$37,0,G49+1) -> 8 | I49: =IF(H49+1>'01. PC'!$C$37,0,H49+1) -> 9 | J49: =IF(I49+1>'01. PC'!$C$37,0,I49+1) -> 0 | K49: =IF(J49+1>'01. PC'!$C$37,0,J49+1) -> 1 | L49: =IF(K49+1>'01. PC'!$C$37,0,K49+1) -> 2 | M49: =IF(L49+1>'01. PC'!$C$37,0,L49+1) -> 3 | N49: =IF(M49+1>'01. PC'!$C$37,0,M49+1) -> 4 | O49: =IF(N49+1>'01. PC'!$C$37,0,N49+1) -> 5 | P49: =IF(O49+1>'01. PC'!$C$37,0,O49+1) -> 6 | Q49: =IF(P49+1>'01. PC'!$C$37,0,P49+1) -> 7 | R49: =IF(Q49+1>'01. PC'!$C$37,0,Q49+1) -> 8 | S49: 0 | T49: =IF(S49+1>'01. PC'!$C$37,0,S49+1) -> 1 | U49: =IF(T49+1>'01. PC'!$C$37,0,T49+1) -> 2 | V49: =IF(U49+1>'01. PC'!$C$37,0,U49+1) -> 3 | W49: =IF(V49+1>'01. PC'!$C$37,0,V49+1) -> 4
B50: BÁSICO | C50: 28 | D50: 4 | E50: =IF(D50+1>'01. PC'!$C$37,0,D50+1) -> 5 | F50: =IF(E50+1>'01. PC'!$C$37,0,E50+1) -> 6 | G50: =IF(F50+1>'01. PC'!$C$37,0,F50+1) -> 7 | H50: =IF(G50+1>'01. PC'!$C$37,0,G50+1) -> 8 | I50: 0 | J50: =IF(I50+1>'01. PC'!$C$37,0,I50+1) -> 1 | K50: =IF(J50+1>'01. PC'!$C$37,0,J50+1) -> 2 | L50: =IF(K50+1>'01. PC'!$C$37,0,K50+1) -> 3 | M50: =IF(L50+1>'01. PC'!$C$37,0,L50+1) -> 4 | N50: =IF(M50+1>'01. PC'!$C$37,0,M50+1) -> 5 | O50: =IF(N50+1>'01. PC'!$C$37,0,N50+1) -> 6 | P50: =IF(O50+1>'01. PC'!$C$37,0,O50+1) -> 7 | Q50: =IF(P50+1>'01. PC'!$C$37,0,P50+1) -> 8 | R50: =IF(Q50+1>'01. PC'!$C$37,0,Q50+1) -> 9 | S50: =IF(R50+1>'01. PC'!$C$37,0,R50+1) -> 0 | T50: =IF(S50+1>'01. PC'!$C$37,0,S50+1) -> 1 | U50: =IF(T50+1>'01. PC'!$C$37,0,T50+1) -> 2 | V50: =IF(U50+1>'01. PC'!$C$37,0,U50+1) -> 3 | W50: =IF(V50+1>'01. PC'!$C$37,0,V50+1) -> 4
B51: BÁSICO | C51: 29 | D51: 4 | E51: =IF(D51+1>'01. PC'!$C$37,0,D51+1) -> 5 | F51: =IF(E51+1>'01. PC'!$C$37,0,E51+1) -> 6 | G51: =IF(F51+1>'01. PC'!$C$37,0,F51+1) -> 7 | H51: =IF(G51+1>'01. PC'!$C$37,0,G51+1) -> 8 | I51: 0 | J51: =IF(I51+1>'01. PC'!$C$37,0,I51+1) -> 1 | K51: =IF(J51+1>'01. PC'!$C$37,0,J51+1) -> 2 | L51: =IF(K51+1>'01. PC'!$C$37,0,K51+1) -> 3 | M51: =IF(L51+1>'01. PC'!$C$37,0,L51+1) -> 4 | N51: =IF(M51+1>'01. PC'!$C$37,0,M51+1) -> 5 | O51: =IF(N51+1>'01. PC'!$C$37,0,N51+1) -> 6 | P51: =IF(O51+1>'01. PC'!$C$37,0,O51+1) -> 7 | Q51: =IF(P51+1>'01. PC'!$C$37,0,P51+1) -> 8 | R51: =IF(Q51+1>'01. PC'!$C$37,0,Q51+1) -> 9 | S51: =IF(R51+1>'01. PC'!$C$37,0,R51+1) -> 0 | T51: =IF(S51+1>'01. PC'!$C$37,0,S51+1) -> 1 | U51: =IF(T51+1>'01. PC'!$C$37,0,T51+1) -> 2 | V51: =IF(U51+1>'01. PC'!$C$37,0,U51+1) -> 3 | W51: =IF(V51+1>'01. PC'!$C$37,0,V51+1) -> 4
B52: BÁSICO | C52: 30 | D52: 4 | E52: =IF(D52+1>'01. PC'!$C$37,0,D52+1) -> 5 | F52: =IF(E52+1>'01. PC'!$C$37,0,E52+1) -> 6 | G52: =IF(F52+1>'01. PC'!$C$37,0,F52+1) -> 7 | H52: =IF(G52+1>'01. PC'!$C$37,0,G52+1) -> 8 | I52: 0 | J52: =IF(I52+1>'01. PC'!$C$37,0,I52+1) -> 1 | K52: =IF(J52+1>'01. PC'!$C$37,0,J52+1) -> 2 | L52: =IF(K52+1>'01. PC'!$C$37,0,K52+1) -> 3 | M52: =IF(L52+1>'01. PC'!$C$37,0,L52+1) -> 4 | N52: =IF(M52+1>'01. PC'!$C$37,0,M52+1) -> 5 | O52: =IF(N52+1>'01. PC'!$C$37,0,N52+1) -> 6 | P52: =IF(O52+1>'01. PC'!$C$37,0,O52+1) -> 7 | Q52: =IF(P52+1>'01. PC'!$C$37,0,P52+1) -> 8 | R52: =IF(Q52+1>'01. PC'!$C$37,0,Q52+1) -> 9 | S52: =IF(R52+1>'01. PC'!$C$37,0,R52+1) -> 0 | T52: =IF(S52+1>'01. PC'!$C$37,0,S52+1) -> 1 | U52: =IF(T52+1>'01. PC'!$C$37,0,T52+1) -> 2 | V52: =IF(U52+1>'01. PC'!$C$37,0,U52+1) -> 3 | W52: =IF(V52+1>'01. PC'!$C$37,0,V52+1) -> 4
B53: BÁSICO | C53: 31 | D53: 5 | E53: =IF(D53+1>'01. PC'!$C$37,0,D53+1) -> 6 | F53: =IF(E53+1>'01. PC'!$C$37,0,E53+1) -> 7 | G53: =IF(F53+1>'01. PC'!$C$37,0,F53+1) -> 8 | H53: =IF(G53+1>'01. PC'!$C$37,0,G53+1) -> 9 | I53: =IF(H53+1>'01. PC'!$C$37,0,H53+1) -> 0 | J53: =IF(I53+1>'01. PC'!$C$37,0,I53+1) -> 1 | K53: =IF(J53+1>'01. PC'!$C$37,0,J53+1) -> 2 | L53: =IF(K53+1>'01. PC'!$C$37,0,K53+1) -> 3 | M53: =IF(L53+1>'01. PC'!$C$37,0,L53+1) -> 4 | N53: =IF(M53+1>'01. PC'!$C$37,0,M53+1) -> 5 | O53: =IF(N53+1>'01. PC'!$C$37,0,N53+1) -> 6 | P53: =IF(O53+1>'01. PC'!$C$37,0,O53+1) -> 7 | Q53: =IF(P53+1>'01. PC'!$C$37,0,P53+1) -> 8 | R53: 0 | S53: =IF(R53+1>'01. PC'!$C$37,0,R53+1) -> 1 | T53: =IF(S53+1>'01. PC'!$C$37,0,S53+1) -> 2 | U53: =IF(T53+1>'01. PC'!$C$37,0,T53+1) -> 3 | V53: =IF(U53+1>'01. PC'!$C$37,0,U53+1) -> 4 | W53: =IF(V53+1>'01. PC'!$C$37,0,V53+1) -> 5
B54: BÁSICO | C54: 32 | D54: 5 | E54: =IF(D54+1>'01. PC'!$C$37,0,D54+1) -> 6 | F54: =IF(E54+1>'01. PC'!$C$37,0,E54+1) -> 7 | G54: =IF(F54+1>'01. PC'!$C$37,0,F54+1) -> 8 | H54: =IF(G54+1>'01. PC'!$C$37,0,G54+1) -> 9 | I54: =IF(H54+1>'01. PC'!$C$37,0,H54+1) -> 0 | J54: =IF(I54+1>'01. PC'!$C$37,0,I54+1) -> 1 | K54: =IF(J54+1>'01. PC'!$C$37,0,J54+1) -> 2 | L54: =IF(K54+1>'01. PC'!$C$37,0,K54+1) -> 3 | M54: =IF(L54+1>'01. PC'!$C$37,0,L54+1) -> 4 | N54: =IF(M54+1>'01. PC'!$C$37,0,M54+1) -> 5 | O54: =IF(N54+1>'01. PC'!$C$37,0,N54+1) -> 6 | P54: =IF(O54+1>'01. PC'!$C$37,0,O54+1) -> 7 | Q54: =IF(P54+1>'01. PC'!$C$37,0,P54+1) -> 8 | R54: 0 | S54: =IF(R54+1>'01. PC'!$C$37,0,R54+1) -> 1 | T54: =IF(S54+1>'01. PC'!$C$37,0,S54+1) -> 2 | U54: =IF(T54+1>'01. PC'!$C$37,0,T54+1) -> 3 | V54: =IF(U54+1>'01. PC'!$C$37,0,U54+1) -> 4 | W54: =IF(V54+1>'01. PC'!$C$37,0,V54+1) -> 5
B55: BÁSICO | C55: 33 | D55: 5 | E55: =IF(D55+1>'01. PC'!$C$37,0,D55+1) -> 6 | F55: =IF(E55+1>'01. PC'!$C$37,0,E55+1) -> 7 | G55: =IF(F55+1>'01. PC'!$C$37,0,F55+1) -> 8 | H55: =IF(G55+1>'01. PC'!$C$37,0,G55+1) -> 9 | I55: =IF(H55+1>'01. PC'!$C$37,0,H55+1) -> 0 | J55: =IF(I55+1>'01. PC'!$C$37,0,I55+1) -> 1 | K55: =IF(J55+1>'01. PC'!$C$37,0,J55+1) -> 2 | L55: =IF(K55+1>'01. PC'!$C$37,0,K55+1) -> 3 | M55: =IF(L55+1>'01. PC'!$C$37,0,L55+1) -> 4 | N55: =IF(M55+1>'01. PC'!$C$37,0,M55+1) -> 5 | O55: =IF(N55+1>'01. PC'!$C$37,0,N55+1) -> 6 | P55: =IF(O55+1>'01. PC'!$C$37,0,O55+1) -> 7 | Q55: =IF(P55+1>'01. PC'!$C$37,0,P55+1) -> 8 | R55: 0 | S55: =IF(R55+1>'01. PC'!$C$37,0,R55+1) -> 1 | T55: =IF(S55+1>'01. PC'!$C$37,0,S55+1) -> 2 | U55: =IF(T55+1>'01. PC'!$C$37,0,T55+1) -> 3 | V55: =IF(U55+1>'01. PC'!$C$37,0,U55+1) -> 4 | W55: =IF(V55+1>'01. PC'!$C$37,0,V55+1) -> 5
B56: BÁSICO | C56: 34 | D56: 5 | E56: =IF(D56+1>'01. PC'!$C$37,0,D56+1) -> 6 | F56: =IF(E56+1>'01. PC'!$C$37,0,E56+1) -> 7 | G56: =IF(F56+1>'01. PC'!$C$37,0,F56+1) -> 8 | H56: 0 | I56: =IF(H56+1>'01. PC'!$C$37,0,H56+1) -> 1 | J56: =IF(I56+1>'01. PC'!$C$37,0,I56+1) -> 2 | K56: =IF(J56+1>'01. PC'!$C$37,0,J56+1) -> 3 | L56: =IF(K56+1>'01. PC'!$C$37,0,K56+1) -> 4 | M56: =IF(L56+1>'01. PC'!$C$37,0,L56+1) -> 5 | N56: =IF(M56+1>'01. PC'!$C$37,0,M56+1) -> 6 | O56: =IF(N56+1>'01. PC'!$C$37,0,N56+1) -> 7 | P56: =IF(O56+1>'01. PC'!$C$37,0,O56+1) -> 8 | Q56: =IF(P56+1>'01. PC'!$C$37,0,P56+1) -> 9 | R56: =IF(Q56+1>'01. PC'!$C$37,0,Q56+1) -> 0 | S56: =IF(R56+1>'01. PC'!$C$37,0,R56+1) -> 1 | T56: =IF(S56+1>'01. PC'!$C$37,0,S56+1) -> 2 | U56: =IF(T56+1>'01. PC'!$C$37,0,T56+1) -> 3 | V56: =IF(U56+1>'01. PC'!$C$37,0,U56+1) -> 4 | W56: =IF(V56+1>'01. PC'!$C$37,0,V56+1) -> 5
B57: BÁSICO | C57: 35 | D57: 5 | E57: =IF(D57+1>'01. PC'!$C$37,0,D57+1) -> 6 | F57: =IF(E57+1>'01. PC'!$C$37,0,E57+1) -> 7 | G57: =IF(F57+1>'01. PC'!$C$37,0,F57+1) -> 8 | H57: 0 | I57: =IF(H57+1>'01. PC'!$C$37,0,H57+1) -> 1 | J57: =IF(I57+1>'01. PC'!$C$37,0,I57+1) -> 2 | K57: =IF(J57+1>'01. PC'!$C$37,0,J57+1) -> 3 | L57: =IF(K57+1>'01. PC'!$C$37,0,K57+1) -> 4 | M57: =IF(L57+1>'01. PC'!$C$37,0,L57+1) -> 5 | N57: =IF(M57+1>'01. PC'!$C$37,0,M57+1) -> 6 | O57: =IF(N57+1>'01. PC'!$C$37,0,N57+1) -> 7 | P57: =IF(O57+1>'01. PC'!$C$37,0,O57+1) -> 8 | Q57: =IF(P57+1>'01. PC'!$C$37,0,P57+1) -> 9 | R57: =IF(Q57+1>'01. PC'!$C$37,0,Q57+1) -> 0 | S57: =IF(R57+1>'01. PC'!$C$37,0,R57+1) -> 1 | T57: =IF(S57+1>'01. PC'!$C$37,0,S57+1) -> 2 | U57: =IF(T57+1>'01. PC'!$C$37,0,T57+1) -> 3 | V57: =IF(U57+1>'01. PC'!$C$37,0,U57+1) -> 4 | W57: =IF(V57+1>'01. PC'!$C$37,0,V57+1) -> 5
B58: BÁSICO | C58: 36 | D58: 5 | E58: =IF(D58+1>'01. PC'!$C$37,0,D58+1) -> 6 | F58: =IF(E58+1>'01. PC'!$C$37,0,E58+1) -> 7 | G58: =IF(F58+1>'01. PC'!$C$37,0,F58+1) -> 8 | H58: 0 | I58: =IF(H58+1>'01. PC'!$C$37,0,H58+1) -> 1 | J58: =IF(I58+1>'01. PC'!$C$37,0,I58+1) -> 2 | K58: =IF(J58+1>'01. PC'!$C$37,0,J58+1) -> 3 | L58: =IF(K58+1>'01. PC'!$C$37,0,K58+1) -> 4 | M58: =IF(L58+1>'01. PC'!$C$37,0,L58+1) -> 5 | N58: =IF(M58+1>'01. PC'!$C$37,0,M58+1) -> 6 | O58: =IF(N58+1>'01. PC'!$C$37,0,N58+1) -> 7 | P58: =IF(O58+1>'01. PC'!$C$37,0,O58+1) -> 8 | Q58: =IF(P58+1>'01. PC'!$C$37,0,P58+1) -> 9 | R58: =IF(Q58+1>'01. PC'!$C$37,0,Q58+1) -> 0 | S58: =IF(R58+1>'01. PC'!$C$37,0,R58+1) -> 1 | T58: =IF(S58+1>'01. PC'!$C$37,0,S58+1) -> 2 | U58: =IF(T58+1>'01. PC'!$C$37,0,T58+1) -> 3 | V58: =IF(U58+1>'01. PC'!$C$37,0,U58+1) -> 4 | W58: =IF(V58+1>'01. PC'!$C$37,0,V58+1) -> 5
B59: BÁSICO | C59: 37 | D59: 6 | E59: =IF(D59+1>'01. PC'!$C$37,0,D59+1) -> 7 | F59: =IF(E59+1>'01. PC'!$C$37,0,E59+1) -> 8 | G59: =IF(F59+1>'01. PC'!$C$37,0,F59+1) -> 9 | H59: =IF(G59+1>'01. PC'!$C$37,0,G59+1) -> 0 | I59: =IF(H59+1>'01. PC'!$C$37,0,H59+1) -> 1 | J59: =IF(I59+1>'01. PC'!$C$37,0,I59+1) -> 2 | K59: =IF(J59+1>'01. PC'!$C$37,0,J59+1) -> 3 | L59: =IF(K59+1>'01. PC'!$C$37,0,K59+1) -> 4 | M59: =IF(L59+1>'01. PC'!$C$37,0,L59+1) -> 5 | N59: =IF(M59+1>'01. PC'!$C$37,0,M59+1) -> 6 | O59: =IF(N59+1>'01. PC'!$C$37,0,N59+1) -> 7 | P59: =IF(O59+1>'01. PC'!$C$37,0,O59+1) -> 8 | Q59: 0 | R59: =IF(Q59+1>'01. PC'!$C$37,0,Q59+1) -> 1 | S59: =IF(R59+1>'01. PC'!$C$37,0,R59+1) -> 2 | T59: =IF(S59+1>'01. PC'!$C$37,0,S59+1) -> 3 | U59: =IF(T59+1>'01. PC'!$C$37,0,T59+1) -> 4 | V59: =IF(U59+1>'01. PC'!$C$37,0,U59+1) -> 5 | W59: =IF(V59+1>'01. PC'!$C$37,0,V59+1) -> 6
B60: BÁSICO | C60: 38 | D60: 6 | E60: =IF(D60+1>'01. PC'!$C$37,0,D60+1) -> 7 | F60: =IF(E60+1>'01. PC'!$C$37,0,E60+1) -> 8 | G60: =IF(F60+1>'01. PC'!$C$37,0,F60+1) -> 9 | H60: =IF(G60+1>'01. PC'!$C$37,0,G60+1) -> 0 | I60: =IF(H60+1>'01. PC'!$C$37,0,H60+1) -> 1 | J60: =IF(I60+1>'01. PC'!$C$37,0,I60+1) -> 2 | K60: =IF(J60+1>'01. PC'!$C$37,0,J60+1) -> 3 | L60: =IF(K60+1>'01. PC'!$C$37,0,K60+1) -> 4 | M60: =IF(L60+1>'01. PC'!$C$37,0,L60+1) -> 5 | N60: =IF(M60+1>'01. PC'!$C$37,0,M60+1) -> 6 | O60: =IF(N60+1>'01. PC'!$C$37,0,N60+1) -> 7 | P60: =IF(O60+1>'01. PC'!$C$37,0,O60+1) -> 8 | Q60: 0 | R60: =IF(Q60+1>'01. PC'!$C$37,0,Q60+1) -> 1 | S60: =IF(R60+1>'01. PC'!$C$37,0,R60+1) -> 2 | T60: =IF(S60+1>'01. PC'!$C$37,0,S60+1) -> 3 | U60: =IF(T60+1>'01. PC'!$C$37,0,T60+1) -> 4 | V60: =IF(U60+1>'01. PC'!$C$37,0,U60+1) -> 5 | W60: =IF(V60+1>'01. PC'!$C$37,0,V60+1) -> 6
B61: BÁSICO | C61: 39 | D61: 6 | E61: =IF(D61+1>'01. PC'!$C$37,0,D61+1) -> 7 | F61: =IF(E61+1>'01. PC'!$C$37,0,E61+1) -> 8 | G61: =IF(F61+1>'01. PC'!$C$37,0,F61+1) -> 9 | H61: =IF(G61+1>'01. PC'!$C$37,0,G61+1) -> 0 | I61: =IF(H61+1>'01. PC'!$C$37,0,H61+1) -> 1 | J61: =IF(I61+1>'01. PC'!$C$37,0,I61+1) -> 2 | K61: =IF(J61+1>'01. PC'!$C$37,0,J61+1) -> 3 | L61: =IF(K61+1>'01. PC'!$C$37,0,K61+1) -> 4 | M61: =IF(L61+1>'01. PC'!$C$37,0,L61+1) -> 5 | N61: =IF(M61+1>'01. PC'!$C$37,0,M61+1) -> 6 | O61: =IF(N61+1>'01. PC'!$C$37,0,N61+1) -> 7 | P61: =IF(O61+1>'01. PC'!$C$37,0,O61+1) -> 8 | Q61: 0 | R61: =IF(Q61+1>'01. PC'!$C$37,0,Q61+1) -> 1 | S61: =IF(R61+1>'01. PC'!$C$37,0,R61+1) -> 2 | T61: =IF(S61+1>'01. PC'!$C$37,0,S61+1) -> 3 | U61: =IF(T61+1>'01. PC'!$C$37,0,T61+1) -> 4 | V61: =IF(U61+1>'01. PC'!$C$37,0,U61+1) -> 5 | W61: =IF(V61+1>'01. PC'!$C$37,0,V61+1) -> 6
B62: BÁSICO | C62: 40 | D62: 6 | E62: =IF(D62+1>'01. PC'!$C$37,0,D62+1) -> 7 | F62: =IF(E62+1>'01. PC'!$C$37,0,E62+1) -> 8 | G62: 0 | H62: =IF(G62+1>'01. PC'!$C$37,0,G62+1) -> 1 | I62: =IF(H62+1>'01. PC'!$C$37,0,H62+1) -> 2 | J62: =IF(I62+1>'01. PC'!$C$37,0,I62+1) -> 3 | K62: =IF(J62+1>'01. PC'!$C$37,0,J62+1) -> 4 | L62: =IF(K62+1>'01. PC'!$C$37,0,K62+1) -> 5 | M62: =IF(L62+1>'01. PC'!$C$37,0,L62+1) -> 6 | N62: =IF(M62+1>'01. PC'!$C$37,0,M62+1) -> 7 | O62: =IF(N62+1>'01. PC'!$C$37,0,N62+1) -> 8 | P62: =IF(O62+1>'01. PC'!$C$37,0,O62+1) -> 9 | Q62: =IF(P62+1>'01. PC'!$C$37,0,P62+1) -> 0 | R62: =IF(Q62+1>'01. PC'!$C$37,0,Q62+1) -> 1 | S62: =IF(R62+1>'01. PC'!$C$37,0,R62+1) -> 2 | T62: =IF(S62+1>'01. PC'!$C$37,0,S62+1) -> 3 | U62: =IF(T62+1>'01. PC'!$C$37,0,T62+1) -> 4 | V62: =IF(U62+1>'01. PC'!$C$37,0,U62+1) -> 5 | W62: =IF(V62+1>'01. PC'!$C$37,0,V62+1) -> 6
B63: BÁSICO | C63: 41 | D63: 6 | E63: =IF(D63+1>'01. PC'!$C$37,0,D63+1) -> 7 | F63: =IF(E63+1>'01. PC'!$C$37,0,E63+1) -> 8 | G63: 0 | H63: =IF(G63+1>'01. PC'!$C$37,0,G63+1) -> 1 | I63: =IF(H63+1>'01. PC'!$C$37,0,H63+1) -> 2 | J63: =IF(I63+1>'01. PC'!$C$37,0,I63+1) -> 3 | K63: =IF(J63+1>'01. PC'!$C$37,0,J63+1) -> 4 | L63: =IF(K63+1>'01. PC'!$C$37,0,K63+1) -> 5 | M63: =IF(L63+1>'01. PC'!$C$37,0,L63+1) -> 6 | N63: =IF(M63+1>'01. PC'!$C$37,0,M63+1) -> 7 | O63: =IF(N63+1>'01. PC'!$C$37,0,N63+1) -> 8 | P63: =IF(O63+1>'01. PC'!$C$37,0,O63+1) -> 9 | Q63: =IF(P63+1>'01. PC'!$C$37,0,P63+1) -> 0 | R63: =IF(Q63+1>'01. PC'!$C$37,0,Q63+1) -> 1 | S63: =IF(R63+1>'01. PC'!$C$37,0,R63+1) -> 2 | T63: =IF(S63+1>'01. PC'!$C$37,0,S63+1) -> 3 | U63: =IF(T63+1>'01. PC'!$C$37,0,T63+1) -> 4 | V63: =IF(U63+1>'01. PC'!$C$37,0,U63+1) -> 5 | W63: =IF(V63+1>'01. PC'!$C$37,0,V63+1) -> 6
B64: BÁSICO | C64: 42 | D64: 6 | E64: =IF(D64+1>'01. PC'!$C$37,0,D64+1) -> 7 | F64: =IF(E64+1>'01. PC'!$C$37,0,E64+1) -> 8 | G64: 0 | H64: =IF(G64+1>'01. PC'!$C$37,0,G64+1) -> 1 | I64: =IF(H64+1>'01. PC'!$C$37,0,H64+1) -> 2 | J64: =IF(I64+1>'01. PC'!$C$37,0,I64+1) -> 3 | K64: =IF(J64+1>'01. PC'!$C$37,0,J64+1) -> 4 | L64: =IF(K64+1>'01. PC'!$C$37,0,K64+1) -> 5 | M64: =IF(L64+1>'01. PC'!$C$37,0,L64+1) -> 6 | N64: =IF(M64+1>'01. PC'!$C$37,0,M64+1) -> 7 | O64: =IF(N64+1>'01. PC'!$C$37,0,N64+1) -> 8 | P64: =IF(O64+1>'01. PC'!$C$37,0,O64+1) -> 9 | Q64: =IF(P64+1>'01. PC'!$C$37,0,P64+1) -> 0 | R64: =IF(Q64+1>'01. PC'!$C$37,0,Q64+1) -> 1 | S64: =IF(R64+1>'01. PC'!$C$37,0,R64+1) -> 2 | T64: =IF(S64+1>'01. PC'!$C$37,0,S64+1) -> 3 | U64: =IF(T64+1>'01. PC'!$C$37,0,T64+1) -> 4 | V64: =IF(U64+1>'01. PC'!$C$37,0,U64+1) -> 5 | W64: =IF(V64+1>'01. PC'!$C$37,0,V64+1) -> 6
B65: BÁSICO | C65: 43 | D65: 7 | E65: =IF(D65+1>'01. PC'!$C$37,0,D65+1) -> 8 | F65: =IF(E65+1>'01. PC'!$C$37,0,E65+1) -> 9 | G65: =IF(F65+1>'01. PC'!$C$37,0,F65+1) -> 0 | H65: =IF(G65+1>'01. PC'!$C$37,0,G65+1) -> 1 | I65: =IF(H65+1>'01. PC'!$C$37,0,H65+1) -> 2 | J65: =IF(I65+1>'01. PC'!$C$37,0,I65+1) -> 3 | K65: =IF(J65+1>'01. PC'!$C$37,0,J65+1) -> 4 | L65: =IF(K65+1>'01. PC'!$C$37,0,K65+1) -> 5 | M65: =IF(L65+1>'01. PC'!$C$37,0,L65+1) -> 6 | N65: =IF(M65+1>'01. PC'!$C$37,0,M65+1) -> 7 | O65: =IF(N65+1>'01. PC'!$C$37,0,N65+1) -> 8 | P65: 0 | Q65: =IF(P65+1>'01. PC'!$C$37,0,P65+1) -> 1 | R65: =IF(Q65+1>'01. PC'!$C$37,0,Q65+1) -> 2 | S65: =IF(R65+1>'01. PC'!$C$37,0,R65+1) -> 3 | T65: =IF(S65+1>'01. PC'!$C$37,0,S65+1) -> 4 | U65: =IF(T65+1>'01. PC'!$C$37,0,T65+1) -> 5 | V65: =IF(U65+1>'01. PC'!$C$37,0,U65+1) -> 6 | W65: =IF(V65+1>'01. PC'!$C$37,0,V65+1) -> 7
B66: BÁSICO | C66: 44 | D66: 7 | E66: =IF(D66+1>'01. PC'!$C$37,0,D66+1) -> 8 | F66: =IF(E66+1>'01. PC'!$C$37,0,E66+1) -> 9 | G66: =IF(F66+1>'01. PC'!$C$37,0,F66+1) -> 0 | H66: =IF(G66+1>'01. PC'!$C$37,0,G66+1) -> 1 | I66: =IF(H66+1>'01. PC'!$C$37,0,H66+1) -> 2 | J66: =IF(I66+1>'01. PC'!$C$37,0,I66+1) -> 3 | K66: =IF(J66+1>'01. PC'!$C$37,0,J66+1) -> 4 | L66: =IF(K66+1>'01. PC'!$C$37,0,K66+1) -> 5 | M66: =IF(L66+1>'01. PC'!$C$37,0,L66+1) -> 6 | N66: =IF(M66+1>'01. PC'!$C$37,0,M66+1) -> 7 | O66: =IF(N66+1>'01. PC'!$C$37,0,N66+1) -> 8 | P66: 0 | Q66: =IF(P66+1>'01. PC'!$C$37,0,P66+1) -> 1 | R66: =IF(Q66+1>'01. PC'!$C$37,0,Q66+1) -> 2 | S66: =IF(R66+1>'01. PC'!$C$37,0,R66+1) -> 3 | T66: =IF(S66+1>'01. PC'!$C$37,0,S66+1) -> 4 | U66: =IF(T66+1>'01. PC'!$C$37,0,T66+1) -> 5 | V66: =IF(U66+1>'01. PC'!$C$37,0,U66+1) -> 6 | W66: =IF(V66+1>'01. PC'!$C$37,0,V66+1) -> 7
B67: BÁSICO | C67: 45 | D67: 7 | E67: =IF(D67+1>'01. PC'!$C$37,0,D67+1) -> 8 | F67: =IF(E67+1>'01. PC'!$C$37,0,E67+1) -> 9 | G67: =IF(F67+1>'01. PC'!$C$37,0,F67+1) -> 0 | H67: =IF(G67+1>'01. PC'!$C$37,0,G67+1) -> 1 | I67: =IF(H67+1>'01. PC'!$C$37,0,H67+1) -> 2 | J67: =IF(I67+1>'01. PC'!$C$37,0,I67+1) -> 3 | K67: =IF(J67+1>'01. PC'!$C$37,0,J67+1) -> 4 | L67: =IF(K67+1>'01. PC'!$C$37,0,K67+1) -> 5 | M67: =IF(L67+1>'01. PC'!$C$37,0,L67+1) -> 6 | N67: =IF(M67+1>'01. PC'!$C$37,0,M67+1) -> 7 | O67: =IF(N67+1>'01. PC'!$C$37,0,N67+1) -> 8 | P67: 0 | Q67: =IF(P67+1>'01. PC'!$C$37,0,P67+1) -> 1 | R67: =IF(Q67+1>'01. PC'!$C$37,0,Q67+1) -> 2 | S67: =IF(R67+1>'01. PC'!$C$37,0,R67+1) -> 3 | T67: =IF(S67+1>'01. PC'!$C$37,0,S67+1) -> 4 | U67: =IF(T67+1>'01. PC'!$C$37,0,T67+1) -> 5 | V67: =IF(U67+1>'01. PC'!$C$37,0,U67+1) -> 6 | W67: =IF(V67+1>'01. PC'!$C$37,0,V67+1) -> 7
B68: BÁSICO | C68: 46 | D68: 7 | E68: =IF(D68+1>'01. PC'!$C$37,0,D68+1) -> 8 | F68: 0 | G68: =IF(F68+1>'01. PC'!$C$37,0,F68+1) -> 1 | H68: =IF(G68+1>'01. PC'!$C$37,0,G68+1) -> 2 | I68: =IF(H68+1>'01. PC'!$C$37,0,H68+1) -> 3 | J68: =IF(I68+1>'01. PC'!$C$37,0,I68+1) -> 4 | K68: =IF(J68+1>'01. PC'!$C$37,0,J68+1) -> 5 | L68: =IF(K68+1>'01. PC'!$C$37,0,K68+1) -> 6 | M68: =IF(L68+1>'01. PC'!$C$37,0,L68+1) -> 7 | N68: =IF(M68+1>'01. PC'!$C$37,0,M68+1) -> 8 | O68: =IF(N68+1>'01. PC'!$C$37,0,N68+1) -> 9 | P68: =IF(O68+1>'01. PC'!$C$37,0,O68+1) -> 0 | Q68: =IF(P68+1>'01. PC'!$C$37,0,P68+1) -> 1 | R68: =IF(Q68+1>'01. PC'!$C$37,0,Q68+1) -> 2 | S68: =IF(R68+1>'01. PC'!$C$37,0,R68+1) -> 3 | T68: =IF(S68+1>'01. PC'!$C$37,0,S68+1) -> 4 | U68: =IF(T68+1>'01. PC'!$C$37,0,T68+1) -> 5 | V68: =IF(U68+1>'01. PC'!$C$37,0,U68+1) -> 6 | W68: =IF(V68+1>'01. PC'!$C$37,0,V68+1) -> 7
B69: BÁSICO | C69: 47 | D69: 7 | E69: =IF(D69+1>'01. PC'!$C$37,0,D69+1) -> 8 | F69: 0 | G69: =IF(F69+1>'01. PC'!$C$37,0,F69+1) -> 1 | H69: =IF(G69+1>'01. PC'!$C$37,0,G69+1) -> 2 | I69: =IF(H69+1>'01. PC'!$C$37,0,H69+1) -> 3 | J69: =IF(I69+1>'01. PC'!$C$37,0,I69+1) -> 4 | K69: =IF(J69+1>'01. PC'!$C$37,0,J69+1) -> 5 | L69: =IF(K69+1>'01. PC'!$C$37,0,K69+1) -> 6 | M69: =IF(L69+1>'01. PC'!$C$37,0,L69+1) -> 7 | N69: =IF(M69+1>'01. PC'!$C$37,0,M69+1) -> 8 | O69: =IF(N69+1>'01. PC'!$C$37,0,N69+1) -> 9 | P69: =IF(O69+1>'01. PC'!$C$37,0,O69+1) -> 0 | Q69: =IF(P69+1>'01. PC'!$C$37,0,P69+1) -> 1 | R69: =IF(Q69+1>'01. PC'!$C$37,0,Q69+1) -> 2 | S69: =IF(R69+1>'01. PC'!$C$37,0,R69+1) -> 3 | T69: =IF(S69+1>'01. PC'!$C$37,0,S69+1) -> 4 | U69: =IF(T69+1>'01. PC'!$C$37,0,T69+1) -> 5 | V69: =IF(U69+1>'01. PC'!$C$37,0,U69+1) -> 6 | W69: =IF(V69+1>'01. PC'!$C$37,0,V69+1) -> 7
B70: BÁSICO | C70: 48 | D70: 7 | E70: =IF(D70+1>'01. PC'!$C$37,0,D70+1) -> 8 | F70: 0 | G70: =IF(F70+1>'01. PC'!$C$37,0,F70+1) -> 1 | H70: =IF(G70+1>'01. PC'!$C$37,0,G70+1) -> 2 | I70: =IF(H70+1>'01. PC'!$C$37,0,H70+1) -> 3 | J70: =IF(I70+1>'01. PC'!$C$37,0,I70+1) -> 4 | K70: =IF(J70+1>'01. PC'!$C$37,0,J70+1) -> 5 | L70: =IF(K70+1>'01. PC'!$C$37,0,K70+1) -> 6 | M70: =IF(L70+1>'01. PC'!$C$37,0,L70+1) -> 7 | N70: =IF(M70+1>'01. PC'!$C$37,0,M70+1) -> 8 | O70: =IF(N70+1>'01. PC'!$C$37,0,N70+1) -> 9 | P70: =IF(O70+1>'01. PC'!$C$37,0,O70+1) -> 0 | Q70: =IF(P70+1>'01. PC'!$C$37,0,P70+1) -> 1 | R70: =IF(Q70+1>'01. PC'!$C$37,0,Q70+1) -> 2 | S70: =IF(R70+1>'01. PC'!$C$37,0,R70+1) -> 3 | T70: =IF(S70+1>'01. PC'!$C$37,0,S70+1) -> 4 | U70: =IF(T70+1>'01. PC'!$C$37,0,T70+1) -> 5 | V70: =IF(U70+1>'01. PC'!$C$37,0,U70+1) -> 6 | W70: =IF(V70+1>'01. PC'!$C$37,0,V70+1) -> 7
B71: BÁSICO | C71: 49 | D71: 8 | E71: =IF(D71+1>'01. PC'!$C$37,0,D71+1) -> 9 | F71: =IF(E71+1>'01. PC'!$C$37,0,E71+1) -> 0 | G71: =IF(F71+1>'01. PC'!$C$37,0,F71+1) -> 1 | H71: =IF(G71+1>'01. PC'!$C$37,0,G71+1) -> 2 | I71: =IF(H71+1>'01. PC'!$C$37,0,H71+1) -> 3 | J71: =IF(I71+1>'01. PC'!$C$37,0,I71+1) -> 4 | K71: =IF(J71+1>'01. PC'!$C$37,0,J71+1) -> 5 | L71: =IF(K71+1>'01. PC'!$C$37,0,K71+1) -> 6 | M71: =IF(L71+1>'01. PC'!$C$37,0,L71+1) -> 7 | N71: =IF(M71+1>'01. PC'!$C$37,0,M71+1) -> 8 | O71: 0 | P71: =IF(O71+1>'01. PC'!$C$37,0,O71+1) -> 1 | Q71: =IF(P71+1>'01. PC'!$C$37,0,P71+1) -> 2 | R71: =IF(Q71+1>'01. PC'!$C$37,0,Q71+1) -> 3 | S71: =IF(R71+1>'01. PC'!$C$37,0,R71+1) -> 4 | T71: =IF(S71+1>'01. PC'!$C$37,0,S71+1) -> 5 | U71: =IF(T71+1>'01. PC'!$C$37,0,T71+1) -> 6 | V71: =IF(U71+1>'01. PC'!$C$37,0,U71+1) -> 7 | W71: =IF(V71+1>'01. PC'!$C$37,0,V71+1) -> 8
B72: BÁSICO | C72: 50 | D72: 8 | E72: =IF(D72+1>'01. PC'!$C$37,0,D72+1) -> 9 | F72: =IF(E72+1>'01. PC'!$C$37,0,E72+1) -> 0 | G72: =IF(F72+1>'01. PC'!$C$37,0,F72+1) -> 1 | H72: =IF(G72+1>'01. PC'!$C$37,0,G72+1) -> 2 | I72: =IF(H72+1>'01. PC'!$C$37,0,H72+1) -> 3 | J72: =IF(I72+1>'01. PC'!$C$37,0,I72+1) -> 4 | K72: =IF(J72+1>'01. PC'!$C$37,0,J72+1) -> 5 | L72: =IF(K72+1>'01. PC'!$C$37,0,K72+1) -> 6 | M72: =IF(L72+1>'01. PC'!$C$37,0,L72+1) -> 7 | N72: =IF(M72+1>'01. PC'!$C$37,0,M72+1) -> 8 | O72: 0 | P72: =IF(O72+1>'01. PC'!$C$37,0,O72+1) -> 1 | Q72: =IF(P72+1>'01. PC'!$C$37,0,P72+1) -> 2 | R72: =IF(Q72+1>'01. PC'!$C$37,0,Q72+1) -> 3 | S72: =IF(R72+1>'01. PC'!$C$37,0,R72+1) -> 4 | T72: =IF(S72+1>'01. PC'!$C$37,0,S72+1) -> 5 | U72: =IF(T72+1>'01. PC'!$C$37,0,T72+1) -> 6 | V72: =IF(U72+1>'01. PC'!$C$37,0,U72+1) -> 7 | W72: =IF(V72+1>'01. PC'!$C$37,0,V72+1) -> 8
B73: BÁSICO | C73: 51 | D73: 8 | E73: =IF(D73+1>'01. PC'!$C$37,0,D73+1) -> 9 | F73: =IF(E73+1>'01. PC'!$C$37,0,E73+1) -> 0 | G73: =IF(F73+1>'01. PC'!$C$37,0,F73+1) -> 1 | H73: =IF(G73+1>'01. PC'!$C$37,0,G73+1) -> 2 | I73: =IF(H73+1>'01. PC'!$C$37,0,H73+1) -> 3 | J73: =IF(I73+1>'01. PC'!$C$37,0,I73+1) -> 4 | K73: =IF(J73+1>'01. PC'!$C$37,0,J73+1) -> 5 | L73: =IF(K73+1>'01. PC'!$C$37,0,K73+1) -> 6 | M73: =IF(L73+1>'01. PC'!$C$37,0,L73+1) -> 7 | N73: =IF(M73+1>'01. PC'!$C$37,0,M73+1) -> 8 | O73: 0 | P73: =IF(O73+1>'01. PC'!$C$37,0,O73+1) -> 1 | Q73: =IF(P73+1>'01. PC'!$C$37,0,P73+1) -> 2 | R73: =IF(Q73+1>'01. PC'!$C$37,0,Q73+1) -> 3 | S73: =IF(R73+1>'01. PC'!$C$37,0,R73+1) -> 4 | T73: =IF(S73+1>'01. PC'!$C$37,0,S73+1) -> 5 | U73: =IF(T73+1>'01. PC'!$C$37,0,T73+1) -> 6 | V73: =IF(U73+1>'01. PC'!$C$37,0,U73+1) -> 7 | W73: =IF(V73+1>'01. PC'!$C$37,0,V73+1) -> 8
B74: BÁSICO | C74: 52 | D74: 8 | E74: 0 | F74: =IF(E74+1>'01. PC'!$C$37,0,E74+1) -> 1 | G74: =IF(F74+1>'01. PC'!$C$37,0,F74+1) -> 2 | H74: =IF(G74+1>'01. PC'!$C$37,0,G74+1) -> 3 | I74: =IF(H74+1>'01. PC'!$C$37,0,H74+1) -> 4 | J74: =IF(I74+1>'01. PC'!$C$37,0,I74+1) -> 5 | K74: =IF(J74+1>'01. PC'!$C$37,0,J74+1) -> 6 | L74: =IF(K74+1>'01. PC'!$C$37,0,K74+1) -> 7 | M74: =IF(L74+1>'01. PC'!$C$37,0,L74+1) -> 8 | N74: =IF(M74+1>'01. PC'!$C$37,0,M74+1) -> 9 | O74: =IF(N74+1>'01. PC'!$C$37,0,N74+1) -> 0 | P74: =IF(O74+1>'01. PC'!$C$37,0,O74+1) -> 1 | Q74: =IF(P74+1>'01. PC'!$C$37,0,P74+1) -> 2 | R74: =IF(Q74+1>'01. PC'!$C$37,0,Q74+1) -> 3 | S74: =IF(R74+1>'01. PC'!$C$37,0,R74+1) -> 4 | T74: =IF(S74+1>'01. PC'!$C$37,0,S74+1) -> 5 | U74: =IF(T74+1>'01. PC'!$C$37,0,T74+1) -> 6 | V74: =IF(U74+1>'01. PC'!$C$37,0,U74+1) -> 7 | W74: =IF(V74+1>'01. PC'!$C$37,0,V74+1) -> 8
B75: BÁSICO | C75: 53 | D75: 8 | E75: 0 | F75: =IF(E75+1>'01. PC'!$C$37,0,E75+1) -> 1 | G75: =IF(F75+1>'01. PC'!$C$37,0,F75+1) -> 2 | H75: =IF(G75+1>'01. PC'!$C$37,0,G75+1) -> 3 | I75: =IF(H75+1>'01. PC'!$C$37,0,H75+1) -> 4 | J75: =IF(I75+1>'01. PC'!$C$37,0,I75+1) -> 5 | K75: =IF(J75+1>'01. PC'!$C$37,0,J75+1) -> 6 | L75: =IF(K75+1>'01. PC'!$C$37,0,K75+1) -> 7 | M75: =IF(L75+1>'01. PC'!$C$37,0,L75+1) -> 8 | N75: =IF(M75+1>'01. PC'!$C$37,0,M75+1) -> 9 | O75: =IF(N75+1>'01. PC'!$C$37,0,N75+1) -> 0 | P75: =IF(O75+1>'01. PC'!$C$37,0,O75+1) -> 1 | Q75: =IF(P75+1>'01. PC'!$C$37,0,P75+1) -> 2 | R75: =IF(Q75+1>'01. PC'!$C$37,0,Q75+1) -> 3 | S75: =IF(R75+1>'01. PC'!$C$37,0,R75+1) -> 4 | T75: =IF(S75+1>'01. PC'!$C$37,0,S75+1) -> 5 | U75: =IF(T75+1>'01. PC'!$C$37,0,T75+1) -> 6 | V75: =IF(U75+1>'01. PC'!$C$37,0,U75+1) -> 7 | W75: =IF(V75+1>'01. PC'!$C$37,0,V75+1) -> 8
B76: BÁSICO | C76: 54 | D76: 8 | E76: 0 | F76: =IF(E76+1>'01. PC'!$C$37,0,E76+1) -> 1 | G76: =IF(F76+1>'01. PC'!$C$37,0,F76+1) -> 2 | H76: =IF(G76+1>'01. PC'!$C$37,0,G76+1) -> 3 | I76: =IF(H76+1>'01. PC'!$C$37,0,H76+1) -> 4 | J76: =IF(I76+1>'01. PC'!$C$37,0,I76+1) -> 5 | K76: =IF(J76+1>'01. PC'!$C$37,0,J76+1) -> 6 | L76: =IF(K76+1>'01. PC'!$C$37,0,K76+1) -> 7 | M76: =IF(L76+1>'01. PC'!$C$37,0,L76+1) -> 8 | N76: =IF(M76+1>'01. PC'!$C$37,0,M76+1) -> 9 | O76: =IF(N76+1>'01. PC'!$C$37,0,N76+1) -> 0 | P76: =IF(O76+1>'01. PC'!$C$37,0,O76+1) -> 1 | Q76: =IF(P76+1>'01. PC'!$C$37,0,P76+1) -> 2 | R76: =IF(Q76+1>'01. PC'!$C$37,0,Q76+1) -> 3 | S76: =IF(R76+1>'01. PC'!$C$37,0,R76+1) -> 4 | T76: =IF(S76+1>'01. PC'!$C$37,0,S76+1) -> 5 | U76: =IF(T76+1>'01. PC'!$C$37,0,T76+1) -> 6 | V76: =IF(U76+1>'01. PC'!$C$37,0,U76+1) -> 7 | W76: =IF(V76+1>'01. PC'!$C$37,0,V76+1) -> 8
B77: BÁSICO | C77: 55 | D77: 9 | E77: =IF(D77+1>'01. PC'!$C$37,0,D77+1) -> 0 | F77: =IF(E77+1>'01. PC'!$C$37,0,E77+1) -> 1 | G77: =IF(F77+1>'01. PC'!$C$37,0,F77+1) -> 2 | H77: =IF(G77+1>'01. PC'!$C$37,0,G77+1) -> 3 | I77: =IF(H77+1>'01. PC'!$C$37,0,H77+1) -> 4 | J77: =IF(I77+1>'01. PC'!$C$37,0,I77+1) -> 5 | K77: =IF(J77+1>'01. PC'!$C$37,0,J77+1) -> 6 | L77: =IF(K77+1>'01. PC'!$C$37,0,K77+1) -> 7 | M77: =IF(L77+1>'01. PC'!$C$37,0,L77+1) -> 8 | N77: 0 | O77: =IF(N77+1>'01. PC'!$C$37,0,N77+1) -> 1 | P77: =IF(O77+1>'01. PC'!$C$37,0,O77+1) -> 2 | Q77: =IF(P77+1>'01. PC'!$C$37,0,P77+1) -> 3 | R77: =IF(Q77+1>'01. PC'!$C$37,0,Q77+1) -> 4 | S77: =IF(R77+1>'01. PC'!$C$37,0,R77+1) -> 5 | T77: =IF(S77+1>'01. PC'!$C$37,0,S77+1) -> 6 | U77: =IF(T77+1>'01. PC'!$C$37,0,T77+1) -> 7 | V77: =IF(U77+1>'01. PC'!$C$37,0,U77+1) -> 8 | W77: =IF(V77+1>'01. PC'!$C$37,0,V77+1) -> 9
B78: BÁSICO | C78: 56 | D78: 9 | E78: =IF(D78+1>'01. PC'!$C$37,0,D78+1) -> 0 | F78: =IF(E78+1>'01. PC'!$C$37,0,E78+1) -> 1 | G78: =IF(F78+1>'01. PC'!$C$37,0,F78+1) -> 2 | H78: =IF(G78+1>'01. PC'!$C$37,0,G78+1) -> 3 | I78: =IF(H78+1>'01. PC'!$C$37,0,H78+1) -> 4 | J78: =IF(I78+1>'01. PC'!$C$37,0,I78+1) -> 5 | K78: =IF(J78+1>'01. PC'!$C$37,0,J78+1) -> 6 | L78: =IF(K78+1>'01. PC'!$C$37,0,K78+1) -> 7 | M78: =IF(L78+1>'01. PC'!$C$37,0,L78+1) -> 8 | N78: 0 | O78: =IF(N78+1>'01. PC'!$C$37,0,N78+1) -> 1 | P78: =IF(O78+1>'01. PC'!$C$37,0,O78+1) -> 2 | Q78: =IF(P78+1>'01. PC'!$C$37,0,P78+1) -> 3 | R78: =IF(Q78+1>'01. PC'!$C$37,0,Q78+1) -> 4 | S78: =IF(R78+1>'01. PC'!$C$37,0,R78+1) -> 5 | T78: =IF(S78+1>'01. PC'!$C$37,0,S78+1) -> 6 | U78: =IF(T78+1>'01. PC'!$C$37,0,T78+1) -> 7 | V78: =IF(U78+1>'01. PC'!$C$37,0,U78+1) -> 8 | W78: =IF(V78+1>'01. PC'!$C$37,0,V78+1) -> 9
B79: BÁSICO | C79: 57 | D79: 9 | E79: =IF(D79+1>'01. PC'!$C$37,0,D79+1) -> 0 | F79: =IF(E79+1>'01. PC'!$C$37,0,E79+1) -> 1 | G79: =IF(F79+1>'01. PC'!$C$37,0,F79+1) -> 2 | H79: =IF(G79+1>'01. PC'!$C$37,0,G79+1) -> 3 | I79: =IF(H79+1>'01. PC'!$C$37,0,H79+1) -> 4 | J79: =IF(I79+1>'01. PC'!$C$37,0,I79+1) -> 5 | K79: =IF(J79+1>'01. PC'!$C$37,0,J79+1) -> 6 | L79: =IF(K79+1>'01. PC'!$C$37,0,K79+1) -> 7 | M79: =IF(L79+1>'01. PC'!$C$37,0,L79+1) -> 8 | N79: 0 | O79: =IF(N79+1>'01. PC'!$C$37,0,N79+1) -> 1 | P79: =IF(O79+1>'01. PC'!$C$37,0,O79+1) -> 2 | Q79: =IF(P79+1>'01. PC'!$C$37,0,P79+1) -> 3 | R79: =IF(Q79+1>'01. PC'!$C$37,0,Q79+1) -> 4 | S79: =IF(R79+1>'01. PC'!$C$37,0,R79+1) -> 5 | T79: =IF(S79+1>'01. PC'!$C$37,0,S79+1) -> 6 | U79: =IF(T79+1>'01. PC'!$C$37,0,T79+1) -> 7 | V79: =IF(U79+1>'01. PC'!$C$37,0,U79+1) -> 8 | W79: =IF(V79+1>'01. PC'!$C$37,0,V79+1) -> 9
B80: QUANTIDADE | D80: =COUNT(D23:D79) -> 57 | E80: 57 | F80: 57 | G80: 57 | H80: 57 | I80: 57 | J80: 57 | K80: 57 | L80: 57 | M80: 57 | N80: 57 | O80: 57 | P80: 57 | Q80: 57 | R80: 57 | S80: 57 | T80: 57 | U80: 57 | V80: 57 | W80: 57
B82: IDADE - MIDI
B83: TIPO | C83: QUANT. | D83: 1 | E83: =D83+1 -> 2 | F83: =E83+1 -> 3 | G83: 4 | H83: 5 | I83: 6 | J83: 7 | K83: 8 | L83: 9 | M83: 10 | N83: 11 | O83: 12 | P83: 13 | Q83: 14 | R83: 15 | S83: 16 | T83: 17 | U83: 18 | V83: 19 | W83: 20
B84: MIDI | C84: 1 | D84: 0 | E84: =IF(D84+1>'01. PC'!$C$39,0,D84+1) -> 1 | F84: =IF(E84+1>'01. PC'!$C$39,0,E84+1) -> 2 | G84: =IF(F84+1>'01. PC'!$C$39,0,F84+1) -> 3 | H84: =IF(G84+1>'01. PC'!$C$39,0,G84+1) -> 4 | I84: =IF(H84+1>'01. PC'!$C$39,0,H84+1) -> 5 | J84: =IF(I84+1>'01. PC'!$C$39,0,I84+1) -> 6 | K84: =IF(J84+1>'01. PC'!$C$39,0,J84+1) -> 7 | L84: =IF(K84+1>'01. PC'!$C$39,0,K84+1) -> 8 | M84: =IF(L84+1>'01. PC'!$C$39,0,L84+1) -> 9 | N84: 0 | O84: =IF(N84+1>'01. PC'!$C$39,0,N84+1) -> 1 | P84: =IF(O84+1>'01. PC'!$C$39,0,O84+1) -> 2 | Q84: =IF(P84+1>'01. PC'!$C$39,0,P84+1) -> 3 | R84: =IF(Q84+1>'01. PC'!$C$39,0,Q84+1) -> 4 | S84: =IF(R84+1>'01. PC'!$C$39,0,R84+1) -> 5 | T84: =IF(S84+1>'01. PC'!$C$39,0,S84+1) -> 6 | U84: =IF(T84+1>'01. PC'!$C$39,0,T84+1) -> 7 | V84: =IF(U84+1>'01. PC'!$C$39,0,U84+1) -> 8 | W84: =IF(V84+1>'01. PC'!$C$39,0,V84+1) -> 9
B85: MIDI | C85: =C84+1 -> 2 | D85: 0 | E85: =IF(D85+1>'01. PC'!$C$39,0,D85+1) -> 1 | F85: =IF(E85+1>'01. PC'!$C$39,0,E85+1) -> 2 | G85: =IF(F85+1>'01. PC'!$C$39,0,F85+1) -> 3 | H85: =IF(G85+1>'01. PC'!$C$39,0,G85+1) -> 4 | I85: =IF(H85+1>'01. PC'!$C$39,0,H85+1) -> 5 | J85: =IF(I85+1>'01. PC'!$C$39,0,I85+1) -> 6 | K85: =IF(J85+1>'01. PC'!$C$39,0,J85+1) -> 7 | L85: =IF(K85+1>'01. PC'!$C$39,0,K85+1) -> 8 | M85: =IF(L85+1>'01. PC'!$C$39,0,L85+1) -> 9 | N85: 0 | O85: =IF(N85+1>'01. PC'!$C$39,0,N85+1) -> 1 | P85: =IF(O85+1>'01. PC'!$C$39,0,O85+1) -> 2 | Q85: =IF(P85+1>'01. PC'!$C$39,0,P85+1) -> 3 | R85: =IF(Q85+1>'01. PC'!$C$39,0,Q85+1) -> 4 | S85: =IF(R85+1>'01. PC'!$C$39,0,R85+1) -> 5 | T85: =IF(S85+1>'01. PC'!$C$39,0,S85+1) -> 6 | U85: =IF(T85+1>'01. PC'!$C$39,0,T85+1) -> 7 | V85: =IF(U85+1>'01. PC'!$C$39,0,U85+1) -> 8 | W85: =IF(V85+1>'01. PC'!$C$39,0,V85+1) -> 9
B86: MIDI | C86: 3 | D86: 1 | E86: =IF(D86+1>'01. PC'!$C$39,0,D86+1) -> 2 | F86: =IF(E86+1>'01. PC'!$C$39,0,E86+1) -> 3 | G86: =IF(F86+1>'01. PC'!$C$39,0,F86+1) -> 4 | H86: =IF(G86+1>'01. PC'!$C$39,0,G86+1) -> 5 | I86: =IF(H86+1>'01. PC'!$C$39,0,H86+1) -> 6 | J86: =IF(I86+1>'01. PC'!$C$39,0,I86+1) -> 7 | K86: =IF(J86+1>'01. PC'!$C$39,0,J86+1) -> 8 | L86: =IF(K86+1>'01. PC'!$C$39,0,K86+1) -> 9 | M86: 0 | N86: =IF(M86+1>'01. PC'!$C$39,0,M86+1) -> 1 | O86: =IF(N86+1>'01. PC'!$C$39,0,N86+1) -> 2 | P86: =IF(O86+1>'01. PC'!$C$39,0,O86+1) -> 3 | Q86: =IF(P86+1>'01. PC'!$C$39,0,P86+1) -> 4 | R86: =IF(Q86+1>'01. PC'!$C$39,0,Q86+1) -> 5 | S86: =IF(R86+1>'01. PC'!$C$39,0,R86+1) -> 6 | T86: =IF(S86+1>'01. PC'!$C$39,0,S86+1) -> 7 | U86: =IF(T86+1>'01. PC'!$C$39,0,T86+1) -> 8 | V86: =IF(U86+1>'01. PC'!$C$39,0,U86+1) -> 9 | W86: 10
B87: MIDI | C87: 4 | D87: 2 | E87: =IF(D87+1>'01. PC'!$C$39,0,D87+1) -> 3 | F87: =IF(E87+1>'01. PC'!$C$39,0,E87+1) -> 4 | G87: =IF(F87+1>'01. PC'!$C$39,0,F87+1) -> 5 | H87: =IF(G87+1>'01. PC'!$C$39,0,G87+1) -> 6 | I87: =IF(H87+1>'01. PC'!$C$39,0,H87+1) -> 7 | J87: =IF(I87+1>'01. PC'!$C$39,0,I87+1) -> 8 | K87: =IF(J87+1>'01. PC'!$C$39,0,J87+1) -> 9 | L87: 0 | M87: =IF(L87+1>'01. PC'!$C$39,0,L87+1) -> 1 | N87: =IF(M87+1>'01. PC'!$C$39,0,M87+1) -> 2 | O87: =IF(N87+1>'01. PC'!$C$39,0,N87+1) -> 3 | P87: =IF(O87+1>'01. PC'!$C$39,0,O87+1) -> 4 | Q87: =IF(P87+1>'01. PC'!$C$39,0,P87+1) -> 5 | R87: =IF(Q87+1>'01. PC'!$C$39,0,Q87+1) -> 6 | S87: =IF(R87+1>'01. PC'!$C$39,0,R87+1) -> 7 | T87: =IF(S87+1>'01. PC'!$C$39,0,S87+1) -> 8 | U87: =IF(T87+1>'01. PC'!$C$39,0,T87+1) -> 9 | V87: 0 | W87: =IF(V87+1>'01. PC'!$C$39,0,V87+1) -> 1
B88: MIDI | C88: 5 | D88: 3 | E88: =IF(D88+1>'01. PC'!$C$39,0,D88+1) -> 4 | F88: =IF(E88+1>'01. PC'!$C$39,0,E88+1) -> 5 | G88: =IF(F88+1>'01. PC'!$C$39,0,F88+1) -> 6 | H88: =IF(G88+1>'01. PC'!$C$39,0,G88+1) -> 7 | I88: =IF(H88+1>'01. PC'!$C$39,0,H88+1) -> 8 | J88: =IF(I88+1>'01. PC'!$C$39,0,I88+1) -> 9 | K88: 0 | L88: =IF(K88+1>'01. PC'!$C$39,0,K88+1) -> 1 | M88: =IF(L88+1>'01. PC'!$C$39,0,L88+1) -> 2 | N88: =IF(M88+1>'01. PC'!$C$39,0,M88+1) -> 3 | O88: =IF(N88+1>'01. PC'!$C$39,0,N88+1) -> 4 | P88: =IF(O88+1>'01. PC'!$C$39,0,O88+1) -> 5 | Q88: =IF(P88+1>'01. PC'!$C$39,0,P88+1) -> 6 | R88: =IF(Q88+1>'01. PC'!$C$39,0,Q88+1) -> 7 | S88: =IF(R88+1>'01. PC'!$C$39,0,R88+1) -> 8 | T88: =IF(S88+1>'01. PC'!$C$39,0,S88+1) -> 9 | U88: 0 | V88: =IF(U88+1>'01. PC'!$C$39,0,U88+1) -> 1 | W88: =IF(V88+1>'01. PC'!$C$39,0,V88+1) -> 2
B89: MIDI | C89: 6 | D89: 4 | E89: =IF(D89+1>'01. PC'!$C$39,0,D89+1) -> 5 | F89: =IF(E89+1>'01. PC'!$C$39,0,E89+1) -> 6 | G89: =IF(F89+1>'01. PC'!$C$39,0,F89+1) -> 7 | H89: =IF(G89+1>'01. PC'!$C$39,0,G89+1) -> 8 | I89: =IF(H89+1>'01. PC'!$C$39,0,H89+1) -> 9 | J89: 0 | K89: =IF(J89+1>'01. PC'!$C$39,0,J89+1) -> 1 | L89: =IF(K89+1>'01. PC'!$C$39,0,K89+1) -> 2 | M89: =IF(L89+1>'01. PC'!$C$39,0,L89+1) -> 3 | N89: =IF(M89+1>'01. PC'!$C$39,0,M89+1) -> 4 | O89: =IF(N89+1>'01. PC'!$C$39,0,N89+1) -> 5 | P89: =IF(O89+1>'01. PC'!$C$39,0,O89+1) -> 6 | Q89: =IF(P89+1>'01. PC'!$C$39,0,P89+1) -> 7 | R89: =IF(Q89+1>'01. PC'!$C$39,0,Q89+1) -> 8 | S89: =IF(R89+1>'01. PC'!$C$39,0,R89+1) -> 9 | T89: 0 | U89: =IF(T89+1>'01. PC'!$C$39,0,T89+1) -> 1 | V89: =IF(U89+1>'01. PC'!$C$39,0,U89+1) -> 2 | W89: =IF(V89+1>'01. PC'!$C$39,0,V89+1) -> 3
B90: MIDI | C90: 7 | D90: 5 | E90: =IF(D90+1>'01. PC'!$C$39,0,D90+1) -> 6 | F90: =IF(E90+1>'01. PC'!$C$39,0,E90+1) -> 7 | G90: =IF(F90+1>'01. PC'!$C$39,0,F90+1) -> 8 | H90: =IF(G90+1>'01. PC'!$C$39,0,G90+1) -> 9 | I90: =IF(H90+1>'01. PC'!$C$39,0,H90+1) -> 10 | J90: =IF(I90+1>'01. PC'!$C$39,0,I90+1) -> 0 | K90: =IF(J90+1>'01. PC'!$C$39,0,J90+1) -> 1 | L90: =IF(K90+1>'01. PC'!$C$39,0,K90+1) -> 2 | M90: =IF(L90+1>'01. PC'!$C$39,0,L90+1) -> 3 | N90: =IF(M90+1>'01. PC'!$C$39,0,M90+1) -> 4 | O90: =IF(N90+1>'01. PC'!$C$39,0,N90+1) -> 5 | P90: =IF(O90+1>'01. PC'!$C$39,0,O90+1) -> 6 | Q90: =IF(P90+1>'01. PC'!$C$39,0,P90+1) -> 7 | R90: =IF(Q90+1>'01. PC'!$C$39,0,Q90+1) -> 8 | S90: =IF(R90+1>'01. PC'!$C$39,0,R90+1) -> 9 | T90: 0 | U90: =IF(T90+1>'01. PC'!$C$39,0,T90+1) -> 1 | V90: =IF(U90+1>'01. PC'!$C$39,0,U90+1) -> 2 | W90: =IF(V90+1>'01. PC'!$C$39,0,V90+1) -> 3
B91: MIDI | C91: 8 | D91: 6 | E91: =IF(D91+1>'01. PC'!$C$39,0,D91+1) -> 7 | F91: =IF(E91+1>'01. PC'!$C$39,0,E91+1) -> 8 | G91: =IF(F91+1>'01. PC'!$C$39,0,F91+1) -> 9 | H91: =IF(G91+1>'01. PC'!$C$39,0,G91+1) -> 10 | I91: =IF(H91+1>'01. PC'!$C$39,0,H91+1) -> 0 | J91: =IF(I91+1>'01. PC'!$C$39,0,I91+1) -> 1 | K91: =IF(J91+1>'01. PC'!$C$39,0,J91+1) -> 2 | L91: =IF(K91+1>'01. PC'!$C$39,0,K91+1) -> 3 | M91: =IF(L91+1>'01. PC'!$C$39,0,L91+1) -> 4 | N91: =IF(M91+1>'01. PC'!$C$39,0,M91+1) -> 5 | O91: =IF(N91+1>'01. PC'!$C$39,0,N91+1) -> 6 | P91: =IF(O91+1>'01. PC'!$C$39,0,O91+1) -> 7 | Q91: =IF(P91+1>'01. PC'!$C$39,0,P91+1) -> 8 | R91: =IF(Q91+1>'01. PC'!$C$39,0,Q91+1) -> 9 | S91: 0 | T91: =IF(S91+1>'01. PC'!$C$39,0,S91+1) -> 1 | U91: =IF(T91+1>'01. PC'!$C$39,0,T91+1) -> 2 | V91: =IF(U91+1>'01. PC'!$C$39,0,U91+1) -> 3 | W91: =IF(V91+1>'01. PC'!$C$39,0,V91+1) -> 4
B92: MIDI | C92: 9 | D92: 7 | E92: =IF(D92+1>'01. PC'!$C$39,0,D92+1) -> 8 | F92: =IF(E92+1>'01. PC'!$C$39,0,E92+1) -> 9 | G92: =IF(F92+1>'01. PC'!$C$39,0,F92+1) -> 10 | H92: =IF(G92+1>'01. PC'!$C$39,0,G92+1) -> 0 | I92: =IF(H92+1>'01. PC'!$C$39,0,H92+1) -> 1 | J92: =IF(I92+1>'01. PC'!$C$39,0,I92+1) -> 2 | K92: =IF(J92+1>'01. PC'!$C$39,0,J92+1) -> 3 | L92: =IF(K92+1>'01. PC'!$C$39,0,K92+1) -> 4 | M92: =IF(L92+1>'01. PC'!$C$39,0,L92+1) -> 5 | N92: =IF(M92+1>'01. PC'!$C$39,0,M92+1) -> 6 | O92: =IF(N92+1>'01. PC'!$C$39,0,N92+1) -> 7 | P92: =IF(O92+1>'01. PC'!$C$39,0,O92+1) -> 8 | Q92: =IF(P92+1>'01. PC'!$C$39,0,P92+1) -> 9 | R92: 0 | S92: =IF(R92+1>'01. PC'!$C$39,0,R92+1) -> 1 | T92: =IF(S92+1>'01. PC'!$C$39,0,S92+1) -> 2 | U92: =IF(T92+1>'01. PC'!$C$39,0,T92+1) -> 3 | V92: =IF(U92+1>'01. PC'!$C$39,0,U92+1) -> 4 | W92: =IF(V92+1>'01. PC'!$C$39,0,V92+1) -> 5
B93: MIDI | C93: 10 | D93: 8 | E93: =IF(D93+1>'01. PC'!$C$39,0,D93+1) -> 9 | F93: =IF(E93+1>'01. PC'!$C$39,0,E93+1) -> 10 | G93: =IF(F93+1>'01. PC'!$C$39,0,F93+1) -> 0 | H93: =IF(G93+1>'01. PC'!$C$39,0,G93+1) -> 1 | I93: =IF(H93+1>'01. PC'!$C$39,0,H93+1) -> 2 | J93: =IF(I93+1>'01. PC'!$C$39,0,I93+1) -> 3 | K93: =IF(J93+1>'01. PC'!$C$39,0,J93+1) -> 4 | L93: =IF(K93+1>'01. PC'!$C$39,0,K93+1) -> 5 | M93: =IF(L93+1>'01. PC'!$C$39,0,L93+1) -> 6 | N93: =IF(M93+1>'01. PC'!$C$39,0,M93+1) -> 7 | O93: =IF(N93+1>'01. PC'!$C$39,0,N93+1) -> 8 | P93: =IF(O93+1>'01. PC'!$C$39,0,O93+1) -> 9 | Q93: 0 | R93: =IF(Q93+1>'01. PC'!$C$39,0,Q93+1) -> 1 | S93: =IF(R93+1>'01. PC'!$C$39,0,R93+1) -> 2 | T93: =IF(S93+1>'01. PC'!$C$39,0,S93+1) -> 3 | U93: =IF(T93+1>'01. PC'!$C$39,0,T93+1) -> 4 | V93: =IF(U93+1>'01. PC'!$C$39,0,U93+1) -> 5 | W93: =IF(V93+1>'01. PC'!$C$39,0,V93+1) -> 6
B94: MIDI | C94: 11 | D94: 9 | E94: =IF(D94+1>'01. PC'!$C$39,0,D94+1) -> 10 | F94: =IF(E94+1>'01. PC'!$C$39,0,E94+1) -> 0 | G94: =IF(F94+1>'01. PC'!$C$39,0,F94+1) -> 1 | H94: =IF(G94+1>'01. PC'!$C$39,0,G94+1) -> 2 | I94: =IF(H94+1>'01. PC'!$C$39,0,H94+1) -> 3 | J94: =IF(I94+1>'01. PC'!$C$39,0,I94+1) -> 4 | K94: =IF(J94+1>'01. PC'!$C$39,0,J94+1) -> 5 | L94: =IF(K94+1>'01. PC'!$C$39,0,K94+1) -> 6 | M94: =IF(L94+1>'01. PC'!$C$39,0,L94+1) -> 7 | N94: =IF(M94+1>'01. PC'!$C$39,0,M94+1) -> 8 | O94: =IF(N94+1>'01. PC'!$C$39,0,N94+1) -> 9 | P94: 0 | Q94: =IF(P94+1>'01. PC'!$C$39,0,P94+1) -> 1 | R94: =IF(Q94+1>'01. PC'!$C$39,0,Q94+1) -> 2 | S94: =IF(R94+1>'01. PC'!$C$39,0,R94+1) -> 3 | T94: =IF(S94+1>'01. PC'!$C$39,0,S94+1) -> 4 | U94: =IF(T94+1>'01. PC'!$C$39,0,T94+1) -> 5 | V94: =IF(U94+1>'01. PC'!$C$39,0,U94+1) -> 6 | W94: =IF(V94+1>'01. PC'!$C$39,0,V94+1) -> 7
B95: MIDI | C95: 12 | D95: 10 | E95: =IF(D95+1>'01. PC'!$C$39,0,D95+1) -> 0 | F95: =IF(E95+1>'01. PC'!$C$39,0,E95+1) -> 1 | G95: =IF(F95+1>'01. PC'!$C$39,0,F95+1) -> 2 | H95: =IF(G95+1>'01. PC'!$C$39,0,G95+1) -> 3 | I95: =IF(H95+1>'01. PC'!$C$39,0,H95+1) -> 4 | J95: =IF(I95+1>'01. PC'!$C$39,0,I95+1) -> 5 | K95: =IF(J95+1>'01. PC'!$C$39,0,J95+1) -> 6 | L95: =IF(K95+1>'01. PC'!$C$39,0,K95+1) -> 7 | M95: =IF(L95+1>'01. PC'!$C$39,0,L95+1) -> 8 | N95: =IF(M95+1>'01. PC'!$C$39,0,M95+1) -> 9 | O95: 0 | P95: =IF(O95+1>'01. PC'!$C$39,0,O95+1) -> 1 | Q95: =IF(P95+1>'01. PC'!$C$39,0,P95+1) -> 2 | R95: =IF(Q95+1>'01. PC'!$C$39,0,Q95+1) -> 3 | S95: =IF(R95+1>'01. PC'!$C$39,0,R95+1) -> 4 | T95: =IF(S95+1>'01. PC'!$C$39,0,S95+1) -> 5 | U95: =IF(T95+1>'01. PC'!$C$39,0,T95+1) -> 6 | V95: =IF(U95+1>'01. PC'!$C$39,0,U95+1) -> 7 | W95: =IF(V95+1>'01. PC'!$C$39,0,V95+1) -> 8
B96: QUANTIDADE | D96: =COUNT(D84:D95) -> 12 | E96: =COUNT(E84:E95) -> 12 | F96: 12 | G96: 12 | H96: 12 | I96: 12 | J96: 12 | K96: 12 | L96: 12 | M96: 12 | N96: 12 | O96: 12 | P96: 12 | Q96: 12 | R96: 12 | S96: 12 | T96: 12 | U96: 12 | V96: 12 | W96: 12
B98: IDADE - ARTICUL. DIESEL
B99: TIPO | C99: QUANT. | D99: 1 | E99: =D99+1 -> 2 | F99: =E99+1 -> 3 | G99: 4 | H99: 5 | I99: 6 | J99: 7 | K99: 8 | L99: 9 | M99: 10 | N99: 11 | O99: 12 | P99: 13 | Q99: 14 | R99: 15 | S99: 16 | T99: 17 | U99: 18 | V99: 19 | W99: 20
B100: ARTICUL. DIESEL | C100: 1 | D100: 0 | E100: =IF(D100+1>'01. PC'!$C$41,0,D100+1) -> 1 | F100: =IF(E100+1>'01. PC'!$C$41,0,E100+1) -> 2 | G100: =IF(F100+1>'01. PC'!$C$41,0,F100+1) -> 3 | H100: =IF(G100+1>'01. PC'!$C$41,0,G100+1) -> 4 | I100: =IF(H100+1>'01. PC'!$C$41,0,H100+1) -> 5
B101: ARTICUL. DIESEL | C101: =C100+1 -> 2 | D101: 1 | E101: =IF(D101+1>'01. PC'!$C$41,0,D101+1) -> 2 | F101: =IF(E101+1>'01. PC'!$C$41,0,E101+1) -> 3 | G101: =IF(F101+1>'01. PC'!$C$41,0,F101+1) -> 4 | H101: =IF(G101+1>'01. PC'!$C$41,0,G101+1) -> 5
B102: ARTICUL. DIESEL | C102: =C101+1 -> 3 | D102: 2 | E102: =IF(D102+1>'01. PC'!$C$41,0,D102+1) -> 3 | F102: =IF(E102+1>'01. PC'!$C$41,0,E102+1) -> 4 | G102: =IF(F102+1>'01. PC'!$C$41,0,F102+1) -> 5
B103: ARTICUL. DIESEL | C103: 4 | D103: 3 | E103: =IF(D103+1>'01. PC'!$C$41,0,D103+1) -> 4 | F103: =IF(E103+1>'01. PC'!$C$41,0,E103+1) -> 5
B104: ARTICUL. DIESEL | C104: 5 | D104: 4 | E104: =IF(D104+1>'01. PC'!$C$41,0,D104+1) -> 5
B105: ARTICUL. DIESEL | C105: 6 | D105: 5
B106: QUANTIDADE | D106: =COUNT(D100:D105) -> 6 | E106: 5 | F106: 4 | G106: 3 | H106: 2 | I106: 1 | J106: 0 | K106: 0 | L106: 0 | M106: 0 | N106: 0 | O106: 0 | P106: 0 | Q106: 0 | R106: 0 | S106: 0 | T106: 0 | U106: 0 | V106: 0 | W106: 0
B108: IDADE - ARTICUL. ELÉTRICO
B109: TIPO | C109: QUANT. | D109: 1 | E109: =D109+1 -> 2 | F109: =E109+1 -> 3 | G109: 4 | H109: 5 | I109: 6 | J109: 7 | K109: 8 | L109: 9 | M109: 10 | N109: 11 | O109: 12 | P109: 13 | Q109: 14 | R109: 15 | S109: 16 | T109: 17 | U109: 18 | V109: 19 | W109: 20
B110: ARTICUL. ELÉTRICO | C110: 1 | E110: 0 | F110: =IF(E110+1>'01. PC'!$C$43,0,E110+1) -> 1 | G110: =IF(F110+1>'01. PC'!$C$43,0,F110+1) -> 2 | H110: =IF(G110+1>'01. PC'!$C$43,0,G110+1) -> 3 | I110: =IF(H110+1>'01. PC'!$C$43,0,H110+1) -> 4 | J110: =IF(I110+1>'01. PC'!$C$43,0,I110+1) -> 5 | K110: =IF(J110+1>'01. PC'!$C$43,0,J110+1) -> 6 | L110: =IF(K110+1>'01. PC'!$C$43,0,K110+1) -> 7 | M110: =IF(L110+1>'01. PC'!$C$43,0,L110+1) -> 8 | N110: =IF(M110+1>'01. PC'!$C$43,0,M110+1) -> 9 | O110: =IF(N110+1>'01. PC'!$C$43,0,N110+1) -> 10 | P110: =IF(O110+1>'01. PC'!$C$43,0,O110+1) -> 11 | Q110: =IF(P110+1>'01. PC'!$C$43,0,P110+1) -> 12 | R110: =IF(Q110+1>'01. PC'!$C$43,0,Q110+1) -> 13 | S110: =IF(R110+1>'01. PC'!$C$43,0,R110+1) -> 14 | T110: =IF(S110+1>'01. PC'!$C$43,0,S110+1) -> 0 | U110: =IF(T110+1>'01. PC'!$C$43,0,T110+1) -> 1 | V110: =IF(U110+1>'01. PC'!$C$43,0,U110+1) -> 2 | W110: =IF(V110+1>'01. PC'!$C$43,0,V110+1) -> 3
B111: ARTICUL. ELÉTRICO | C111: =C110+1 -> 2 | F111: 0 | G111: =IF(F111+1>'01. PC'!$C$43,0,F111+1) -> 1 | H111: =IF(G111+1>'01. PC'!$C$43,0,G111+1) -> 2 | I111: =IF(H111+1>'01. PC'!$C$43,0,H111+1) -> 3 | J111: =IF(I111+1>'01. PC'!$C$43,0,I111+1) -> 4 | K111: =IF(J111+1>'01. PC'!$C$43,0,J111+1) -> 5 | L111: =IF(K111+1>'01. PC'!$C$43,0,K111+1) -> 6 | M111: =IF(L111+1>'01. PC'!$C$43,0,L111+1) -> 7 | N111: =IF(M111+1>'01. PC'!$C$43,0,M111+1) -> 8 | O111: =IF(N111+1>'01. PC'!$C$43,0,N111+1) -> 9 | P111: =IF(O111+1>'01. PC'!$C$43,0,O111+1) -> 10 | Q111: =IF(P111+1>'01. PC'!$C$43,0,P111+1) -> 11 | R111: =IF(Q111+1>'01. PC'!$C$43,0,Q111+1) -> 12 | S111: =IF(R111+1>'01. PC'!$C$43,0,R111+1) -> 13 | T111: =IF(S111+1>'01. PC'!$C$43,0,S111+1) -> 14 | U111: =IF(T111+1>'01. PC'!$C$43,0,T111+1) -> 0 | V111: =IF(U111+1>'01. PC'!$C$43,0,U111+1) -> 1 | W111: =IF(V111+1>'01. PC'!$C$43,0,V111+1) -> 2
B112: ARTICUL. ELÉTRICO | C112: =C111+1 -> 3 | G112: 0 | H112: =IF(G112+1>'01. PC'!$C$43,0,G112+1) -> 1 | I112: =IF(H112+1>'01. PC'!$C$43,0,H112+1) -> 2 | J112: =IF(I112+1>'01. PC'!$C$43,0,I112+1) -> 3 | K112: =IF(J112+1>'01. PC'!$C$43,0,J112+1) -> 4 | L112: =IF(K112+1>'01. PC'!$C$43,0,K112+1) -> 5 | M112: =IF(L112+1>'01. PC'!$C$43,0,L112+1) -> 6 | N112: =IF(M112+1>'01. PC'!$C$43,0,M112+1) -> 7 | O112: =IF(N112+1>'01. PC'!$C$43,0,N112+1) -> 8 | P112: =IF(O112+1>'01. PC'!$C$43,0,O112+1) -> 9 | Q112: =IF(P112+1>'01. PC'!$C$43,0,P112+1) -> 10 | R112: =IF(Q112+1>'01. PC'!$C$43,0,Q112+1) -> 11 | S112: =IF(R112+1>'01. PC'!$C$43,0,R112+1) -> 12 | T112: =IF(S112+1>'01. PC'!$C$43,0,S112+1) -> 13 | U112: =IF(T112+1>'01. PC'!$C$43,0,T112+1) -> 14 | V112: =IF(U112+1>'01. PC'!$C$43,0,U112+1) -> 0 | W112: =IF(V112+1>'01. PC'!$C$43,0,V112+1) -> 1
B113: ARTICUL. ELÉTRICO | C113: 4 | H113: 0 | I113: =IF(H113+1>'01. PC'!$C$43,0,H113+1) -> 1 | J113: =IF(I113+1>'01. PC'!$C$43,0,I113+1) -> 2 | K113: =IF(J113+1>'01. PC'!$C$43,0,J113+1) -> 3 | L113: =IF(K113+1>'01. PC'!$C$43,0,K113+1) -> 4 | M113: =IF(L113+1>'01. PC'!$C$43,0,L113+1) -> 5 | N113: =IF(M113+1>'01. PC'!$C$43,0,M113+1) -> 6 | O113: =IF(N113+1>'01. PC'!$C$43,0,N113+1) -> 7 | P113: =IF(O113+1>'01. PC'!$C$43,0,O113+1) -> 8 | Q113: =IF(P113+1>'01. PC'!$C$43,0,P113+1) -> 9 | R113: =IF(Q113+1>'01. PC'!$C$43,0,Q113+1) -> 10 | S113: =IF(R113+1>'01. PC'!$C$43,0,R113+1) -> 11 | T113: =IF(S113+1>'01. PC'!$C$43,0,S113+1) -> 12 | U113: =IF(T113+1>'01. PC'!$C$43,0,T113+1) -> 13 | V113: =IF(U113+1>'01. PC'!$C$43,0,U113+1) -> 14 | W113: 15
B114: ARTICUL. ELÉTRICO | C114: 5 | I114: 0 | J114: =IF(I114+1>'01. PC'!$C$43,0,I114+1) -> 1 | K114: =IF(J114+1>'01. PC'!$C$43,0,J114+1) -> 2 | L114: =IF(K114+1>'01. PC'!$C$43,0,K114+1) -> 3 | M114: =IF(L114+1>'01. PC'!$C$43,0,L114+1) -> 4 | N114: =IF(M114+1>'01. PC'!$C$43,0,M114+1) -> 5 | O114: =IF(N114+1>'01. PC'!$C$43,0,N114+1) -> 6 | P114: =IF(O114+1>'01. PC'!$C$43,0,O114+1) -> 7 | Q114: =IF(P114+1>'01. PC'!$C$43,0,P114+1) -> 8 | R114: =IF(Q114+1>'01. PC'!$C$43,0,Q114+1) -> 9 | S114: =IF(R114+1>'01. PC'!$C$43,0,R114+1) -> 10 | T114: =IF(S114+1>'01. PC'!$C$43,0,S114+1) -> 11 | U114: =IF(T114+1>'01. PC'!$C$43,0,T114+1) -> 12 | V114: =IF(U114+1>'01. PC'!$C$43,0,U114+1) -> 13 | W114: =IF(V114+1>'01. PC'!$C$43,0,V114+1) -> 14
B115: ARTICUL. ELÉTRICO | C115: 6 | J115: 0 | K115: =IF(J115+1>'01. PC'!$C$43,0,J115+1) -> 1 | L115: =IF(K115+1>'01. PC'!$C$43,0,K115+1) -> 2 | M115: =IF(L115+1>'01. PC'!$C$43,0,L115+1) -> 3 | N115: =IF(M115+1>'01. PC'!$C$43,0,M115+1) -> 4 | O115: =IF(N115+1>'01. PC'!$C$43,0,N115+1) -> 5 | P115: =IF(O115+1>'01. PC'!$C$43,0,O115+1) -> 6 | Q115: =IF(P115+1>'01. PC'!$C$43,0,P115+1) -> 7 | R115: =IF(Q115+1>'01. PC'!$C$43,0,Q115+1) -> 8 | S115: =IF(R115+1>'01. PC'!$C$43,0,R115+1) -> 9 | T115: =IF(S115+1>'01. PC'!$C$43,0,S115+1) -> 10 | U115: =IF(T115+1>'01. PC'!$C$43,0,T115+1) -> 11 | V115: =IF(U115+1>'01. PC'!$C$43,0,U115+1) -> 12 | W115: =IF(V115+1>'01. PC'!$C$43,0,V115+1) -> 13
B116: QUANTIDADE | D116: =COUNT(D110:D115) -> 0 | E116: =COUNT(E110:E115) -> 1 | F116: 2 | G116: 3 | H116: 4 | I116: 5 | J116: 6 | K116: 6 | L116: 6 | M116: 6 | N116: 6 | O116: 6 | P116: 6 | Q116: 6 | R116: 6 | S116: 6 | T116: 6 | U116: 6 | V116: 6 | W116: 6
B118: IDADE - PADRON DIESEL
B119: TIPO | C119: QUANT. | D119: 1 | E119: =D119+1 -> 2 | F119: =E119+1 -> 3 | G119: 4 | H119: 5 | I119: 6 | J119: 7 | K119: 8 | L119: 9 | M119: 10 | N119: 11 | O119: 12 | P119: 13 | Q119: 14 | R119: 15 | S119: 16 | T119: 17 | U119: 18 | V119: 19 | W119: 20
B120: PADRON DIESEL | C120: 1
B121: PADRON DIESEL | C121: =C120+1 -> 2
B122: PADRON DIESEL | C122: =C121+1 -> 3
B123: PADRON DIESEL | C123: 4
B124: QUANTIDADE | D124: =COUNT(D120:D123) -> 0 | E124: =COUNT(E120:E123) -> 0 | F124: 0 | G124: 0 | H124: 0 | I124: 0 | J124: 0 | K124: 0 | L124: 0 | M124: 0 | N124: 0 | O124: 0 | P124: 0 | Q124: 0 | R124: 0 | S124: 0 | T124: 0 | U124: 0 | V124: 0 | W124: 0
B126: IDADE - PADRON ELÉTRICO
B127: TIPO | C127: QUANT. | D127: 1 | E127: =D127+1 -> 2 | F127: =E127+1 -> 3 | G127: 4 | H127: 5 | I127: 6 | J127: 7 | K127: 8 | L127: 9 | M127: 10 | N127: 11 | O127: 12 | P127: 13 | Q127: 14 | R127: 15 | S127: 16 | T127: 17 | U127: 18 | V127: 19 | W127: 20
B128: PADRON ELÉTRICO | C128: 1
B129: PADRON ELÉTRICO | C129: =C128+1 -> 2
B130: PADRON ELÉTRICO | C130: =C129+1 -> 3
B131: PADRON ELÉTRICO | C131: 4
B132: QUANTIDADE | D132: =COUNT(D128:D131) -> 0 | E132: =COUNT(E128:E131) -> 0 | F132: 0 | G132: 0 | H132: 0 | I132: 0 | J132: 0 | K132: 0 | L132: 0 | M132: 0 | N132: 0 | O132: 0 | P132: 0 | Q132: 0 | R132: 0 | S132: 0 | T132: 0 | U132: 0 | V132: 0 | W132: 0
B134: FROTA - PREÇO
B135: TIPO | C135: QUANT. | D135: 1 | E135: =D135+1 -> 2 | F135: =E135+1 -> 3 | G135: 4 | H135: 5 | I135: 6 | J135: 7 | K135: 8 | L135: 9 | M135: 10 | N135: 11 | O135: 12 | P135: 13 | Q135: 14 | R135: 15 | S135: 16 | T135: 17 | U135: 18 | V135: 19 | W135: 20 | Z135: BÁSICO | AA135: 476000
B136: BÁSICO | C136: 1 | D136: =IF(Prazo<D$135,0,IF(D23="",0,$AA$135)) -> 476000 | E136: 476000 | F136: 476000 | G136: 476000 | H136: 476000 | I136: 476000 | J136: 476000 | K136: 476000 | L136: 476000 | M136: 476000 | N136: 476000 | O136: 476000 | P136: 476000 | Q136: 476000 | R136: 476000 | S136: 476000 | T136: 476000 | U136: 476000 | V136: 476000 | W136: 476000 | Z136: MIDI | AA136: 417629 | AB136: 32371 | AC136: =AA136-$AB$136 -> 385258
B137: BÁSICO | C137: =C136+1 -> 2 | D137: =IF(Prazo<D$135,0,IF(D24="",0,$AA$135)) -> 476000 | E137: 476000 | F137: 476000 | G137: 476000 | H137: 476000 | I137: 476000 | J137: 476000 | K137: 476000 | L137: 476000 | M137: 476000 | N137: 476000 | O137: 476000 | P137: 476000 | Q137: 476000 | R137: 476000 | S137: 476000 | T137: 476000 | U137: 476000 | V137: 476000 | W137: 476000 | Z137: ARTICUL. DIESEL | AA137: 1404859 | AC137: =AA137-$AB$136 -> 1372488
B138: BÁSICO | C138: =C137+1 -> 3 | D138: =IF(Prazo<D$135,0,IF(D25="",0,$AA$135)) -> 476000 | E138: 476000 | F138: 476000 | G138: 476000 | H138: 476000 | I138: 476000 | J138: 476000 | K138: 476000 | L138: 476000 | M138: 476000 | N138: 476000 | O138: 476000 | P138: 476000 | Q138: 476000 | R138: 476000 | S138: 476000 | T138: 476000 | U138: 476000 | V138: 476000 | W138: 476000 | Z138: ARTICUL. ELÉTRICO | AA138: 2639629 | AC138: 2607258
B139: BÁSICO | C139: 4 | D139: =IF(Prazo<D$135,0,IF(D26="",0,$AA$135)) -> 476000 | E139: 476000 | F139: 476000 | G139: 476000 | H139: 476000 | I139: 476000 | J139: 476000 | K139: 476000 | L139: 476000 | M139: 476000 | N139: 476000 | O139: 476000 | P139: 476000 | Q139: 476000 | R139: 476000 | S139: 476000 | T139: 476000 | U139: 476000 | V139: 476000 | W139: 476000 | Z139: PADRON DIESEL
B140: BÁSICO | C140: 5 | D140: =IF(Prazo<D$135,0,IF(D27="",0,$AA$135)) -> 476000 | E140: 476000 | F140: 476000 | G140: 476000 | H140: 476000 | I140: 476000 | J140: 476000 | K140: 476000 | L140: 476000 | M140: 476000 | N140: 476000 | O140: 476000 | P140: 476000 | Q140: 476000 | R140: 476000 | S140: 476000 | T140: 476000 | U140: 476000 | V140: 476000 | W140: 476000 | Z140: PADRON ELÉTRICO
B141: BÁSICO | C141: 6 | D141: =IF(Prazo<D$135,0,IF(D28="",0,$AA$135)) -> 476000 | E141: 476000 | F141: 476000 | G141: 476000 | H141: 476000 | I141: 476000 | J141: 476000 | K141: 476000 | L141: 476000 | M141: 476000 | N141: 476000 | O141: 476000 | P141: 476000 | Q141: 476000 | R141: 476000 | S141: 476000 | T141: 476000 | U141: 476000 | V141: 476000 | W141: 476000
B142: BÁSICO | C142: 7 | D142: =IF(Prazo<D$135,0,IF(D29="",0,$AA$135)) -> 476000 | E142: 476000 | F142: 476000 | G142: 476000 | H142: 476000 | I142: 476000 | J142: 476000 | K142: 476000 | L142: 476000 | M142: 476000 | N142: 476000 | O142: 476000 | P142: 476000 | Q142: 476000 | R142: 476000 | S142: 476000 | T142: 476000 | U142: 476000 | V142: 476000 | W142: 476000
B143: BÁSICO | C143: 8 | D143: =IF(Prazo<D$135,0,IF(D30="",0,$AA$135)) -> 476000 | E143: 476000 | F143: 476000 | G143: 476000 | H143: 476000 | I143: 476000 | J143: 476000 | K143: 476000 | L143: 476000 | M143: 476000 | N143: 476000 | O143: 476000 | P143: 476000 | Q143: 476000 | R143: 476000 | S143: 476000 | T143: 476000 | U143: 476000 | V143: 476000 | W143: 476000
B144: BÁSICO | C144: 9 | D144: =IF(Prazo<D$135,0,IF(D31="",0,$AA$135)) -> 476000 | E144: 476000 | F144: 476000 | G144: 476000 | H144: 476000 | I144: 476000 | J144: 476000 | K144: 476000 | L144: 476000 | M144: 476000 | N144: 476000 | O144: 476000 | P144: 476000 | Q144: 476000 | R144: 476000 | S144: 476000 | T144: 476000 | U144: 476000 | V144: 476000 | W144: 476000
B145: BÁSICO | C145: 10 | D145: =IF(Prazo<D$135,0,IF(D32="",0,$AA$135)) -> 476000 | E145: 476000 | F145: 476000 | G145: 476000 | H145: 476000 | I145: 476000 | J145: 476000 | K145: 476000 | L145: 476000 | M145: 476000 | N145: 476000 | O145: 476000 | P145: 476000 | Q145: 476000 | R145: 476000 | S145: 476000 | T145: 476000 | U145: 476000 | V145: 476000 | W145: 476000
B146: BÁSICO | C146: 11 | D146: =IF(Prazo<D$135,0,IF(D33="",0,$AA$135)) -> 476000 | E146: 476000 | F146: 476000 | G146: 476000 | H146: 476000 | I146: 476000 | J146: 476000 | K146: 476000 | L146: 476000 | M146: 476000 | N146: 476000 | O146: 476000 | P146: 476000 | Q146: 476000 | R146: 476000 | S146: 476000 | T146: 476000 | U146: 476000 | V146: 476000 | W146: 476000
B147: BÁSICO | C147: 12 | D147: =IF(Prazo<D$135,0,IF(D34="",0,$AA$135)) -> 476000 | E147: 476000 | F147: 476000 | G147: 476000 | H147: 476000 | I147: 476000 | J147: 476000 | K147: 476000 | L147: 476000 | M147: 476000 | N147: 476000 | O147: 476000 | P147: 476000 | Q147: 476000 | R147: 476000 | S147: 476000 | T147: 476000 | U147: 476000 | V147: 476000 | W147: 476000
B148: BÁSICO | C148: 13 | D148: =IF(Prazo<D$135,0,IF(D35="",0,$AA$135)) -> 476000 | E148: 476000 | F148: 476000 | G148: 476000 | H148: 476000 | I148: 476000 | J148: 476000 | K148: 476000 | L148: 476000 | M148: 476000 | N148: 476000 | O148: 476000 | P148: 476000 | Q148: 476000 | R148: 476000 | S148: 476000 | T148: 476000 | U148: 476000 | V148: 476000 | W148: 476000
B149: BÁSICO | C149: 14 | D149: =IF(Prazo<D$135,0,IF(D36="",0,$AA$135)) -> 476000 | E149: 476000 | F149: 476000 | G149: 476000 | H149: 476000 | I149: 476000 | J149: 476000 | K149: 476000 | L149: 476000 | M149: 476000 | N149: 476000 | O149: 476000 | P149: 476000 | Q149: 476000 | R149: 476000 | S149: 476000 | T149: 476000 | U149: 476000 | V149: 476000 | W149: 476000
B150: BÁSICO | C150: 15 | D150: =IF(Prazo<D$135,0,IF(D37="",0,$AA$135)) -> 476000 | E150: 476000 | F150: 476000 | G150: 476000 | H150: 476000 | I150: 476000 | J150: 476000 | K150: 476000 | L150: 476000 | M150: 476000 | N150: 476000 | O150: 476000 | P150: 476000 | Q150: 476000 | R150: 476000 | S150: 476000 | T150: 476000 | U150: 476000 | V150: 476000 | W150: 476000
B151: BÁSICO | C151: 16 | D151: =IF(Prazo<D$135,0,IF(D38="",0,$AA$135)) -> 476000 | E151: 476000 | F151: 476000 | G151: 476000 | H151: 476000 | I151: 476000 | J151: 476000 | K151: 476000 | L151: 476000 | M151: 476000 | N151: 476000 | O151: 476000 | P151: 476000 | Q151: 476000 | R151: 476000 | S151: 476000 | T151: 476000 | U151: 476000 | V151: 476000 | W151: 476000
B152: BÁSICO | C152: 17 | D152: =IF(Prazo<D$135,0,IF(D39="",0,$AA$135)) -> 476000 | E152: 476000 | F152: 476000 | G152: 476000 | H152: 476000 | I152: 476000 | J152: 476000 | K152: 476000 | L152: 476000 | M152: 476000 | N152: 476000 | O152: 476000 | P152: 476000 | Q152: 476000 | R152: 476000 | S152: 476000 | T152: 476000 | U152: 476000 | V152: 476000 | W152: 476000
B153: BÁSICO | C153: 18 | D153: =IF(Prazo<D$135,0,IF(D40="",0,$AA$135)) -> 476000 | E153: 476000 | F153: 476000 | G153: 476000 | H153: 476000 | I153: 476000 | J153: 476000 | K153: 476000 | L153: 476000 | M153: 476000 | N153: 476000 | O153: 476000 | P153: 476000 | Q153: 476000 | R153: 476000 | S153: 476000 | T153: 476000 | U153: 476000 | V153: 476000 | W153: 476000
B154: BÁSICO | C154: 19 | D154: =IF(Prazo<D$135,0,IF(D41="",0,$AA$135)) -> 476000 | E154: 476000 | F154: 476000 | G154: 476000 | H154: 476000 | I154: 476000 | J154: 476000 | K154: 476000 | L154: 476000 | M154: 476000 | N154: 476000 | O154: 476000 | P154: 476000 | Q154: 476000 | R154: 476000 | S154: 476000 | T154: 476000 | U154: 476000 | V154: 476000 | W154: 476000
B155: BÁSICO | C155: 20 | D155: =IF(Prazo<D$135,0,IF(D42="",0,$AA$135)) -> 476000 | E155: 476000 | F155: 476000 | G155: 476000 | H155: 476000 | I155: 476000 | J155: 476000 | K155: 476000 | L155: 476000 | M155: 476000 | N155: 476000 | O155: 476000 | P155: 476000 | Q155: 476000 | R155: 476000 | S155: 476000 | T155: 476000 | U155: 476000 | V155: 476000 | W155: 476000
B156: BÁSICO | C156: 21 | D156: =IF(Prazo<D$135,0,IF(D43="",0,$AA$135)) -> 476000 | E156: 476000 | F156: 476000 | G156: 476000 | H156: 476000 | I156: 476000 | J156: 476000 | K156: 476000 | L156: 476000 | M156: 476000 | N156: 476000 | O156: 476000 | P156: 476000 | Q156: 476000 | R156: 476000 | S156: 476000 | T156: 476000 | U156: 476000 | V156: 476000 | W156: 476000
B157: BÁSICO | C157: 22 | D157: =IF(Prazo<D$135,0,IF(D44="",0,$AA$135)) -> 476000 | E157: 476000 | F157: 476000 | G157: 476000 | H157: 476000 | I157: 476000 | J157: 476000 | K157: 476000 | L157: 476000 | M157: 476000 | N157: 476000 | O157: 476000 | P157: 476000 | Q157: 476000 | R157: 476000 | S157: 476000 | T157: 476000 | U157: 476000 | V157: 476000 | W157: 476000
B158: BÁSICO | C158: 23 | D158: =IF(Prazo<D$135,0,IF(D45="",0,$AA$135)) -> 476000 | E158: 476000 | F158: 476000 | G158: 476000 | H158: 476000 | I158: 476000 | J158: 476000 | K158: 476000 | L158: 476000 | M158: 476000 | N158: 476000 | O158: 476000 | P158: 476000 | Q158: 476000 | R158: 476000 | S158: 476000 | T158: 476000 | U158: 476000 | V158: 476000 | W158: 476000
B159: BÁSICO | C159: 24 | D159: =IF(Prazo<D$135,0,IF(D46="",0,$AA$135)) -> 476000 | E159: 476000 | F159: 476000 | G159: 476000 | H159: 476000 | I159: 476000 | J159: 476000 | K159: 476000 | L159: 476000 | M159: 476000 | N159: 476000 | O159: 476000 | P159: 476000 | Q159: 476000 | R159: 476000 | S159: 476000 | T159: 476000 | U159: 476000 | V159: 476000 | W159: 476000
B160: BÁSICO | C160: 25 | D160: =IF(Prazo<D$135,0,IF(D47="",0,$AA$135)) -> 476000 | E160: 476000 | F160: 476000 | G160: 476000 | H160: 476000 | I160: 476000 | J160: 476000 | K160: 476000 | L160: 476000 | M160: 476000 | N160: 476000 | O160: 476000 | P160: 476000 | Q160: 476000 | R160: 476000 | S160: 476000 | T160: 476000 | U160: 476000 | V160: 476000 | W160: 476000
B161: BÁSICO | C161: 26 | D161: =IF(Prazo<D$135,0,IF(D48="",0,$AA$135)) -> 476000 | E161: 476000 | F161: 476000 | G161: 476000 | H161: 476000 | I161: 476000 | J161: 476000 | K161: 476000 | L161: 476000 | M161: 476000 | N161: 476000 | O161: 476000 | P161: 476000 | Q161: 476000 | R161: 476000 | S161: 476000 | T161: 476000 | U161: 476000 | V161: 476000 | W161: 476000
B162: BÁSICO | C162: 27 | D162: =IF(Prazo<D$135,0,IF(D49="",0,$AA$135)) -> 476000 | E162: 476000 | F162: 476000 | G162: 476000 | H162: 476000 | I162: 476000 | J162: 476000 | K162: 476000 | L162: 476000 | M162: 476000 | N162: 476000 | O162: 476000 | P162: 476000 | Q162: 476000 | R162: 476000 | S162: 476000 | T162: 476000 | U162: 476000 | V162: 476000 | W162: 476000
B163: BÁSICO | C163: 28 | D163: =IF(Prazo<D$135,0,IF(D50="",0,$AA$135)) -> 476000 | E163: 476000 | F163: 476000 | G163: 476000 | H163: 476000 | I163: 476000 | J163: 476000 | K163: 476000 | L163: 476000 | M163: 476000 | N163: 476000 | O163: 476000 | P163: 476000 | Q163: 476000 | R163: 476000 | S163: 476000 | T163: 476000 | U163: 476000 | V163: 476000 | W163: 476000
B164: BÁSICO | C164: 29 | D164: =IF(Prazo<D$135,0,IF(D51="",0,$AA$135)) -> 476000 | E164: 476000 | F164: 476000 | G164: 476000 | H164: 476000 | I164: 476000 | J164: 476000 | K164: 476000 | L164: 476000 | M164: 476000 | N164: 476000 | O164: 476000 | P164: 476000 | Q164: 476000 | R164: 476000 | S164: 476000 | T164: 476000 | U164: 476000 | V164: 476000 | W164: 476000
B165: BÁSICO | C165: 30 | D165: =IF(Prazo<D$135,0,IF(D52="",0,$AA$135)) -> 476000 | E165: 476000 | F165: 476000 | G165: 476000 | H165: 476000 | I165: 476000 | J165: 476000 | K165: 476000 | L165: 476000 | M165: 476000 | N165: 476000 | O165: 476000 | P165: 476000 | Q165: 476000 | R165: 476000 | S165: 476000 | T165: 476000 | U165: 476000 | V165: 476000 | W165: 476000
B166: BÁSICO | C166: 31 | D166: =IF(Prazo<D$135,0,IF(D53="",0,$AA$135)) -> 476000 | E166: 476000 | F166: 476000 | G166: 476000 | H166: 476000 | I166: 476000 | J166: 476000 | K166: 476000 | L166: 476000 | M166: 476000 | N166: 476000 | O166: 476000 | P166: 476000 | Q166: 476000 | R166: 476000 | S166: 476000 | T166: 476000 | U166: 476000 | V166: 476000 | W166: 476000
B167: BÁSICO | C167: 32 | D167: =IF(Prazo<D$135,0,IF(D54="",0,$AA$135)) -> 476000 | E167: 476000 | F167: 476000 | G167: 476000 | H167: 476000 | I167: 476000 | J167: 476000 | K167: 476000 | L167: 476000 | M167: 476000 | N167: 476000 | O167: 476000 | P167: 476000 | Q167: 476000 | R167: 476000 | S167: 476000 | T167: 476000 | U167: 476000 | V167: 476000 | W167: 476000
B168: BÁSICO | C168: 33 | D168: =IF(Prazo<D$135,0,IF(D55="",0,$AA$135)) -> 476000 | E168: 476000 | F168: 476000 | G168: 476000 | H168: 476000 | I168: 476000 | J168: 476000 | K168: 476000 | L168: 476000 | M168: 476000 | N168: 476000 | O168: 476000 | P168: 476000 | Q168: 476000 | R168: 476000 | S168: 476000 | T168: 476000 | U168: 476000 | V168: 476000 | W168: 476000
B169: BÁSICO | C169: 34 | D169: =IF(Prazo<D$135,0,IF(D56="",0,$AA$135)) -> 476000 | E169: 476000 | F169: 476000 | G169: 476000 | H169: 476000 | I169: 476000 | J169: 476000 | K169: 476000 | L169: 476000 | M169: 476000 | N169: 476000 | O169: 476000 | P169: 476000 | Q169: 476000 | R169: 476000 | S169: 476000 | T169: 476000 | U169: 476000 | V169: 476000 | W169: 476000
B170: BÁSICO | C170: 35 | D170: =IF(Prazo<D$135,0,IF(D57="",0,$AA$135)) -> 476000 | E170: 476000 | F170: 476000 | G170: 476000 | H170: 476000 | I170: 476000 | J170: 476000 | K170: 476000 | L170: 476000 | M170: 476000 | N170: 476000 | O170: 476000 | P170: 476000 | Q170: 476000 | R170: 476000 | S170: 476000 | T170: 476000 | U170: 476000 | V170: 476000 | W170: 476000
B171: BÁSICO | C171: 36 | D171: =IF(Prazo<D$135,0,IF(D58="",0,$AA$135)) -> 476000 | E171: 476000 | F171: 476000 | G171: 476000 | H171: 476000 | I171: 476000 | J171: 476000 | K171: 476000 | L171: 476000 | M171: 476000 | N171: 476000 | O171: 476000 | P171: 476000 | Q171: 476000 | R171: 476000 | S171: 476000 | T171: 476000 | U171: 476000 | V171: 476000 | W171: 476000
B172: BÁSICO | C172: 37 | D172: =IF(Prazo<D$135,0,IF(D59="",0,$AA$135)) -> 476000 | E172: 476000 | F172: 476000 | G172: 476000 | H172: 476000 | I172: 476000 | J172: 476000 | K172: 476000 | L172: 476000 | M172: 476000 | N172: 476000 | O172: 476000 | P172: 476000 | Q172: 476000 | R172: 476000 | S172: 476000 | T172: 476000 | U172: 476000 | V172: 476000 | W172: 476000
B173: BÁSICO | C173: 38 | D173: =IF(Prazo<D$135,0,IF(D60="",0,$AA$135)) -> 476000 | E173: 476000 | F173: 476000 | G173: 476000 | H173: 476000 | I173: 476000 | J173: 476000 | K173: 476000 | L173: 476000 | M173: 476000 | N173: 476000 | O173: 476000 | P173: 476000 | Q173: 476000 | R173: 476000 | S173: 476000 | T173: 476000 | U173: 476000 | V173: 476000 | W173: 476000
B174: BÁSICO | C174: 39 | D174: =IF(Prazo<D$135,0,IF(D61="",0,$AA$135)) -> 476000 | E174: 476000 | F174: 476000 | G174: 476000 | H174: 476000 | I174: 476000 | J174: 476000 | K174: 476000 | L174: 476000 | M174: 476000 | N174: 476000 | O174: 476000 | P174: 476000 | Q174: 476000 | R174: 476000 | S174: 476000 | T174: 476000 | U174: 476000 | V174: 476000 | W174: 476000
B175: BÁSICO | C175: 40 | D175: =IF(Prazo<D$135,0,IF(D62="",0,$AA$135)) -> 476000 | E175: 476000 | F175: 476000 | G175: 476000 | H175: 476000 | I175: 476000 | J175: 476000 | K175: 476000 | L175: 476000 | M175: 476000 | N175: 476000 | O175: 476000 | P175: 476000 | Q175: 476000 | R175: 476000 | S175: 476000 | T175: 476000 | U175: 476000 | V175: 476000 | W175: 476000
B176: BÁSICO | C176: 41 | D176: =IF(Prazo<D$135,0,IF(D63="",0,$AA$135)) -> 476000 | E176: 476000 | F176: 476000 | G176: 476000 | H176: 476000 | I176: 476000 | J176: 476000 | K176: 476000 | L176: 476000 | M176: 476000 | N176: 476000 | O176: 476000 | P176: 476000 | Q176: 476000 | R176: 476000 | S176: 476000 | T176: 476000 | U176: 476000 | V176: 476000 | W176: 476000
B177: BÁSICO | C177: 42 | D177: =IF(Prazo<D$135,0,IF(D64="",0,$AA$135)) -> 476000 | E177: 476000 | F177: 476000 | G177: 476000 | H177: 476000 | I177: 476000 | J177: 476000 | K177: 476000 | L177: 476000 | M177: 476000 | N177: 476000 | O177: 476000 | P177: 476000 | Q177: 476000 | R177: 476000 | S177: 476000 | T177: 476000 | U177: 476000 | V177: 476000 | W177: 476000
B178: BÁSICO | C178: 43 | D178: =IF(Prazo<D$135,0,IF(D65="",0,$AA$135)) -> 476000 | E178: 476000 | F178: 476000 | G178: 476000 | H178: 476000 | I178: 476000 | J178: 476000 | K178: 476000 | L178: 476000 | M178: 476000 | N178: 476000 | O178: 476000 | P178: 476000 | Q178: 476000 | R178: 476000 | S178: 476000 | T178: 476000 | U178: 476000 | V178: 476000 | W178: 476000
B179: BÁSICO | C179: 44 | D179: =IF(Prazo<D$135,0,IF(D66="",0,$AA$135)) -> 476000 | E179: 476000 | F179: 476000 | G179: 476000 | H179: 476000 | I179: 476000 | J179: 476000 | K179: 476000 | L179: 476000 | M179: 476000 | N179: 476000 | O179: 476000 | P179: 476000 | Q179: 476000 | R179: 476000 | S179: 476000 | T179: 476000 | U179: 476000 | V179: 476000 | W179: 476000
B180: BÁSICO | C180: 45 | D180: =IF(Prazo<D$135,0,IF(D67="",0,$AA$135)) -> 476000 | E180: 476000 | F180: 476000 | G180: 476000 | H180: 476000 | I180: 476000 | J180: 476000 | K180: 476000 | L180: 476000 | M180: 476000 | N180: 476000 | O180: 476000 | P180: 476000 | Q180: 476000 | R180: 476000 | S180: 476000 | T180: 476000 | U180: 476000 | V180: 476000 | W180: 476000
B181: BÁSICO | C181: 46 | D181: =IF(Prazo<D$135,0,IF(D68="",0,$AA$135)) -> 476000 | E181: 476000 | F181: 476000 | G181: 476000 | H181: 476000 | I181: 476000 | J181: 476000 | K181: 476000 | L181: 476000 | M181: 476000 | N181: 476000 | O181: 476000 | P181: 476000 | Q181: 476000 | R181: 476000 | S181: 476000 | T181: 476000 | U181: 476000 | V181: 476000 | W181: 476000
B182: BÁSICO | C182: 47 | D182: =IF(Prazo<D$135,0,IF(D69="",0,$AA$135)) -> 476000 | E182: 476000 | F182: 476000 | G182: 476000 | H182: 476000 | I182: 476000 | J182: 476000 | K182: 476000 | L182: 476000 | M182: 476000 | N182: 476000 | O182: 476000 | P182: 476000 | Q182: 476000 | R182: 476000 | S182: 476000 | T182: 476000 | U182: 476000 | V182: 476000 | W182: 476000
B183: BÁSICO | C183: 48 | D183: =IF(Prazo<D$135,0,IF(D70="",0,$AA$135)) -> 476000 | E183: 476000 | F183: 476000 | G183: 476000 | H183: 476000 | I183: 476000 | J183: 476000 | K183: 476000 | L183: 476000 | M183: 476000 | N183: 476000 | O183: 476000 | P183: 476000 | Q183: 476000 | R183: 476000 | S183: 476000 | T183: 476000 | U183: 476000 | V183: 476000 | W183: 476000
B184: BÁSICO | C184: 49 | D184: =IF(Prazo<D$135,0,IF(D71="",0,$AA$135)) -> 476000 | E184: 476000 | F184: 476000 | G184: 476000 | H184: 476000 | I184: 476000 | J184: 476000 | K184: 476000 | L184: 476000 | M184: 476000 | N184: 476000 | O184: 476000 | P184: 476000 | Q184: 476000 | R184: 476000 | S184: 476000 | T184: 476000 | U184: 476000 | V184: 476000 | W184: 476000
B185: BÁSICO | C185: 50 | D185: =IF(Prazo<D$135,0,IF(D72="",0,$AA$135)) -> 476000 | E185: 476000 | F185: 476000 | G185: 476000 | H185: 476000 | I185: 476000 | J185: 476000 | K185: 476000 | L185: 476000 | M185: 476000 | N185: 476000 | O185: 476000 | P185: 476000 | Q185: 476000 | R185: 476000 | S185: 476000 | T185: 476000 | U185: 476000 | V185: 476000 | W185: 476000
B186: BÁSICO | C186: 51 | D186: =IF(Prazo<D$135,0,IF(D73="",0,$AA$135)) -> 476000 | E186: 476000 | F186: 476000 | G186: 476000 | H186: 476000 | I186: 476000 | J186: 476000 | K186: 476000 | L186: 476000 | M186: 476000 | N186: 476000 | O186: 476000 | P186: 476000 | Q186: 476000 | R186: 476000 | S186: 476000 | T186: 476000 | U186: 476000 | V186: 476000 | W186: 476000
B187: BÁSICO | C187: 52 | D187: =IF(Prazo<D$135,0,IF(D74="",0,$AA$135)) -> 476000 | E187: 476000 | F187: 476000 | G187: 476000 | H187: 476000 | I187: 476000 | J187: 476000 | K187: 476000 | L187: 476000 | M187: 476000 | N187: 476000 | O187: 476000 | P187: 476000 | Q187: 476000 | R187: 476000 | S187: 476000 | T187: 476000 | U187: 476000 | V187: 476000 | W187: 476000
B188: BÁSICO | C188: 53 | D188: =IF(Prazo<D$135,0,IF(D75="",0,$AA$135)) -> 476000 | E188: 476000 | F188: 476000 | G188: 476000 | H188: 476000 | I188: 476000 | J188: 476000 | K188: 476000 | L188: 476000 | M188: 476000 | N188: 476000 | O188: 476000 | P188: 476000 | Q188: 476000 | R188: 476000 | S188: 476000 | T188: 476000 | U188: 476000 | V188: 476000 | W188: 476000
B189: BÁSICO | C189: 54 | D189: =IF(Prazo<D$135,0,IF(D76="",0,$AA$135)) -> 476000 | E189: 476000 | F189: 476000 | G189: 476000 | H189: 476000 | I189: 476000 | J189: 476000 | K189: 476000 | L189: 476000 | M189: 476000 | N189: 476000 | O189: 476000 | P189: 476000 | Q189: 476000 | R189: 476000 | S189: 476000 | T189: 476000 | U189: 476000 | V189: 476000 | W189: 476000
B190: BÁSICO | C190: 55 | D190: =IF(Prazo<D$135,0,IF(D77="",0,$AA$135)) -> 476000 | E190: 476000 | F190: 476000 | G190: 476000 | H190: 476000 | I190: 476000 | J190: 476000 | K190: 476000 | L190: 476000 | M190: 476000 | N190: 476000 | O190: 476000 | P190: 476000 | Q190: 476000 | R190: 476000 | S190: 476000 | T190: 476000 | U190: 476000 | V190: 476000 | W190: 476000
B191: BÁSICO | C191: 56 | D191: =IF(Prazo<D$135,0,IF(D78="",0,$AA$135)) -> 476000 | E191: 476000 | F191: 476000 | G191: 476000 | H191: 476000 | I191: 476000 | J191: 476000 | K191: 476000 | L191: 476000 | M191: 476000 | N191: 476000 | O191: 476000 | P191: 476000 | Q191: 476000 | R191: 476000 | S191: 476000 | T191: 476000 | U191: 476000 | V191: 476000 | W191: 476000
B192: BÁSICO | C192: 57 | D192: =IF(Prazo<D$135,0,IF(D79="",0,$AA$135)) -> 476000 | E192: 476000 | F192: 476000 | G192: 476000 | H192: 476000 | I192: 476000 | J192: 476000 | K192: 476000 | L192: 476000 | M192: 476000 | N192: 476000 | O192: 476000 | P192: 476000 | Q192: 476000 | R192: 476000 | S192: 476000 | T192: 476000 | U192: 476000 | V192: 476000 | W192: 476000
B193: MIDI | C193: 58 | D193: =IF(Prazo<D$135,0,IF(D84="",0,$AA$136)) -> 417629 | E193: 417629 | F193: 417629 | G193: 417629 | H193: 417629 | I193: 417629 | J193: 417629 | K193: 417629 | L193: 417629 | M193: 417629 | N193: 417629 | O193: 417629 | P193: 417629 | Q193: 417629 | R193: 417629 | S193: 417629 | T193: 417629 | U193: 417629 | V193: 417629 | W193: 417629
B194: MIDI | C194: 59 | D194: =IF(Prazo<D$135,0,IF(D85="",0,$AA$136)) -> 417629 | E194: 417629 | F194: 417629 | G194: 417629 | H194: 417629 | I194: 417629 | J194: 417629 | K194: 417629 | L194: 417629 | M194: 417629 | N194: 417629 | O194: 417629 | P194: 417629 | Q194: 417629 | R194: 417629 | S194: 417629 | T194: 417629 | U194: 417629 | V194: 417629 | W194: 417629
B195: MIDI | C195: 60 | D195: =IF(Prazo<D$135,0,IF(D86="",0,$AA$136)) -> 417629 | E195: 417629 | F195: 417629 | G195: 417629 | H195: 417629 | I195: 417629 | J195: 417629 | K195: 417629 | L195: 417629 | M195: 417629 | N195: 417629 | O195: 417629 | P195: 417629 | Q195: 417629 | R195: 417629 | S195: 417629 | T195: 417629 | U195: 417629 | V195: 417629 | W195: 417629
B196: MIDI | C196: 61 | D196: =IF(Prazo<D$135,0,IF(D87="",0,$AA$136)) -> 417629 | E196: 417629 | F196: 417629 | G196: 417629 | H196: 417629 | I196: 417629 | J196: 417629 | K196: 417629 | L196: 417629 | M196: 417629 | N196: 417629 | O196: 417629 | P196: 417629 | Q196: 417629 | R196: 417629 | S196: 417629 | T196: 417629 | U196: 417629 | V196: 417629 | W196: 417629
B197: MIDI | C197: 62 | D197: =IF(Prazo<D$135,0,IF(D88="",0,$AA$136)) -> 417629 | E197: 417629 | F197: 417629 | G197: 417629 | H197: 417629 | I197: 417629 | J197: 417629 | K197: 417629 | L197: 417629 | M197: 417629 | N197: 417629 | O197: 417629 | P197: 417629 | Q197: 417629 | R197: 417629 | S197: 417629 | T197: 417629 | U197: 417629 | V197: 417629 | W197: 417629
B198: MIDI | C198: 63 | D198: =IF(Prazo<D$135,0,IF(D89="",0,$AA$136)) -> 417629 | E198: 417629 | F198: 417629 | G198: 417629 | H198: 417629 | I198: 417629 | J198: 417629 | K198: 417629 | L198: 417629 | M198: 417629 | N198: 417629 | O198: 417629 | P198: 417629 | Q198: 417629 | R198: 417629 | S198: 417629 | T198: 417629 | U198: 417629 | V198: 417629 | W198: 417629
B199: MIDI | C199: 64 | D199: =IF(Prazo<D$135,0,IF(D90="",0,$AA$136)) -> 417629 | E199: 417629 | F199: 417629 | G199: 417629 | H199: 417629 | I199: 417629 | J199: 417629 | K199: 417629 | L199: 417629 | M199: 417629 | N199: 417629 | O199: 417629 | P199: 417629 | Q199: 417629 | R199: 417629 | S199: 417629 | T199: 417629 | U199: 417629 | V199: 417629 | W199: 417629
B200: MIDI | C200: 65 | D200: =IF(Prazo<D$135,0,IF(D91="",0,$AA$136)) -> 417629 | E200: 417629 | F200: 417629 | G200: 417629 | H200: 417629 | I200: 417629 | J200: 417629 | K200: 417629 | L200: 417629 | M200: 417629 | N200: 417629 | O200: 417629 | P200: 417629 | Q200: 417629 | R200: 417629 | S200: 417629 | T200: 417629 | U200: 417629 | V200: 417629 | W200: 417629
B201: MIDI | C201: =C200+1 -> 66 | D201: =IF(Prazo<D$135,0,IF(D92="",0,$AA$136)) -> 417629 | E201: 417629 | F201: 417629 | G201: 417629 | H201: 417629 | I201: 417629 | J201: 417629 | K201: 417629 | L201: 417629 | M201: 417629 | N201: 417629 | O201: 417629 | P201: 417629 | Q201: 417629 | R201: 417629 | S201: 417629 | T201: 417629 | U201: 417629 | V201: 417629 | W201: 417629
B202: MIDI | C202: =C201+1 -> 67 | D202: =IF(Prazo<D$135,0,IF(D93="",0,$AA$136)) -> 417629 | E202: 417629 | F202: 417629 | G202: 417629 | H202: 417629 | I202: 417629 | J202: 417629 | K202: 417629 | L202: 417629 | M202: 417629 | N202: 417629 | O202: 417629 | P202: 417629 | Q202: 417629 | R202: 417629 | S202: 417629 | T202: 417629 | U202: 417629 | V202: 417629 | W202: 417629
B203: MIDI | C203: 68 | D203: =IF(Prazo<D$135,0,IF(D94="",0,$AA$136)) -> 417629 | E203: 417629 | F203: 417629 | G203: 417629 | H203: 417629 | I203: 417629 | J203: 417629 | K203: 417629 | L203: 417629 | M203: 417629 | N203: 417629 | O203: 417629 | P203: 417629 | Q203: 417629 | R203: 417629 | S203: 417629 | T203: 417629 | U203: 417629 | V203: 417629 | W203: 417629
B204: MIDI | C204: 69 | D204: =IF(Prazo<D$135,0,IF(D95="",0,$AA$136)) -> 417629 | E204: 417629 | F204: 417629 | G204: 417629 | H204: 417629 | I204: 417629 | J204: 417629 | K204: 417629 | L204: 417629 | M204: 417629 | N204: 417629 | O204: 417629 | P204: 417629 | Q204: 417629 | R204: 417629 | S204: 417629 | T204: 417629 | U204: 417629 | V204: 417629 | W204: 417629
B205: ARTICUL. DIESEL | C205: 70 | D205: =IF(Prazo<D$135,0,IF(D100="",0,$AA$137)) -> 1404859 | E205: 1404859 | F205: 1404859 | G205: 1404859 | H205: 1404859 | I205: 1404859 | J205: 0 | K205: 0 | L205: 0 | M205: 0 | N205: 0 | O205: 0 | P205: 0 | Q205: 0 | R205: 0 | S205: 0 | T205: 0 | U205: 0 | V205: 0 | W205: 0
B206: ARTICUL. DIESEL | C206: 71 | D206: =IF(Prazo<D$135,0,IF(D101="",0,$AA$137)) -> 1404859 | E206: 1404859 | F206: 1404859 | G206: 1404859 | H206: 1404859 | I206: 0 | J206: 0 | K206: 0 | L206: 0 | M206: 0 | N206: 0 | O206: 0 | P206: 0 | Q206: 0 | R206: 0 | S206: 0 | T206: 0 | U206: 0 | V206: 0 | W206: 0
B207: ARTICUL. DIESEL | C207: 72 | D207: =IF(Prazo<D$135,0,IF(D102="",0,$AA$137)) -> 1404859 | E207: 1404859 | F207: 1404859 | G207: 1404859 | H207: 0 | I207: 0 | J207: 0 | K207: 0 | L207: 0 | M207: 0 | N207: 0 | O207: 0 | P207: 0 | Q207: 0 | R207: 0 | S207: 0 | T207: 0 | U207: 0 | V207: 0 | W207: 0
B208: ARTICUL. DIESEL | C208: 73 | D208: =IF(Prazo<D$135,0,IF(D103="",0,$AA$137)) -> 1404859 | E208: 1404859 | F208: 1404859 | G208: 0 | H208: 0 | I208: 0 | J208: 0 | K208: 0 | L208: 0 | M208: 0 | N208: 0 | O208: 0 | P208: 0 | Q208: 0 | R208: 0 | S208: 0 | T208: 0 | U208: 0 | V208: 0 | W208: 0
B209: ARTICUL. DIESEL | C209: 74 | D209: =IF(Prazo<D$135,0,IF(D104="",0,$AA$137)) -> 1404859 | E209: 1404859 | F209: 0 | G209: 0 | H209: 0 | I209: 0 | J209: 0 | K209: 0 | L209: 0 | M209: 0 | N209: 0 | O209: 0 | P209: 0 | Q209: 0 | R209: 0 | S209: 0 | T209: 0 | U209: 0 | V209: 0 | W209: 0
B210: ARTICUL. DIESEL | C210: 75 | D210: =IF(Prazo<D$135,0,IF(D105="",0,$AA$137)) -> 1404859 | E210: 0 | F210: 0 | G210: 0 | H210: 0 | I210: 0 | J210: 0 | K210: 0 | L210: 0 | M210: 0 | N210: 0 | O210: 0 | P210: 0 | Q210: 0 | R210: 0 | S210: 0 | T210: 0 | U210: 0 | V210: 0 | W210: 0
B211: ARTICUL. ELÉTRICO | C211: 76 | D211: =IF(Prazo<D$135,0,IF(D110="",0,$AA$138)) -> 0 | E211: 2639629 | F211: 2639629 | G211: 2639629 | H211: 2639629 | I211: 2639629 | J211: 2639629 | K211: 2639629 | L211: 2639629 | M211: 2639629 | N211: 2639629 | O211: 2639629 | P211: 2639629 | Q211: 2639629 | R211: 2639629 | S211: 2639629 | T211: 2639629 | U211: 2639629 | V211: 2639629 | W211: 2639629
B212: ARTICUL. ELÉTRICO | C212: 77 | D212: =IF(Prazo<D$135,0,IF(D111="",0,$AA$138)) -> 0 | E212: 0 | F212: 2639629 | G212: 2639629 | H212: 2639629 | I212: 2639629 | J212: 2639629 | K212: 2639629 | L212: 2639629 | M212: 2639629 | N212: 2639629 | O212: 2639629 | P212: 2639629 | Q212: 2639629 | R212: 2639629 | S212: 2639629 | T212: 2639629 | U212: 2639629 | V212: 2639629 | W212: 2639629
B213: ARTICUL. ELÉTRICO | C213: 78 | D213: =IF(Prazo<D$135,0,IF(D112="",0,$AA$138)) -> 0 | E213: 0 | F213: 0 | G213: 2639629 | H213: 2639629 | I213: 2639629 | J213: 2639629 | K213: 2639629 | L213: 2639629 | M213: 2639629 | N213: 2639629 | O213: 2639629 | P213: 2639629 | Q213: 2639629 | R213: 2639629 | S213: 2639629 | T213: 2639629 | U213: 2639629 | V213: 2639629 | W213: 2639629
... 848 more rows

Sheet 07 (a). OPEX_LOTE1
B6: Opex (R$ Milhões)
B8: Opex | C8: 1 | D8: =C8+1 -> 2 | E8: 3 | F8: 4 | G8: 5 | H8: 6 | I8: 7 | J8: 8 | K8: 9 | L8: 10 | M8: 11 | N8: 12 | O8: 13 | P8: 14 | Q8: 15 | R8: 16 | S8: 17 | T8: 18 | U8: 19 | V8: 20 | X8: TOTAL | Z8: RISCO
B10: Custo Variável | C10: =(C34+C60+C74+C120+C94+C140+C160+C180+C200)*'04. D&A Fiscal'!C17 -> 27.80901339 | D10: =(D34+D60+D74+D120+D94+D140+D160+D180+D200)*'04. D&A Fiscal'!D17 -> 27.48177618 | E10: =(E34+E60+E74+E120+E94+E140+E160+E180+E200)*'04. D&A Fiscal'!E17 -> 27.15453896 | F10: =(F34+F60+F74+F120+F94+F140+F160+F180+F200)*'04. D&A Fiscal'!F17 -> 26.82730174 | G10: =(G34+G60+G74+G120+G94+G140+G160+G180+G200)*'04. D&A Fiscal'!G17 -> 26.50006453 | H10: =(H34+H60+H74+H120+H94+H140+H160+H180+H200)*'04. D&A Fiscal'!H17 -> 26.7060143 | I10: =(I34+I60+I74+I120+I94+I140+I160+I180+I200)*'04. D&A Fiscal'!I17 -> 26.91196408 | J10: =(J34+J60+J74+J120+J94+J140+J160+J180+J200)*'04. D&A Fiscal'!J17 -> 26.91196408 | K10: =(K34+K60+K74+K120+K94+K140+K160+K180+K200)*'04. D&A Fiscal'!K17 -> 26.91196408 | L10: =(L34+L60+L74+L120+L94+L140+L160+L180+L200)*'04. D&A Fiscal'!L17 -> 26.91196408 | M10: =(M34+M60+M74+M120+M94+M140+M160+M180+M200)*'04. D&A Fiscal'!M17 -> 26.91196408 | N10: =(N34+N60+N74+N120+N94+N140+N160+N180+N200)*'04. D&A Fiscal'!N17 -> 26.91196408 | O10: =(O34+O60+O74+O120+O94+O140+O160+O180+O200)*'04. D&A Fiscal'!O17 -> 26.91196408 | P10: =(P34+P60+P74+P120+P94+P140+P160+P180+P200)*'04. D&A Fiscal'!P17 -> 26.91196408 | Q10: =(Q34+Q60+Q74+Q120+Q94+Q140+Q160+Q180+Q200)*'04. D&A Fiscal'!Q17 -> 26.91196408 | R10: =(R34+R60+R74+R120+R94+R140+R160+R180+R200)*'04. D&A Fiscal'!R17 -> 26.91196408 | S10: =(S34+S60+S74+S120+S94+S140+S160+S180+S200)*'04. D&A Fiscal'!S17 -> 26.91196408 | T10: =(T34+T60+T74+T120+T94+T140+T160+T180+T200)*'04. D&A Fiscal'!T17 -> 26.91196408 | U10: =(U34+U60+U74+U120+U94+U140+U160+U180+U200)*'04. D&A Fiscal'!U17 -> 26.91196408 | V10: =(V34+V60+V74+V120+V94+V140+V160+V180+V200)*'04. D&A Fiscal'!V17 -> 26.91196408 | X10: =SUM(C10:V10) -> 539.2462063
B12: Frota Patrimonial | C12: =SUM(C13:C18) -> 78 | D12: =SUM(D13:D18) -> 78 | E12: 78 | F12: 78 | G12: 78 | H12: 79 | I12: 80 | J12: 80 | K12: 80 | L12: 80 | M12: 80 | N12: 80 | O12: 80 | P12: 80 | Q12: 80 | R12: 80 | S12: 80 | T12: 80 | U12: 80 | V12: 80 | X12: =SUM(C12:V12) -> 1589
B13: Básico | C13: ='6. (a). CAPEX_LOTE1'!D9 -> 57 | D13: ='6. (a). CAPEX_LOTE1'!E9 -> 57 | E13: ='6. (a). CAPEX_LOTE1'!F9 -> 57 | F13: ='6. (a). CAPEX_LOTE1'!G9 -> 57 | G13: ='6. (a). CAPEX_LOTE1'!H9 -> 57 | H13: ='6. (a). CAPEX_LOTE1'!I9 -> 57 | I13: ='6. (a). CAPEX_LOTE1'!J9 -> 57 | J13: ='6. (a). CAPEX_LOTE1'!K9 -> 57 | K13: ='6. (a). CAPEX_LOTE1'!L9 -> 57 | L13: ='6. (a). CAPEX_LOTE1'!M9 -> 57 | M13: ='6. (a). CAPEX_LOTE1'!N9 -> 57 | N13: ='6. (a). CAPEX_LOTE1'!O9 -> 57 | O13: ='6. (a). CAPEX_LOTE1'!P9 -> 57 | P13: ='6. (a). CAPEX_LOTE1'!Q9 -> 57 | Q13: ='6. (a). CAPEX_LOTE1'!R9 -> 57 | R13: ='6. (a). CAPEX_LOTE1'!S9 -> 57 | S13: ='6. (a). CAPEX_LOTE1'!T9 -> 57 | T13: ='6. (a). CAPEX_LOTE1'!U9 -> 57 | U13: ='6. (a). CAPEX_LOTE1'!V9 -> 57 | V13: ='6. (a). CAPEX_LOTE1'!W9 -> 57
B14: MIDI | C14: ='6. (a). CAPEX_LOTE1'!D11 -> 11 | D14: ='6. (a). CAPEX_LOTE1'!E11 -> 11 | E14: ='6. (a). CAPEX_LOTE1'!F11 -> 11 | F14: ='6. (a). CAPEX_LOTE1'!G11 -> 11 | G14: ='6. (a). CAPEX_LOTE1'!H11 -> 11 | H14: ='6. (a). CAPEX_LOTE1'!I11 -> 11 | I14: ='6. (a). CAPEX_LOTE1'!J11 -> 11 | J14: ='6. (a). CAPEX_LOTE1'!K11 -> 11 | K14: ='6. (a). CAPEX_LOTE1'!L11 -> 11 | L14: ='6. (a). CAPEX_LOTE1'!M11 -> 11 | M14: ='6. (a). CAPEX_LOTE1'!N11 -> 11 | N14: ='6. (a). CAPEX_LOTE1'!O11 -> 11 | O14: ='6. (a). CAPEX_LOTE1'!P11 -> 11 | P14: ='6. (a). CAPEX_LOTE1'!Q11 -> 11 | Q14: ='6. (a). CAPEX_LOTE1'!R11 -> 11 | R14: ='6. (a). CAPEX_LOTE1'!S11 -> 11 | S14: ='6. (a). CAPEX_LOTE1'!T11 -> 11 | T14: ='6. (a). CAPEX_LOTE1'!U11 -> 11 | U14: ='6. (a). CAPEX_LOTE1'!V11 -> 11 | V14: ='6. (a). CAPEX_LOTE1'!W11 -> 11
B15: Articulado Diesel | C15: ='6. (a). CAPEX_LOTE1'!D13 -> 10 | D15: ='6. (a). CAPEX_LOTE1'!E13 -> 9 | E15: ='6. (a). CAPEX_LOTE1'!F13 -> 8 | F15: ='6. (a). CAPEX_LOTE1'!G13 -> 7 | G15: ='6. (a). CAPEX_LOTE1'!H13 -> 6 | H15: ='6. (a). CAPEX_LOTE1'!I13 -> 6 | I15: ='6. (a). CAPEX_LOTE1'!J13 -> 6 | J15: ='6. (a). CAPEX_LOTE1'!K13 -> 6 | K15: ='6. (a). CAPEX_LOTE1'!L13 -> 6 | L15: ='6. (a). CAPEX_LOTE1'!M13 -> 6 | M15: ='6. (a). CAPEX_LOTE1'!N13 -> 6 | N15: ='6. (a). CAPEX_LOTE1'!O13 -> 6 | O15: ='6. (a). CAPEX_LOTE1'!P13 -> 6 | P15: ='6. (a). CAPEX_LOTE1'!Q13 -> 6 | Q15: ='6. (a). CAPEX_LOTE1'!R13 -> 6 | R15: ='6. (a). CAPEX_LOTE1'!S13 -> 6 | S15: ='6. (a). CAPEX_LOTE1'!T13 -> 6 | T15: ='6. (a). CAPEX_LOTE1'!U13 -> 6 | U15: ='6. (a). CAPEX_LOTE1'!V13 -> 6 | V15: ='6. (a). CAPEX_LOTE1'!W13 -> 6
B16: Articulado Elétrico | C16: ='6. (a). CAPEX_LOTE1'!D15 -> 0 | D16: ='6. (a). CAPEX_LOTE1'!E15 -> 1 | E16: ='6. (a). CAPEX_LOTE1'!F15 -> 2 | F16: ='6. (a). CAPEX_LOTE1'!G15 -> 3 | G16: ='6. (a). CAPEX_LOTE1'!H15 -> 4 | H16: ='6. (a). CAPEX_LOTE1'!I15 -> 5 | I16: ='6. (a). CAPEX_LOTE1'!J15 -> 6 | J16: ='6. (a). CAPEX_LOTE1'!K15 -> 6 | K16: ='6. (a). CAPEX_LOTE1'!L15 -> 6 | L16: ='6. (a). CAPEX_LOTE1'!M15 -> 6 | M16: ='6. (a). CAPEX_LOTE1'!N15 -> 6 | N16: ='6. (a). CAPEX_LOTE1'!O15 -> 6 | O16: ='6. (a). CAPEX_LOTE1'!P15 -> 6 | P16: ='6. (a). CAPEX_LOTE1'!Q15 -> 6 | Q16: ='6. (a). CAPEX_LOTE1'!R15 -> 6 | R16: ='6. (a). CAPEX_LOTE1'!S15 -> 6 | S16: ='6. (a). CAPEX_LOTE1'!T15 -> 6 | T16: ='6. (a). CAPEX_LOTE1'!U15 -> 6 | U16: ='6. (a). CAPEX_LOTE1'!V15 -> 6 | V16: ='6. (a). CAPEX_LOTE1'!W15 -> 6
B17: Padron Diesel | C17: ='6. (a). CAPEX_LOTE1'!D17 -> 0 | D17: ='6. (a). CAPEX_LOTE1'!E17 -> 0 | E17: ='6. (a). CAPEX_LOTE1'!F17 -> 0 | F17: ='6. (a). CAPEX_LOTE1'!G17 -> 0 | G17: ='6. (a). CAPEX_LOTE1'!H17 -> 0 | H17: ='6. (a). CAPEX_LOTE1'!I17 -> 0 | I17: ='6. (a). CAPEX_LOTE1'!J17 -> 0 | J17: ='6. (a). CAPEX_LOTE1'!K17 -> 0 | K17: ='6. (a). CAPEX_LOTE1'!L17 -> 0 | L17: ='6. (a). CAPEX_LOTE1'!M17 -> 0 | M17: ='6. (a). CAPEX_LOTE1'!N17 -> 0 | N17: ='6. (a). CAPEX_LOTE1'!O17 -> 0 | O17: ='6. (a). CAPEX_LOTE1'!P17 -> 0 | P17: ='6. (a). CAPEX_LOTE1'!Q17 -> 0 | Q17: ='6. (a). CAPEX_LOTE1'!R17 -> 0 | R17: ='6. (a). CAPEX_LOTE1'!S17 -> 0 | S17: ='6. (a). CAPEX_LOTE1'!T17 -> 0 | T17: ='6. (a). CAPEX_LOTE1'!U17 -> 0 | U17: ='6. (a). CAPEX_LOTE1'!V17 -> 0 | V17: ='6. (a). CAPEX_LOTE1'!W17 -> 0
B18: Padron Elétrico | C18: ='6. (a). CAPEX_LOTE1'!D18 -> 0 | D18: ='6. (a). CAPEX_LOTE1'!E18 -> 0 | E18: ='6. (a). CAPEX_LOTE1'!F18 -> 0 | F18: ='6. (a). CAPEX_LOTE1'!G18 -> 0 | G18: ='6. (a). CAPEX_LOTE1'!H18 -> 0 | H18: ='6. (a). CAPEX_LOTE1'!I18 -> 0 | I18: ='6. (a). CAPEX_LOTE1'!J18 -> 0 | J18: ='6. (a). CAPEX_LOTE1'!K18 -> 0 | K18: ='6. (a). CAPEX_LOTE1'!L18 -> 0 | L18: ='6. (a). CAPEX_LOTE1'!M18 -> 0 | M18: ='6. (a). CAPEX_LOTE1'!N18 -> 0 | N18: ='6. (a). CAPEX_LOTE1'!O18 -> 0 | O18: ='6. (a). CAPEX_LOTE1'!P18 -> 0 | P18: ='6. (a). CAPEX_LOTE1'!Q18 -> 0 | Q18: ='6. (a). CAPEX_LOTE1'!R18 -> 0 | R18: ='6. (a). CAPEX_LOTE1'!S18 -> 0 | S18: ='6. (a). CAPEX_LOTE1'!T18 -> 0 | T18: ='6. (a). CAPEX_LOTE1'!U18 -> 0 | U18: ='6. (a). CAPEX_LOTE1'!V18 -> 0 | V18: ='6. (a). CAPEX_LOTE1'!W18 -> 0
B20: Frota Operacional | C20: =C21+C23+C25+C31+C27+C29 -> 73 | D20: =D21+D23+D25+D31+D27+D29 -> 73 | E20: 73 | F20: 73 | G20: 73 | H20: =H21+H23+H25+H31+H27+H29 -> 74 | I20: 75 | J20: 75 | K20: 75 | L20: 75 | M20: 75 | N20: 75 | O20: 75 | P20: 75 | Q20: 75 | R20: 75 | S20: 75 | T20: 75 | U20: 75 | V20: 75 | X20: =SUM(C20:V20) -> 1489
B21: Básico | C21: =ROUND((C22*C13),0) -> 54 | D21: =ROUND((D22*D13),0) -> 54 | E21: 54 | F21: 54 | G21: 54 | H21: 54 | I21: 54 | J21: 54 | K21: 54 | L21: 54 | M21: 54 | N21: 54 | O21: 54 | P21: 54 | Q21: 54 | R21: 54 | S21: 54 | T21: 54 | U21: 54 | V21: 54
B22: Percentual | C22: 0.95 | D22: 0.95 | E22: 0.95 | F22: 0.95 | G22: 0.95 | H22: 0.95 | I22: 0.95 | J22: 0.95 | K22: 0.95 | L22: 0.95 | M22: 0.95 | N22: 0.95 | O22: 0.95 | P22: 0.95 | Q22: 0.95 | R22: 0.95 | S22: 0.95 | T22: 0.95 | U22: 0.95 | V22: 0.95
B23: MIDI | C23: =ROUND((C24*C14),0) -> 10 | D23: =ROUND((D24*D14),0) -> 10 | E23: 10 | F23: 10 | G23: 10 | H23: 10 | I23: 10 | J23: 10 | K23: 10 | L23: 10 | M23: 10 | N23: 10 | O23: 10 | P23: 10 | Q23: 10 | R23: 10 | S23: 10 | T23: 10 | U23: 10 | V23: 10
B24: Percentual | C24: 0.95 | D24: 0.95 | E24: 0.95 | F24: 0.95 | G24: 0.95 | H24: 0.95 | I24: 0.95 | J24: 0.95 | K24: 0.95 | L24: 0.95 | M24: 0.95 | N24: 0.95 | O24: 0.95 | P24: 0.95 | Q24: 0.95 | R24: 0.95 | S24: 0.95 | T24: 0.95 | U24: 0.95 | V24: 0.95
B25: Articulado Diesel | C25: =ROUNDDOWN((C26*C15),0) -> 9 | D25: =ROUNDDOWN((D26*D15),0) -> 8 | E25: 7 | F25: 6 | G25: =ROUNDDOWN((G26*G15),0) -> 5 | H25: 5 | I25: 5 | J25: 5 | K25: 5 | L25: 5 | M25: 5 | N25: 5 | O25: 5 | P25: 5 | Q25: 5 | R25: 5 | S25: 5 | T25: 5 | U25: 5 | V25: 5
B26: Percentual | C26: 0.95 | D26: 0.95 | E26: 0.95 | F26: 0.95 | G26: 0.95 | H26: 0.95 | I26: 0.95 | J26: 0.95 | K26: 0.95 | L26: 0.95 | M26: 0.95 | N26: 0.95 | O26: 0.95 | P26: 0.95 | Q26: 0.95 | R26: 0.95 | S26: 0.95 | T26: 0.95 | U26: 0.95 | V26: 0.95
B27: Articulado Elétrico | C27: =ROUND((C28*C16),0) -> 0 | D27: =ROUND((D28*D16),0) -> 1 | E27: 2 | F27: 3 | G27: 4 | H27: 5 | I27: =ROUND((I28*I16),0) -> 6 | J27: 6 | K27: 6 | L27: 6 | M27: 6 | N27: 6 | O27: 6 | P27: 6 | Q27: 6 | R27: 6 | S27: 6 | T27: 6 | U27: 6 | V27: 6
B28: Percentual | C28: 1 | D28: 0.95 | E28: 0.95 | F28: 0.95 | G28: 0.95 | H28: 0.95 | I28: 0.95 | J28: 0.95 | K28: 0.95 | L28: 0.95 | M28: 0.95 | N28: 0.95 | O28: 0.95 | P28: 0.95 | Q28: 0.95 | R28: 0.95 | S28: 0.95 | T28: 0.95 | U28: 0.95 | V28: 0.95
B29: Padron Diesel | C29: 0 | D29: 0 | E29: 0 | F29: 0 | G29: 0 | H29: 0 | I29: 0 | J29: 0 | K29: 0 | L29: 0 | M29: 0 | N29: 0 | O29: 0 | P29: 0 | Q29: 0 | R29: 0 | S29: 0 | T29: 0 | U29: 0 | V29: 0
B30: Percentual | C30: 0 | D30: 0 | E30: 0 | F30: 0 | G30: 0 | H30: 0 | I30: 0 | J30: 0 | K30: 0 | L30: 0 | M30: 0 | N30: 0 | O30: 0 | P30: 0 | Q30: 0 | R30: 0 | S30: 0 | T30: 0 | U30: 0 | V30: 0
B31: Padron Elétrico | C31: =ROUND((C32*C18),0) -> 0 | D31: =ROUND((D32*D18),0) -> 0 | E31: 0 | F31: 0 | G31: 0 | H31: 0 | I31: 0 | J31: 0 | K31: 0 | L31: 0 | M31: 0 | N31: 0 | O31: 0 | P31: 0 | Q31: 0 | R31: 0 | S31: 0 | T31: 0 | U31: 0 | V31: 0
B32: Percentual | C32: 0 | D32: 0 | E32: 0 | F32: 0 | G32: 0 | H32: 0 | I32: 0 | J32: 0 | K32: 0 | L32: 0 | M32: 0 | N32: 0 | O32: 0 | P32: 0 | Q32: 0 | R32: 0 | S32: 0 | T32: 0 | U32: 0 | V32: 0
B34: Combustível | C34: =(C35+C39+C43+C47+C51+C55)*(1+VLOOKUP($B34,$B$315:$V$336,1+C$8,0))/10^6*(1+$Z$34) -> 11.77516486 | D34: 11.58231416 | E34: 11.38946345 | F34: 11.19661274 | G34: 11.00376203 | H34: 11.04633393 | I34: 11.08890584 | J34: 11.08890584 | K34: 11.08890584 | L34: 11.08890584 | M34: 11.08890584 | N34: 11.08890584 | O34: 11.08890584 | P34: 11.08890584 | Q34: 11.08890584 | R34: 11.08890584 | S34: 11.08890584 | T34: 11.08890584 | U34: 11.08890584 | V34: 11.08890584 | X34: =SUM(C34:V34) -> 223.2383329 | Z34: ='10. SENSIBILIDADE'!$C$8 -> 0
B35: Básico | C35: =C21*C36*C37*C38 -> 8463971.88 | D35: =D21*D36*D37*D38 -> 8463971.88 | E35: 8463971.88 | F35: 8463971.88 | G35: 8463971.88 | H35: 8463971.88 | I35: 8463971.88 | J35: 8463971.88 | K35: 8463971.88 | L35: 8463971.88 | M35: 8463971.88 | N35: 8463971.88 | O35: 8463971.88 | P35: 8463971.88 | Q35: 8463971.88 | R35: 8463971.88 | S35: 8463971.88 | T35: 8463971.88 | U35: 8463971.88 | V35: 8463971.88 | X35: =SUM(C35:V35) -> 169279437.6
B36: Quantidade Km | C36: 82020 | D36: =C36 -> 82020 | E36: =D36 -> 82020 | F36: 82020 | G36: 82020 | H36: 82020 | I36: 82020 | J36: 82020 | K36: 82020 | L36: 82020 | M36: 82020 | N36: 82020 | O36: 82020 | P36: 82020 | Q36: 82020 | R36: 82020 | S36: 82020 | T36: 82020 | U36: 82020 | V36: 82020
B37: Preço do diesel | C37: 4.9 | D37: =C37 -> 4.9 | E37: =D37 -> 4.9 | F37: 4.9 | G37: 4.9 | H37: 4.9 | I37: 4.9 | J37: 4.9 | K37: 4.9 | L37: 4.9 | M37: 4.9 | N37: 4.9 | O37: 4.9 | P37: 4.9 | Q37: 4.9 | R37: 4.9 | S37: 4.9 | T37: 4.9 | U37: =T37 -> 4.9 | V37: 4.9
B38: Consumo | C38: 0.39 | D38: =C38 -> 0.39 | E38: 0.39 | F38: 0.39 | G38: 0.39 | H38: 0.39 | I38: 0.39 | J38: 0.39 | K38: 0.39 | L38: 0.39 | M38: 0.39 | N38: 0.39 | O38: 0.39 | P38: 0.39 | Q38: 0.39 | R38: 0.39 | S38: 0.39 | T38: 0.39 | U38: 0.39 | V38: 0.39
B39: MIDI | C39: =C23*C40*C41*C42 -> 1192389.52 | D39: =D23*D40*D41*D42 -> 1192389.52 | E39: 1192389.52 | F39: 1192389.52 | G39: 1192389.52 | H39: 1192389.52 | I39: 1192389.52 | J39: 1192389.52 | K39: 1192389.52 | L39: 1192389.52 | M39: 1192389.52 | N39: 1192389.52 | O39: 1192389.52 | P39: 1192389.52 | Q39: 1192389.52 | R39: 1192389.52 | S39: 1192389.52 | T39: 1192389.52 | U39: 1192389.52 | V39: 1192389.52 | X39: =SUM(C39:V39) -> 23847790.4
B40: Quantidade Km | C40: 71572 | D40: =C40 -> 71572 | E40: =D40 -> 71572 | F40: 71572 | G40: 71572 | H40: 71572 | I40: 71572 | J40: 71572 | K40: 71572 | L40: 71572 | M40: 71572 | N40: 71572 | O40: 71572 | P40: 71572 | Q40: 71572 | R40: 71572 | S40: 71572 | T40: 71572 | U40: 71572 | V40: 71572
B41: Preço do diesel | C41: 4.9 | D41: =C41 -> 4.9 | E41: 4.9 | F41: 4.9 | G41: 4.9 | H41: 4.9 | I41: 4.9 | J41: 4.9 | K41: 4.9 | L41: 4.9 | M41: 4.9 | N41: 4.9 | O41: 4.9 | P41: 4.9 | Q41: 4.9 | R41: 4.9 | S41: 4.9 | T41: 4.9 | U41: 4.9 | V41: 4.9
B42: Consumo | C42: 0.34 | D42: =C42 -> 0.34 | E42: 0.34 | F42: 0.34 | G42: 0.34 | H42: 0.34 | I42: 0.34 | J42: 0.34 | K42: 0.34 | L42: 0.34 | M42: 0.34 | N42: 0.34 | O42: 0.34 | P42: 0.34 | Q42: 0.34 | R42: 0.34 | S42: 0.34 | T42: 0.34 | U42: 0.34 | V42: 0.34
B43: Articulado Diesel | C43: =C25*C44*C45*C46 -> 2118803.463 | D43: =D25*D44*D45*D46 -> 1883380.856 | E43: 1647958.249 | F43: 1412535.642 | G43: 1177113.035 | H43: 1177113.035 | I43: 1177113.035 | J43: 1177113.035 | K43: 1177113.035 | L43: 1177113.035 | M43: 1177113.035 | N43: 1177113.035 | O43: 1177113.035 | P43: 1177113.035 | Q43: 1177113.035 | R43: 1177113.035 | S43: 1177113.035 | T43: 1177113.035 | U43: 1177113.035 | V43: 1177113.035 | X43: =SUM(C43:V43) -> 25896486.77
B44: Quantidade Km | C44: 60817 | D44: =C44 -> 60817 | E44: =D44 -> 60817 | F44: 60817 | G44: 60817 | H44: 60817 | I44: 60817 | J44: 60817 | K44: 60817 | L44: 60817 | M44: 60817 | N44: 60817 | O44: 60817 | P44: 60817 | Q44: 60817 | R44: 60817 | S44: 60817 | T44: 60817 | U44: 60817 | V44: 60817
B45: Preço do diesel | C45: 4.9 | D45: =C45 -> 4.9 | E45: =D45 -> 4.9 | F45: 4.9 | G45: 4.9 | H45: 4.9 | I45: 4.9 | J45: 4.9 | K45: 4.9 | L45: 4.9 | M45: 4.9 | N45: 4.9 | O45: 4.9 | P45: 4.9 | Q45: 4.9 | R45: 4.9 | S45: 4.9 | T45: 4.9 | U45: =T45 -> 4.9 | V45: 4.9
B46: Consumo | C46: 0.79 | D46: =C46 -> 0.79 | E46: 0.79 | F46: 0.79 | G46: 0.79 | H46: 0.79 | I46: 0.79 | J46: 0.79 | K46: 0.79 | L46: 0.79 | M46: 0.79 | N46: 0.79 | O46: 0.79 | P46: 0.79 | Q46: 0.79 | R46: 0.79 | S46: 0.79 | T46: 0.79 | U46: 0.79 | V46: 0.79
B47: Articulado Elétrico | C47: =C27*C48*C49*C50 -> 0 | D47: =D27*D48*D49*D50 -> 42571.9 | E47: 85143.8 | F47: 127715.7 | G47: 170287.6 | H47: 212859.5 | I47: 255431.4 | J47: 255431.4 | K47: 255431.4 | L47: 255431.4 | M47: 255431.4 | N47: 255431.4 | O47: 255431.4 | P47: 255431.4 | Q47: 255431.4 | R47: 255431.4 | S47: 255431.4 | T47: 255431.4 | U47: 255431.4 | V47: 255431.4 | X47: =SUM(C47:V47) -> 4214618.1
B48: Quantidade Km | C48: 60817 | D48: =C48 -> 60817 | E48: =D48 -> 60817 | F48: 60817 | G48: 60817 | H48: 60817 | I48: 60817 | J48: 60817 | K48: 60817 | L48: 60817 | M48: 60817 | N48: 60817 | O48: 60817 | P48: 60817 | Q48: 60817 | R48: 60817 | S48: 60817 | T48: 60817 | U48: 60817 | V48: 60817
B49: Preço do diesel | C49: 0.35 | D49: =C49 -> 0.35 | E49: 0.35 | F49: 0.35 | G49: 0.35 | H49: 0.35 | I49: 0.35 | J49: 0.35 | K49: 0.35 | L49: 0.35 | M49: 0.35 | N49: 0.35 | O49: 0.35 | P49: 0.35 | Q49: 0.35 | R49: 0.35 | S49: 0.35 | T49: 0.35 | U49: 0.35 | V49: 0.35
B50: Consumo | C50: 2 | D50: =C50 -> 2 | E50: 2 | F50: 2 | G50: 2 | H50: 2 | I50: 2 | J50: 2 | K50: 2 | L50: 2 | M50: 2 | N50: 2 | O50: 2 | P50: 2 | Q50: 2 | R50: 2 | S50: 2 | T50: 2 | U50: 2 | V50: 2
B51: Padron Diesel | C51: =C29*C52*C53*C54 -> 0 | D51: =D29*D52*D53*D54 -> 0 | E51: 0 | F51: 0 | G51: 0 | H51: 0 | I51: 0 | J51: 0 | K51: 0 | L51: 0 | M51: 0 | N51: 0 | O51: 0 | P51: 0 | Q51: 0 | R51: 0 | S51: 0 | T51: 0 | U51: 0 | V51: 0 | X51: =SUM(C51:V51) -> 0
B52: Quantidade Km | C52: 0 | D52: =C52 -> 0 | E52: =D52 -> 0 | F52: 0 | G52: 0 | H52: 0 | I52: 0 | J52: 0 | K52: 0 | L52: 0 | M52: 0 | N52: 0 | O52: 0 | P52: 0 | Q52: 0 | R52: 0 | S52: 0 | T52: 0 | U52: 0 | V52: 0
B53: Preço da eletricidade | C53: 0 | D53: =C53 -> 0 | E53: 0 | F53: 0 | G53: 0 | H53: 0 | I53: 0 | J53: 0 | K53: 0 | L53: 0 | M53: 0 | N53: 0 | O53: 0 | P53: 0 | Q53: 0 | R53: 0 | S53: 0 | T53: 0 | U53: 0 | V53: 0
B54: Consumo | C54: 0 | D54: =C54 -> 0 | E54: 0 | F54: 0 | G54: 0 | H54: 0 | I54: 0 | J54: 0 | K54: 0 | L54: 0 | M54: 0 | N54: 0 | O54: 0 | P54: 0 | Q54: 0 | R54: 0 | S54: 0 | T54: 0 | U54: 0 | V54: 0
B55: Padron Elétrico | C55: =C31*C56*C57*C58 -> 0 | D55: =D31*D56*D57*D58 -> 0 | E55: 0 | F55: 0 | G55: 0 | H55: 0 | I55: 0 | J55: 0 | K55: 0 | L55: 0 | M55: 0 | N55: 0 | O55: 0 | P55: 0 | Q55: 0 | R55: 0 | S55: 0 | T55: 0 | U55: 0 | V55: 0 | X55: =SUM(C55:V55) -> 0
B56: Quantidade Km | C56: 0 | D56: =C56 -> 0 | E56: =D56 -> 0 | F56: 0 | G56: 0 | H56: 0 | I56: 0 | J56: 0 | K56: 0 | L56: 0 | M56: 0 | N56: 0 | O56: 0 | P56: 0 | Q56: 0 | R56: 0 | S56: 0 | T56: 0 | U56: 0 | V56: 0
B57: Preço da eletricidade | C57: 0 | D57: =C57 -> 0 | E57: 0 | F57: 0 | G57: 0 | H57: 0 | I57: 0 | J57: 0 | K57: 0 | L57: 0 | M57: 0 | N57: 0 | O57: 0 | P57: 0 | Q57: 0 | R57: 0 | S57: 0 | T57: 0 | U57: 0 | V57: 0
B58: Consumo | C58: 0 | D58: =C58 -> 0 | E58: 0 | F58: 0 | G58: 0 | H58: 0 | I58: 0 | J58: 0 | K58: 0 | L58: 0 | M58: 0 | N58: 0 | O58: 0 | P58: 0 | Q58: 0 | R58: 0 | S58: 0 | T58: 0 | U58: 0 | V58: 0
B59: Consumo
B60: Lubrificante Diesel | C60: =(C61+C63+C65+C67+C69+C71)*(1+VLOOKUP($B60,$B$315:$V$336,1+C$8,0))/10^6*(1+$Z$60) -> 0.7653857161 | D60: 0.7505089656 | E60: 0.7356322152 | F60: 0.7207554647 | G60: 0.7058787143 | H60: 0.7063044333 | I60: 0.7067301523 | J60: 0.7067301523 | K60: 0.7067301523 | L60: 0.7067301523 | M60: 0.7067301523 | N60: 0.7067301523 | O60: 0.7067301523 | P60: 0.7067301523 | Q60: 0.7067301523 | R60: 0.7067301523 | S60: 0.7067301523 | T60: 0.7067301523 | U60: 0.7067301523 | V60: 0.7067301523 | X60: =SUM(C60:V60) -> 14.27868764 | Z60: ='10. SENSIBILIDADE'!$C$8 -> 0
B61: Básico | C61: =C35*C62 -> 550158.1722 | D61: =D35*D62 -> 550158.1722 | E61: 550158.1722 | F61: 550158.1722 | G61: 550158.1722 | H61: 550158.1722 | I61: 550158.1722 | J61: 550158.1722 | K61: 550158.1722 | L61: 550158.1722 | M61: 550158.1722 | N61: 550158.1722 | O61: 550158.1722 | P61: 550158.1722 | Q61: 550158.1722 | R61: 550158.1722 | S61: 550158.1722 | T61: 550158.1722 | U61: 550158.1722 | V61: 550158.1722 | X61: =SUM(C61:V61) -> 11003163.44
B62: Percentual | C62: 0.065 | D62: =C62 -> 0.065 | E62: =D62 -> 0.065 | F62: 0.065 | G62: 0.065 | H62: 0.065 | I62: 0.065 | J62: 0.065 | K62: 0.065 | L62: 0.065 | M62: 0.065 | N62: 0.065 | O62: 0.065 | P62: 0.065 | Q62: 0.065 | R62: 0.065 | S62: 0.065 | T62: 0.065 | U62: 0.065 | V62: 0.065
B63: MIDI | C63: =C39*C64 -> 77505.3188 | D63: =D39*D64 -> 77505.3188 | E63: 77505.3188 | F63: 77505.3188 | G63: 77505.3188 | H63: 77505.3188 | I63: 77505.3188 | J63: 77505.3188 | K63: 77505.3188 | L63: 77505.3188 | M63: 77505.3188 | N63: 77505.3188 | O63: 77505.3188 | P63: 77505.3188 | Q63: 77505.3188 | R63: 77505.3188 | S63: 77505.3188 | T63: 77505.3188 | U63: 77505.3188 | V63: 77505.3188 | X63: =SUM(C63:V63) -> 1550106.376
B64: Percentual | C64: 0.065 | D64: =C64 -> 0.065 | E64: =D64 -> 0.065 | F64: =E64 -> 0.065 | G64: =F64 -> 0.065 | H64: =G64 -> 0.065 | I64: =H64 -> 0.065 | J64: =I64 -> 0.065 | K64: =J64 -> 0.065 | L64: =K64 -> 0.065 | M64: =L64 -> 0.065 | N64: =M64 -> 0.065 | O64: =N64 -> 0.065 | P64: =O64 -> 0.065 | Q64: =P64 -> 0.065 | R64: =Q64 -> 0.065 | S64: =R64 -> 0.065 | T64: =S64 -> 0.065 | U64: =T64 -> 0.065 | V64: =U64 -> 0.065
B65: Articulado Diesel | C65: =C43*C66 -> 137722.2251 | D65: =D43*D66 -> 122419.7556 | E65: 107117.2862 | F65: 91814.81673 | G65: 76512.34728 | H65: 76512.34728 | I65: 76512.34728 | J65: 76512.34728 | K65: 76512.34728 | L65: 76512.34728 | M65: 76512.34728 | N65: 76512.34728 | O65: 76512.34728 | P65: 76512.34728 | Q65: 76512.34728 | R65: 76512.34728 | S65: 76512.34728 | T65: 76512.34728 | U65: 76512.34728 | V65: 76512.34728 | X65: =SUM(C65:V65) -> 1683271.64
B66: Percentual | C66: 0.065 | D66: =C66 -> 0.065 | E66: =D66 -> 0.065 | F66: =E66 -> 0.065 | G66: =F66 -> 0.065 | H66: =G66 -> 0.065 | I66: =H66 -> 0.065 | J66: =I66 -> 0.065 | K66: =J66 -> 0.065 | L66: =K66 -> 0.065 | M66: =L66 -> 0.065 | N66: =M66 -> 0.065 | O66: =N66 -> 0.065 | P66: =O66 -> 0.065 | Q66: =P66 -> 0.065 | R66: =Q66 -> 0.065 | S66: =R66 -> 0.065 | T66: =S66 -> 0.065 | U66: =T66 -> 0.065 | V66: =U66 -> 0.065
